Workbook

Sheet q
B1: Folder | C1: First File | D1: Second File | H1: =INT(99.9*90/100+0.5) -> 90 | L1: =INT(50*90/100+0.5) -> 45 | O1: =TRUNC(50*90/100+0.5) -> 45 | S1: Rating | AN1: Veg | AO1: Sp | AP1: Limit | AQ1: zone | AR1: elevation
A2: PRESENT DAY | B2: c:\_Projects\_Software\VB code\24_EWR site flows_scenario comparitor\scen 1 PD\ | C2: EWR 1.pd | S2: coefficients in | T2: 6 | AO2: Phragmites | AP2: low | AQ2: marginal | AR2: 0.34
A3: Array Parameter | E3: Oct | F3: Nov | G3: Dec | H3: Jan | I3: Feb | J3: Mar | K3: Apr | L3: May | M3: Jun | N3: Jul | O3: Aug | P3: Sep | Q3: Annual | S3: y=aQb+ c | T3: Croc | V3: =A2 -> PRESENT DAY | AM3: =V3 -> PRESENT DAY
A4: 0.001 | D4: 0.1 | E4: 20.53 | F4: 7.47 | G4: 45.43 | H4: 43.36 | I4: 84.17 | J4: 100.74 | K4: 65.44 | L4: 14.17 | M4: 6.1 | N4: 23.33 | O4: 8.29 | P4: 9.27 | S4: a1 | T4: 0.653 | V4: Flow converted to max depth | Y4: =D3 -> 0 | Z4: Oct | AA4: Nov | AB4: Dec | AC4: Jan | AD4: Feb | AE4: Mar | AF4: Apr | AG4: May | AH4: Jun | AI4: Jul | AJ4: Aug | AK4: Sep | AM4: Inundation of Veg component | AQ4: =Z4 -> Oct | AR4: Nov | AS4: Dec | AT4: Jan | AU4: Feb | AV4: Mar | AW4: Apr | AX4: May | AY4: Jun | AZ4: Jul | BA4: Aug | BB4: Sep
A5: 0.01 | D5: 1 | E5: 12.11 | F5: 6.64 | G5: 35.69 | H5: 36.32 | I5: 74.32 | J5: 68.51 | K5: 40.46 | L5: 11.1 | M5: 5.27 | N5: 6.19 | O5: 7.07 | P5: 9.19 | S5: b1 | T5: 0.205 | V5: =A4 -> 0.001 | Y5: =D4 -> 0.1 | Z5: =IF(E4<$T$10,$T$4*E4^$T$5+$T$6,$T$7*E4^$T$8+$T$9) -> 1.213257308 | AA5: =IF(F4<$T$10,$T$4*F4^$T$5+$T$6,$T$7*F4^$T$8+$T$9) -> 0.9861521017 | AB5: 1.4278035 | AC5: 1.414218396 | AD5: 1.620206736 | AE5: 1.681007226 | AF5: 1.538725163 | AG5: 1.124459973 | AH5: 0.9460319359 | AI5: 1.245476974 | AJ5: 1.007434594 | AK5: 1.030776543 | AM5: =V5 -> 0.001 | AP5: =Y5 -> 0.1 | AQ5: =$AR$2-Z5 -> -0.8732573079 | AR5: =$AR$2-AA5 -> -0.6461521017 | AS5: =$AR$2-AB5 -> -1.0878035 | AT5: =$AR$2-AC5 -> -1.074218396 | AU5: =$AR$2-AD5 -> -1.280206736 | AV5: =$AR$2-AE5 -> -1.341007226 | AW5: =$AR$2-AF5 -> -1.198725163 | AX5: =$AR$2-AG5 -> -0.7844599729 | AY5: =$AR$2-AH5 -> -0.6060319359 | AZ5: =$AR$2-AI5 -> -0.9054769737 | BA5: =$AR$2-AJ5 -> -0.6674345943 | BB5: =$AR$2-AK5 -> -0.6907765427
A6: 0.05 | D6: 5 | E6: 4.075 | F6: 5.183 | G6: 11.0805 | H6: 23.6055 | I6: 44.3915 | J6: 45.3065 | K6: 21.018 | L6: 8.408 | M6: 4.189 | N6: 3.8045 | O6: 2.887 | P6: 7.2225 | S6: c1 | T6: 0 | V6: 0.01 | Y6: 1 | Z6: =IF(E5<$T$10,$T$4*E5^$T$5+$T$6,$T$7*E5^$T$8+$T$9) -> 1.088824114 | AA6: 0.9626261108 | AB6: 1.358892881 | AC6: 1.36377611 | AD6: 1.579391695 | AE6: 1.553254944 | AF6: 1.3942912 | AG6: 1.069558127 | AH6: 0.9180880982 | AI6: 0.9488766603 | AJ6: 0.9750887843 | AK6: 1.028946658 | AM6: 0.01 | AP6: =Y6 -> 1 | AQ6: -0.7488241142 | AR6: -0.6226261108 | AS6: -1.018892881 | AT6: -1.02377611 | AU6: -1.239391695 | AV6: -1.213254944 | AW6: -1.0542912 | AX6: -0.7295581267 | AY6: -0.5780880982 | AZ6: -0.6088766603 | BA6: -0.6350887843 | BB6: -0.6889466584
A7: 0.1 | D7: 10 | E7: 1.77 | F7: 2.676 | G7: 7.345 | H7: 17.844 | I7: 35.798 | J7: 35.481 | K7: 14.083 | L7: 7.117 | M7: 3.539 | N7: 3.522 | O7: 2.2 | P7: 3.889 | S7: a2 | T7: 0.198 | V7: 0.05 | Y7: 5 | Z7: 0.8709422159 | AA7: 0.9149604656 | AB7: 1.069172672 | AC7: 1.248477983 | AD7: 1.421050934 | AE7: 1.427006944 | AF7: 1.219114273 | AG7: 1.010357769 | AH7: 0.875882411 | AI7: 0.8587647053 | AJ7: 0.8115303604 | AK7: 0.9793639846 | AM7: 0.05 | AP7: 5 | AQ7: -0.5309422159 | AR7: -0.5749604656 | AS7: -0.729172672 | AT7: -0.9084779834 | AU7: -1.081050934 | AV7: -1.087006944 | AW7: -0.8791142726 | AX7: -0.6703577693 | AY7: -0.535882411 | AZ7: -0.5187647053 | BA7: -0.4715303604 | BB7: -0.6393639846
A8: 0.15 | D8: 15 | E8: 1.6335 | F8: 2.3145 | G8: 5.354 | H8: 15.286 | I8: 22.4515 | J8: 26.2615 | K8: 13.032 | L8: 5.975 | M8: 3.3105 | N8: 3.1225 | O8: 1.6845 | P8: 2.7285 | S8: b2 | T8: 0.463 | V8: 0.1 | Y8: 10 | Z8: 0.7340872834 | AA8: 0.7990019397 | AB8: 0.9827464876 | AC8: 1.178878603 | AD8: 1.359734847 | AE8: 1.357257752 | AF8: 1.12304121 | AG8: 0.9764141382 | AH8: 0.846123382 | AI8: 0.8452885737 | AJ8: 0.7675555757 | AK8: 0.8626407298 | AM8: 0.1 | AP8: 10 | AQ8: -0.3940872834 | AR8: -0.4590019397 | AS8: -0.6427464876 | AT8: -0.8388786032 | AU8: -1.019734847 | AV8: -1.017257752 | AW8: -0.7830412101 | AX8: -0.6364141382 | AY8: -0.506123382 | AZ8: -0.5052885737 | BA8: -0.4275555757 | BB8: -0.5226407298
A9: 0.2 | D9: 20 | E9: 1.494 | F9: 1.828 | G9: 4.038 | H9: 12.608 | I9: 17.59 | J9: 21.54 | K9: 10.31 | L9: 4.982 | M9: 2.878 | N9: 2.686 | O9: 1.534 | P9: 2.158 | S9: c2 | T9: 0 | V9: 0.15 | Y9: 15 | Z9: 0.7221087454 | AA9: 0.7755805409 | AB9: 0.9210691713 | AC9: 1.142071836 | AD9: 1.235715461 | AE9: 1.276067608 | AF9: 1.105326166 | AG9: 0.9420250526 | AH9: 0.8346249586 | AI9: 0.8246813685 | AJ9: 0.726674197 | AK9: 0.8021906444 | AM9: 0.15 | AP9: 15 | AQ9: -0.3821087454 | AR9: -0.4355805409 | AS9: -0.5810691713 | AT9: -0.8020718356 | AU9: -0.8957154608 | AV9: -0.9360676081 | AW9: -0.7653261656 | AX9: -0.6020250526 | AY9: -0.4946249586 | AZ9: -0.4846813685 | BA9: -0.386674197 | BB9: -0.4621906444
A10: 0.3 | D10: 30 | E10: 1.247 | F10: 1.067 | G10: 2.997 | H10: 6.448 | I10: 10.618 | J10: 13.11 | K10: 6.93 | L10: 4.104 | M10: 2.484 | N10: 2.17 | O10: 1.124 | P10: 1.501 | S10: Q intersect | T10: 102 | V10: 0.2 | Y10: 20 | Z10: 0.7090143968 | AA10: 0.7389555248 | AB10: 0.8693152049 | AC10: 1.097856689 | AD10: 1.175418924 | AE10: 1.225260829 | AF10: 1.053491917 | AG10: 0.9075716986 | AH10: 0.8110110904 | AI10: 0.799613123 | AJ10: 0.7128651438 | AK10: 0.7645285826 | AM10: 0.2 | AP10: 20 | AQ10: -0.3690143968 | AR10: -0.3989555248 | AS10: -0.5293152049 | AT10: -0.7578566891 | AU10: -0.8354189237 | AV10: -0.885260829 | AW10: -0.7134919167 | AX10: -0.5675716986 | AY10: -0.4710110904 | AZ10: -0.459613123 | BA10: -0.3728651438 | BB10: -0.4245285826
A11: 0.4 | D11: 40 | E11: 1.102 | F11: 0.946 | G11: 1.996 | H11: 4.022 | I11: 5.852 | J11: 9.686 | K11: 4.886 | L11: 3.67 | M11: 1.862 | N11: 1.922 | O11: 1.01 | P11: 1.146 | S11: y intersect | T11: 1.685 | V11: 0.3 | Y11: 30 | Z11: 0.6832282328 | AA11: 0.6617392384 | AB11: 0.8177752521 | AC11: 0.9568531968 | AD11: 1.059868388 | AE11: 1.106679163 | AF11: 0.971098972 | AG11: 0.8722092506 | AH11: 0.7868994786 | AI11: 0.7653981827 | AJ11: 0.6688369767 | AK11: 0.7096941464 | AM11: 0.3 | AP11: 30 | AQ11: -0.3432282328 | AR11: -0.3217392384 | AS11: -0.4777752521 | AT11: -0.6168531968 | AU11: -0.7198683884 | AV11: -0.7666791633 | AW11: -0.631098972 | AX11: -0.5322092506 | AY11: -0.4468994786 | AZ11: -0.4253981827 | BA11: -0.3288369767 | BB11: -0.3696941464
A12: 0.5 | D12: 50 | E12: 0.99 | F12: 0.775 | G12: 1.6 | H12: 3.085 | I12: 3.62 | J12: 7.125 | K12: 2.995 | L12: 3.1 | M12: 1.54 | N12: 1.635 | O12: 0.94 | P12: 1.04 | S12: Depth | T12: =IF(T13<T10,T4*T13^T5+T6,T7*T13^T8+T9) -> 0.9082429431 | V12: 0.4 | Y12: 40 | Z12: 0.6661321704 | AA12: 0.6456109151 | AB12: 0.7523953301 | AC12: 0.8686079598 | AD12: 0.9380166912 | AE12: 1.040094492 | AF12: 0.9039588087 | AG12: 0.8524515886 | AH12: 0.7417524936 | AI12: 0.7465907844 | AJ12: 0.6543333605 | AK12: 0.6715000168 | AM12: 0.4 | AP12: 40 | AQ12: -0.3261321704 | AR12: -0.3056109151 | AS12: -0.4123953301 | AT12: -0.5286079598 | AU12: -0.5980166912 | AV12: -0.7000944921 | AW12: -0.5639588087 | AX12: -0.5124515886 | AY12: -0.4017524936 | AZ12: -0.4065907844 | BA12: -0.3143333605 | BB12: -0.3315000168
A13: 0.6 | D13: 60 | E13: 0.86 | F13: 0.674 | G13: 1.26 | H13: 2.096 | I13: 2.794 | J13: 4.536 | K13: 1.984 | L13: 2.492 | M13: 0.938 | N13: 1.208 | O13: 0.85 | P13: 0.964 | S13: Discharge | T13: 5 | V13: 0.5 | Y13: 50 | Z13: 0.6516559968 | AA13: 0.6197549873 | AB13: 0.7190478263 | AC13: 0.8226412653 | AD13: 0.8500577638 | AE13: 0.976639037 | AF13: 0.8176633479 | AG13: 0.8234596598 | AH13: 0.7134358505 | AI13: 0.72224463 | AJ13: 0.64476936 | AK13: 0.6582714442 | AM13: 0.5 | AP13: 50 | AQ13: -0.3116559968 | AR13: -0.2797549873 | AS13: -0.3790478263 | AT13: -0.4826412653 | AU13: -0.5100577638 | AV13: -0.636639037 | AW13: -0.4776633479 | AX13: -0.4834596598 | AY13: -0.3734358505 | AZ13: -0.38224463 | BA13: -0.30476936 | BB13: -0.3182714442
A14: 0.7 | D14: 70 | E14: 0.72 | F14: 0.6 | G14: 0.932 | H14: 1.608 | I14: 1.816 | J14: 3.497 | K14: 1.683 | L14: 1.563 | M14: 0.773 | N14: 0.99 | O14: 0.8 | P14: 0.9 | V14: 0.6 | Y14: 60 | Z14: 0.6331190245 | AA14: 0.6022661576 | AB14: 0.6846823664 | AC14: 0.7599734028 | AD14: 0.8061012482 | AE14: 0.8902893038 | AF14: 0.7514658052 | AG14: 0.7874183458 | AH14: 0.6444878927 | AI14: 0.6787922932 | AJ14: 0.631602821 | AK14: 0.6481103742 | AM14: 0.6 | AP14: 60 | AQ14: -0.2931190245 | AR14: -0.2622661576 | AS14: -0.3446823664 | AT14: -0.4199734028 | AU14: -0.4661012482 | AV14: -0.5502893038 | AW14: -0.4114658052 | AX14: -0.4474183458 | AY14: -0.3044878927 | AZ14: -0.3387922932 | BA14: -0.291602821 | BB14: -0.3081103742
A15: 0.8 | D15: 80 | E15: 0.584 | F15: 0.52 | G15: 0.752 | H15: 1.06 | I15: 1.386 | J15: 2.724 | K15: 1.146 | L15: 1.138 | M15: 0.65 | N15: 0.79 | O15: 0.75 | P15: 0.73 | V15: 0.7 | Y15: 70 | Z15: 0.6104728346 | AA15: 0.588076991 | AB15: 0.6436406182 | AC15: 0.7197833898 | AD15: 0.7379584828 | AE15: 0.8440550758 | AF15: 0.7265414981 | AG15: 0.7156073157 | AH15: 0.61942678 | AI15: 0.6516559968 | AJ15: 0.6238018072 | AK15: 0.6390471403 | AM15: 0.7 | AP15: 70 | AQ15: -0.2704728346 | AR15: -0.248076991 | AS15: -0.3036406182 | AT15: -0.3797833898 | AU15: -0.3979584828 | AV15: -0.5040550758 | AW15: -0.3865414981 | AX15: -0.3756073157 | AY15: -0.27942678 | AZ15: -0.3116559968 | BA15: -0.2838018072 | BB15: -0.2990471403
A16: 0.85 | D16: 85 | E16: 0.5295 | F16: 0.45 | G16: 0.633 | H16: 0.8915 | I16: 1.059 | J16: 1.9975 | K16: 0.793 | L16: 1.0555 | M16: 0.61 | N16: 0.6865 | O16: 0.7265 | P16: 0.646 | V16: 0.8 | Y16: 80 | Z16: 0.584827539 | AA16: 0.5710759445 | AB16: 0.6159391915 | AC16: 0.6608469404 | AD16: 0.6981916386 | AE16: 0.8019192475 | AF16: 0.6715000168 | AG16: 0.6705363792 | AH16: 0.5978062062 | AI16: 0.6221953126 | AJ16: 0.615603018 | AK16: 0.6122014693 | AM16: 0.8 | AP16: 80 | AQ16: -0.244827539 | AR16: -0.2310759445 | AS16: -0.2759391915 | AT16: -0.3208469404 | AU16: -0.3581916386 | AV16: -0.4619192475 | AW16: -0.3315000168 | AX16: -0.3305363792 | AY16: -0.2578062062 | AZ16: -0.2821953126 | BA16: -0.275603018 | BB16: -0.2722014693
A17: 0.9 | D17: 90 | E17: 0.462 | F17: 0.41 | G17: 0.61 | H17: 0.735 | I17: 0.76 | J17: 1.751 | K17: 0.673 | L17: 0.941 | M17: 0.6 | N17: 0.61 | O17: 0.69 | P17: 0.431 | V17: 0.85 | Y17: 85 | Z17: 0.5731993695 | AA17: 0.5543981171 | AB17: 0.5945671927 | AC17: 0.6378052027 | AD17: 0.6607190872 | AE17: 0.7525112081 | AF17: 0.6226789504 | AG17: 0.6602708436 | AH17: 0.5900730739 | AI17: 0.6045392353 | AJ17: 0.6115986007 | AK17: 0.597050199 | AM17: 0.85 | AP17: 85 | AQ17: -0.2331993695 | AR17: -0.2143981171 | AS17: -0.2545671927 | AT17: -0.2978052027 | AU17: -0.3207190872 | AV17: -0.4125112081 | AW17: -0.2826789504 | AX17: -0.3202708436 | AY17: -0.2500730739 | AZ17: -0.2645392353 | BA17: -0.2715986007 | BB17: -0.257050199
A18: 0.95 | D18: 95 | E18: 0.3855 | F18: 0.35 | G18: 0.5455 | H18: 0.5075 | I18: 0.531 | J18: 1.1555 | K18: 0.5975 | L18: 0.74 | M18: 0.5455 | N18: 0.5665 | O18: 0.502 | P18: 0.36 | V18: 0.9 | Y18: 90 | Z18: 0.5573972045 | AA18: 0.5439185519 | AB18: 0.5900730739 | AC18: 0.6130587365 | AD18: 0.6172768187 | AE18: 0.7324649392 | AF18: 0.6020828676 | AG18: 0.6449099152 | AH18: 0.588076991 | AI18: 0.5900730739 | AJ18: 0.6051697968 | AK18: 0.5495168599 | AM18: 0.9 | AP18: 90 | AQ18: -0.2173972045 | AR18: -0.2039185519 | AS18: -0.2500730739 | AT18: -0.2730587365 | AU18: -0.2772768187 | AV18: -0.3924649392 | AW18: -0.2620828676 | AX18: -0.3049099152 | AY18: -0.248076991 | AZ18: -0.2500730739 | BA18: -0.2651697968 | BB18: -0.2095168599
A19: 0.99 | D19: 99 | E19: 0.3228 | F19: 0.2955 | G19: 0.47 | H19: 0.4064 | I19: 0.3974 | J19: 0.5529 | K19: 0.4291 | L19: 0.6146 | M19: 0.4582 | N19: 0.3773 | O19: 0.3764 | P19: 0.2991 | V19: 0.95 | Y19: 95 | Z19: 0.5370913768 | AA19: 0.5265591094 | AB19: 0.5767081728 | AC19: 0.5682344643 | AD19: 0.5735318731 | AE19: 0.672637415 | AF19: 0.5875738412 | AG19: 0.6139113799 | AH19: 0.5767081728 | AI19: 0.5811913791 | AJ19: 0.5669665581 | AK19: 0.5296088014 | AM19: 0.95 | AP19: 95 | AQ19: -0.1970913768 | AR19: -0.1865591094 | AS19: -0.2367081728 | AT19: -0.2282344643 | AU19: -0.2335318731 | AV19: -0.332637415 | AW19: -0.2475738412 | AX19: -0.2739113799 | AY19: -0.2367081728 | AZ19: -0.2411913791 | BA19: -0.2269665581 | BB19: -0.1896088014
A20: 0.999 | D20: 99.9 | E20: 0.25 | F20: 0.25 | G20: 0.47 | H20: 0.37 | I20: 0.27 | J20: 0.38 | K20: 0.42 | L20: 0.56 | M20: 0.44 | N20: 0.35 | O20: 0.34 | P20: 0.29 | R20: =TRUNC(12.33) -> 12 | V20: 0.99 | Y20: 99 | Z20: 0.5178983819 | AA20: 0.5086012998 | AB20: 0.5593623641 | AC20: 0.5429360633 | AD20: 0.5404492185 | AE20: 0.5783033821 | AF20: 0.5490193822 | AG20: 0.5909825468 | AH20: 0.5564542627 | AI20: 0.5347292936 | AJ20: 0.5344675623 | AK20: 0.5098654055 | AM20: 0.99 | AP20: 99 | AQ20: -0.1778983819 | AR20: -0.1686012998 | AS20: -0.2193623641 | AT20: -0.2029360633 | AU20: -0.2004492185 | AV20: -0.2383033821 | AW20: -0.2090193822 | AX20: -0.2509825468 | AY20: -0.2164542627 | AZ20: -0.1947292936 | BA20: -0.1944675623 | BB20: -0.1698654055
A22: NATURAL | B22: c:\_Projects\_Software\VB code\24_EWR site flows_scenario comparitor\natural\ | C22: EWR_1.txt
B23: Array Parameter | E23: Oct | F23: Nov | G23: Dec | H23: Jan | I23: Feb | J23: Mar | K23: Apr | L23: May | M23: Jun | N23: Jul | O23: Aug | P23: Sep | Q23: Annual | V23: =A22 -> NATURAL | AM23: =V23 -> NATURAL
A24: 0.1 | B24: 0.001 | D24: 0.1 | E24: 5.13 | F24: 10.76 | G24: 40.43 | H24: 50.94 | I24: 94.11 | J24: 114.47 | K24: 78.16 | L24: 18.8 | M24: 9.61 | N24: 7.21 | O24: 6.42 | P24: 5.92 | V24: Flow converted to max depth | Y24: =D23 -> 0 | Z24: Oct | AA24: Nov | AB24: Dec | AC24: Jan | AD24: Feb | AE24: Mar | AF24: Apr | AG24: May | AH24: Jun | AI24: Jul | AJ24: Aug | AK24: Sep | AM24: Vegetation components | AQ24: =Z24 -> Oct | AR24: Nov | AS24: Dec | AT24: Jan | AU24: Feb | AV24: Mar | AW24: Apr | AX24: May | AY24: Jun | AZ24: Jul | BA24: Aug | BB24: Sep
A25: 1 | B25: 0.01 | D25: 1 | E25: 4.94 | F25: 10.3 | G25: 20.21 | H25: 45.29 | I25: 86 | J25: 80.41 | K25: 46.55 | L25: 14.04 | M25: 8.55 | N25: 6.72 | O25: 6.34 | P25: 5.2 | V25: =A24 -> 0.1 | Y25: =D24 -> 0.1 | Z25: =IF(E24<$T$10,$T$4*E24^$T$5+$T$6,$T$7*E24^$T$8+$T$9) -> 0.9130346114 | AA25: =IF(F24<$T$10,$T$4*F24^$T$5+$T$6,$T$7*F24^$T$8+$T$9) -> 1.062758769 | AB25: 1.394079203 | AC25: 1.461706789 | AD25: 1.657709838 | AE25: 1.777622094 | AF25: 1.595787336 | AG25: 1.19155897 | AH25: 1.03841625 | AI25: 0.9790162728 | AJ25: 0.9559999334 | AK25: 0.9402408833 | AM25: =V25 -> 0.1 | AP25: =Y25 -> 0.1 | AQ25: =$AR$2-Z25 -> -0.5730346114 | AR25: =$AR$2-AA25 -> -0.7227587685 | AS25: =$AR$2-AB25 -> -1.054079203 | AT25: =$AR$2-AC25 -> -1.121706789 | AU25: =$AR$2-AD25 -> -1.317709838 | AV25: =$AR$2-AE25 -> -1.437622094 | AW25: =$AR$2-AF25 -> -1.255787336 | AX25: =$AR$2-AG25 -> -0.8515589701 | AY25: =$AR$2-AH25 -> -0.6984162501 | AZ25: =$AR$2-AI25 -> -0.6390162728 | BA25: =$AR$2-AJ25 -> -0.6159999334 | BB25: =$AR$2-AK25 -> -0.6002408833
A26: 5 | B26: 0.05 | D26: 5 | E26: 4.707 | F26: 7.7975 | G26: 15.4195 | H26: 39.836 | I26: 72.7115 | J26: 60.253 | K26: 29.1845 | L26: 13.4725 | M26: 7.895 | N26: 6.199 | O26: 5.5325 | P26: 4.7335 | V26: 1 | Y26: 1 | Z26: =IF(E25<$T$10,$T$4*E25^$T$5+$T$6,$T$7*E25^$T$8+$T$9) -> 0.9059979308 | AA26: 1.053282364 | AB26: 1.209356312 | AC26: 1.426900391 | AD26: 1.627366471 | AE26: 1.605098704 | AF26: 1.434949829 | AG26: 1.122337408 | AH26: 1.01383256 | AI26: 0.9649923762 | AJ26: 0.9535456278 | AK26: 0.9155748758 | AM26: 1 | AP26: 1 | AQ26: -0.5659979308 | AR26: -0.7132823636 | AS26: -0.8693563117 | AT26: -1.086900391 | AU26: -1.287366471 | AV26: -1.265098704 | AW26: -1.094949829 | AX26: -0.782337408 | AY26: -0.67383256 | AZ26: -0.6249923762 | BA26: -0.6135456278 | BB26: -0.5755748758
A27: 11 | B27: 0.1 | D27: 10 | E27: 4.458 | F27: 5.734 | G27: 12.796 | H27: 26.995 | I27: 47.665 | J27: 47.039 | K27: 23.806 | L27: 12.684 | M27: 7.073 | N27: 5.824 | O27: 4.963 | P27: 4.357 | V27: 5 | Y27: 5 | Z27: 0.8970687788 | AA27: 0.9948647309 | AB27: 1.144109498 | AC27: 1.389855675 | AD27: 1.572323182 | AE27: 1.512895077 | AF27: 1.303975387 | AG27: 1.112884415 | AH27: 0.9974023079 | AI27: 0.9491593204 | AJ27: 0.9272825197 | AK27: 0.8981018055 | AM27: 5 | AP27: 5 | AQ27: -0.5570687788 | AR27: -0.6548647309 | AS27: -0.804109498 | AT27: -1.049855675 | AU27: -1.232323182 | AV27: -1.172895077 | AW27: -0.963975387 | AX27: -0.7728844154 | AY27: -0.6574023079 | AZ27: -0.6091593204 | BA27: -0.5872825197 | BB27: -0.5581018055
A28: 16 | B28: 0.15 | D28: 15 | E28: 3.8835 | F28: 5.476 | G28: 12.024 | H28: 23.093 | I28: 32.664 | J28: 37.5485 | K28: 19.446 | L28: 11.0925 | M28: 6.64 | N28: 5.569 | O28: 4.7535 | P28: 4.084 | V28: 11 | Y28: 10 | Z28: 0.887129241 | AA28: 0.9341078191 | AB28: 1.10119289 | AC28: 1.283294297 | AD28: 1.441929738 | AE28: 1.438027157 | AF28: 1.250644563 | AG28: 1.099210097 | AH28: 0.9751735903 | AI28: 0.9370948721 | AJ28: 0.9068610677 | AK28: 0.8829713885 | AM28: 11 | AP28: 10 | AQ28: -0.547129241 | AR28: -0.5941078191 | AS28: -0.7611928902 | AT28: -0.9432942971 | AU28: -1.101929738 | AV28: -1.098027157 | AW28: -0.9106445626 | AX28: -0.7592100972 | AY28: -0.6351735903 | AZ28: -0.5970948721 | BA28: -0.5668610677 | BB28: -0.5429713885
A29: 21 | B29: 0.2 | D29: 20 | E29: 3.752 | F29: 5.06 | G29: 9.436 | H29: 21.004 | I29: 28.564 | J29: 29.53 | K29: 18.462 | L29: 10.096 | M29: 6.158 | N29: 5.128 | O29: 4.492 | P29: 3.94 | V29: 16 | Y29: 15 | Z29: 0.862390492 | AA29: 0.9253332892 | AB29: 1.087234487 | AC29: 1.242872716 | AD29: 1.33443493 | AE29: 1.37310789 | AF29: 1.199840146 | AG29: 1.069409939 | AH29: 0.9626261108 | AI29: 0.9285333588 | AJ29: 0.8988784081 | AK29: 0.8713361986 | AM29: 16 | AP29: 15 | AQ29: -0.522390492 | AR29: -0.5853332892 | AS29: -0.7472344867 | AT29: -0.9028727155 | AU29: -0.99443493 | AV29: -1.03310789 | AW29: -0.8598401456 | AX29: -0.7294099387 | AY29: -0.6226261108 | AZ29: -0.5885333588 | BA29: -0.5588784081 | BB29: -0.5313361986
A30: 31 | B30: 0.3 | D30: 30 | E30: 3.485 | F30: 4.551 | G30: 7.74 | H30: 14.67 | I30: 16.725 | J30: 19.439 | K30: 14.266 | L30: 8.885 | M30: 5.716 | N30: 4.98 | O30: 4.28 | P30: 3.721 | V30: 21 | Y30: 20 | Z30: 0.8563219204 | AA30: 0.9104666391 | AB30: 1.034533855 | AC30: 1.218947759 | AD30: 1.298243274 | AE30: 1.307125201 | AF30: 1.187135588 | AG30: 1.04897176 | AH30: 0.9478689928 | AI30: 0.9129616285 | AJ30: 0.8885120652 | AK30: 0.8649478167 | AM30: 21 | AP30: 20 | AQ30: -0.5163219204 | AR30: -0.5704666391 | AS30: -0.6945338548 | AT30: -0.878947759 | AU30: -0.9582432741 | AV30: -0.9671252013 | AW30: -0.8471355876 | AX30: -0.7089717598 | AY30: -0.6078689928 | AZ30: -0.5729616285 | BA30: -0.5485120652 | BB30: -0.5249478167
A31: 41 | B31: 0.4 | D31: 40 | E31: 3.142 | F31: 3.866 | G31: 6.402 | H31: 10.598 | I31: 13.462 | J31: 14.682 | K31: 11.896 | L31: 7.852 | M31: 5.478 | N31: 4.78 | O31: 4.092 | P31: 3.496 | V31: 31 | Y31: 30 | Z31: 0.8434605052 | AA31: 0.8908920481 | AB31: 0.9933563634 | AC31: 1.132482122 | AD31: 1.163330829 | AE31: 1.199751592 | AF31: 1.12601749 | AG31: 1.021851895 | AH31: 0.9335059414 | AI31: 0.9074969969 | AJ31: 0.8797497537 | AK31: 0.8548667265 | AM31: 31 | AP31: 30 | AQ31: -0.5034605052 | AR31: -0.5508920481 | AS31: -0.6533563634 | AT31: -0.7924821217 | AU31: -0.8233308287 | AV31: -0.8597515918 | AW31: -0.78601749 | AX31: -0.6818518955 | AY31: -0.5935059414 | AZ31: -0.5674969969 | BA31: -0.5397497537 | BB31: -0.5148667265
A32: 51 | B32: 0.5 | D32: 50 | E32: 2.895 | F32: 3.575 | G32: 5.65 | H32: 9.195 | I32: 11.92 | J32: 12.035 | K32: 9.325 | L32: 6.66 | M32: 5.16 | N32: 4.385 | O32: 3.79 | P32: 3.285 | V32: 41 | Y32: 40 | Z32: 0.8257345344 | AA32: 0.861592402 | AB32: 0.9554498434 | AC32: 1.059458827 | AD32: 1.112706555 | AE32: 1.132671965 | AF32: 1.084851708 | AG32: 0.99628626 | AH32: 0.9254025609 | AI32: 0.8999034154 | AJ32: 0.8716858264 | AK32: 0.8440055903 | AM32: 41 | AP32: 40 | AQ32: -0.4857345344 | AR32: -0.521592402 | AS32: -0.6154498434 | AT32: -0.7194588275 | AU32: -0.7727065549 | AV32: -0.792671965 | AW32: -0.7448517082 | AX32: -0.65628626 | AY32: -0.5854025609 | AZ32: -0.5599034154 | BA32: -0.5316858264 | BB32: -0.5040055903
A33: 61 | B33: 0.6 | D33: 60 | E33: 2.718 | F33: 3.13 | G33: 4.804 | H33: 7.352 | I33: 9.14 | J33: 8.698 | K33: 7.21 | L33: 5.696 | M33: 4.764 | N33: 4.138 | O33: 3.588 | P33: 3.014 | V33: 51 | Y33: 50 | Z33: 0.8119908544 | AA33: 0.8478807411 | AB33: 0.9312860832 | AC33: 1.029061396 | AD33: 1.085300027 | AE33: 1.087438314 | AF33: 1.032027319 | AG33: 0.9632197931 | AH33: 0.9141266495 | AI33: 0.8841316727 | AJ33: 0.8580927237 | AK33: 0.8333029762 | AM33: 51 | AP33: 50 | AQ33: -0.4719908544 | AR33: -0.5078807411 | AS33: -0.5912860832 | AT33: -0.6890613964 | AU33: -0.7453000265 | AV33: -0.7474383143 | AW33: -0.6920273186 | AX33: -0.6232197931 | AY33: -0.5741266495 | AZ33: -0.5441316727 | BA33: -0.5180927237 | BB33: -0.4933029762
A34: 71 | B34: 0.7 | D34: 70 | E34: 2.516 | F34: 2.821 | G34: 4.118 | H34: 5.76 | I34: 7.341 | J34: 7.42 | K34: 6.22 | L34: 5.123 | M34: 4.352 | N34: 3.793 | O34: 3.35 | P34: 2.723 | V34: 61 | Y34: 60 | Z34: 0.8015568299 | AA34: 0.8250870494 | AB34: 0.9008278327 | AC34: 0.9829384151 | AD34: 1.02779654 | AE34: 1.017405682 | AF34: 0.9790162728 | AG34: 0.9328354185 | AH34: 0.8992850852 | AI34: 0.873685707 | AJ34: 0.848511886 | AK34: 0.8187240484 | AM34: 61 | AP34: 60 | AQ34: -0.4615568299 | AR34: -0.4850870494 | AS34: -0.5608278327 | AT34: -0.6429384151 | AU34: -0.6877965402 | AV34: -0.6774056825 | AW34: -0.6390162728 | AX34: -0.5928354185 | AY34: -0.5592850852 | AZ34: -0.533685707 | BA34: -0.508511886 | BB34: -0.4787240484
A35: 81 | B35: 0.8 | D35: 80 | E35: 2.166 | F35: 2.484 | G35: 3.346 | H35: 5.082 | I35: 6.264 | J35: 5.936 | K35: 5.498 | L35: 4.616 | M35: 3.892 | N35: 3.442 | O35: 2.956 | P35: 2.422 | V35: 71 | Y35: 70 | Z35: 0.7889670425 | AA35: 0.8076920607 | AB35: 0.8728183766 | AC35: 0.9349745518 | AD35: 0.9826367495 | AE35: 0.9847953332 | AF35: 0.9498175943 | AG35: 0.9127790722 | AH35: 0.8827635714 | AI35: 0.8582319218 | AJ35: 0.8366568415 | AK35: 0.8018588887 | AM35: 71 | AP35: 70 | AQ35: -0.4489670425 | AR35: -0.4676920607 | AS35: -0.5328183766 | AT35: -0.5949745518 | AU35: -0.6426367495 | AV35: -0.6447953332 | AW35: -0.6098175943 | AX35: -0.5727790722 | AY35: -0.5427635714 | AZ35: -0.5182319218 | BA35: -0.4966568415 | BB35: -0.4618588887
A36: 85 | B36: 0.85 | D36: 85 | E36: 2.04 | F36: 2.252 | G36: 2.942 | H36: 4.3315 | I36: 5.5425 | J36: 5.276 | K36: 5.238 | L36: 4.526 | M36: 3.7465 | N36: 3.2565 | O36: 2.7765 | P36: 2.373 | V36: 81 | Y36: 80 | Z36: 0.7651087417 | AA36: 0.7868994786 | AB36: 0.8364519506 | AC36: 0.9112767432 | AD36: 0.9511911258 | AE36: 0.9407612688 | AF36: 0.9260941739 | AG36: 0.893485832 | AH36: 0.8627771046 | AI36: 0.8413165046 | AJ36: 0.8154692504 | AK36: 0.7828325581 | AM36: 81 | AP36: 80 | AQ36: -0.4251087417 | AR36: -0.4468994786 | AS36: -0.4964519506 | AT36: -0.5712767432 | AU36: -0.6111911258 | AV36: -0.6007612688 | AW36: -0.5860941739 | AX36: -0.553485832 | AY36: -0.5227771046 | AZ36: -0.5013165046 | BA36: -0.4754692504 | BB36: -0.4428325581
A37: 91 | B37: 0.9 | D37: 90 | E37: 2.021 | F37: 2.043 | G37: 2.824 | H37: 3.618 | I37: 4.556 | J37: 4.675 | K37: 4.625 | L37: 4.121 | M37: 3.576 | N37: 3.133 | O37: 2.637 | P37: 2.17 | V37: 85 | Y37: 85 | Z37: 0.7557660268 | AA37: 0.7712402743 | AB37: 0.8146760111 | AC37: 0.8819095319 | AD37: 0.9276258662 | AE37: 0.91830228 | AF37: 0.9169425105 | AG37: 0.8898865934 | AH37: 0.8560644401 | AI37: 0.8318157767 | AJ37: 0.8050636264 | AK37: 0.7795594089 | AM37: 85 | AP37: 85 | AQ37: -0.4157660268 | AR37: -0.4312402743 | AS37: -0.4746760111 | AT37: -0.5419095319 | AU37: -0.5876258662 | AV37: -0.57830228 | AW37: -0.5769425105 | AX37: -0.5498865934 | AY37: -0.5160644401 | AZ37: -0.4918157767 | BA37: -0.4650636264 | BB37: -0.4395594089
A38: 96 | B38: 0.95 | D38: 95 | E38: 1.6885 | F38: 1.8255 | G38: 2.285 | H38: 2.9685 | I38: 3.645 | J38: 4.1775 | K38: 3.836 | L38: 3.3795 | M38: 2.862 | N38: 2.492 | O38: 2.194 | P38: 1.8945 | V38: 91 | Y38: 90 | Z38: 0.7543176601 | AA38: 0.7559937349 | AB38: 0.8078680694 | AC38: 0.8499614654 | AD38: 0.8910926119 | AE38: 0.8958151695 | AF38: 0.8938426789 | AG38: 0.8729486893 | AH38: 0.8479293554 | AI38: 0.8252491054 | AJ38: 0.7966008361 | AK38: 0.7653981827 | AM38: 91 | AP38: 90 | AQ38: -0.4143176601 | AR38: -0.4159937349 | AS38: -0.4678680694 | AT38: -0.5099614654 | AU38: -0.5510926119 | AV38: -0.5558151695 | AW38: -0.5538426789 | AX38: -0.5329486893 | AY38: -0.5079293554 | AZ38: -0.4852491054 | BA38: -0.4566008361 | BB38: -0.4253981827
A39: 99 | B39: 0.99 | D39: 99 | E39: 1.5477 | F39: 1.4485 | G39: 1.6074 | H39: 2.2369 | I39: 2.7942 | J39: 3.0197 | K39: 2.6675 | L39: 2.1792 | M39: 1.861 | N39: 1.6738 | O39: 1.452 | P39: 1.2682 | V39: 96 | Y39: 95 | Z39: 0.7270276023 | AA39: 0.7387482378 | AB39: 0.7735436995 | AC39: 0.8161749799 | AD39: 0.8512579394 | AE39: 0.87538894 | AF39: 0.8602175406 | AG39: 0.8381619353 | AH39: 0.8100847476 | AI39: 0.7874183458 | AJ39: 0.7671259764 | AK39: 0.7443883648 | AM39: 96 | AP39: 95 | AQ39: -0.3870276023 | AR39: -0.3987482378 | AS39: -0.4335436995 | AT39: -0.4761749799 | AU39: -0.5112579394 | AV39: -0.53538894 | AW39: -0.5202175406 | AX39: -0.4981619353 | AY39: -0.4700847476 | AZ39: -0.4474183458 | BA39: -0.4271259764 | BB39: -0.4043883648
A40: 100 | B40: 0.999 | D40: 99.9 | E40: 1.12 | F40: 1.13 | G40: 1.48 | H40: 1.7 | I40: 2.23 | J40: 2.41 | K40: 2.44 | L40: 2.07 | M40: 1.77 | N40: 1.51 | O40: 1.27 | P40: 1.25 | V40: 99 | Y40: 99 | Z40: 0.7141656732 | AA40: 0.7045332167 | AB40: 0.7197283236 | AC40: 0.7701773245 | AD40: 0.8061130768 | AE40: 0.8190412218 | AF40: 0.7984810047 | AG40: 0.7660622907 | AH40: 0.7416708117 | AI40: 0.7257255477 | AJ40: 0.7048818655 | AK40: 0.6855934658 | AM40: 99 | AP40: 99 | AQ40: -0.3741656732 | AR40: -0.3645332167 | AS40: -0.3797283236 | AT40: -0.4301773245 | AU40: -0.4661130768 | AV40: -0.4790412218 | AW40: -0.4584810047 | AX40: -0.4260622907 | AY40: -0.4016708117 | AZ40: -0.3857255477 | BA40: -0.3648818655 | BB40: -0.3455934658
A42: Sc 2A | B42: c:\_Projects\_Software\VB code\24_EWR site flows_scenario comparitor\scen 2A\ | C42: EWR 1.pd | D42: EWR 1b.pd
A43: Array Parameter | E43: Oct | F43: Nov | G43: Dec | H43: Jan | I43: Feb | J43: Mar | K43: Apr | L43: May | M43: Jun | N43: Jul | O43: Aug | P43: Sep | Q43: Annual | V43: =A42 -> Sc 2A | AM43: =V43 -> Sc 2A | BC43: =AM43 -> Sc 2A
A44: 0.001 | D44: 0.1 | E44: 27.78 | F44: 9.35 | G44: 35.7 | H44: 43.36 | I44: 84.17 | J44: 100.74 | K44: 65.44 | L44: 14.17 | M44: 6.1 | N44: 14.21 | O44: 9.09 | P44: 10.81 | V44: Flow converted to max depth | Y44: =D43 -> 0 | Z44: Oct | AA44: Nov | AB44: Dec | AC44: Jan | AD44: Feb | AE44: Mar | AF44: Apr | AG44: May | AH44: Jun | AI44: Jul | AJ44: Aug | AK44: Sep | AM44: Vegetation components | AQ44: =Z44 -> Oct | AR44: Nov | AS44: Dec | AT44: Jan | AU44: Feb | AV44: Mar | AW44: Apr | AX44: May | AY44: Jun | AZ44: Jul | BA44: Aug | BB44: Sep | BC44: =AM44 -> Vegetation components | BF44: =AP44 -> 0 | BG44: =AQ44 -> Oct | BH44: Nov | BI44: Dec | BJ44: Jan | BK44: Feb | BL44: Mar | BM44: Apr | BN44: May | BO44: Jun | BP44: Jul | BQ44: Aug | BR44: Sep
A45: 0.01 | D45: 1 | E45: 9.02 | F45: 7.88 | G45: 33.06 | H45: 36.32 | I45: 74.32 | J45: 68.51 | K45: 40.46 | L45: 11.01 | M45: 5.53 | N45: 7.07 | O45: 2.92 | P45: 8.9 | V45: =A44 -> 0.001 | Y45: =D44 -> 0.1 | Z45: =IF(E44<$T$10,$T$4*E44^$T$5+$T$6,$T$7*E44^$T$8+$T$9) -> 1.290857465 | AA45: =IF(F44<$T$10,$T$4*F44^$T$5+$T$6,$T$7*F44^$T$8+$T$9) -> 1.032593915 | AB45: 1.358970926 | AC45: 1.414218396 | AD45: 1.620206736 | AE45: 1.681007226 | AF45: 1.538725163 | AG45: 1.124459973 | AH45: 0.9460319359 | AI45: 1.125109955 | AJ45: 1.026641409 | AK45: 1.06376929 | AM45: =V45 -> 0.001 | AP45: =Y45 -> 0.1 | AQ45: =$AR$2-Z45 -> -0.9508574654 | AR45: =$AR$2-AA45 -> -0.6925939151 | AS45: =$AR$2-AB45 -> -1.018970926 | AT45: =$AR$2-AC45 -> -1.074218396 | AU45: =$AR$2-AD45 -> -1.280206736 | AV45: =$AR$2-AE45 -> -1.341007226 | AW45: =$AR$2-AF45 -> -1.198725163 | AX45: =$AR$2-AG45 -> -0.7844599729 | AY45: =$AR$2-AH45 -> -0.6060319359 | AZ45: =$AR$2-AI45 -> -0.7851099547 | BA45: =$AR$2-AJ45 -> -0.6866414091 | BB45: =$AR$2-AK45 -> -0.7237692901 | BC45: =AM45 -> 0.001 | BF45: 0.1 | BG45: =AQ45-AQ5 -> -0.07760015758 | BH45: =AR45-AR5 -> -0.04644181338 | BI45: =AS45-AS5 -> 0.06883257403 | BJ45: =AT45-AT5 -> 0 | BK45: =AU45-AU5 -> 0 | BL45: =AV45-AV5 -> 0 | BM45: =AW45-AW5 -> 0 | BN45: =AX45-AX5 -> 0 | BO45: =AY45-AY5 -> 0 | BP45: =AZ45-AZ5 -> 0.1203670189 | BQ45: =BA45-BA5 -> -0.01920681474 | BR45: =BB45-BB5 -> -0.03299274741
A46: 0.05 | D46: 5 | E46: 3.3695 | F46: 6.5885 | G46: 13.729 | H46: 26.4315 | I46: 42.4285 | J46: 44.7225 | K46: 21.018 | L46: 9.0445 | M46: 4.1935 | N46: 3.7985 | O46: 2.543 | P46: 2.223 | V46: 0.01 | Y46: 1 | Z46: =IF(E45<$T$10,$T$4*E45^$T$5+$T$6,$T$7*E45^$T$8+$T$9) -> 1.025015709 | AA46: 0.997013539 | AB46: 1.33773554 | AC46: 1.36377611 | AD46: 1.579391695 | AE46: 1.553254944 | AF46: 1.3942912 | AG46: 1.06777459 | AH46: 0.9271966059 | AI46: 0.9750887843 | AJ46: 0.8134234077 | AK46: 1.02220531 | AM46: 0.01 | AP46: 1 | AQ46: -0.6850157095 | AR46: -0.657013539 | AS46: -0.9977355404 | AT46: -1.02377611 | AU46: -1.239391695 | AV46: -1.213254944 | AW46: -1.0542912 | AX46: -0.72777459 | AY46: -0.5871966059 | AZ46: -0.6350887843 | BA46: -0.4734234077 | BB46: -0.68220531 | BC46: 0.01 | BF46: 1 | BG46: =AQ46-AQ6 -> 0.06380840472 | BH46: -0.03438742816 | BI46: 0.0211573411 | BJ46: 0 | BK46: 0 | BL46: 0 | BM46: 0 | BN46: 0.001783536738 | BO46: -0.009108507689 | BP46: -0.02621212403 | BQ46: 0.1616653766 | BR46: 0.006741348423
A47: 0.1 | D47: 10 | E47: 2.137 | F47: 2.923 | G47: 7.759 | H47: 17.508 | I47: 29.015 | J47: 34.929 | K47: 14.083 | L47: 7.273 | M47: 3.667 | N47: 3.645 | O47: 1.826 | P47: 1.865 | V47: 0.05 | Y47: 5 | Z47: 0.8376529084 | AA47: 0.961090809 | AB47: 1.117195446 | AC47: 1.277756657 | AD47: 1.407936297 | AE47: 1.423216684 | AF47: 1.219114273 | AG47: 1.025585842 | AH47: 0.8760752152 | AI47: 0.8584868913 | AJ47: 0.7906953506 | AK47: 0.7691937931 | AM47: 0.05 | AP47: 5 | AQ47: -0.4976529084 | AR47: -0.621090809 | AS47: -0.7771954462 | AT47: -0.9377566573 | AU47: -1.067936297 | AV47: -1.083216684 | AW47: -0.8791142726 | AX47: -0.6855858416 | AY47: -0.5360752152 | AZ47: -0.5184868913 | BA47: -0.4506953506 | BB47: -0.4291937931 | BC47: 0.05 | BF47: 5 | BG47: 0.03328930749 | BH47: -0.04613034345 | BI47: -0.0480227742 | BJ47: -0.02927867394 | BK47: 0.01311463709 | BL47: 0.003790260448 | BM47: 0 | BN47: -0.0152280723 | BO47: -0.0001928041824 | BP47: 0.0002778140055 | BQ47: 0.02083500974 | BR47: 0.2101701915
A48: 0.15 | D48: 15 | E48: 1.7415 | F48: 2.457 | G48: 6.9175 | H48: 16.155 | I48: 22.3355 | J48: 25.4295 | K48: 13.0255 | L48: 6.96 | M48: 3.427 | N48: 3.3035 | O48: 1.65 | P48: 1.4905 | V48: 0.1 | Y48: 10 | Z48: 0.7629974883 | AA48: 0.8135946581 | AB48: 0.9938557631 | AC48: 1.174293539 | AD48: 1.302419258 | AE48: 1.352902011 | AF48: 1.12304121 | AG48: 0.9807638882 | AH48: 0.8523086927 | AI48: 0.8512579394 | AJ48: 0.7387897132 | AK48: 0.7419973303 | AM48: 0.1 | AP48: 10 | AQ48: -0.4229974883 | AR48: -0.4735946581 | AS48: -0.6538557631 | AT48: -0.8342935395 | AU48: -0.9624192577 | AV48: -1.012902011 | AW48: -0.7830412101 | AX48: -0.6407638882 | AY48: -0.5123086927 | AZ48: -0.5112579394 | BA48: -0.3987897132 | BB48: -0.4019973303 | BC48: 0.1 | BF48: 10 | BG48: -0.02891020487 | BH48: -0.01459271837 | BI48: -0.01110927547 | BJ48: 0.004585063729 | BK48: 0.05731558967 | BL48: 0.004355740635 | BM48: 0 | BN48: -0.004349749991 | BO48: -0.006185310682 | BP48: -0.005969365762 | BQ48: 0.02876586244 | BR48: 0.1206433995
A49: 0.2 | D49: 20 | E49: 1.492 | F49: 1.99 | G49: 5.172 | H49: 10.392 | I49: 17.7 | J49: 20.268 | K49: 9.234 | L49: 6.426 | M49: 3.072 | N49: 3.074 | O49: 1.54 | P49: 1.276 | V49: 0.15 | Y49: 15 | Z49: 0.7316485133 | AA49: 0.7851384357 | AB49: 0.9707396318 | AC49: 1.155090757 | AD49: 1.234403929 | AE49: 1.267673567 | AF49: 1.105213125 | AG49: 0.9719592906 | AH49: 0.8405635873 | AI49: 0.8342628698 | AJ49: 0.7235980534 | AK49: 0.708673572 | AM49: 0.15 | AP49: 15 | AQ49: -0.3916485133 | AR49: -0.4451384357 | AS49: -0.6307396318 | AT49: -0.8150907567 | AU49: -0.8944039293 | AV49: -0.9276735667 | AW49: -0.7652131255 | AX49: -0.6319592906 | AY49: -0.5005635873 | AZ49: -0.4942628698 | BA49: -0.3835980534 | BB49: -0.368673572 | BC49: 0.15 | BF49: 15 | BG49: -0.009539767857 | BH49: -0.00955789479 | BI49: -0.0496704605 | BJ49: -0.01301892118 | BK49: 0.001311531581 | BL49: 0.008394041368 | BM49: 0.0001130401483 | BN49: -0.02993423804 | BO49: -0.005938628694 | BP49: -0.009581501359 | BQ49: 0.003076143688 | BR49: 0.09351707243
A50: 0.3 | D50: 30 | E50: 1.295 | F50: 1.249 | G50: 3.572 | H50: 5.835 | I50: 9.983 | J50: 14.169 | K50: 6.288 | L50: 4.968 | M50: 2.374 | N50: 2.702 | O50: 1.201 | P50: 1.14 | V50: 0.2 | Y50: 20 | Z50: 0.7088197176 | AA50: 0.7519311247 | AB50: 0.9145620518 | AC50: 1.055204184 | AD50: 1.176922054 | AE50: 1.210066993 | AF50: 1.029954655 | AG50: 0.9561830243 | AH50: 0.8219294272 | AI50: 0.8220390965 | AJ50: 0.7134358505 | AK50: 0.6864557853 | AM50: 0.2 | AP50: 20 | AQ50: -0.3688197176 | AR50: -0.4119311247 | AS50: -0.5745620518 | AT50: -0.715204184 | AU50: -0.8369220536 | AV50: -0.8700669931 | AW50: -0.6899546547 | AX50: -0.6161830243 | AY50: -0.4819294272 | AZ50: -0.4820390965 | BA50: -0.3734358505 | BB50: -0.3464557853 | BC50: 0.2 | BF50: 20 | BG50: 0.000194679193 | BH50: -0.01297559982 | BI50: -0.04524684692 | BJ50: 0.04265250503 | BK50: -0.001503129884 | BL50: 0.01519383596 | BM50: 0.02353726194 | BN50: -0.04861132569 | BO50: -0.01091833681 | BP50: -0.02242597351 | BQ50: -0.0005707066874 | BR50: 0.07807279728
A51: 0.4 | D51: 40 | E51: 1.126 | F51: 0.988 | G51: 2.682 | H51: 4.762 | I51: 5.316 | J51: 10.184 | K51: 3.068 | L51: 4.242 | M51: 1.912 | N51: 2.232 | O51: 1.092 | P51: 1.066 | V51: 0.3 | Y51: 30 | Z51: 0.6885389038 | AA51: 0.6834527277 | AB51: 0.8477348332 | AC51: 0.9374574346 | AD51: 1.046554142 | AE51: 1.124443705 | AF51: 0.9519370947 | AG51: 0.9070482853 | AH51: 0.7796267426 | AI51: 0.800587264 | AJ51: 0.6779840826 | AK51: 0.6707777923 | AM51: 0.3 | AP51: 30 | AQ51: -0.3485389038 | AR51: -0.3434527277 | AS51: -0.5077348332 | AT51: -0.5974574346 | AU51: -0.706554142 | AV51: -0.7844437047 | AW51: -0.6119370947 | AX51: -0.5670482853 | AY51: -0.4396267426 | AZ51: -0.460587264 | BA51: -0.3379840826 | BB51: -0.3307777923 | BC51: 0.3 | BF51: 30 | BG51: -0.005310671056 | BH51: -0.02171348932 | BI51: -0.02995958113 | BJ51: 0.0193957622 | BK51: 0.0133142464 | BL51: -0.01776454135 | BM51: 0.01916187731 | BN51: -0.03483903467 | BO51: 0.007272735997 | BP51: -0.03518908135 | BQ51: -0.009147105886 | BR51: 0.03891635417
A52: 0.5 | D52: 50 | E52: 1.055 | F52: 0.845 | G52: 2.16 | H52: 3.21 | I52: 3.45 | J52: 7.19 | K52: 2.245 | L52: 3.64 | M52: 1.48 | N52: 2.01 | O52: 0.98 | P52: 0.99 | V52: 0.4 | Y52: 40 | Z52: 0.6690807751 | AA52: 0.6513859021 | AB52: 0.7993688671 | AC52: 0.8992076778 | AD52: 0.9197252307 | AE52: 1.050839651 | AF52: 0.8217099184 | AG52: 0.8781428457 | AH52: 0.7457928206 | AI52: 0.7698311679 | AJ52: 0.6648885011 | AK52: 0.6616120527 | AM52: 0.4 | AP52: 40 | AQ52: -0.3290807751 | AR52: -0.3113859021 | AS52: -0.4593688671 | AT52: -0.5592076778 | AU52: -0.5797252307 | AV52: -0.7108396506 | AW52: -0.4817099184 | AX52: -0.5381428457 | AY52: -0.4057928206 | AZ52: -0.4298311679 | BA52: -0.3248885011 | BB52: -0.3216120527 | BC52: 0.4 | BF52: 40 | BG52: -0.002948604632 | BH52: -0.005774986973 | BI52: -0.04697353698 | BJ52: -0.03059971804 | BK52: 0.01829146052 | BL52: -0.01074515851 | BM52: 0.0822488903 | BN52: -0.02569125705 | BO52: -0.004040327016 | BP52: -0.02324038358 | BQ52: -0.01055514065 | BR52: 0.009887964125
A53: 0.6 | D53: 60 | E53: 0.874 | F53: 0.746 | G53: 1.786 | H53: 2.106 | I53: 2.368 | J53: 6.126 | K53: 1.684 | L53: 2.95 | M53: 1.008 | N53: 1.69 | O53: 0.9 | P53: 0.928 | V53: 0.5 | Y53: 50 | Z53: 0.6602067123 | AA53: 0.6308393951 | AB53: 0.7646737825 | AC53: 0.8293669272 | AD53: 0.8417169945 | AE53: 0.9784589358 | AF53: 0.7707482229 | AG53: 0.851018429 | AH53: 0.7076472657 | AI53: 0.7534741774 | AJ53: 0.6503011571 | AK53: 0.6516559968 | AM53: 0.5 | AP53: 50 | AQ53: -0.3202067123 | AR53: -0.2908393951 | AS53: -0.4246737825 | AT53: -0.4893669272 | AU53: -0.5017169945 | AV53: -0.6384589358 | AW53: -0.4307482229 | AX53: -0.511018429 | AY53: -0.3676472657 | AZ53: -0.4134741774 | BA53: -0.3103011571 | BB53: -0.3116559968 | BC53: 0.5 | BF53: 50 | BG53: -0.008550715535 | BH53: -0.01108440781 | BI53: -0.04562595619 | BJ53: -0.00672566184 | BK53: 0.008340769338 | BL53: -0.001819898848 | BM53: 0.04691512497 | BN53: -0.02755876919 | BO53: 0.005788584767 | BP53: -0.03122954746 | BQ53: -0.005531797106 | BR53: 0.006615447419
A54: 0.7 | D54: 70 | E54: 0.763 | F54: 0.643 | G54: 1.243 | H54: 1.531 | I54: 1.722 | J54: 4.636 | K54: 1.298 | L54: 2.295 | M54: 0.78 | N54: 1.2 | O54: 0.82 | P54: 0.833 | V54: 0.6 | Y54: 60 | Z54: 0.6352183348 | AA54: 0.6149285272 | AB54: 0.7354427642 | AC54: 0.7607152918 | AD54: 0.7792224015 | AE54: 0.9468571538 | AF54: 0.7266299745 | AG54: 0.8151296572 | AH54: 0.6540675307 | AI54: 0.7271599577 | AJ54: 0.6390471403 | AK54: 0.6430733564 | AM54: 0.6 | AP54: 60 | AQ54: -0.2952183348 | AR54: -0.2749285272 | AS54: -0.3954427642 | AT54: -0.4207152918 | AU54: -0.4392224015 | AV54: -0.6068571538 | AW54: -0.3866299745 | AX54: -0.4751296572 | AY54: -0.3140675307 | AZ54: -0.3871599577 | BA54: -0.2990471403 | BB54: -0.3030733564 | BC54: 0.6 | BF54: 60 | BG54: -0.002099310263 | BH54: -0.01266236963 | BI54: -0.05076039782 | BJ54: -0.0007418889724 | BK54: 0.02687884672 | BL54: -0.05656784992 | BM54: 0.02483583071 | BN54: -0.02771131141 | BO54: -0.009579637986 | BP54: -0.04836766456 | BQ54: -0.007444319299 | BR54: 0.005037017868
A55: 0.8 | D55: 80 | E55: 0.636 | F55: 0.52 | G55: 0.84 | H55: 0.932 | I55: 1.394 | J55: 3.516 | K55: 0.918 | L55: 1.386 | M55: 0.674 | N55: 0.982 | O55: 0.772 | P55: 0.702 | V55: 0.7 | Y55: 70 | Z55: 0.6177755436 | AA55: 0.5964807477 | AB55: 0.6827783828 | AC55: 0.7125791247 | AD55: 0.7299615361 | AE55: 0.8942780762 | AF55: 0.6888655927 | AG55: 0.7742364843 | AH55: 0.6205725692 | AI55: 0.6778683184 | AJ55: 0.6269674885 | AK55: 0.6289924124 | AM55: 0.7 | AP55: 70 | AQ55: -0.2777755436 | AR55: -0.2564807477 | AS55: -0.3427783828 | AT55: -0.3725791247 | AU55: -0.3899615361 | AV55: -0.5542780762 | AW55: -0.3488655927 | AX55: -0.4342364843 | AY55: -0.2805725692 | AZ55: -0.3378683184 | BA55: -0.2869674885 | BB55: -0.2889924124 | BC55: 0.7 | BF55: 70 | BG55: -0.007302709071 | BH55: -0.008403756685 | BI55: -0.03913776462 | BJ55: 0.00720426512 | BK55: 0.007996946727 | BL55: -0.05022300036 | BM55: 0.03767590539 | BN55: -0.05862916855 | BO55: -0.001145789189 | BP55: -0.02621232159 | BQ55: -0.00316568131 | BR55: 0.01005472781
A56: 0.85 | D56: 85 | E56: 0.583 | F56: 0.4065 | G56: 0.7465 | H56: 0.7165 | I56: 1.0115 | J56: 2.9545 | K56: 0.7765 | L56: 1.1525 | M56: 0.6165 | N56: 0.806 | O56: 0.75 | P56: 0.598 | V56: 0.8 | Y56: 80 | Z56: 0.5951437676 | AA56: 0.5710759445 | AB56: 0.6300723694 | AC56: 0.6436406182 | AD56: 0.6990158927 | AE56: 0.8449931706 | AF56: 0.6416466496 | AG56: 0.6981916386 | AH56: 0.6022661576 | AI56: 0.6505730015 | AJ56: 0.6192624232 | AK56: 0.6073125968 | AM56: 0.8 | AP56: 80 | AQ56: -0.2551437676 | AR56: -0.2310759445 | AS56: -0.2900723694 | AT56: -0.3036406182 | AU56: -0.3590158927 | AV56: -0.5049931706 | AW56: -0.3016466496 | AX56: -0.3581916386 | AY56: -0.2622661576 | AZ56: -0.3105730015 | BA56: -0.2792624232 | BB56: -0.2673125968 | BC56: 0.8 | BF56: 80 | BG56: -0.01031622864 | BH56: 0 | BI56: -0.01413317798 | BJ56: 0.01720632221 | BK56: -0.0008242541046 | BL56: -0.04307392307 | BM56: 0.02985336721 | BN56: -0.02765525938 | BO56: -0.004459951408 | BP56: -0.02837768884 | BQ56: -0.003659405229 | BR56: 0.004888872575
A57: 0.9 | D57: 90 | E57: 0.488 | F57: 0.381 | G57: 0.63 | H57: 0.617 | I57: 0.742 | J57: 1.861 | K57: 0.643 | L57: 1.08 | M57: 0.591 | N57: 0.641 | O57: 0.684 | P57: 0.421 | V57: 0.85 | Y57: 85 | Z57: 0.5846221086 | AA57: 0.5429634479 | AB57: 0.6150129956 | AC57: 0.6098633025 | AD57: 0.6545324583 | AE57: 0.8153844035 | AF57: 0.6200007011 | AG57: 0.6722790424 | AH57: 0.5913566199 | AI57: 0.6247580559 | AJ57: 0.615603018 | AK57: 0.5876746049 | AM57: 0.85 | AP57: 85 | AQ57: -0.2446221086 | AR57: -0.2029634479 | AS57: -0.2750129956 | AT57: -0.2698633025 | AU57: -0.3145324583 | AV57: -0.4753844035 | AW57: -0.2800007011 | AX57: -0.3322790424 | AY57: -0.2513566199 | AZ57: -0.2847580559 | BA57: -0.275603018 | BB57: -0.2476746049 | BC57: 0.85 | BF57: 85 | BG57: -0.01142273913 | BH57: 0.0114346692 | BI57: -0.02044580286 | BJ57: 0.02794190017 | BK57: 0.006186628834 | BL57: -0.06287319541 | BM57: 0.0026782493 | BN57: -0.01200819879 | BO57: -0.001283546014 | BP57: -0.02021882069 | BQ57: -0.004004417271 | BR57: 0.009375594173
A58: 0.95 | D58: 95 | E58: 0.3865 | F58: 0.3155 | G58: 0.512 | H58: 0.493 | I58: 0.6265 | J58: 1.215 | K58: 0.611 | L58: 0.785 | M58: 0.4765 | N58: 0.591 | O58: 0.4795 | P58: 0.3555 | V58: 0.9 | Y58: 90 | Z58: 0.5636885909 | AA58: 0.5358001135 | AB58: 0.5939884413 | AC58: 0.5914549079 | AD58: 0.6142511551 | AE58: 0.7416708117 | AF58: 0.5964807477 | AG58: 0.6633840893 | AH58: 0.5862577742 | AI58: 0.5960999389 | AJ58: 0.6040872676 | AK58: 0.5468787028 | AM58: 0.9 | AP58: 90 | AQ58: -0.2236885909 | AR58: -0.1958001135 | AS58: -0.2539884413 | AT58: -0.2514549079 | AU58: -0.2742511551 | AV58: -0.4016708117 | AW58: -0.2564807477 | AX58: -0.3233840893 | AY58: -0.2462577742 | AZ58: -0.2560999389 | BA58: -0.2640872676 | BB58: -0.2068787028 | BC58: 0.9 | BF58: 90 | BG58: -0.006291386455 | BH58: 0.008118438349 | BI58: -0.003915367383 | BJ58: 0.02160382861 | BK58: 0.003025663546 | BL58: -0.009205872456 | BM58: 0.005602119918 | BN58: -0.01847417413 | BO58: 0.001819216751 | BP58: -0.006026865013 | BQ58: 0.001082529291 | BR58: 0.002638157023
A59: 0.99 | D59: 99 | E59: 0.3 | F59: 0.2873 | G59: 0.3791 | H59: 0.37 | I59: 0.3691 | J59: 0.9564 | K59: 0.4755 | L59: 0.5683 | M59: 0.4273 | N59: 0.4273 | O59: 0.36 | P59: 0.3091 | V59: 0.95 | Y59: 95 | Z59: 0.5373766955 | AA59: 0.5154755264 | AB59: 0.569263742 | AC59: 0.5648677753 | AD59: 0.5933104556 | AE59: 0.679596789 | AF59: 0.5902712481 | AG59: 0.6213859952 | AH59: 0.5609395694 | AI59: 0.5862577742 | AJ59: 0.5616617472 | AK59: 0.5282448848 | AM59: 0.95 | AP59: 95 | AQ59: -0.1973766955 | AR59: -0.1754755264 | AS59: -0.229263742 | AT59: -0.2248677753 | AU59: -0.2533104556 | AV59: -0.339596789 | AW59: -0.2502712481 | AX59: -0.2813859952 | AY59: -0.2209395694 | AZ59: -0.2462577742 | BA59: -0.2216617472 | BB59: -0.1882448848 | BC59: 0.95 | BF59: 95 | BG59: -0.0002853187472 | BH59: 0.01108358294 | BI59: 0.007444430771 | BJ59: 0.003366688995 | BK59: -0.01977858248 | BL59: -0.006959374047 | BM59: -0.002697406857 | BN59: -0.007474615353 | BO59: 0.01576860337 | BP59: -0.005066395193 | BQ59: 0.005304810912 | BR59: 0.001363916635
A60: 0.999 | D60: 99.9 | E60: 0.3 | F60: 0.26 | G60: 0.37 | H60: 0.37 | I60: 0.36 | J60: 0.92 | K60: 0.43 | L60: 0.45 | M60: 0.4 | N60: 0.4 | O60: 0.36 | P60: 0.3 | V60: 0.99 | Y60: 99 | Z60: 0.5101795407 | AA60: 0.5056755839 | AB60: 0.5352512708 | AC60: 0.5325918725 | AD60: 0.5323260391 | AE60: 0.6470596114 | AF60: 0.5606980402 | AG60: 0.5815694713 | AH60: 0.5485464696 | AI60: 0.5485464696 | AJ60: 0.5296088014 | AK60: 0.513314435 | AM60: 0.99 | AP60: 99 | AQ60: -0.1701795407 | AR60: -0.1656755839 | AS60: -0.1952512708 | AT60: -0.1925918725 | AU60: -0.1923260391 | AV60: -0.3070596114 | AW60: -0.2206980402 | AX60: -0.2415694713 | AY60: -0.2085464696 | AZ60: -0.2085464696 | BA60: -0.1896088014 | BB60: -0.173314435 | BC60: 0.99 | BF60: 99 | BG60: 0.007718841167 | BH60: 0.002925715916 | BI60: 0.02411109332 | BJ60: 0.01034419077 | BK60: 0.008123179318 | BL60: -0.06875622931 | BM60: -0.01167865802 | BN60: 0.009413075448 | BO60: 0.007907793133 | BP60: -0.01381717595 | BQ60: 0.004858760839 | BR60: -0.003449029548
A62: Sc 2B | B62: c:\_Projects\_Software\VB code\24_EWR site flows_scenario comparitor\scen 2B\ | C62: EWR 1.pd | D62: EWR 1b.pd
B63: Array Parameter | E63: Oct | F63: Nov | G63: Dec | H63: Jan | I63: Feb | J63: Mar | K63: Apr | L63: May | M63: Jun | N63: Jul | O63: Aug | P63: Sep | Q63: Annual | V63: =A62 -> Sc 2B | AM63: =V63 -> Sc 2B
A64: 0.1 | B64: 0.001 | D64: 0.1 | E64: 36.04 | F64: 8.67 | G64: 35.69 | H64: 43.36 | I64: 84.17 | J64: 100.74 | K64: 65.44 | L64: 14.17 | M64: 6.1 | N64: 5.06 | O64: 5.76 | P64: 11.16 | V64: Flow converted to max depth | Y64: =D63 -> 0 | Z64: Oct | AA64: Nov | AB64: Dec | AC64: Jan | AD64: Feb | AE64: Mar | AF64: Apr | AG64: May | AH64: Jun | AI64: Jul | AJ64: Aug | AK64: Sep | AM64: Vegetation components | AQ64: =Z64 -> Oct | AR64: Nov | AS64: Dec | AT64: Jan | AU64: Feb | AV64: Mar | AW64: Apr | AX64: May | AY64: Jun | AZ64: Jul | BA64: Aug | BB64: Sep
A65: 1 | B65: 0.01 | D65: 1 | E65: 33.71 | F65: 8.17 | G65: 22.31 | H65: 36.32 | I65: 74.32 | J65: 68.51 | K65: 40.46 | L65: 11.44 | M65: 5.27 | N65: 4.49 | O65: 5.33 | P65: 10.14 | V65: =A64 -> 0.1 | Y65: =D64 -> 0.1 | Z65: =IF(E64<$T$10,$T$4*E64^$T$5+$T$6,$T$7*E64^$T$8+$T$9) -> 1.361614168 | AA65: =IF(F64<$T$10,$T$4*F64^$T$5+$T$6,$T$7*F64^$T$8+$T$9) -> 1.016733413 | AB65: 1.358892881 | AC65: 1.414218396 | AD65: 1.620206736 | AE65: 1.681007226 | AF65: 1.538725163 | AG65: 1.124459973 | AH65: 0.9460319359 | AI65: 0.9104666391 | AJ65: 0.9349745518 | AK65: 1.070740774 | AM65: =V65 -> 0.1 | AP65: =Y65 -> 0.1 | AQ65: =$AR$2-Z65 -> -1.021614168 | AR65: =$AR$2-AA65 -> -0.6767334135 | AS65: =$AR$2-AB65 -> -1.018892881 | AT65: =$AR$2-AC65 -> -1.074218396 | AU65: =$AR$2-AD65 -> -1.280206736 | AV65: =$AR$2-AE65 -> -1.341007226 | AW65: =$AR$2-AF65 -> -1.198725163 | AX65: =$AR$2-AG65 -> -0.7844599729 | AY65: =$AR$2-AH65 -> -0.6060319359 | AZ65: =$AR$2-AI65 -> -0.5704666391 | BA65: =$AR$2-AJ65 -> -0.5949745518 | BB65: =$AR$2-AK65 -> -0.7307407744
A66: 5 | B66: 0.05 | D66: 5 | E66: 4.8425 | F66: 6.2255 | G66: 9.751 | H66: 26.4315 | I66: 42.4285 | J66: 46.4385 | K66: 21.018 | L66: 9.0775 | M66: 3.9985 | N66: 3.745 | O66: 2.887 | P66: 3.2315 | V66: 1 | Y66: 1 | Z66: =IF(E65<$T$10,$T$4*E65^$T$5+$T$6,$T$7*E65^$T$8+$T$9) -> 1.343085701 | AA66: 1.00442775 | AB66: 1.234114893 | AC66: 1.36377611 | AD66: 1.579391695 | AE66: 1.553254944 | AF66: 1.3942912 | AG66: 1.076193876 | AH66: 0.9180880982 | AI66: 0.8884309534 | AJ66: 0.9202212526 | AK66: 1.049907316 | AM66: 1 | AP66: 1 | AQ66: -1.003085701 | AR66: -0.6644277503 | AS66: -0.8941148927 | AT66: -1.02377611 | AU66: -1.239391695 | AV66: -1.213254944 | AW66: -1.0542912 | AX66: -0.7361938757 | AY66: -0.5780880982 | AZ66: -0.5484309534 | BA66: -0.5802212526 | BB66: -0.7099073161
A67: 11 | B67: 0.1 | D67: 10 | E67: 2.167 | F67: 2.923 | G67: 7.21 | H67: 17.507 | I67: 32.773 | J67: 34.723 | K67: 14.083 | L67: 7.568 | M67: 3.44 | N67: 3.567 | O67: 1.93 | P67: 1.817 | V67: 5 | Y67: 5 | Z67: 0.9023031121 | AA67: 0.9499897073 | AB67: 1.041521545 | AC67: 1.277756657 | AD67: 1.407936297 | AE67: 1.434244552 | AF67: 1.219114273 | AG67: 1.026351837 | AH67: 0.8675651275 | AI67: 0.855994166 | AJ67: 0.8115303604 | AK67: 0.8305026721 | AM67: 5 | AP67: 5 | AQ67: -0.5623031121 | AR67: -0.6099897073 | AS67: -0.7015215453 | AT67: -0.9377566573 | AU67: -1.067936297 | AV67: -1.094244552 | AW67: -0.8791142726 | AX67: -0.6863518373 | AY67: -0.5275651275 | AZ67: -0.515994166 | BA67: -0.4715303604 | BB67: -0.4905026721
A68: 16 | B68: 0.15 | D68: 15 | E68: 1.957 | F68: 2.3985 | G68: 5.516 | H68: 16.103 | I68: 22.448 | J68: 25.3255 | K68: 13.0255 | L68: 6.96 | M68: 3.2675 | N68: 3.4475 | O68: 1.691 | P68: 1.3565 | V68: 11 | Y68: 10 | Z68: 0.7651811418 | AA68: 0.8135946581 | AB68: 0.9790162728 | AC68: 1.174279789 | AD68: 1.33534659 | AE68: 1.351262472 | AF68: 1.12304121 | AG68: 0.9887905601 | AH68: 0.8412162665 | AI68: 0.8474914368 | AJ68: 0.7472267823 | AK68: 0.7380417694 | AM68: 11 | AP68: 10 | AQ68: -0.4251811418 | AR68: -0.4735946581 | AS68: -0.6390162728 | AT68: -0.8342797894 | AU68: -0.9953465904 | AV68: -1.011262472 | AW68: -0.7830412101 | AX68: -0.6487905601 | AY68: -0.5012162665 | AZ68: -0.5074914368 | BA68: -0.4072267823 | BB68: -0.3980417694
A69: 21 | B69: 0.2 | D69: 20 | E69: 1.606 | F69: 1.902 | G69: 4.242 | H69: 10.392 | I69: 17.692 | J69: 21.632 | K69: 9.234 | L69: 5.92 | M69: 2.868 | N69: 3.074 | O69: 1.574 | P69: 1.256 | V69: 16 | Y69: 15 | Z69: 0.7493579179 | AA69: 0.7812694177 | AB69: 0.9267149176 | AC69: 1.154327584 | AD69: 1.235675968 | AE69: 1.266609022 | AF69: 1.105213125 | AG69: 0.9719592906 | AH69: 0.832391005 | AI69: 0.8415919207 | AJ69: 0.7272481428 | AK69: 0.6951191288 | AM69: 16 | AP69: 15 | AQ69: -0.4093579179 | AR69: -0.4412694177 | AS69: -0.5867149176 | AT69: -0.8143275842 | AU69: -0.8956759677 | AV69: -0.9266090218 | AW69: -0.7652131255 | AX69: -0.6319592906 | AY69: -0.492391005 | AZ69: -0.5015919207 | BA69: -0.3872481428 | BB69: -0.3551191288
A70: 31 | B70: 0.3 | D70: 30 | E70: 1.387 | F70: 1.373 | G70: 3.004 | H70: 5.476 | I70: 9.619 | J70: 14.268 | K70: 6.333 | L70: 4.647 | M70: 2.082 | N70: 2.648 | O70: 1.327 | P70: 1.134 | V70: 21 | Y70: 20 | Z70: 0.7195997722 | AA70: 0.744991532 | AB70: 0.8781428457 | AC70: 1.055204184 | AD70: 1.176812986 | AE70: 1.226331827 | AF70: 1.029954655 | AG70: 0.9402408833 | AH70: 0.8104326075 | AI70: 0.8220390965 | AJ70: 0.7166368737 | AK70: 0.6842362161 | AM70: 21 | AP70: 20 | AQ70: -0.3795997722 | AR70: -0.404991532 | AS70: -0.5381428457 | AT70: -0.715204184 | AU70: -0.8368129858 | AV70: -0.8863318266 | AW70: -0.6899546547 | AX70: -0.6002408833 | AY70: -0.4704326075 | AZ70: -0.4820390965 | BA70: -0.3766368737 | BB70: -0.3442362161
A71: 41 | B71: 0.4 | D71: 40 | E71: 1.2 | F71: 1.006 | G71: 2.504 | H71: 4.266 | I71: 5.034 | J71: 10.768 | K71: 3.286 | L71: 4.102 | M71: 1.842 | N71: 2.16 | O71: 1.1 | P71: 1.05 | V71: 31 | Y71: 30 | Z71: 0.6982948769 | AA71: 0.6968441226 | AB71: 0.8181664498 | AC71: 0.9253332892 | AD71: 1.038615539 | AE71: 1.12604985 | AF71: 0.9533297068 | AG71: 0.8947126529 | AH71: 0.7589300164 | AI71: 0.7972809133 | AJ71: 0.6919930306 | AK71: 0.6700525394 | AM71: 31 | AP71: 30 | AQ71: -0.3582948769 | AR71: -0.3568441226 | AS71: -0.4781664498 | AT71: -0.5853332892 | AU71: -0.6986155389 | AV71: -0.7860498496 | AW71: -0.6133297068 | AX71: -0.5547126529 | AY71: -0.4189300164 | AZ71: -0.4572809133 | BA71: -0.3519930306 | BB71: -0.3300525394
A72: 51 | B72: 0.5 | D72: 50 | E72: 1.11 | F72: 0.83 | G72: 2.155 | H72: 3.21 | I72: 3.47 | J72: 8.53 | K72: 2.49 | L72: 3.285 | M72: 1.455 | N72: 1.9 | O72: 0.965 | P72: 0.995 | V72: 41 | Y72: 40 | Z72: 0.6778683184 | AA72: 0.6538012812 | AB72: 0.7881941693 | AC72: 0.8791590595 | AD72: 0.9095056254 | AE72: 1.062920702 | AF72: 0.833354972 | AG72: 0.8721220978 | AH72: 0.7401121854 | AI72: 0.7646737825 | AJ72: 0.6658841564 | AK72: 0.6595640675 | AM72: 41 | AP72: 40 | AQ72: -0.3378683184 | AR72: -0.3138012812 | AS72: -0.4481941693 | AT72: -0.5391590595 | AU72: -0.5695056254 | AV72: -0.7229207025 | AW72: -0.493354972 | AX72: -0.5321220978 | AY72: -0.4001121854 | AZ72: -0.4246737825 | BA72: -0.3258841564 | BB72: -0.3195640675
A73: 61 | B73: 0.6 | D73: 60 | E73: 0.94 | F73: 0.784 | G73: 1.57 | H73: 1.984 | I73: 2.368 | J73: 6.458 | K73: 1.874 | L73: 2.914 | M73: 0.952 | N73: 1.674 | O73: 0.882 | P73: 0.928 | V73: 51 | Y73: 50 | Z73: 0.6671206622 | AA73: 0.6285273641 | AB73: 0.7643105821 | AC73: 0.8293669272 | AD73: 0.8427149987 | AE73: 1.013345942 | AF73: 0.7872887533 | AG73: 0.8333029762 | AH73: 0.705180176 | AI73: 0.7448308726 | AJ73: 0.6482481418 | AK73: 0.6523293407 | AM73: 51 | AP73: 50 | AQ73: -0.3271206622 | AR73: -0.2885273641 | AS73: -0.4243105821 | AT73: -0.4893669272 | AU73: -0.5027149987 | AV73: -0.673345942 | AW73: -0.4472887533 | AX73: -0.4933029762 | AY73: -0.365180176 | AZ73: -0.4048308726 | BA73: -0.3082481418 | BB73: -0.3123293407
A74: 71 | B74: 0.7 | D74: 70 | E74: 0.812 | F74: 0.656 | G74: 1.243 | H74: 1.516 | I74: 1.712 | J74: 4.824 | K74: 1.382 | L74: 2.517 | M74: 0.78 | N74: 1.186 | O74: 0.793 | P74: 0.816 | V74: 61 | Y74: 60 | Z74: 0.64476936 | AA74: 0.6212236402 | AB74: 0.7162631528 | AC74: 0.7514658052 | AD74: 0.7792224015 | AE74: 0.9571572199 | AF74: 0.7427299665 | AG74: 0.8130804868 | AH74: 0.6464482375 | AI74: 0.7257433236 | AJ74: 0.6364059644 | AK74: 0.6430733564 | AM74: 61 | AP74: 60 | AQ74: -0.30476936 | AR74: -0.2812236402 | AS74: -0.3762631528 | AT74: -0.4114658052 | AU74: -0.4392224015 | AV74: -0.6171572199 | AW74: -0.4027299665 | AX74: -0.4730804868 | AY74: -0.3064482375 | AZ74: -0.3857433236 | BA74: -0.2964059644 | BB74: -0.3030733564
A75: 81 | B75: 0.8 | D75: 80 | E75: 0.674 | F75: 0.52 | G75: 0.872 | H75: 0.95 | I75: 1.392 | J75: 3.62 | K75: 0.892 | L75: 1.648 | M75: 0.654 | N75: 0.964 | O75: 0.75 | P75: 0.644 | V75: 71 | Y75: 70 | Z75: 0.6257086621 | AA75: 0.5989333115 | AB75: 0.6827783828 | AC75: 0.7111423091 | AD75: 0.7290905213 | AE75: 0.90159538 | AF75: 0.6977780924 | AG75: 0.7890313162 | AH75: 0.6205725692 | AI75: 0.6762395119 | AJ75: 0.6226789504 | AK75: 0.6263393018 | AM75: 71 | AP75: 70 | AQ75: -0.2857086621 | AR75: -0.2589333115 | AS75: -0.3427783828 | AT75: -0.3711423091 | AU75: -0.3890905213 | AV75: -0.56159538 | AW75: -0.3577780924 | AX75: -0.4490313162 | AY75: -0.2805725692 | AZ75: -0.3362395119 | BA75: -0.2826789504 | BB75: -0.2863393018
A76: 85 | B76: 0.85 | D76: 85 | E76: 0.5865 | F76: 0.4065 | G76: 0.7595 | H76: 0.7425 | I76: 1.0325 | J76: 2.795 | K76: 0.7595 | L76: 1.28 | M76: 0.6065 | N76: 0.78 | O76: 0.693 | P76: 0.4625 | V76: 81 | Y76: 80 | Z76: 0.6022661576 | AA76: 0.5710759445 | AB76: 0.6349200776 | AC76: 0.6461695974 | AD76: 0.6988101824 | AE76: 0.8500577638 | AF76: 0.6378785178 | AG76: 0.7234181635 | AH76: 0.5985585237 | AI76: 0.6481103742 | AJ76: 0.615603018 | AK76: 0.5966707991 | AM76: 81 | AP76: 80 | AQ76: -0.2622661576 | AR76: -0.2310759445 | AS76: -0.2949200776 | AT76: -0.3061695974 | AU76: -0.3588101824 | AV76: -0.5100577638 | AW76: -0.2978785178 | AX76: -0.3834181635 | AY76: -0.2585585237 | AZ76: -0.3081103742 | BA76: -0.275603018 | BB76: -0.2566707991
A77: 91 | B77: 0.9 | D77: 90 | E77: 0.471 | F77: 0.38 | G77: 0.631 | H77: 0.591 | I77: 0.765 | J77: 1.678 | K77: 0.67 | L77: 1.102 | M77: 0.59 | N77: 0.641 | O77: 0.484 | P77: 0.371 | V77: 85 | Y77: 85 | Z77: 0.5853398941 | AA77: 0.5429634479 | AB77: 0.6171935457 | AC77: 0.6143359852 | AD77: 0.6572954767 | AE77: 0.8061603847 | AF77: 0.6171935457 | AG77: 0.6868963759 | AH77: 0.5893774241 | AI77: 0.6205725692 | AJ77: 0.6057082575 | AK77: 0.5575208163 | AM77: 85 | AP77: 85 | AQ77: -0.2453398941 | AR77: -0.2029634479 | AS77: -0.2771935457 | AT77: -0.2743359852 | AU77: -0.3172954767 | AV77: -0.4661603847 | AW77: -0.2771935457 | AX77: -0.3468963759 | AY77: -0.2493774241 | AZ77: -0.2805725692 | BA77: -0.2657082575 | BB77: -0.2175208163
A78: 96 | B78: 0.95 | D78: 95 | E78: 0.36 | F78: 0.31 | G78: 0.4855 | H78: 0.493 | I78: 0.6265 | J78: 1.215 | K78: 0.6065 | L78: 0.8905 | M78: 0.4355 | N78: 0.591 | O78: 0.4 | P78: 0.34 | V78: 91 | Y78: 90 | Z78: 0.5596061352 | AA78: 0.5355115209 | AB78: 0.5941816014 | AC78: 0.5862577742 | AD78: 0.6181071616 | AE78: 0.7260984879 | AF78: 0.6015316955 | AG78: 0.6661321704 | AH78: 0.5860542823 | AI78: 0.5960999389 | AJ78: 0.562738308 | AK78: 0.5328866407 | AM78: 91 | AP78: 90 | AQ78: -0.2196061352 | AR78: -0.1955115209 | AS78: -0.2541816014 | AT78: -0.2462577742 | AU78: -0.2781071616 | AV78: -0.3860984879 | AW78: -0.2615316955 | AX78: -0.3261321704 | AY78: -0.2460542823 | AZ78: -0.2560999389 | BA78: -0.222738308 | BB78: -0.1928866407
A79: 99 | B79: 0.99 | D79: 99 | E79: 0.2982 | F79: 0.2873 | G79: 0.3601 | H79: 0.3664 | I79: 0.3691 | J79: 0.9392 | K79: 0.5219 | L79: 0.6502 | M79: 0.3946 | N79: 0.4391 | O79: 0.3564 | P79: 0.3091 | V79: 96 | Y79: 95 | Z79: 0.5296088014 | AA79: 0.5136204754 | AB79: 0.5630953932 | AC79: 0.5648677753 | AD79: 0.5933104556 | AE79: 0.679596789 | AF79: 0.5893774241 | AG79: 0.6376584742 | AH79: 0.5506881788 | AI79: 0.5862577742 | AJ79: 0.5411722009 | AK79: 0.5234393395 | AM79: 96 | AP79: 95 | AQ79: -0.1896088014 | AR79: -0.1736204754 | AS79: -0.2230953932 | AT79: -0.2248677753 | AU79: -0.2533104556 | AV79: -0.339596789 | AW79: -0.2493774241 | AX79: -0.2976584742 | AY79: -0.2106881788 | AZ79: -0.2462577742 | BA79: -0.2011722009 | BB79: -0.1834393395
A80: 100 | B80: 0.999 | D80: 99.9 | E80: 0.28 | F80: 0.26 | G80: 0.26 | H80: 0.33 | I80: 0.36 | J80: 0.83 | K80: 0.44 | L80: 0.45 | M80: 0.34 | N80: 0.43 | O80: 0.32 | P80: 0.3 | V80: 99 | Y80: 99 | Z80: 0.5095505178 | AA80: 0.5056755839 | AB80: 0.5296389564 | AC80: 0.531525435 | AD80: 0.5323260391 | AE80: 0.6446568303 | AF80: 0.5715030824 | AG80: 0.5978439093 | AH80: 0.5396664043 | AI80: 0.5516183259 | AJ80: 0.5285187618 | AK80: 0.513314435 | AM80: 99 | AP80: 99 | AQ80: -0.1695505178 | AR80: -0.1656755839 | AS80: -0.1896389564 | AT80: -0.191525435 | AU80: -0.1923260391 | AV80: -0.3046568303 | AW80: -0.2315030824 | AX80: -0.2578439093 | AY80: -0.1996664043 | AZ80: -0.2116183259 | BA80: -0.1885187618 | BB80: -0.173314435
A82: Sc 3 | B82: c:\_Projects\_Software\VB code\24_EWR site flows_scenario comparitor\scen 3\ | C82: EWR 1.pd
B83: Array Parameter | E83: Oct | F83: Nov | G83: Dec | H83: Jan | I83: Feb | J83: Mar | K83: Apr | L83: May | M83: Jun | N83: Jul | O83: Aug | P83: Sep | Q83: Annual | V83: =A82 -> Sc 3 | AM83: =V83 -> Sc 3
A84: 0.1 | B84: 0.001 | D84: 0.1 | E84: 39.9 | F84: 8.67 | G84: 35.69 | H84: 43.36 | I84: 84.17 | J84: 100.74 | K84: 65.44 | L84: 14.17 | M84: 6.1 | N84: 23.8 | O84: 2.92 | P84: 5.93 | V84: Flow converted to max depth | Y84: =D83 -> 0 | Z84: Oct | AA84: Nov | AB84: Dec | AC84: Jan | AD84: Feb | AE84: Mar | AF84: Apr | AG84: May | AH84: Jun | AI84: Jul | AJ84: Aug | AK84: Sep | AM84: Vegetation components | AQ84: =Z84 -> Oct | AR84: Nov | AS84: Dec | AT84: Jan | AU84: Feb | AV84: Mar | AW84: Apr | AX84: May | AY84: Jun | AZ84: Jul | BA84: Aug | BB84: Sep
A85: 1 | B85: 0.01 | D85: 1 | E85: 9.33 | F85: 7.47 | G85: 33 | H85: 36.32 | I85: 74.32 | J85: 68.51 | K85: 40.46 | L85: 10.33 | M85: 5.27 | N85: 6.97 | O85: 2.86 | P85: 4.85 | V85: =A84 -> 0.1 | Y85: =D84 -> 0.1 | Z85: =IF(E84<$T$10,$T$4*E84^$T$5+$T$6,$T$7*E84^$T$8+$T$9) -> 1.390313132 | AA85: =IF(F84<$T$10,$T$4*F84^$T$5+$T$6,$T$7*F84^$T$8+$T$9) -> 1.016733413 | AB85: 1.358892881 | AC85: 1.414218396 | AD85: 1.620206736 | AE85: 1.681007226 | AF85: 1.538725163 | AG85: 1.124459973 | AH85: 0.9460319359 | AI85: 1.250579938 | AJ85: 0.8134234077 | AK85: 0.9405662551 | AM85: =V85 -> 0.1 | AP85: =Y85 -> 0.1 | AQ85: =$AR$2-Z85 -> -1.050313132 | AR85: =$AR$2-AA85 -> -0.6767334135 | AS85: =$AR$2-AB85 -> -1.018892881 | AT85: =$AR$2-AC85 -> -1.074218396 | AU85: =$AR$2-AD85 -> -1.280206736 | AV85: =$AR$2-AE85 -> -1.341007226 | AW85: =$AR$2-AF85 -> -1.198725163 | AX85: =$AR$2-AG85 -> -0.7844599729 | AY85: =$AR$2-AH85 -> -0.6060319359 | AZ85: =$AR$2-AI85 -> -0.9105799383 | BA85: =$AR$2-AJ85 -> -0.4734234077 | BB85: =$AR$2-AK85 -> -0.6005662551
A86: 5 | B86: 0.05 | D86: 5 | E86: 4.0045 | F86: 5.183 | G86: 10.0855 | H86: 26.571 | I86: 44.3915 | J86: 42.9525 | K86: 21.018 | L86: 8.1695 | M86: 3.9985 | N86: 4.614 | O86: 2.2925 | P86: 3.607 | V86: 1 | Y86: 1 | Z86: =IF(E85<$T$10,$T$4*E85^$T$5+$T$6,$T$7*E85^$T$8+$T$9) -> 1.032140734 | AA86: 0.9861521017 | AB86: 1.337237475 | AC86: 1.36377611 | AD86: 1.579391695 | AE86: 1.553254944 | AF86: 1.3942912 | AG86: 1.053910538 | AH86: 0.9180880982 | AI86: 0.9722454084 | AJ86: 0.8099686655 | AK86: 0.9025894183 | AM86: 1 | AP86: 1 | AQ86: -0.6921407344 | AR86: -0.6461521017 | AS86: -0.9972374753 | AT86: -1.02377611 | AU86: -1.239391695 | AV86: -1.213254944 | AW86: -1.0542912 | AX86: -0.7139105384 | AY86: -0.5780880982 | AZ86: -0.6322454084 | BA86: -0.4699686655 | BB86: -0.5625894183
A87: 11 | B87: 0.1 | D87: 10 | E87: 2.11 | F87: 2.676 | G87: 6.766 | H87: 17.441 | I87: 36.638 | J87: 34.385 | K87: 14.083 | L87: 7.117 | M87: 3.539 | N87: 3.587 | O87: 1.784 | P87: 1.96 | V87: 5 | Y87: 5 | Z87: 0.8678318448 | AA87: 0.9149604656 | AB87: 1.048748023 | AC87: 1.279136232 | AD87: 1.421050934 | AE87: 1.411483523 | AF87: 1.219114273 | AG87: 1.004415149 | AH87: 0.8675651275 | AI87: 0.8934064576 | AJ87: 0.7740635134 | AK87: 0.8494310663 | AM87: 5 | AP87: 5 | AQ87: -0.5278318448 | AR87: -0.5749604656 | AS87: -0.7087480231 | AT87: -0.939136232 | AU87: -1.081050934 | AV87: -1.071483523 | AW87: -0.8791142726 | AX87: -0.6644151485 | AY87: -0.5275651275 | AZ87: -0.5534064576 | BA87: -0.4340635134 | BB87: -0.5094310663
A88: 16 | B88: 0.15 | D88: 15 | E88: 1.6645 | F88: 2.3145 | G88: 6.0605 | H88: 15.7165 | I88: 23.2905 | J88: 24.673 | K88: 13.032 | L88: 6.154 | M88: 3.3105 | N88: 3.149 | O88: 1.5835 | P88: 1.547 | V88: 11 | Y88: 10 | Z88: 0.7610112634 | AA88: 0.7990019397 | AB88: 0.9663428551 | AC88: 1.173370903 | AD88: 1.366215448 | AE88: 1.348555523 | AF88: 1.12304121 | AG88: 0.9764141382 | AH88: 0.846123382 | AI88: 0.848463401 | AJ88: 0.7352738584 | AK88: 0.7495932651 | AM88: 11 | AP88: 10 | AQ88: -0.4210112634 | AR88: -0.4590019397 | AS88: -0.6263428551 | AT88: -0.8333709034 | AU88: -1.026215448 | AV88: -1.008555523 | AW88: -0.7830412101 | AX88: -0.6364141382 | AY88: -0.506123382 | AZ88: -0.508463401 | BA88: -0.3952738584 | BB88: -0.4095932651
A89: 21 | B89: 0.2 | D89: 20 | E89: 1.404 | F89: 1.898 | G89: 4.732 | H89: 12.318 | I89: 17.692 | J89: 19.826 | K89: 11.244 | L89: 5.306 | M89: 2.878 | N89: 2.794 | O89: 1.394 | P89: 1.28 | V89: 16 | Y89: 15 | Z89: 0.7248970964 | AA89: 0.7755805409 | AB89: 0.9447728723 | AC89: 1.148592901 | AD89: 1.245044396 | AE89: 1.259849543 | AF89: 1.105326166 | AG89: 0.9477427418 | AH89: 0.8346249586 | AI89: 0.8261113266 | AJ89: 0.7175214442 | AK89: 0.7140994451 | AM89: 16 | AP89: 15 | AQ89: -0.3848970964 | AR89: -0.4355805409 | AS89: -0.6047728723 | AT89: -0.8085929012 | AU89: -0.9050443957 | AV89: -0.9198495431 | AW89: -0.7653261656 | AX89: -0.6077427418 | AY89: -0.4946249586 | AZ89: -0.4861113266 | BA89: -0.3775214442 | BB89: -0.3740994451
A90: 31 | B90: 0.3 | D90: 30 | E90: 1.2 | F90: 1.338 | G90: 3.492 | H90: 6.34 | I90: 10.618 | J90: 13.706 | K90: 7.225 | L90: 4.145 | M90: 2.599 | N90: 2.184 | O90: 1.074 | P90: 1.17 | V90: 21 | Y90: 20 | Z90: 0.7000409385 | AA90: 0.7446700786 | AB90: 0.8980434552 | AC90: 1.092632017 | AD90: 1.176812986 | AE90: 1.204609759 | AF90: 1.072388018 | AG90: 0.9193702931 | AH90: 0.8110110904 | AI90: 0.8061012482 | AJ90: 0.6990158927 | AK90: 0.6868963759 | AM90: 21 | AP90: 20 | AQ90: -0.3600409385 | AR90: -0.4046700786 | AS90: -0.5580434552 | AT90: -0.7526320167 | AU90: -0.8368129858 | AV90: -0.8646097588 | AW90: -0.7323880179 | AX90: -0.5793702931 | AY90: -0.4710110904 | AZ90: -0.4661012482 | BA90: -0.3590158927 | BB90: -0.3468963759
A91: 41 | B91: 0.4 | D91: 40 | E91: 1.102 | F91: 1.01 | G91: 2.638 | H91: 4.648 | I91: 6.51 | J91: 9.758 | K91: 4.766 | L91: 3.76 | M91: 1.934 | N91: 1.922 | O91: 1.006 | P91: 1.126 | V91: 31 | Y91: 30 | Z91: 0.6778683184 | AA91: 0.6931650938 | AB91: 0.8438075355 | AC91: 0.9535456278 | AD91: 1.059868388 | AE91: 1.116811508 | AF91: 0.9794334696 | AG91: 0.8739884854 | AH91: 0.7942339889 | AI91: 0.7664078974 | AJ91: 0.6626268946 | AK91: 0.674359194 | AM91: 31 | AP91: 30 | AQ91: -0.3378683184 | AR91: -0.3531650938 | AS91: -0.5038075355 | AT91: -0.6135456278 | AU91: -0.7198683884 | AV91: -0.776811508 | AW91: -0.6394334696 | AX91: -0.5339884854 | AY91: -0.4542339889 | AZ91: -0.4264078974 | BA91: -0.3226268946 | BB91: -0.334359194
A92: 51 | B92: 0.5 | D92: 50 | E92: 1.01 | F92: 0.83 | G92: 1.92 | H92: 3.335 | I92: 4.28 | J92: 7.135 | K92: 2.995 | L92: 3.175 | M92: 1.495 | N92: 1.685 | O92: 0.945 | P92: 1.06 | V92: 41 | Y92: 40 | Z92: 0.6661321704 | AA92: 0.6543333605 | AB92: 0.7966627544 | AC92: 0.8947521193 | AD92: 0.958732134 | AE92: 1.041674776 | AF92: 0.8993624666 | AG92: 0.856695902 | AH92: 0.7475439957 | AI92: 0.7465907844 | AJ92: 0.6538012812 | AK92: 0.6690807751 | AM92: 41 | AP92: 40 | AQ92: -0.3261321704 | AR92: -0.3143333605 | AS92: -0.4566627544 | AT92: -0.5547521193 | AU92: -0.618732134 | AV92: -0.7016747764 | AW92: -0.5593624666 | AX92: -0.516695902 | AY92: -0.4075439957 | AZ92: -0.4065907844 | BA92: -0.3138012812 | BB92: -0.3290807751
A93: 61 | B93: 0.6 | D93: 60 | E93: 0.86 | F93: 0.726 | G93: 1.234 | H93: 1.904 | I93: 3.286 | J93: 4.9 | K93: 2.002 | L93: 2.706 | M93: 0.814 | N93: 1.314 | O93: 0.864 | P93: 0.98 | V93: 51 | Y93: 50 | Z93: 0.6543333605 | AA93: 0.6285273641 | AB93: 0.7464314561 | AC93: 0.8358874949 | AD93: 0.8797497537 | AE93: 0.9769198782 | AF93: 0.8176633479 | AG93: 0.8275050367 | AH93: 0.7091116587 | AI93: 0.7267184092 | AJ93: 0.6454709512 | AK93: 0.6608469404 | AM93: 51 | AP93: 50 | AQ93: -0.3143333605 | AR93: -0.2885273641 | AS93: -0.4064314561 | AT93: -0.4958874949 | AU93: -0.5397497537 | AV93: -0.6369198782 | AW93: -0.4776633479 | AX93: -0.4875050367 | AY93: -0.3691116587 | AZ93: -0.3867184092 | BA93: -0.3054709512 | BB93: -0.3208469404
A94: 71 | B94: 0.7 | D94: 70 | E94: 0.713 | F94: 0.613 | G94: 0.932 | H94: 1.239 | I94: 2.067 | J94: 3.497 | K94: 1.67 | L94: 1.935 | M94: 0.69 | N94: 1.056 | O94: 0.803 | P94: 0.933 | V94: 61 | Y94: 60 | Z94: 0.6331190245 | AA94: 0.6115122882 | AB94: 0.681761997 | AC94: 0.7451520572 | AD94: 0.833354972 | AE94: 0.9044891836 | AF94: 0.7528584275 | AG94: 0.8008300825 | AH94: 0.6260242899 | AI94: 0.6905978646 | AJ94: 0.6337215832 | AK94: 0.6503011571 | AM94: 61 | AP94: 60 | AQ94: -0.2931190245 | AR94: -0.2715122882 | AS94: -0.341761997 | AT94: -0.4051520572 | AU94: -0.493354972 | AV94: -0.5644891836 | AW94: -0.4128584275 | AX94: -0.4608300825 | AY94: -0.2860242899 | AZ94: -0.3505978646 | BA94: -0.2937215832 | BB94: -0.3103011571
A95: 81 | B95: 0.8 | D95: 80 | E95: 0.604 | F95: 0.55 | G95: 0.67 | H95: 0.992 | I95: 1.338 | J95: 2.628 | K95: 0.936 | L95: 1.402 | M95: 0.626 | N95: 0.804 | O95: 0.762 | P95: 0.816 | V95: 71 | Y95: 70 | Z95: 0.6092513987 | AA95: 0.5906668241 | AB95: 0.6436406182 | AC95: 0.6823273806 | AD95: 0.7578058944 | AE95: 0.8440550758 | AF95: 0.7253874839 | AG95: 0.7476232175 | AH95: 0.6051697968 | AI95: 0.6603349506 | AJ95: 0.6242806416 | AK95: 0.6437821312 | AM95: 71 | AP95: 70 | AQ95: -0.2692513987 | AR95: -0.2506668241 | AS95: -0.3036406182 | AT95: -0.3423273806 | AU95: -0.4178058944 | AV95: -0.5040550758 | AW95: -0.3853874839 | AX95: -0.4076232175 | AY95: -0.2651697968 | AZ95: -0.3203349506 | BA95: -0.2842806416 | BB95: -0.3037821312
A96: 85 | B96: 0.85 | D96: 85 | E96: 0.553 | F96: 0.52 | G96: 0.6065 | H96: 0.806 | I96: 1.0195 | J96: 2.156 | K96: 0.773 | L96: 1.1525 | M96: 0.61 | N96: 0.716 | O96: 0.75 | P96: 0.6925 | V96: 81 | Y96: 80 | Z96: 0.5888785749 | AA96: 0.5776802669 | AB96: 0.6015316955 | AC96: 0.6519256581 | AD96: 0.6931650938 | AE96: 0.7960427297 | AF96: 0.6442059478 | AG96: 0.6998363948 | AH96: 0.5932133548 | AI96: 0.624439937 | AJ96: 0.6176094755 | AK96: 0.6263393018 | AM96: 81 | AP96: 80 | AQ96: -0.2488785749 | AR96: -0.2376802669 | AS96: -0.2615316955 | AT96: -0.3119256581 | AU96: -0.3531650938 | AV96: -0.4560427297 | AW96: -0.3042059478 | AX96: -0.3598363948 | AY96: -0.2532133548 | AZ96: -0.284439937 | BA96: -0.2776094755 | BB96: -0.2863393018
A97: 91 | B97: 0.9 | D97: 90 | E97: 0.471 | F97: 0.428 | G97: 0.542 | H97: 0.694 | I97: 0.764 | J97: 1.454 | K97: 0.652 | L97: 0.956 | M97: 0.591 | N97: 0.613 | O97: 0.711 | P97: 0.584 | V97: 85 | Y97: 85 | Z97: 0.5783248225 | AA97: 0.5710759445 | AB97: 0.5893774241 | AC97: 0.6247580559 | AD97: 0.6555903668 | AE97: 0.7643832757 | AF97: 0.61942678 | AG97: 0.6722790424 | AH97: 0.5900730739 | AI97: 0.6097760334 | AJ97: 0.615603018 | AK97: 0.6056186429 | AM97: 85 | AP97: 85 | AQ97: -0.2383248225 | AR97: -0.2310759445 | AS97: -0.2493774241 | AT97: -0.2847580559 | AU97: -0.3155903668 | AV97: -0.4243832757 | AW97: -0.27942678 | AX97: -0.3322790424 | AY97: -0.2500730739 | AZ97: -0.2697760334 | BA97: -0.275603018 | BB97: -0.2656186429
A98: 96 | B98: 0.95 | D98: 95 | E98: 0.3465 | F98: 0.3655 | G98: 0.47 | H98: 0.5255 | I98: 0.5155 | J98: 1.0485 | K98: 0.5975 | L98: 0.7565 | M98: 0.501 | N98: 0.5855 | O98: 0.583 | P98: 0.3755 | V98: 91 | Y98: 90 | Z98: 0.5596061352 | AA98: 0.5487305679 | AB98: 0.5759476824 | AC98: 0.6058873326 | AD98: 0.6179414389 | AE98: 0.7050807935 | AF98: 0.5981828236 | AG98: 0.6470041245 | AH98: 0.5862577742 | AI98: 0.5906668241 | AJ98: 0.6089006665 | AK98: 0.584827539 | AM98: 91 | AP98: 90 | AQ98: -0.2196061352 | AR98: -0.2087305679 | AS98: -0.2359476824 | AT98: -0.2658873326 | AU98: -0.2779414389 | AV98: -0.3650807935 | AW98: -0.2581828236 | AX98: -0.3070041245 | AY98: -0.2462577742 | AZ98: -0.2506668241 | BA98: -0.2689006665 | BB98: -0.244827539
A99: 99 | B99: 0.99 | D99: 99 | E99: 0.2891 | F99: 0.3391 | G99: 0.3946 | H99: 0.4064 | I99: 0.3974 | J99: 0.3891 | K99: 0.4291 | L99: 0.6164 | M99: 0.4582 | N99: 0.4228 | O99: 0.4219 | P99: 0.2991 | V99: 96 | Y99: 95 | Z99: 0.5254753465 | AA99: 0.5312575247 | AB99: 0.5593623641 | AC99: 0.5723090176 | AD99: 0.5700593307 | AE99: 0.6593707996 | AF99: 0.5875738412 | AG99: 0.6166929909 | AH99: 0.5667348444 | AI99: 0.5851351608 | AJ99: 0.5846221086 | AK99: 0.5342053329 | AM99: 96 | AP99: 95 | AQ99: -0.1854753465 | AR99: -0.1912575247 | AS99: -0.2193623641 | AT99: -0.2323090176 | AU99: -0.2300593307 | AV99: -0.3193707996 | AW99: -0.2475738412 | AX99: -0.2766929909 | AY99: -0.2267348444 | AZ99: -0.2451351608 | BA99: -0.2446221086 | BB99: -0.1942053329
A100: 100 | B100: 0.999 | D100: 99.9 | E100: 0.28 | F100: 0.33 | G100: 0.34 | H100: 0.37 | I100: 0.27 | J100: 0.38 | K100: 0.42 | L100: 0.58 | M100: 0.44 | N100: 0.35 | O100: 0.34 | P100: 0.29 | V100: 99 | Y100: 99 | Z100: 0.5063234479 | AA100: 0.5231549973 | AB100: 0.5396664043 | AC100: 0.5429360633 | AD100: 0.5404492185 | AE100: 0.5381157873 | AF100: 0.5490193822 | AG100: 0.5913369547 | AH100: 0.5564542627 | AI100: 0.547357221 | AJ100: 0.5471181648 | AK100: 0.5098654055 | AM100: 99 | AP100: 99 | AQ100: -0.1663234479 | AR100: -0.1831549973 | AS100: -0.1996664043 | AT100: -0.2029360633 | AU100: -0.2004492185 | AV100: -0.1981157873 | AW100: -0.2090193822 | AX100: -0.2513369547 | AY100: -0.2164542627 | AZ100: -0.207357221 | BA100: -0.2071181648 | BB100: -0.1698654055
A102: Sc 4A | B102: c:\_Projects\_Software\VB code\24_EWR site flows_scenario comparitor\scen 4A\ | C102: EWR 1.pd
B103: Array Parameter | E103: Oct | F103: Nov | G103: Dec | H103: Jan | I103: Feb | J103: Mar | K103: Apr | L103: May | M103: Jun | N103: Jul | O103: Aug | P103: Sep | Q103: Annual | V103: =A102 -> Sc 4A | AM103: =V103 -> Sc 4A
A104: 0.1 | B104: 0.001 | D104: 0.1 | E104: 3.11 | F104: 6.11 | G104: 33.81 | H104: 42.44 | I104: 83.33 | J104: 99.82 | K104: 64.55 | L104: 13.25 | M104: 5.21 | N104: 4.39 | O104: 2.26 | P104: 1.63 | V104: Flow converted to max depth | Y104: =D103 -> 0 | Z104: Oct | AA104: Nov | AB104: Dec | AC104: Jan | AD104: Feb | AE104: Mar | AF104: Apr | AG104: May | AH104: Jun | AI104: Jul | AJ104: Aug | AK104: Sep | AM104: Vegetation components | AQ104: =Z104 -> Oct | AR104: Nov | AS104: Dec | AT104: Jan | AU104: Feb | AV104: Mar | AW104: Apr | AX104: May | AY104: Jun | AZ104: Jul | BA104: Aug | BB104: Sep
A105: 1 | B105: 0.01 | D105: 1 | E105: 1.56 | F105: 3.81 | G105: 10.46 | H105: 35.39 | I105: 73.48 | J105: 67.59 | K105: 39.56 | L105: 11.56 | M105: 4.38 | N105: 3.89 | O105: 2.23 | P105: 1.62 | V105: =A104 -> 0.1 | Y105: =D104 -> 0.1 | Z105: =IF(E104<$T$10,$T$4*E104^$T$5+$T$6,$T$7*E104^$T$8+$T$9) -> 0.8240035088 | AA105: =IF(F104<$T$10,$T$4*F104^$T$5+$T$6,$T$7*F104^$T$8+$T$9) -> 0.9463496577 | AB105: 1.343901508 | AC105: 1.408014519 | AD105: 1.616878792 | AE105: 1.677848648 | AF105: 1.534411737 | AG105: 1.109091652 | AH105: 0.915935548 | AI105: 0.8843382461 | AJ105: 0.7718011322 | AK105: 0.7217912952 | AM105: =V105 -> 0.1 | AP105: =Y105 -> 0.1 | AQ105: =$AR$2-Z105 -> -0.4840035088 | AR105: =$AR$2-AA105 -> -0.6063496577 | AS105: =$AR$2-AB105 -> -1.003901508 | AT105: =$AR$2-AC105 -> -1.068014519 | AU105: =$AR$2-AD105 -> -1.276878792 | AV105: =$AR$2-AE105 -> -1.337848648 | AW105: =$AR$2-AF105 -> -1.194411737 | AX105: =$AR$2-AG105 -> -0.7690916517 | AY105: =$AR$2-AH105 -> -0.575935548 | AZ105: =$AR$2-AI105 -> -0.5443382461 | BA105: =$AR$2-AJ105 -> -0.4318011322 | BB105: =$AR$2-AK105 -> -0.3817912952
A106: 5 | B106: 0.05 | D106: 5 | E106: 1.4145 | F106: 2.8295 | G106: 6.635 | H106: 23.2875 | I106: 43.5515 | J106: 42.654 | K106: 20.118 | L106: 7.822 | M106: 3.1855 | N106: 3.005 | O106: 1.854 | P106: 1.4935 | V106: 1 | Y106: 1 | Z106: =IF(E105<$T$10,$T$4*E105^$T$5+$T$6,$T$7*E105^$T$8+$T$9) -> 0.7153255277 | AA106: 0.8590190623 | AB106: 1.056615985 | AC106: 1.356543412 | AD106: 1.575715679 | AE106: 1.548956005 | AF106: 1.387876171 | AG106: 1.07849848 | AH106: 0.8839249119 | AI106: 0.8626861973 | AJ106: 0.7696897059 | AK106: 0.720881299 | AM106: 1 | AP106: 1 | AQ106: -0.3753255277 | AR106: -0.5190190623 | AS106: -0.716615985 | AT106: -1.016543412 | AU106: -1.235715679 | AV106: -1.208956005 | AW106: -1.047876171 | AX106: -0.7384984798 | AY106: -0.5439249119 | AZ106: -0.5226861973 | BA106: -0.4296897059 | BB106: -0.380881299
A107: 11 | B107: 0.1 | D107: 10 | E107: 1.3 | F107: 1.346 | G107: 3.233 | H107: 15.76 | I107: 35.65 | J107: 33.465 | K107: 13.193 | L107: 6.281 | M107: 2.649 | N107: 2.652 | O107: 1.175 | P107: 1.267 | V107: 5 | Y107: 5 | Z107: 0.7011110087 | AA107: 0.8081903665 | AB107: 0.9624774681 | AC107: 1.245011518 | AD107: 1.415496567 | AE107: 1.409467068 | AF107: 1.208225691 | AG107: 0.995504741 | AH107: 0.82806531 | AI107: 0.818222276 | AJ107: 0.7410980591 | AK107: 0.7089657464 | AM107: 5 | AP107: 5 | AQ107: -0.3611110087 | AR107: -0.4681903665 | AS107: -0.6224774681 | AT107: -0.9050115179 | AU107: -1.075496567 | AV107: -1.069467068 | AW107: -0.868225691 | AX107: -0.655504741 | AY107: -0.48806531 | AZ107: -0.478222276 | BA107: -0.4010980591 | BB107: -0.3689657464
A108: 16 | B108: 0.15 | D108: 15 | E108: 1.1705 | F108: 1.128 | G108: 2.5065 | H108: 12.5875 | I108: 22.4505 | J108: 23.386 | K108: 12.1355 | L108: 4.864 | M108: 2.4205 | N108: 2.137 | O108: 1.0605 | P108: 1.17 | V108: 11 | Y108: 10 | Z108: 0.6890830519 | AA108: 0.6940127011 | AB108: 0.8305816857 | AC108: 1.149243894 | AD108: 1.358580528 | AE108: 1.341078813 | AF108: 1.108111882 | AG108: 0.9517197546 | AH108: 0.7973426271 | AI108: 0.7975276573 | AJ108: 0.6749489778 | AK108: 0.6854604273 | AM108: 11 | AP108: 10 | AQ108: -0.3490830519 | AR108: -0.3540127011 | AS108: -0.4905816857 | AT108: -0.8092438939 | AU108: -1.018580528 | AV108: -1.001078813 | AW108: -0.7681118816 | AX108: -0.6117197546 | AY108: -0.4573426271 | AZ108: -0.4575276573 | BA108: -0.3349489778 | BB108: -0.3454604273
A109: 21 | B109: 0.2 | D109: 20 | E109: 1.106 | F109: 1.008 | G109: 2.26 | H109: 9.168 | I109: 17.416 | J109: 16.952 | K109: 9.086 | L109: 4.322 | M109: 1.98 | N109: 1.84 | O109: 1.026 | P109: 1.13 | V109: 16 | Y109: 15 | Z109: 0.6744182625 | AA109: 0.6693242295 | AB109: 0.788355427 | AC109: 1.097490515 | AD109: 1.235704178 | AE109: 1.246089252 | AF109: 1.089293732 | AG109: 0.9031229162 | AH109: 0.7827331443 | AI109: 0.7629974883 | AJ109: 0.6609108311 | AK109: 0.674359194 | AM109: 16 | AP109: 15 | AQ109: -0.3344182625 | AR109: -0.3293242295 | AS109: -0.448355427 | AT109: -0.7574905146 | AU109: -0.8957041776 | AV109: -0.906089252 | AW109: -0.7492937318 | AX109: -0.5631229162 | AY109: -0.4427331443 | AZ109: -0.4229974883 | BA109: -0.3209108311 | BB109: -0.334359194
A110: 31 | B110: 0.3 | D110: 30 | E110: 0.95 | F110: 0.917 | G110: 1.829 | H110: 4.134 | I110: 8.271 | J110: 11.243 | K110: 5.533 | L110: 3.197 | M110: 1.369 | N110: 1.261 | O110: 0.95 | P110: 1.077 | V110: 21 | Y110: 20 | Z110: 0.6666271269 | AA110: 0.6540675307 | AB110: 0.7718011322 | AC110: 1.028441221 | AD110: 1.173025914 | AE110: 1.166550314 | AF110: 1.026548781 | AG110: 0.8815126676 | AH110: 0.7511549703 | AI110: 0.739947377 | AJ110: 0.6564450688 | AK110: 0.6695673409 | AM110: 21 | AP110: 20 | AQ110: -0.3266271269 | AR110: -0.3140675307 | AS110: -0.4318011322 | AT110: -0.6884412208 | AU110: -0.8330259142 | AV110: -0.8265503135 | AW110: -0.6865487806 | AX110: -0.5415126676 | AY110: -0.4111549703 | AZ110: -0.399947377 | BA110: -0.3164450688 | BB110: -0.3295673409
A111: 41 | B111: 0.4 | D111: 40 | E111: 0.856 | F111: 0.776 | G111: 1.298 | H111: 2.574 | I111: 5.072 | J111: 7.326 | K111: 3.556 | L111: 2.7 | M111: 0.972 | N111: 0.944 | O111: 0.916 | P111: 1.016 | V111: 31 | Y111: 30 | Z111: 0.6461695974 | AA111: 0.6415033004 | AB111: 0.7390383766 | AC111: 0.873512508 | AD111: 1.006960826 | AE111: 1.072368466 | AF111: 0.9272996987 | AG111: 0.8286772606 | AH111: 0.6964274619 | AI111: 0.684793728 | AJ111: 0.6461695974 | AK111: 0.6630059111 | AM111: 31 | AP111: 30 | AQ111: -0.3061695974 | AR111: -0.3015033004 | AS111: -0.3990383766 | AT111: -0.533512508 | AU111: -0.6669608262 | AV111: -0.7323684655 | AW111: -0.5872996987 | AX111: -0.4886772606 | AY111: -0.3564274619 | AZ111: -0.344793728 | BA111: -0.3061695974 | BB111: -0.3230059111
A112: 51 | B112: 0.5 | D112: 50 | E112: 0.725 | F112: 0.705 | G112: 0.965 | H112: 1.945 | I112: 3.115 | J112: 4.765 | K112: 2.06 | L112: 2.05 | M112: 0.785 | N112: 0.82 | O112: 0.84 | P112: 0.95 | V112: 41 | Y112: 40 | Z112: 0.6325142337 | AA112: 0.6199188384 | AB112: 0.6888655927 | AC112: 0.7926618061 | AD112: 0.9109088604 | AE112: 0.9822248076 | AF112: 0.8469550083 | AG112: 0.8004657476 | AH112: 0.6492093494 | AI112: 0.6453308694 | AJ112: 0.6413598269 | AK112: 0.6551283469 | AM112: 41 | AP112: 40 | AQ112: -0.2925142337 | AR112: -0.2799188384 | AS112: -0.3488655927 | AT112: -0.4526618061 | AU112: -0.5709088604 | AV112: -0.6422248076 | AW112: -0.5069550083 | AX112: -0.4604657476 | AY112: -0.3092093494 | AZ112: -0.3053308694 | BA112: -0.3013598269 | BB112: -0.3151283469
A113: 61 | B113: 0.6 | D113: 60 | E113: 0.69 | F113: 0.63 | G113: 0.738 | H113: 1.06 | I113: 1.632 | J113: 2.618 | K113: 1.434 | L113: 1.494 | M113: 0.72 | N113: 0.76 | O113: 0.8 | P113: 0.874 | V113: 51 | Y113: 50 | Z113: 0.6113395214 | AA113: 0.6078437426 | AB113: 0.6482481418 | AC113: 0.7484136511 | AD113: 0.8242749121 | AE113: 0.8993237791 | AF113: 0.7572790834 | AG113: 0.756524022 | AH113: 0.6213859952 | AI113: 0.6269674885 | AJ113: 0.6300723694 | AK113: 0.6461695974 | AM113: 51 | AP113: 50 | AQ113: -0.2713395214 | AR113: -0.2678437426 | AS113: -0.3082481418 | AT113: -0.4084136511 | AU113: -0.4842749121 | AV113: -0.5593237791 | AW113: -0.4172790834 | AX113: -0.416524022 | AY113: -0.2813859952 | AZ113: -0.2869674885 | BA113: -0.2900723694 | BB113: -0.3061695974
A114: 71 | B114: 0.7 | D114: 70 | E114: 0.603 | F114: 0.573 | G114: 0.646 | H114: 0.832 | I114: 1.138 | J114: 2.033 | K114: 0.833 | L114: 0.876 | M114: 0.653 | N114: 0.673 | O114: 0.78 | P114: 0.763 | V114: 61 | Y114: 60 | Z114: 0.6051697968 | AA114: 0.5939884413 | AB114: 0.6135708738 | AC114: 0.6608469404 | AD114: 0.7219727616 | AE114: 0.7954208265 | AF114: 0.7030816403 | AG114: 0.7090143968 | AH114: 0.6104728346 | AI114: 0.6172768187 | AJ114: 0.6238018072 | AK114: 0.6352183348 | AM114: 61 | AP114: 60 | AQ114: -0.2651697968 | AR114: -0.2539884413 | AS114: -0.2735708738 | AT114: -0.3208469404 | AU114: -0.3819727616 | AV114: -0.4554208265 | AW114: -0.3630816403 | AX114: -0.3690143968 | AY114: -0.2704728346 | AZ114: -0.2772768187 | BA114: -0.2838018072 | BB114: -0.2952183348
A115: 81 | B115: 0.8 | D115: 80 | E115: 0.5 | F115: 0.512 | G115: 0.58 | H115: 0.682 | I115: 0.826 | J115: 1.376 | K115: 0.7 | L115: 0.732 | M115: 0.61 | N115: 0.61 | O115: 0.75 | P115: 0.66 | V115: 71 | Y115: 70 | Z115: 0.5886785755 | AA115: 0.582552243 | AB115: 0.597050199 | AC115: 0.6288375445 | AD115: 0.6705363792 | AE115: 0.7552336706 | AF115: 0.6289924124 | AG115: 0.6355160498 | AH115: 0.598370788 | AI115: 0.6020828676 | AJ115: 0.6205725692 | AK115: 0.6177755436 | AM115: 71 | AP115: 70 | AQ115: -0.2486785755 | AR115: -0.242552243 | AS115: -0.257050199 | AT115: -0.2888375445 | AU115: -0.3305363792 | AV115: -0.4152336706 | AW115: -0.2889924124 | AX115: -0.2955160498 | AY115: -0.258370788 | AZ115: -0.2620828676 | BA115: -0.2805725692 | BB115: -0.2777755436
A116: 85 | B116: 0.85 | D116: 85 | E116: 0.46 | F116: 0.459 | G116: 0.56 | H116: 0.5825 | I116: 0.66 | J116: 0.969 | K116: 0.63 | L116: 0.6565 | M116: 0.5965 | N116: 0.5695 | O116: 0.71 | P116: 0.5265 | V116: 81 | Y116: 80 | Z116: 0.5665027627 | AA116: 0.569263742 | AB116: 0.5840041321 | AC116: 0.6037247469 | AD116: 0.6279052163 | AE116: 0.6971559852 | AF116: 0.6069574961 | AG116: 0.6125449347 | AH116: 0.5900730739 | AI116: 0.5900730739 | AJ116: 0.615603018 | AK116: 0.5996801701 | AM116: 81 | AP116: 80 | AQ116: -0.2265027627 | AR116: -0.229263742 | AS116: -0.2440041321 | AT116: -0.2637247469 | AU116: -0.2879052163 | AV116: -0.3571559852 | AW116: -0.2669574961 | AX116: -0.2725449347 | AY116: -0.2500730739 | AZ116: -0.2500730739 | BA116: -0.275603018 | BB116: -0.2596801701
A117: 91 | B117: 0.9 | D117: 90 | E117: 0.404 | F117: 0.371 | G117: 0.484 | H117: 0.501 | I117: 0.55 | J117: 0.661 | K117: 0.543 | L117: 0.621 | M117: 0.544 | N117: 0.52 | O117: 0.641 | P117: 0.46 | V117: 85 | Y117: 85 | Z117: 0.5569016912 | AA117: 0.556653292 | AB117: 0.5798180444 | AC117: 0.5845192883 | AD117: 0.5996801701 | AE117: 0.6487980794 | AF117: 0.5939884413 | AG117: 0.5990268665 | AH117: 0.5873721126 | AI117: 0.5818210042 | AJ117: 0.6087250062 | AK117: 0.5725321094 | AM117: 85 | AP117: 85 | AQ117: -0.2169016912 | AR117: -0.216653292 | AS117: -0.2398180444 | AT117: -0.2445192883 | AU117: -0.2596801701 | AV117: -0.3087980794 | AW117: -0.2539884413 | AX117: -0.2590268665 | AY117: -0.2473721126 | AZ117: -0.2418210042 | BA117: -0.2687250062 | BB117: -0.2325321094
A118: 96 | B118: 0.95 | D118: 95 | E118: 0.3065 | F118: 0.34 | G118: 0.4265 | H118: 0.442 | I118: 0.4965 | J118: 0.49 | K118: 0.4855 | L118: 0.5655 | M118: 0.471 | N118: 0.47 | O118: 0.4665 | P118: 0.3655 | V118: 91 | Y118: 90 | Z118: 0.5422772202 | AA118: 0.5328866407 | AB118: 0.562738308 | AC118: 0.5667348444 | AD118: 0.5776802669 | AE118: 0.5998663223 | AF118: 0.5761653628 | AG118: 0.5922389403 | AH118: 0.5763827247 | AI118: 0.5710759445 | AJ118: 0.5960999389 | AK118: 0.5569016912 | AM118: 91 | AP118: 90 | AQ118: -0.2022772202 | AR118: -0.1928866407 | AS118: -0.222738308 | AT118: -0.2267348444 | AU118: -0.2376802669 | AV118: -0.2598663223 | AW118: -0.2361653628 | AX118: -0.2522389403 | AY118: -0.2363827247 | AZ118: -0.2310759445 | BA118: -0.2560999389 | BB118: -0.2169016912
A119: 99 | B119: 0.99 | D119: 99 | E119: 0.2591 | F119: 0.2682 | G119: 0.2791 | H119: 0.35 | I119: 0.3974 | J119: 0.4291 | K119: 0.4291 | L119: 0.4182 | M119: 0.3991 | N119: 0.3773 | O119: 0.34 | P119: 0.2991 | V119: 96 | Y119: 95 | Z119: 0.5124263211 | AA119: 0.5234393395 | AB119: 0.5483357777 | AC119: 0.5523632121 | AD119: 0.5656875597 | AE119: 0.5641614121 | AF119: 0.5630953932 | AG119: 0.5809809149 | AH119: 0.5596061352 | AI119: 0.5593623641 | AJ119: 0.5585059049 | AK119: 0.5312575247 | AM119: 96 | AP119: 95 | AQ119: -0.1724263211 | AR119: -0.1834393395 | AS119: -0.2083357777 | AT119: -0.2123632121 | AU119: -0.2256875597 | AV119: -0.2241614121 | AW119: -0.2230953932 | AX119: -0.2409809149 | AY119: -0.2196061352 | AZ119: -0.2193623641 | BA119: -0.2185059049 | BB119: -0.1912575247
A120: 100 | B120: 0.999 | D120: 99.9 | E120: 0.25 | F120: 0.25 | G120: 0.27 | H120: 0.35 | I120: 0.27 | J120: 0.42 | K120: 0.42 | L120: 0.4 | M120: 0.39 | N120: 0.35 | O120: 0.34 | P120: 0.29 | V120: 99 | Y120: 99 | Z120: 0.4950784253 | AA120: 0.4985942088 | AB120: 0.50268271 | AC120: 0.5265591094 | AD120: 0.5404492185 | AE120: 0.5490193822 | AF120: 0.5490193822 | AG120: 0.5461310981 | AH120: 0.5409223616 | AI120: 0.5347292936 | AJ120: 0.5234393395 | AK120: 0.5098654055 | AM120: 99 | AP120: 99 | AQ120: -0.1550784253 | AR120: -0.1585942088 | AS120: -0.16268271 | AT120: -0.1865591094 | AU120: -0.2004492185 | AV120: -0.2090193822 | AW120: -0.2090193822 | AX120: -0.2061310981 | AY120: -0.2009223616 | AZ120: -0.1947292936 | BA120: -0.1834393395 | BB120: -0.1698654055
A122: Sc 4B | B122: c:\_Projects\_Software\VB code\24_EWR site flows_scenario comparitor\scen 4B\ | C122: EWR 1.pd
B123: Array Parameter | E123: Oct | F123: Nov | G123: Dec | H123: Jan | I123: Feb | J123: Mar | K123: Apr | L123: May | M123: Jun | N123: Jul | O123: Aug | P123: Sep | Q123: Annual | V123: =A122 -> Sc 4B | AM123: =V123 -> Sc 4B
A124: 0.1 | B124: 0.001 | D124: 0.1 | E124: 8.55 | F124: 6.03 | G124: 33.64 | H124: 41.92 | I124: 82.82 | J124: 99.73 | K124: 64.45 | L124: 13.13 | M124: 5.11 | N124: 3.35 | O124: 2.39 | P124: 3.55 | V124: Flow converted to max depth | Y124: =D123 -> 0 | Z124: Oct | AA124: Nov | AB124: Dec | AC124: Jan | AD124: Feb | AE124: Mar | AF124: Apr | AG124: May | AH124: Jun | AI124: Jul | AJ124: Aug | AK124: Sep | AM124: Vegetation components | AQ124: =Z124 -> Oct | AR124: Nov | AS124: Dec | AT124: Jan | AU124: Feb | AV124: Mar | AW124: Apr | AX124: May | AY124: Jun | AZ124: Jul | BA124: Aug | BB124: Sep
A125: 1 | B125: 0.01 | D125: 1 | E125: 2.81 | F125: 3.72 | G125: 10.42 | H125: 34.82 | I125: 72.98 | J125: 67.51 | K125: 39.46 | L125: 11.41 | M125: 4.31 | N125: 3.33 | O125: 2.26 | P125: 1.63 | V125: =A124 -> 0.1 | Y125: =D124 -> 0.1 | Z125: =IF(E124<$T$10,$T$4*E124^$T$5+$T$6,$T$7*E124^$T$8+$T$9) -> 1.01383256 | AA125: =IF(F124<$T$10,$T$4*F124^$T$5+$T$6,$T$7*F124^$T$8+$T$9) -> 0.9437962127 | AB125: 1.342513491 | AC125: 1.404460542 | AD125: 1.614845221 | AE125: 1.677538415 | AF125: 1.533924133 | AG125: 1.107025055 | AH125: 0.9123037621 | AI125: 0.8366568415 | AJ125: 0.7807010275 | AK125: 0.8466618548 | AM125: =V125 -> 0.1 | AP125: =Y125 -> 0.1 | AQ125: =$AR$2-Z125 -> -0.67383256 | AR125: =$AR$2-AA125 -> -0.6037962127 | AS125: =$AR$2-AB125 -> -1.002513491 | AT125: =$AR$2-AC125 -> -1.064460542 | AU125: =$AR$2-AD125 -> -1.274845221 | AV125: =$AR$2-AE125 -> -1.337538415 | AW125: =$AR$2-AF125 -> -1.193924133 | AX125: =$AR$2-AG125 -> -0.7670250547 | AY125: =$AR$2-AH125 -> -0.5723037621 | AZ125: =$AR$2-AI125 -> -0.4966568415 | BA125: =$AR$2-AJ125 -> -0.4407010275 | BB125: =$AR$2-AK125 -> -0.5066618548
A126: 5 | B126: 0.05 | D126: 5 | E126: 1.5115 | F126: 2.671 | G126: 6.424 | H126: 22.6005 | I126: 43.295 | J126: 41.9325 | K126: 20.0135 | L126: 7.5735 | M126: 3.17 | N126: 2.679 | O126: 1.8665 | P126: 1.5045 | V126: 1 | Y126: 1 | Z126: =IF(E125<$T$10,$T$4*E125^$T$5+$T$6,$T$7*E125^$T$8+$T$9) -> 0.8070454193 | AA126: 0.8548196246 | AB126: 1.055786401 | AC126: 1.352035449 | AD126: 1.573511685 | AE126: 1.548579991 | AF126: 1.38715625 | AG126: 1.075614723 | AH126: 0.8810103727 | AI126: 0.8356304347 | AJ126: 0.7718011322 | AK126: 0.7217912952 | AM126: 1 | AP126: 1 | AQ126: -0.4670454193 | AR126: -0.5148196246 | AS126: -0.7157864007 | AT126: -1.012035449 | AU126: -1.233511685 | AV126: -1.208579991 | AW126: -1.04715625 | AX126: -0.7356147234 | AY126: -0.5410103727 | AZ126: -0.4956304347 | BA126: -0.4318011322 | BB126: -0.3817912952
A127: 11 | B127: 0.1 | D127: 10 | E127: 1.339 | F127: 1.522 | G127: 2.686 | H127: 15.75 | I127: 35.289 | J127: 33.365 | K127: 13.063 | L127: 6.059 | M127: 2.648 | N127: 2.167 | O127: 1.207 | P127: 1.27 | V127: 5 | Y127: 5 | Z127: 0.7107090609 | AA127: 0.7986956669 | AB127: 0.9561220091 | AC127: 1.23739222 | AD127: 1.413783533 | AE127: 1.404546385 | AF127: 1.206936456 | AG127: 0.9889378301 | AH127: 0.827237722 | AI127: 0.7991854851 | AJ127: 0.7421196312 | AK127: 0.7100330766 | AM127: 5 | AP127: 5 | AQ127: -0.3707090609 | AR127: -0.4586956669 | AS127: -0.6161220091 | AT127: -0.8973922196 | AU127: -1.073783533 | AV127: -1.064546385 | AW127: -0.8669364562 | AX127: -0.6489378301 | AY127: -0.487237722 | AZ127: -0.4591854851 | BA127: -0.4021196312 | BB127: -0.3700330766
A128: 16 | B128: 0.15 | D128: 15 | E128: 1.2035 | F128: 1.0435 | G128: 2.424 | H128: 12.1345 | I128: 21.934 | J128: 22.1435 | K128: 12.012 | L128: 5.07 | M128: 2.4105 | N128: 2.005 | O128: 1.1 | P128: 1.1935 | V128: 11 | Y128: 10 | Z128: 0.6932712647 | AA128: 0.7117183857 | AB128: 0.799613123 | AC128: 1.149094367 | AD128: 1.355748861 | AE128: 1.340256317 | AF128: 1.105864664 | AG128: 0.9447249313 | AH128: 0.7972809133 | AI128: 0.7651811418 | AJ128: 0.6786770628 | AK128: 0.6857928361 | AM128: 11 | AP128: 10 | AQ128: -0.3532712647 | AR128: -0.3717183857 | AS128: -0.459613123 | AT128: -0.809094367 | AU128: -1.015748861 | AV128: -1.000256317 | AW128: -0.7658646643 | AX128: -0.6047249313 | AY128: -0.4572809133 | AZ128: -0.4251811418 | BA128: -0.3386770628 | BB128: -0.3457928361
A129: 21 | B129: 0.2 | D129: 20 | E129: 1.13 | F129: 0.996 | G129: 2.092 | H129: 8.98 | I129: 17.16 | J129: 16.946 | K129: 8.138 | L129: 4.294 | M129: 1.98 | N129: 1.626 | O129: 1.038 | P129: 1.148 | V129: 16 | Y129: 15 | Z129: 0.6782731581 | AA129: 0.6587249819 | AB129: 0.7829650338 | AC129: 1.08927533 | AD129: 1.229822228 | AE129: 1.23222117 | AF129: 1.08701196 | AG129: 0.9108352147 | AH129: 0.7820691308 | AI129: 0.7530895626 | AJ129: 0.6658841564 | AK129: 0.6771139762 | AM129: 16 | AP129: 15 | AQ129: -0.3382731581 | AR129: -0.3187249819 | AS129: -0.4429650338 | AT129: -0.7492753303 | AU129: -0.889822228 | AV129: -0.8922211702 | AW129: -0.7470119603 | AX129: -0.5708352147 | AY129: -0.4420691308 | AZ129: -0.4130895626 | BA129: -0.3258841564 | BB129: -0.3371139762
A130: 31 | B130: 0.3 | D130: 30 | E130: 0.98 | F130: 0.914 | G130: 1.733 | H130: 3.698 | I130: 8.248 | J130: 10.527 | K130: 5.523 | L130: 3.168 | M130: 1.369 | N130: 1.149 | O130: 0.95 | P130: 1.077 | V130: 21 | Y130: 20 | Z130: 0.6695673409 | AA130: 0.6524636866 | AB130: 0.7596758592 | AC130: 1.02408223 | AD130: 1.169470374 | AE130: 1.166465659 | AF130: 1.003619999 | AG130: 0.8803389138 | AH130: 0.7511549703 | AI130: 0.7214278308 | AJ130: 0.6580117348 | AK130: 0.6717400903 | AM130: 21 | AP130: 20 | AQ130: -0.3295673409 | AR130: -0.3124636866 | AS130: -0.4196758592 | AT130: -0.68408223 | AU130: -0.8294703741 | AV130: -0.8264656593 | AW130: -0.6636199989 | AX130: -0.5403389138 | AY130: -0.4111549703 | AZ130: -0.3814278308 | BA130: -0.3180117348 | BB130: -0.3317400903
A131: 41 | B131: 0.4 | D131: 40 | E131: 0.88 | F131: 0.77 | G131: 1.33 | H131: 2.502 | I131: 4.46 | J131: 6.55 | K131: 3.178 | L131: 2.596 | M131: 1.026 | N131: 0.886 | O131: 0.896 | P131: 1.02 | V131: 31 | Y131: 30 | Z131: 0.6503011571 | AA131: 0.6410725059 | AB131: 0.7309150201 | AC131: 0.8537808258 | AD131: 1.006386158 | AE131: 1.057999906 | AF131: 0.9269558831 | AG131: 0.8271307023 | AH131: 0.6964274619 | AI131: 0.6718600024 | AJ131: 0.6461695974 | AK131: 0.6630059111 | AM131: 31 | AP131: 30 | AQ131: -0.3103011571 | AR131: -0.3010725059 | AS131: -0.3909150201 | AT131: -0.5137808258 | AU131: -0.6663861585 | AV131: -0.7179999057 | AW131: -0.5869558831 | AX131: -0.4871307023 | AY131: -0.3564274619 | AZ131: -0.3318600024 | BA131: -0.3061695974 | BB131: -0.3230059111
A132: 51 | B132: 0.5 | D132: 50 | E132: 0.765 | F132: 0.675 | G132: 0.965 | H132: 1.82 | I132: 2.89 | J132: 4.59 | K132: 1.905 | L132: 1.97 | M132: 0.84 | N132: 0.795 | O132: 0.82 | P132: 0.955 | V132: 41 | Y132: 40 | Z132: 0.6361098624 | AA132: 0.6189332011 | AB132: 0.6923134479 | AC132: 0.7880650709 | AD132: 0.8872108153 | AE132: 0.9599368149 | AF132: 0.8276652649 | AG132: 0.7940459634 | AH132: 0.6564450688 | AI132: 0.6369965706 | AJ132: 0.6384638659 | AK132: 0.6556562667 | AM132: 41 | AP132: 40 | AQ132: -0.2961098624 | AR132: -0.2789332011 | AS132: -0.3523134479 | AT132: -0.4480650709 | AU132: -0.5472108153 | AV132: -0.6199368149 | AW132: -0.4876652649 | AX132: -0.4540459634 | AY132: -0.3164450688 | AZ132: -0.2969965706 | BA132: -0.2984638659 | BB132: -0.3156562667
A133: 61 | B133: 0.6 | D133: 60 | E133: 0.684 | F133: 0.63 | G133: 0.744 | H133: 1.012 | I133: 1.632 | J133: 2.714 | K133: 1.382 | L133: 1.494 | M133: 0.728 | N133: 0.714 | O133: 0.79 | P133: 0.862 | V133: 51 | Y133: 50 | Z133: 0.6181071616 | AA133: 0.6024492315 | AB133: 0.6482481418 | AC133: 0.7382914106 | AD133: 0.8117031644 | AE133: 0.8924518246 | AF133: 0.7452322696 | AG133: 0.7503756933 | AH133: 0.6300723694 | AI133: 0.6230005681 | AJ133: 0.6269674885 | AK133: 0.6468653263 | AM133: 51 | AP133: 50 | AQ133: -0.2781071616 | AR133: -0.2624492315 | AS133: -0.3082481418 | AT133: -0.3982914106 | AU133: -0.4717031644 | AV133: -0.5524518246 | AW133: -0.4052322696 | AX133: -0.4103756933 | AY133: -0.2900723694 | AZ133: -0.2830005681 | BA133: -0.2869674885 | BB133: -0.3068653263
A134: 71 | B134: 0.7 | D134: 70 | E134: 0.566 | F134: 0.563 | G134: 0.646 | H134: 0.829 | I134: 1.085 | J134: 2.033 | K134: 0.85 | L134: 0.953 | M134: 0.663 | N134: 0.643 | O134: 0.75 | P134: 0.733 | V134: 61 | Y134: 60 | Z134: 0.6040872676 | AA134: 0.5939884413 | AB134: 0.6145902031 | AC134: 0.6545987721 | AD134: 0.7219727616 | AE134: 0.8013148647 | AF134: 0.6977780924 | AG134: 0.7090143968 | AH134: 0.6118572551 | AI134: 0.6094264716 | AJ134: 0.6221953126 | AK134: 0.6334205817 | AM134: 61 | AP134: 60 | AQ134: -0.2640872676 | AR134: -0.2539884413 | AS134: -0.2745902031 | AT134: -0.3145987721 | AU134: -0.3819727616 | AV134: -0.4613148647 | AW134: -0.3577780924 | AX134: -0.3690143968 | AY134: -0.2718572551 | AZ134: -0.2694264716 | BA134: -0.2821953126 | BB134: -0.2934205817
A135: 81 | B135: 0.8 | D135: 80 | E135: 0.46 | F135: 0.506 | G135: 0.572 | H135: 0.706 | I135: 0.794 | J135: 1.334 | K135: 0.702 | L135: 0.748 | M135: 0.612 | N135: 0.61 | O135: 0.682 | P135: 0.564 | V135: 71 | Y135: 70 | Z135: 0.581086184 | AA135: 0.5804534572 | AB135: 0.597050199 | AC135: 0.628372051 | AD135: 0.6640125345 | AE135: 0.7552336706 | AF135: 0.631602821 | AG135: 0.646587383 | AH135: 0.6002379561 | AI135: 0.5964807477 | AJ135: 0.615603018 | AK135: 0.6127163876 | AM135: 71 | AP135: 70 | AQ135: -0.241086184 | AR135: -0.2404534572 | AS135: -0.257050199 | AT135: -0.288372051 | AU135: -0.3240125345 | AV135: -0.4152336706 | AW135: -0.291602821 | AX135: -0.306587383 | AY135: -0.2602379561 | AZ135: -0.2564807477 | BA135: -0.275603018 | BB135: -0.2727163876
A136: 85 | B136: 0.85 | D136: 85 | E136: 0.3965 | F136: 0.4525 | G136: 0.54 | H136: 0.64 | I136: 0.713 | J136: 1.079 | K136: 0.64 | L136: 0.6665 | M136: 0.603 | N136: 0.5695 | O136: 0.6465 | P136: 0.513 | V136: 81 | Y136: 80 | Z136: 0.5569016912 | AA136: 0.5678897594 | AB136: 0.5823436808 | AC136: 0.6080203919 | AD136: 0.6228398397 | AE136: 0.6927397784 | AF136: 0.6073125968 | AG136: 0.615266131 | AH136: 0.5904691645 | AI136: 0.5900730739 | AJ136: 0.6037247469 | AK136: 0.5806646633 | AM136: 81 | AP136: 80 | AQ136: -0.2169016912 | AR136: -0.2278897594 | AS136: -0.2423436808 | AT136: -0.2680203919 | AU136: -0.2828398397 | AV136: -0.3527397784 | AW136: -0.2673125968 | AX136: -0.275266131 | AY136: -0.2504691645 | AZ136: -0.2500730739 | BA136: -0.2637247469 | BB136: -0.2406646633
A137: 91 | B137: 0.9 | D137: 90 | E137: 0.371 | F137: 0.392 | G137: 0.472 | H137: 0.55 | I137: 0.622 | J137: 0.828 | K137: 0.584 | L137: 0.64 | M137: 0.543 | N137: 0.511 | O137: 0.53 | P137: 0.424 | V137: 85 | Y137: 85 | Z137: 0.5401980791 | AA137: 0.5550281252 | AB137: 0.5755113619 | AC137: 0.5959091802 | AD137: 0.6092513987 | AE137: 0.6632581228 | AF137: 0.5959091802 | AG137: 0.6008861761 | AH137: 0.5886785755 | AI137: 0.5818210042 | AJ137: 0.5971449031 | AK137: 0.5694914931 | AM137: 85 | AP137: 85 | AQ137: -0.2001980791 | AR137: -0.2150281252 | AS137: -0.2355113619 | AT137: -0.2559091802 | AU137: -0.2692513987 | AV137: -0.3232581228 | AW137: -0.2559091802 | AX137: -0.2608861761 | AY137: -0.2486785755 | AZ137: -0.2418210042 | BA137: -0.2571449031 | BB137: -0.2294914931
A138: 96 | B138: 0.95 | D138: 95 | E138: 0.311 | F138: 0.3455 | G138: 0.3855 | H138: 0.4855 | I138: 0.52 | J138: 0.5665 | K138: 0.5055 | L138: 0.5855 | M138: 0.471 | N138: 0.47 | O138: 0.4255 | P138: 0.3655 | V138: 91 | Y138: 90 | Z138: 0.5328866407 | AA138: 0.5389355413 | AB138: 0.5598494953 | AC138: 0.5776802669 | AD138: 0.5924343209 | AE138: 0.6282165889 | AF138: 0.584827539 | AG138: 0.5959091802 | AH138: 0.5761653628 | AI138: 0.569035637 | AJ138: 0.5733102871 | AK138: 0.5476753341 | AM138: 91 | AP138: 90 | AQ138: -0.1928866407 | AR138: -0.1989355413 | AS138: -0.2198494953 | AT138: -0.2376802669 | AU138: -0.2524343209 | AV138: -0.2882165889 | AW138: -0.244827539 | AX138: -0.2559091802 | AY138: -0.2361653628 | AZ138: -0.229035637 | BA138: -0.2333102871 | BB138: -0.2076753341
A139: 99 | B139: 0.99 | D139: 99 | E139: 0.2755 | F139: 0.2991 | G139: 0.2791 | H139: 0.35 | I139: 0.4347 | J139: 0.4382 | K139: 0.4291 | L139: 0.4191 | M139: 0.3991 | N139: 0.3773 | O139: 0.34 | P139: 0.2991 | V139: 96 | Y139: 95 | Z139: 0.513959693 | AA139: 0.525164102 | AB139: 0.5370913768 | AC139: 0.5630953932 | AD139: 0.5710759445 | AE139: 0.5811913791 | AF139: 0.5677746772 | AG139: 0.5851351608 | AH139: 0.5596061352 | AI139: 0.5593623641 | AJ139: 0.5480719705 | AK139: 0.5312575247 | AM139: 96 | AP139: 95 | AQ139: -0.173959693 | AR139: -0.185164102 | AS139: -0.1970913768 | AT139: -0.2230953932 | AU139: -0.2310759445 | AV139: -0.2411913791 | AW139: -0.2277746772 | AX139: -0.2451351608 | AY139: -0.2196061352 | AZ139: -0.2193623641 | BA139: -0.2080719705 | BB139: -0.1912575247
A140: 100 | B140: 0.999 | D140: 99.9 | E140: 0.23 | F140: 0.29 | G140: 0.27 | H140: 0.35 | I140: 0.28 | J140: 0.42 | K140: 0.42 | L140: 0.41 | M140: 0.39 | N140: 0.35 | O140: 0.34 | P140: 0.29 | V140: 99 | Y140: 99 | Z140: 0.5013466415 | AA140: 0.5098654055 | AB140: 0.50268271 | AC140: 0.5265591094 | AD140: 0.5504806498 | AE140: 0.5513863591 | AF140: 0.5490193822 | AG140: 0.5463718325 | AH140: 0.5409223616 | AI140: 0.5347292936 | AJ140: 0.5234393395 | AK140: 0.5098654055 | AM140: 99 | AP140: 99 | AQ140: -0.1613466415 | AR140: -0.1698654055 | AS140: -0.16268271 | AT140: -0.1865591094 | AU140: -0.2104806498 | AV140: -0.2113863591 | AW140: -0.2090193822 | AX140: -0.2063718325 | AY140: -0.2009223616 | AZ140: -0.1947292936 | BA140: -0.1834393395 | BB140: -0.1698654055
A142: Sc 7 | B142: c:\_Projects\_Software\VB code\24_EWR site flows_scenario comparitor\scen 7\ | C142: EWR 1.pd
B143: Array Parameter | E143: Oct | F143: Nov | G143: Dec | H143: Jan | I143: Feb | J143: Mar | K143: Apr | L143: May | M143: Jun | N143: Jul | O143: Aug | P143: Sep | Q143: Annual | V143: =A142 -> Sc 7 | AM143: =V143 -> Sc 7
A144: 0.1 | B144: 0.001 | D144: 0.1 | E144: 2.18 | F144: 5.87 | G144: 33.64 | H144: 41.92 | I144: 82.82 | J144: 99.73 | K144: 64.45 | L144: 13.13 | M144: 5.11 | N144: 4.78 | O144: 2.26 | P144: 3.72 | Q144: 0 | V144: Flow converted to max depth | Y144: =D143 -> 0 | Z144: =E143 -> Oct | AA144: Nov | AB144: Dec | AC144: Jan | AD144: Feb | AE144: Mar | AF144: Apr | AG144: May | AH144: Jun | AI144: Jul | AJ144: Aug | AK144: Sep | AM144: Vegetation components | AQ144: =Z144 -> Oct | AR144: Nov | AS144: Dec | AT144: Jan | AU144: Feb | AV144: Mar | AW144: Apr | AX144: May | AY144: Jun | AZ144: Jul | BA144: Aug | BB144: Sep
A145: 1 | B145: 0.01 | D145: 1 | E145: 1.93 | F145: 3.72 | G145: 10.42 | H145: 34.82 | I145: 72.98 | J145: 67.51 | K145: 39.46 | L145: 11.85 | M145: 4.31 | N145: 3.62 | O145: 2.22 | P145: 3.03 | Q145: 0 | V145: =A144 -> 0.1 | Y145: 0.1 | Z145: =IF(E144<$T$10,$T$4*E144^$T$5+$T$6,$T$7*E144^$T$8+$T$9) -> 0.7661199338 | AA145: =IF(F144<$T$10,$T$4*F144^$T$5+$T$6,$T$7*F144^$T$8+$T$9) -> 0.9386074392 | AB145: =IF(G144<$T$10,$T$4*G144^$T$5+$T$6,$T$7*G144^$T$8+$T$9) -> 1.342513491 | AC145: =IF(H144<$T$10,$T$4*H144^$T$5+$T$6,$T$7*H144^$T$8+$T$9) -> 1.404460542 | AD145: =IF(I144<$T$10,$T$4*I144^$T$5+$T$6,$T$7*I144^$T$8+$T$9) -> 1.614845221 | AE145: =IF(J144<$T$10,$T$4*J144^$T$5+$T$6,$T$7*J144^$T$8+$T$9) -> 1.677538415 | AF145: =IF(K144<$T$10,$T$4*K144^$T$5+$T$6,$T$7*K144^$T$8+$T$9) -> 1.533924133 | AG145: =IF(L144<$T$10,$T$4*L144^$T$5+$T$6,$T$7*L144^$T$8+$T$9) -> 1.107025055 | AH145: =IF(M144<$T$10,$T$4*M144^$T$5+$T$6,$T$7*M144^$T$8+$T$9) -> 0.9123037621 | AI145: =IF(N144<$T$10,$T$4*N144^$T$5+$T$6,$T$7*N144^$T$8+$T$9) -> 0.8999034154 | AJ145: =IF(O144<$T$10,$T$4*O144^$T$5+$T$6,$T$7*O144^$T$8+$T$9) -> 0.7718011322 | AK145: =IF(P144<$T$10,$T$4*P144^$T$5+$T$6,$T$7*P144^$T$8+$T$9) -> 0.8548196246 | AM145: =V145 -> 0.1 | AP145: =Y145 -> 0.1 | AQ145: =$AR$2-Z145 -> -0.4261199338 | AR145: =$AR$2-AA145 -> -0.5986074392 | AS145: =$AR$2-AB145 -> -1.002513491 | AT145: =$AR$2-AC145 -> -1.064460542 | AU145: =$AR$2-AD145 -> -1.274845221 | AV145: =$AR$2-AE145 -> -1.337538415 | AW145: =$AR$2-AF145 -> -1.193924133 | AX145: =$AR$2-AG145 -> -0.7670250547 | AY145: =$AR$2-AH145 -> -0.5723037621 | AZ145: =$AR$2-AI145 -> -0.5599034154 | BA145: =$AR$2-AJ145 -> -0.4318011322 | BB145: =$AR$2-AK145 -> -0.5148196246
A146: 5 | B146: 0.05 | D146: 5 | E146: 1.495 | F146: 1.808 | G146: 6.424 | H146: 22.6005 | I146: 43.295 | J146: 42.3065 | K146: 20.0135 | L146: 7.887 | M146: 3.104 | N146: 3.0795 | O146: 1.4585 | P146: 1.5045 | Q146: 0 | V146: 1 | Y146: 1 | Z146: =IF(E145<$T$10,$T$4*E145^$T$5+$T$6,$T$7*E145^$T$8+$T$9) -> 0.7472267823 | AA146: 0.8548196246 | AB146: 1.055786401 | AC146: 1.352035449 | AD146: 1.573511685 | AE146: 1.548579991 | AF146: 1.38715625 | AG146: 1.083990418 | AH146: 0.8810103727 | AI146: 0.8500577638 | AJ146: 0.768980879 | AK146: 0.8196131546 | AM146: 1 | AP146: 1 | AQ146: -0.4072267823 | AR146: -0.5148196246 | AS146: -0.7157864007 | AT146: -1.012035449 | AU146: -1.233511685 | AV146: -1.208579991 | AW146: -1.04715625 | AX146: -0.7439904176 | AY146: -0.5410103727 | AZ146: -0.5100577638 | BA146: -0.428980879 | BB146: -0.4796131546
A147: 11 | B147: 0.1 | D147: 10 | E147: 1.246 | F147: 1.253 | G147: 2.686 | H147: 15.75 | I147: 31.968 | J147: 34.029 | K147: 13.063 | L147: 6.097 | M147: 2.648 | N147: 2.607 | O147: 1.1 | P147: 1.27 | Q147: 0 | V147: 5 | Y147: 5 | Z147: 0.7091116587 | AA147: 0.7372908745 | AB147: 0.9561220091 | AC147: 1.23739222 | AD147: 1.413783533 | AE147: 1.407105421 | AF147: 1.206936456 | AG147: 0.9971950376 | AH147: 0.8236773665 | AI147: 0.8223403946 | AJ147: 0.7055275874 | AK147: 0.7100330766 | AM147: 5 | AP147: 5 | AQ147: -0.3691116587 | AR147: -0.3972908745 | AS147: -0.6161220091 | AT147: -0.8973922196 | AU147: -1.073783533 | AV147: -1.067105421 | AW147: -0.8669364562 | AX147: -0.6571950376 | AY147: -0.4836773665 | AZ147: -0.4823403946 | BA147: -0.3655275874 | BB147: -0.3700330766
A148: 16 | B148: 0.15 | D148: 15 | E148: 1.19 | F148: 1.01 | G148: 2.331 | H148: 13.0545 | I148: 21.1615 | J148: 23.927 | K148: 12.012 | L148: 4.684 | M148: 2.4105 | N148: 2.0735 | O148: 1.0605 | P148: 1.2 | Q148: 0 | V148: 11 | Y148: 10 | Z148: 0.683115878 | AA148: 0.6839008615 | AB148: 0.799613123 | AC148: 1.149094367 | AD148: 1.32855596 | AE148: 1.345681446 | AF148: 1.105864664 | AG148: 0.9459365386 | AH148: 0.7972809133 | AI148: 0.7947345479 | AJ148: 0.6658841564 | AK148: 0.6857928361 | AM148: 11 | AP148: 10 | AQ148: -0.343115878 | AR148: -0.3439008615 | AS148: -0.459613123 | AT148: -0.809094367 | AU148: -0.9885559597 | AV148: -1.005681446 | AW148: -0.7658646643 | AX148: -0.6059365386 | AY148: -0.4572809133 | AZ148: -0.4547345479 | BA148: -0.3258841564 | BB148: -0.3457928361
A149: 21 | B149: 0.2 | D149: 20 | E149: 1.11 | F149: 0.968 | G149: 1.89 | H149: 8.982 | I149: 16.966 | J149: 18.37 | K149: 9.146 | L149: 3.894 | M149: 1.974 | N149: 1.594 | O149: 1.018 | P149: 1.158 | Q149: 0 | V149: 16 | Y149: 15 | Z149: 0.6767064382 | AA149: 0.6543333605 | AB149: 0.776710806 | AC149: 1.105717113 | AD149: 1.220815974 | AE149: 1.251945065 | AF149: 1.08701196 | AG149: 0.8961684349 | AH149: 0.7820691308 | AI149: 0.7582938075 | AJ149: 0.6609108311 | AK149: 0.6778683184 | AM149: 16 | AP149: 15 | AQ149: -0.3367064382 | AR149: -0.3143333605 | AS149: -0.436710806 | AT149: -0.7657171126 | AU149: -0.880815974 | AV149: -0.9119450646 | AW149: -0.7470119603 | AX149: -0.5561684349 | AY149: -0.4420691308 | AZ149: -0.4182938075 | BA149: -0.3209108311 | BB149: -0.3378683184
A150: 31 | B150: 0.3 | D150: 30 | E150: 0.977 | F150: 0.817 | G150: 1.437 | H150: 4.036 | I150: 9.489 | J150: 10.329 | K150: 5.516 | L150: 3.137 | M150: 1.551 | N150: 1.1 | O150: 0.95 | P150: 1.094 | Q150: 0 | V150: 21 | Y150: 20 | Z150: 0.6671206622 | AA150: 0.6486607644 | AB150: 0.7440255527 | AC150: 1.024128982 | AD150: 1.166747748 | AE150: 1.185920451 | AF150: 1.027934818 | AG150: 0.8628679747 | AH150: 0.7506877807 | AI150: 0.7184942324 | AJ150: 0.6553925129 | AK150: 0.6729354943 | AM150: 21 | AP150: 20 | AQ150: -0.3271206622 | AR150: -0.3086607644 | AS150: -0.4040255527 | AT150: -0.6841289824 | AU150: -0.8267477475 | AV150: -0.8459204506 | AW150: -0.6879348181 | AX150: -0.5228679747 | AY150: -0.4106877807 | AZ150: -0.3784942324 | BA150: -0.3153925129 | BB150: -0.3329354943
A151: 41 | B151: 0.4 | D151: 40 | E151: 0.834 | F151: 0.72 | G151: 1 | H151: 2.466 | I151: 4.51 | J151: 6.322 | K151: 3.196 | L151: 2.748 | M151: 1.03 | N151: 0.9 | O151: 0.866 | P151: 1.026 | Q151: 0 | V151: 31 | Y151: 30 | Z151: 0.6498925625 | AA151: 0.6264965776 | AB151: 0.7033829207 | AC151: 0.8692269212 | AD151: 1.035722409 | AE151: 1.053889623 | AF151: 0.9267149176 | AG151: 0.8254649883 | AH151: 0.7144775709 | AI151: 0.6658841564 | AJ151: 0.6461695974 | AK151: 0.6651379572 | AM151: 31 | AP151: 30 | AQ151: -0.3098925625 | AR151: -0.2864965776 | AS151: -0.3633829207 | AT151: -0.5292269212 | AU151: -0.6957224091 | AV151: -0.7138896226 | AW151: -0.5867149176 | AX151: -0.4854649883 | AY151: -0.3744775709 | AZ151: -0.3258841564 | BA151: -0.3061695974 | BB151: -0.3251379572
A152: 51 | B152: 0.5 | D152: 50 | E152: 0.72 | F152: 0.655 | G152: 0.835 | H152: 1.415 | I152: 2.655 | J152: 3.435 | K152: 1.84 | L152: 1.97 | M152: 0.875 | N152: 0.81 | O152: 0.81 | P152: 0.965 | Q152: 0 | V152: 41 | Y152: 40 | Z152: 0.6291471327 | AA152: 0.6104728346 | AB152: 0.653 | AC152: 0.785727152 | AD152: 0.8892407829 | AE152: 0.9529900188 | AF152: 0.828624117 | AG152: 0.8033626019 | AH152: 0.6569689018 | AI152: 0.6390471403 | AJ152: 0.6340220312 | AK152: 0.6564450688 | AM152: 41 | AP152: 40 | AQ152: -0.2891471327 | AR152: -0.2704728346 | AS152: -0.313 | AT152: -0.445727152 | AU152: -0.5492407829 | AV152: -0.6129900188 | AW152: -0.488624117 | AX152: -0.4633626019 | AY152: -0.3169689018 | AZ152: -0.2990471403 | BA152: -0.2940220312 | BB152: -0.3164450688
A153: 61 | B153: 0.6 | D153: 60 | E153: 0.63 | F153: 0.604 | G153: 0.74 | H153: 0.946 | I153: 1.584 | J153: 2.53 | K153: 1.322 | L153: 1.438 | M153: 0.744 | N153: 0.72 | O153: 0.784 | P153: 0.862 | Q153: 0 | V153: 51 | Y153: 50 | Z153: 0.6104728346 | AA153: 0.5987460313 | AB153: 0.6293017055 | AC153: 0.7011618067 | AD153: 0.7977125213 | AE153: 0.8409654685 | AF153: 0.739947377 | AG153: 0.7503756933 | AH153: 0.6353672599 | AI153: 0.6253924157 | AJ153: 0.6253924157 | AK153: 0.6482481418 | AM153: 51 | AP153: 50 | AQ153: -0.2704728346 | AR153: -0.2587460313 | AS153: -0.2893017055 | AT153: -0.3611618067 | AU153: -0.4577125213 | AV153: -0.5009654685 | AW153: -0.399947377 | AX153: -0.4103756933 | AY153: -0.2953672599 | AZ153: -0.2853924157 | BA153: -0.2853924157 | BB153: -0.3082481418
A154: 71 | B154: 0.7 | D154: 70 | E154: 0.56 | F154: 0.56 | G154: 0.64 | H154: 0.796 | I154: 1.014 | J154: 1.542 | K154: 0.85 | L154: 0.883 | M154: 0.683 | N154: 0.653 | O154: 0.75 | P154: 0.719 | Q154: 0 | V154: 61 | Y154: 60 | Z154: 0.5939884413 | AA154: 0.5888785749 | AB154: 0.6139113799 | AC154: 0.6456109151 | AD154: 0.7175678836 | AE154: 0.7898650328 | AF154: 0.6914577196 | AG154: 0.7034832364 | AH154: 0.6145902031 | AI154: 0.6104728346 | AJ154: 0.6212236402 | AK154: 0.6334205817 | AM154: 61 | AP154: 60 | AQ154: -0.2539884413 | AR154: -0.2488785749 | AS154: -0.2739113799 | AT154: -0.3056109151 | AU154: -0.3775678836 | AV154: -0.4498650328 | AW154: -0.3514577196 | AX154: -0.3634832364 | AY154: -0.2745902031 | AZ154: -0.2704728346 | BA154: -0.2812236402 | BB154: -0.2934205817
A155: 81 | B155: 0.8 | D155: 80 | E155: 0.464 | F155: 0.492 | G155: 0.57 | H155: 0.672 | I155: 0.76 | J155: 1.142 | K155: 0.702 | L155: 0.732 | M155: 0.65 | N155: 0.612 | O155: 0.682 | P155: 0.56 | Q155: 0 | V155: 71 | Y155: 70 | Z155: 0.5798180444 | AA155: 0.5798180444 | AB155: 0.5959091802 | AC155: 0.6231611357 | AD155: 0.6548637671 | AE155: 0.7136256932 | AF155: 0.631602821 | AG155: 0.6365538153 | AH155: 0.6039061127 | AI155: 0.598370788 | AJ155: 0.615603018 | AK155: 0.6102989234 | AM155: 71 | AP155: 70 | AQ155: -0.2398180444 | AR155: -0.2398180444 | AS155: -0.2559091802 | AT155: -0.2831611357 | AU155: -0.3148637671 | AV155: -0.3736256932 | AW155: -0.291602821 | AX155: -0.2965538153 | AY155: -0.2639061127 | AZ155: -0.258370788 | BA155: -0.275603018 | BB155: -0.2702989234
A156: 85 | B156: 0.85 | D156: 85 | E156: 0.3965 | F156: 0.41 | G156: 0.5365 | H156: 0.613 | I156: 0.7 | J156: 0.9195 | K156: 0.6365 | L156: 0.67 | M156: 0.61 | N156: 0.5965 | O156: 0.633 | P156: 0.486 | Q156: 0 | V156: 81 | Y156: 80 | Z156: 0.5578910153 | AA156: 0.5646327015 | AB156: 0.5819256853 | AC156: 0.601899361 | AD156: 0.6172768187 | AE156: 0.6710188689 | AF156: 0.6073125968 | AG156: 0.6125449347 | AH156: 0.5978062062 | AI156: 0.5904691645 | AJ156: 0.6037247469 | AK156: 0.5798180444 | AM156: 81 | AP156: 80 | AQ156: -0.2178910153 | AR156: -0.2246327015 | AS156: -0.2419256853 | AT156: -0.261899361 | AU156: -0.2772768187 | AV156: -0.3310188689 | AW156: -0.2673125968 | AX156: -0.2725449347 | AY156: -0.2578062062 | AZ156: -0.2504691645 | BA156: -0.2637247469 | BB156: -0.2398180444
A157: 91 | B157: 0.9 | D157: 90 | E157: 0.361 | F157: 0.36 | G157: 0.471 | H157: 0.53 | I157: 0.55 | J157: 0.679 | K157: 0.544 | L157: 0.622 | M157: 0.591 | N157: 0.53 | O157: 0.521 | P157: 0.401 | Q157: 0 | V157: 85 | Y157: 85 | Z157: 0.5401980791 | AA157: 0.5439185519 | AB157: 0.5747447001 | AC157: 0.5906668241 | AD157: 0.6069574961 | AE157: 0.6418614408 | AF157: 0.5952396531 | AG157: 0.6015316955 | AH157: 0.5900730739 | AI157: 0.5873721126 | AJ157: 0.5945671927 | AK157: 0.5632142267 | AM157: 85 | AP157: 85 | AQ157: -0.2001980791 | AR157: -0.2039185519 | AS157: -0.2347447001 | AT157: -0.2506668241 | AU157: -0.2669574961 | AV157: -0.3018614408 | AW157: -0.2552396531 | AX157: -0.2615316955 | AY157: -0.2500730739 | AZ157: -0.2473721126 | BA157: -0.2545671927 | BB157: -0.2232142267
A158: 96 | B158: 0.95 | D158: 95 | E158: 0.3255 | F158: 0.31 | G158: 0.3855 | H158: 0.432 | I158: 0.52 | J158: 0.523 | K158: 0.4955 | L158: 0.5655 | M158: 0.4965 | N158: 0.47 | O158: 0.4255 | P158: 0.36 | Q158: 0 | V158: 91 | Y158: 90 | Z158: 0.5299100518 | AA158: 0.5296088014 | AB158: 0.5596061352 | AC158: 0.5733102871 | AD158: 0.5776802669 | AE158: 0.6031793779 | AF158: 0.5763827247 | AG158: 0.5924343209 | AH158: 0.5862577742 | AI158: 0.5733102871 | AJ158: 0.5713009083 | AK158: 0.5414492764 | AM158: 91 | AP158: 90 | AQ158: -0.1899100518 | AR158: -0.1896088014 | AS158: -0.2196061352 | AT158: -0.2333102871 | AU158: -0.2376802669 | AV158: -0.2631793779 | AW158: -0.2363827247 | AX158: -0.2524343209 | AY158: -0.2462577742 | AZ158: -0.2333102871 | BA158: -0.2313009083 | BB158: -0.2014492764
A159: 99 | B159: 0.99 | D159: 99 | E159: 0.28 | F159: 0.2891 | G159: 0.2791 | H159: 0.3482 | I159: 0.4347 | J159: 0.4382 | K159: 0.4291 | L159: 0.4191 | M159: 0.3991 | N159: 0.3773 | O159: 0.34 | P159: 0.2991 | Q159: 0 | V159: 96 | Y159: 95 | Z159: 0.5187834761 | AA159: 0.5136204754 | AB159: 0.5370913768 | AC159: 0.5497779903 | AD159: 0.5710759445 | AE159: 0.5717498081 | AF159: 0.5654538057 | AG159: 0.5809809149 | AH159: 0.5656875597 | AI159: 0.5593623641 | AJ159: 0.5480719705 | AK159: 0.5296088014 | AM159: 96 | AP159: 95 | AQ159: -0.1787834761 | AR159: -0.1736204754 | AS159: -0.1970913768 | AT159: -0.2097779903 | AU159: -0.2310759445 | AV159: -0.2317498081 | AW159: -0.2254538057 | AX159: -0.2409809149 | AY159: -0.2256875597 | AZ159: -0.2193623641 | BA159: -0.2080719705 | BB159: -0.1896088014
A160: 100 | B160: 0.999 | D160: 99.9 | E160: 0.28 | F160: 0.28 | G160: 0.27 | H160: 0.33 | I160: 0.28 | J160: 0.42 | K160: 0.42 | L160: 0.41 | M160: 0.39 | N160: 0.35 | O160: 0.34 | P160: 0.29 | Q160: 0 | V160: 99 | Y160: 99 | Z160: 0.503014585 | AA160: 0.5063234479 | AB160: 0.50268271 | AC160: 0.5260028272 | AD160: 0.5504806498 | AE160: 0.5513863591 | AF160: 0.5490193822 | AG160: 0.5463718325 | AH160: 0.5409223616 | AI160: 0.5347292936 | AJ160: 0.5234393395 | AK160: 0.5098654055 | AM160: 99 | AP160: 99 | AQ160: -0.163014585 | AR160: -0.1663234479 | AS160: -0.16268271 | AT160: -0.1860028272 | AU160: -0.2104806498 | AV160: -0.2113863591 | AW160: -0.2090193822 | AX160: -0.2063718325 | AY160: -0.2009223616 | AZ160: -0.1947292936 | BA160: -0.1834393395 | BB160: -0.1698654055

Sheet change
A2: =q!A2 -> PRESENT DAY
A3: Array Parameter | E3: Jan | F3: Feb | G3: Mar | H3: Apr | I3: May | J3: Jun | K3: Jul | L3: Aug | M3: Sep | N3: Oct | O3: Nov | P3: Dec
A4: 0.001 | D4: 0.1 | E4: =q!E4-q!E$4 -> 0 | F4: =q!F4-q!F$4 -> 0 | G4: =q!G4-q!G$4 -> 0 | H4: =q!H4-q!H$4 -> 0 | I4: =q!I4-q!I$4 -> 0 | J4: =q!J4-q!J$4 -> 0 | K4: =q!K4-q!K$4 -> 0 | L4: =q!L4-q!L$4 -> 0 | M4: =q!M4-q!M$4 -> 0 | N4: =q!N4-q!N$4 -> 0 | O4: =q!O4-q!O$4 -> 0 | P4: =q!P4-q!P$4 -> 0
A5: 0.01 | D5: 1 | E5: =q!E5-q!E$5 -> 0 | F5: =q!F5-q!F$5 -> 0 | G5: =q!G5-q!G$5 -> 0 | H5: =q!H5-q!H$5 -> 0 | I5: =q!I5-q!I$5 -> 0 | J5: =q!J5-q!J$5 -> 0 | K5: =q!K5-q!K$5 -> 0 | L5: =q!L5-q!L$5 -> 0 | M5: =q!M5-q!M$5 -> 0 | N5: =q!N5-q!N$5 -> 0 | O5: =q!O5-q!O$5 -> 0 | P5: =q!P5-q!P$5 -> 0
A6: 0.05 | D6: 5 | E6: =q!E6-q!E$6 -> 0 | F6: =q!F6-q!F$6 -> 0 | G6: =q!G6-q!G$6 -> 0 | H6: =q!H6-q!H$6 -> 0 | I6: =q!I6-q!I$6 -> 0 | J6: =q!J6-q!J$6 -> 0 | K6: =q!K6-q!K$6 -> 0 | L6: =q!L6-q!L$6 -> 0 | M6: =q!M6-q!M$6 -> 0 | N6: =q!N6-q!N$6 -> 0 | O6: =q!O6-q!O$6 -> 0 | P6: =q!P6-q!P$6 -> 0
A7: 0.1 | D7: 10 | E7: =q!E7-q!E$7 -> 0 | F7: =q!F7-q!F$7 -> 0 | G7: =q!G7-q!G$7 -> 0 | H7: =q!H7-q!H$7 -> 0 | I7: =q!I7-q!I$7 -> 0 | J7: =q!J7-q!J$7 -> 0 | K7: =q!K7-q!K$7 -> 0 | L7: =q!L7-q!L$7 -> 0 | M7: =q!M7-q!M$7 -> 0 | N7: =q!N7-q!N$7 -> 0 | O7: =q!O7-q!O$7 -> 0 | P7: =q!P7-q!P$7 -> 0
A8: 0.15 | D8: 15 | E8: =q!E8-q!E$8 -> 0 | F8: =q!F8-q!F$8 -> 0 | G8: =q!G8-q!G$8 -> 0 | H8: =q!H8-q!H$8 -> 0 | I8: =q!I8-q!I$8 -> 0 | J8: =q!J8-q!J$8 -> 0 | K8: =q!K8-q!K$8 -> 0 | L8: =q!L8-q!L$8 -> 0 | M8: =q!M8-q!M$8 -> 0 | N8: =q!N8-q!N$8 -> 0 | O8: =q!O8-q!O$8 -> 0 | P8: =q!P8-q!P$8 -> 0
A9: 0.2 | D9: 20 | E9: =q!E9-q!E$9 -> 0 | F9: =q!F9-q!F$9 -> 0 | G9: =q!G9-q!G$9 -> 0 | H9: =q!H9-q!H$9 -> 0 | I9: =q!I9-q!I$9 -> 0 | J9: =q!J9-q!J$9 -> 0 | K9: =q!K9-q!K$9 -> 0 | L9: =q!L9-q!L$9 -> 0 | M9: =q!M9-q!M$9 -> 0 | N9: =q!N9-q!N$9 -> 0 | O9: =q!O9-q!O$9 -> 0 | P9: =q!P9-q!P$9 -> 0
A10: 0.3 | D10: 30 | E10: =q!E10-q!E$10 -> 0 | F10: =q!F10-q!F$10 -> 0 | G10: =q!G10-q!G$10 -> 0 | H10: =q!H10-q!H$10 -> 0 | I10: =q!I10-q!I$10 -> 0 | J10: =q!J10-q!J$10 -> 0 | K10: =q!K10-q!K$10 -> 0 | L10: =q!L10-q!L$10 -> 0 | M10: =q!M10-q!M$10 -> 0 | N10: =q!N10-q!N$10 -> 0 | O10: =q!O10-q!O$10 -> 0 | P10: =q!P10-q!P$10 -> 0
A11: 0.4 | D11: 40 | E11: =q!E11-q!E$11 -> 0 | F11: =q!F11-q!F$11 -> 0 | G11: =q!G11-q!G$11 -> 0 | H11: =q!H11-q!H$11 -> 0 | I11: =q!I11-q!I$11 -> 0 | J11: =q!J11-q!J$11 -> 0 | K11: =q!K11-q!K$11 -> 0 | L11: =q!L11-q!L$11 -> 0 | M11: =q!M11-q!M$11 -> 0 | N11: =q!N11-q!N$11 -> 0 | O11: =q!O11-q!O$11 -> 0 | P11: =q!P11-q!P$11 -> 0
A12: 0.5 | D12: 50 | E12: =q!E12-q!E$12 -> 0 | F12: =q!F12-q!F$12 -> 0 | G12: =q!G12-q!G$12 -> 0 | H12: =q!H12-q!H$12 -> 0 | I12: =q!I12-q!I$12 -> 0 | J12: =q!J12-q!J$12 -> 0 | K12: =q!K12-q!K$12 -> 0 | L12: =q!L12-q!L$12 -> 0 | M12: =q!M12-q!M$12 -> 0 | N12: =q!N12-q!N$12 -> 0 | O12: =q!O12-q!O$12 -> 0 | P12: =q!P12-q!P$12 -> 0
A13: 0.6 | D13: 60 | E13: =q!E13-q!E$13 -> 0 | F13: =q!F13-q!F$13 -> 0 | G13: =q!G13-q!G$13 -> 0 | H13: =q!H13-q!H$13 -> 0 | I13: =q!I13-q!I$13 -> 0 | J13: =q!J13-q!J$13 -> 0 | K13: =q!K13-q!K$13 -> 0 | L13: =q!L13-q!L$13 -> 0 | M13: =q!M13-q!M$13 -> 0 | N13: =q!N13-q!N$13 -> 0 | O13: =q!O13-q!O$13 -> 0 | P13: =q!P13-q!P$13 -> 0
A14: 0.7 | D14: 70 | E14: =q!E14-q!E$14 -> 0 | F14: =q!F14-q!F$14 -> 0 | G14: =q!G14-q!G$14 -> 0 | H14: =q!H14-q!H$14 -> 0 | I14: =q!I14-q!I$14 -> 0 | J14: =q!J14-q!J$14 -> 0 | K14: =q!K14-q!K$14 -> 0 | L14: =q!L14-q!L$14 -> 0 | M14: =q!M14-q!M$14 -> 0 | N14: =q!N14-q!N$14 -> 0 | O14: =q!O14-q!O$14 -> 0 | P14: =q!P14-q!P$14 -> 0
A15: 0.8 | D15: 80 | E15: =q!E15-q!E$15 -> 0 | F15: =q!F15-q!F$15 -> 0 | G15: =q!G15-q!G$15 -> 0 | H15: =q!H15-q!H$15 -> 0 | I15: =q!I15-q!I$15 -> 0 | J15: =q!J15-q!J$15 -> 0 | K15: =q!K15-q!K$15 -> 0 | L15: =q!L15-q!L$15 -> 0 | M15: =q!M15-q!M$15 -> 0 | N15: =q!N15-q!N$15 -> 0 | O15: =q!O15-q!O$15 -> 0 | P15: =q!P15-q!P$15 -> 0
A16: 0.85 | D16: 85 | E16: =q!E16-q!E$16 -> 0 | F16: =q!F16-q!F$16 -> 0 | G16: =q!G16-q!G$16 -> 0 | H16: =q!H16-q!H$16 -> 0 | I16: =q!I16-q!I$16 -> 0 | J16: =q!J16-q!J$16 -> 0 | K16: =q!K16-q!K$16 -> 0 | L16: =q!L16-q!L$16 -> 0 | M16: =q!M16-q!M$16 -> 0 | N16: =q!N16-q!N$16 -> 0 | O16: =q!O16-q!O$16 -> 0 | P16: =q!P16-q!P$16 -> 0
A17: 0.9 | D17: 90 | E17: =q!E17-q!E$17 -> 0 | F17: =q!F17-q!F$17 -> 0 | G17: =q!G17-q!G$17 -> 0 | H17: =q!H17-q!H$17 -> 0 | I17: =q!I17-q!I$17 -> 0 | J17: =q!J17-q!J$17 -> 0 | K17: =q!K17-q!K$17 -> 0 | L17: =q!L17-q!L$17 -> 0 | M17: =q!M17-q!M$17 -> 0 | N17: =q!N17-q!N$17 -> 0 | O17: =q!O17-q!O$17 -> 0 | P17: =q!P17-q!P$17 -> 0
A18: 0.95 | D18: 95 | E18: =q!E18-q!E$18 -> 0 | F18: =q!F18-q!F$18 -> 0 | G18: =q!G18-q!G$18 -> 0 | H18: =q!H18-q!H$18 -> 0 | I18: =q!I18-q!I$18 -> 0 | J18: =q!J18-q!J$18 -> 0 | K18: =q!K18-q!K$18 -> 0 | L18: =q!L18-q!L$18 -> 0 | M18: =q!M18-q!M$18 -> 0 | N18: =q!N18-q!N$18 -> 0 | O18: =q!O18-q!O$18 -> 0 | P18: =q!P18-q!P$18 -> 0
A19: 0.99 | D19: 99 | E19: =q!E19-q!E$19 -> 0 | F19: =q!F19-q!F$19 -> 0 | G19: =q!G19-q!G$19 -> 0 | H19: =q!H19-q!H$19 -> 0 | I19: =q!I19-q!I$19 -> 0 | J19: =q!J19-q!J$19 -> 0 | K19: =q!K19-q!K$19 -> 0 | L19: =q!L19-q!L$19 -> 0 | M19: =q!M19-q!M$19 -> 0 | N19: =q!N19-q!N$19 -> 0 | O19: =q!O19-q!O$19 -> 0 | P19: =q!P19-q!P$19 -> 0
A20: 0.999 | D20: 99.5 | E20: =q!E20-q!E$20 -> 0 | F20: =q!F20-q!F$20 -> 0 | G20: =q!G20-q!G$20 -> 0 | H20: =q!H20-q!H$20 -> 0 | I20: =q!I20-q!I$20 -> 0 | J20: =q!J20-q!J$20 -> 0 | K20: =q!K20-q!K$20 -> 0 | L20: =q!L20-q!L$20 -> 0 | M20: =q!M20-q!M$20 -> 0 | N20: =q!N20-q!N$20 -> 0 | O20: =q!O20-q!O$20 -> 0 | P20: =q!P20-q!P$20 -> 0
A22: =q!A22 -> NATURAL
B23: Array Parameter | E23: Jan | F23: Feb | G23: Mar | H23: Apr | I23: May | J23: Jun | K23: Jul | L23: Aug | M23: Sep | N23: Oct | O23: Nov | P23: Dec
A24: 0.001 | B24: 0.001 | D24: 0.1 | E24: =q!E24-q!E$4 -> -15.4 | F24: =q!F24-q!F$4 -> 3.29 | G24: =q!G24-q!G$4 -> -5 | H24: =q!H24-q!H$4 -> 7.58 | I24: =q!I24-q!I$4 -> 9.94 | J24: =q!J24-q!J$4 -> 13.73 | K24: =q!K24-q!K$4 -> 12.72 | L24: =q!L24-q!L$4 -> 4.63 | M24: =q!M24-q!M$4 -> 3.51 | N24: =q!N24-q!N$4 -> -16.12 | O24: =q!O24-q!O$4 -> -1.87 | P24: =q!P24-q!P$4 -> -3.35
A25: 0.01 | B25: 0.01 | D25: 1 | E25: =q!E25-q!E$5 -> -7.17 | F25: =q!F25-q!F$5 -> 3.66 | G25: =q!G25-q!G$5 -> -15.48 | H25: =q!H25-q!H$5 -> 8.97 | I25: =q!I25-q!I$5 -> 11.68 | J25: =q!J25-q!J$5 -> 11.9 | K25: =q!K25-q!K$5 -> 6.09 | L25: =q!L25-q!L$5 -> 2.94 | M25: =q!M25-q!M$5 -> 3.28 | N25: =q!N25-q!N$5 -> 0.53 | O25: =q!O25-q!O$5 -> -0.73 | P25: =q!P25-q!P$5 -> -3.99
A26: 0.05 | B26: 0.05 | D26: 5 | E26: =q!E26-q!E$6 -> 0.632 | F26: =q!F26-q!F$6 -> 2.6145 | G26: =q!G26-q!G$6 -> 4.339 | H26: =q!H26-q!H$6 -> 16.2305 | I26: =q!I26-q!I$6 -> 28.32 | J26: =q!J26-q!J$6 -> 14.9465 | K26: =q!K26-q!K$6 -> 8.1665 | L26: =q!L26-q!L$6 -> 5.0645 | M26: =q!M26-q!M$6 -> 3.706 | N26: =q!N26-q!N$6 -> 2.3945 | O26: =q!O26-q!O$6 -> 2.6455 | P26: =q!P26-q!P$6 -> -2.489
A27: 0.1 | B27: 0.1 | D27: 10 | E27: =q!E27-q!E$7 -> 2.688 | F27: =q!F27-q!F$7 -> 3.058 | G27: =q!G27-q!G$7 -> 5.451 | H27: =q!H27-q!H$7 -> 9.151 | I27: =q!I27-q!I$7 -> 11.867 | J27: =q!J27-q!J$7 -> 11.558 | K27: =q!K27-q!K$7 -> 9.723 | L27: =q!L27-q!L$7 -> 5.567 | M27: =q!M27-q!M$7 -> 3.534 | N27: =q!N27-q!N$7 -> 2.302 | O27: =q!O27-q!O$7 -> 2.763 | P27: =q!P27-q!P$7 -> 0.468
A28: 0.15 | B28: 0.15 | D28: 15 | E28: =q!E28-q!E$8 -> 2.25 | F28: =q!F28-q!F$8 -> 3.1615 | G28: =q!G28-q!G$8 -> 6.67 | H28: =q!H28-q!H$8 -> 7.807 | I28: =q!I28-q!I$8 -> 10.2125 | J28: =q!J28-q!J$8 -> 11.287 | K28: =q!K28-q!K$8 -> 6.414 | L28: =q!L28-q!L$8 -> 5.1175 | M28: =q!M28-q!M$8 -> 3.3295 | N28: =q!N28-q!N$8 -> 2.4465 | O28: =q!O28-q!O$8 -> 3.069 | P28: =q!P28-q!P$8 -> 1.3555
A29: 0.2 | B29: 0.2 | D29: 20 | E29: =q!E29-q!E$9 -> 2.258 | F29: =q!F29-q!F$9 -> 3.232 | G29: =q!G29-q!G$9 -> 5.398 | H29: =q!H29-q!H$9 -> 8.396 | I29: =q!I29-q!I$9 -> 10.974 | J29: =q!J29-q!J$9 -> 7.99 | K29: =q!K29-q!K$9 -> 8.152 | L29: =q!L29-q!L$9 -> 5.114 | M29: =q!M29-q!M$9 -> 3.28 | N29: =q!N29-q!N$9 -> 2.442 | O29: =q!O29-q!O$9 -> 2.958 | P29: =q!P29-q!P$9 -> 1.782
A30: 0.3 | B30: 0.3 | D30: 30 | E30: =q!E30-q!E$10 -> 2.238 | F30: =q!F30-q!F$10 -> 3.484 | G30: =q!G30-q!G$10 -> 4.743 | H30: =q!H30-q!H$10 -> 8.222 | I30: =q!I30-q!I$10 -> 6.107 | J30: =q!J30-q!J$10 -> 6.329 | K30: =q!K30-q!K$10 -> 7.336 | L30: =q!L30-q!L$10 -> 4.781 | M30: =q!M30-q!M$10 -> 3.232 | N30: =q!N30-q!N$10 -> 2.81 | O30: =q!O30-q!O$10 -> 3.156 | P30: =q!P30-q!P$10 -> 2.22
A31: 0.4 | B31: 0.4 | D31: 40 | E31: =q!E31-q!E$11 -> 2.04 | F31: =q!F31-q!F$11 -> 2.92 | G31: =q!G31-q!G$11 -> 4.406 | H31: =q!H31-q!H$11 -> 6.576 | I31: =q!I31-q!I$11 -> 7.61 | J31: =q!J31-q!J$11 -> 4.996 | K31: =q!K31-q!K$11 -> 7.01 | L31: =q!L31-q!L$11 -> 4.182 | M31: =q!M31-q!M$11 -> 3.616 | N31: =q!N31-q!N$11 -> 2.858 | O31: =q!O31-q!O$11 -> 3.082 | P31: =q!P31-q!P$11 -> 2.35
A32: 0.5 | B32: 0.5 | D32: 50 | E32: =q!E32-q!E$12 -> 1.905 | F32: =q!F32-q!F$12 -> 2.8 | G32: =q!G32-q!G$12 -> 4.05 | H32: =q!H32-q!H$12 -> 6.11 | I32: =q!I32-q!I$12 -> 8.3 | J32: =q!J32-q!J$12 -> 4.91 | K32: =q!K32-q!K$12 -> 6.33 | L32: =q!L32-q!L$12 -> 3.56 | M32: =q!M32-q!M$12 -> 3.62 | N32: =q!N32-q!N$12 -> 2.75 | O32: =q!O32-q!O$12 -> 2.85 | P32: =q!P32-q!P$12 -> 2.245
A33: 0.6 | B33: 0.6 | D33: 60 | E33: =q!E33-q!E$13 -> 1.858 | F33: =q!F33-q!F$13 -> 2.456 | G33: =q!G33-q!G$13 -> 3.544 | H33: =q!H33-q!H$13 -> 5.256 | I33: =q!I33-q!I$13 -> 6.346 | J33: =q!J33-q!J$13 -> 4.162 | K33: =q!K33-q!K$13 -> 5.226 | L33: =q!L33-q!L$13 -> 3.204 | M33: =q!M33-q!M$13 -> 3.826 | N33: =q!N33-q!N$13 -> 2.93 | O33: =q!O33-q!O$13 -> 2.738 | P33: =q!P33-q!P$13 -> 2.05
A34: 0.7 | B34: 0.7 | D34: 70 | E34: =q!E34-q!E$14 -> 1.796 | F34: =q!F34-q!F$14 -> 2.221 | G34: =q!G34-q!G$14 -> 3.186 | H34: =q!H34-q!H$14 -> 4.152 | I34: =q!I34-q!I$14 -> 5.525 | J34: =q!J34-q!J$14 -> 3.923 | K34: =q!K34-q!K$14 -> 4.537 | L34: =q!L34-q!L$14 -> 3.56 | M34: =q!M34-q!M$14 -> 3.579 | N34: =q!N34-q!N$14 -> 2.803 | O34: =q!O34-q!O$14 -> 2.55 | P34: =q!P34-q!P$14 -> 1.823
A35: 0.8 | B35: 0.8 | D35: 80 | E35: =q!E35-q!E$15 -> 1.582 | F35: =q!F35-q!F$15 -> 1.964 | G35: =q!G35-q!G$15 -> 2.594 | H35: =q!H35-q!H$15 -> 4.022 | I35: =q!I35-q!I$15 -> 4.878 | J35: =q!J35-q!J$15 -> 3.212 | K35: =q!K35-q!K$15 -> 4.352 | L35: =q!L35-q!L$15 -> 3.478 | M35: =q!M35-q!M$15 -> 3.242 | N35: =q!N35-q!N$15 -> 2.652 | O35: =q!O35-q!O$15 -> 2.206 | P35: =q!P35-q!P$15 -> 1.692
A36: 0.85 | B36: 0.85 | D36: 85 | E36: =q!E36-q!E$16 -> 1.5105 | F36: =q!F36-q!F$16 -> 1.802 | G36: =q!G36-q!G$16 -> 2.309 | H36: =q!H36-q!H$16 -> 3.44 | I36: =q!I36-q!I$16 -> 4.4835 | J36: =q!J36-q!J$16 -> 3.2785 | K36: =q!K36-q!K$16 -> 4.445 | L36: =q!L36-q!L$16 -> 3.4705 | M36: =q!M36-q!M$16 -> 3.1365 | N36: =q!N36-q!N$16 -> 2.57 | O36: =q!O36-q!O$16 -> 2.05 | P36: =q!P36-q!P$16 -> 1.727
A37: 0.9 | B37: 0.9 | D37: 90 | E37: =q!E37-q!E$17 -> 1.559 | F37: =q!F37-q!F$17 -> 1.633 | G37: =q!G37-q!G$17 -> 2.214 | H37: =q!H37-q!H$17 -> 2.883 | I37: =q!I37-q!I$17 -> 3.796 | J37: =q!J37-q!J$17 -> 2.924 | K37: =q!K37-q!K$17 -> 3.952 | L37: =q!L37-q!L$17 -> 3.18 | M37: =q!M37-q!M$17 -> 2.976 | N37: =q!N37-q!N$17 -> 2.523 | O37: =q!O37-q!O$17 -> 1.947 | P37: =q!P37-q!P$17 -> 1.739
A38: 0.95 | B38: 0.95 | D38: 95 | E38: =q!E38-q!E$18 -> 1.303 | F38: =q!F38-q!F$18 -> 1.4755 | G38: =q!G38-q!G$18 -> 1.7395 | H38: =q!H38-q!H$18 -> 2.461 | I38: =q!I38-q!I$18 -> 3.114 | J38: =q!J38-q!J$18 -> 3.022 | K38: =q!K38-q!K$18 -> 3.2385 | L38: =q!L38-q!L$18 -> 2.6395 | M38: =q!M38-q!M$18 -> 2.3165 | N38: =q!N38-q!N$18 -> 1.9255 | O38: =q!O38-q!O$18 -> 1.692 | P38: =q!P38-q!P$18 -> 1.5345
A39: 0.99 | B39: 0.99 | D39: 99 | E39: =q!E39-q!E$19 -> 1.2249 | F39: =q!F39-q!F$19 -> 1.153 | G39: =q!G39-q!G$19 -> 1.1374 | H39: =q!H39-q!H$19 -> 1.8305 | I39: =q!I39-q!I$19 -> 2.3968 | J39: =q!J39-q!J$19 -> 2.4668 | K39: =q!K39-q!K$19 -> 2.2384 | L39: =q!L39-q!L$19 -> 1.5646 | M39: =q!M39-q!M$19 -> 1.4028 | N39: =q!N39-q!N$19 -> 1.2965 | O39: =q!O39-q!O$19 -> 1.0756 | P39: =q!P39-q!P$19 -> 0.9691
A40: 0.999 | B40: 0.999 | D40: 99.5 | E40: =q!E40-q!E$20 -> 0.87 | F40: =q!F40-q!F$20 -> 0.88 | G40: =q!G40-q!G$20 -> 1.01 | H40: =q!H40-q!H$20 -> 1.33 | I40: =q!I40-q!I$20 -> 1.96 | J40: =q!J40-q!J$20 -> 2.03 | K40: =q!K40-q!K$20 -> 2.02 | L40: =q!L40-q!L$20 -> 1.51 | M40: =q!M40-q!M$20 -> 1.33 | N40: =q!N40-q!N$20 -> 1.16 | O40: =q!O40-q!O$20 -> 0.93 | P40: =q!P40-q!P$20 -> 0.96
A42: =q!A42 -> Sc 2A
A43: Array Parameter | E43: Jan | F43: Feb | G43: Mar | H43: Apr | I43: May | J43: Jun | K43: Jul | L43: Aug | M43: Sep | N43: Oct | O43: Nov | P43: Dec
A44: 0.001 | D44: 0.1 | E44: =q!E44-q!E$4 -> 7.25 | F44: =q!F44-q!F$4 -> 1.88 | G44: =q!G44-q!G$4 -> -9.73 | H44: =q!H44-q!H$4 -> 0 | I44: =q!I44-q!I$4 -> 0 | J44: =q!J44-q!J$4 -> 0 | K44: =q!K44-q!K$4 -> 0 | L44: =q!L44-q!L$4 -> 0 | M44: =q!M44-q!M$4 -> 0 | N44: =q!N44-q!N$4 -> -9.12 | O44: =q!O44-q!O$4 -> 0.8 | P44: =q!P44-q!P$4 -> 1.54
A45: 0.01 | D45: 1 | E45: =q!E45-q!E$5 -> -3.09 | F45: =q!F45-q!F$5 -> 1.24 | G45: =q!G45-q!G$5 -> -2.63 | H45: =q!H45-q!H$5 -> 0 | I45: =q!I45-q!I$5 -> 0 | J45: =q!J45-q!J$5 -> 0 | K45: =q!K45-q!K$5 -> 0 | L45: =q!L45-q!L$5 -> -0.09 | M45: =q!M45-q!M$5 -> 0.26 | N45: =q!N45-q!N$5 -> 0.88 | O45: =q!O45-q!O$5 -> -4.15 | P45: =q!P45-q!P$5 -> -0.29
A46: 0.05 | D46: 5 | E46: =q!E46-q!E$6 -> -0.7055 | F46: =q!F46-q!F$6 -> 1.4055 | G46: =q!G46-q!G$6 -> 2.6485 | H46: =q!H46-q!H$6 -> 2.826 | I46: =q!I46-q!I$6 -> -1.963 | J46: =q!J46-q!J$6 -> -0.584 | K46: =q!K46-q!K$6 -> 0 | L46: =q!L46-q!L$6 -> 0.6365 | M46: =q!M46-q!M$6 -> 0.0045 | N46: =q!N46-q!N$6 -> -0.006 | O46: =q!O46-q!O$6 -> -0.344 | P46: =q!P46-q!P$6 -> -4.9995
A47: 0.1 | D47: 10 | E47: =q!E47-q!E$7 -> 0.367 | F47: =q!F47-q!F$7 -> 0.247 | G47: =q!G47-q!G$7 -> 0.414 | H47: =q!H47-q!H$7 -> -0.336 | I47: =q!I47-q!I$7 -> -6.783 | J47: =q!J47-q!J$7 -> -0.552 | K47: =q!K47-q!K$7 -> 0 | L47: =q!L47-q!L$7 -> 0.156 | M47: =q!M47-q!M$7 -> 0.128 | N47: =q!N47-q!N$7 -> 0.123 | O47: =q!O47-q!O$7 -> -0.374 | P47: =q!P47-q!P$7 -> -2.024
A48: 0.15 | D48: 15 | E48: =q!E48-q!E$8 -> 0.108 | F48: =q!F48-q!F$8 -> 0.1425 | G48: =q!G48-q!G$8 -> 1.5635 | H48: =q!H48-q!H$8 -> 0.869 | I48: =q!I48-q!I$8 -> -0.116 | J48: =q!J48-q!J$8 -> -0.832 | K48: =q!K48-q!K$8 -> -0.0065 | L48: =q!L48-q!L$8 -> 0.985 | M48: =q!M48-q!M$8 -> 0.1165 | N48: =q!N48-q!N$8 -> 0.181 | O48: =q!O48-q!O$8 -> -0.0345 | P48: =q!P48-q!P$8 -> -1.238
A49: 0.2 | D49: 20 | E49: =q!E49-q!E$9 -> -0.002 | F49: =q!F49-q!F$9 -> 0.162 | G49: =q!G49-q!G$9 -> 1.134 | H49: =q!H49-q!H$9 -> -2.216 | I49: =q!I49-q!I$9 -> 0.11 | J49: =q!J49-q!J$9 -> -1.272 | K49: =q!K49-q!K$9 -> -1.076 | L49: =q!L49-q!L$9 -> 1.444 | M49: =q!M49-q!M$9 -> 0.194 | N49: =q!N49-q!N$9 -> 0.388 | O49: =q!O49-q!O$9 -> 0.006 | P49: =q!P49-q!P$9 -> -0.882
A50: 0.3 | D50: 30 | E50: =q!E50-q!E$10 -> 0.048 | F50: =q!F50-q!F$10 -> 0.182 | G50: =q!G50-q!G$10 -> 0.575 | H50: =q!H50-q!H$10 -> -0.613 | I50: =q!I50-q!I$10 -> -0.635 | J50: =q!J50-q!J$10 -> 1.059 | K50: =q!K50-q!K$10 -> -0.642 | L50: =q!L50-q!L$10 -> 0.864 | M50: =q!M50-q!M$10 -> -0.11 | N50: =q!N50-q!N$10 -> 0.532 | O50: =q!O50-q!O$10 -> 0.077 | P50: =q!P50-q!P$10 -> -0.361
A51: 0.4 | D51: 40 | E51: =q!E51-q!E$11 -> 0.024 | F51: =q!F51-q!F$11 -> 0.042 | G51: =q!G51-q!G$11 -> 0.686 | H51: =q!H51-q!H$11 -> 0.74 | I51: =q!I51-q!I$11 -> -0.536 | J51: =q!J51-q!J$11 -> 0.498 | K51: =q!K51-q!K$11 -> -1.818 | L51: =q!L51-q!L$11 -> 0.572 | M51: =q!M51-q!M$11 -> 0.05 | N51: =q!N51-q!N$11 -> 0.31 | O51: =q!O51-q!O$11 -> 0.082 | P51: =q!P51-q!P$11 -> -0.08
A52: 0.5 | D52: 50 | E52: =q!E52-q!E$12 -> 0.065 | F52: =q!F52-q!F$12 -> 0.07 | G52: =q!G52-q!G$12 -> 0.56 | H52: =q!H52-q!H$12 -> 0.125 | I52: =q!I52-q!I$12 -> -0.17 | J52: =q!J52-q!J$12 -> 0.065 | K52: =q!K52-q!K$12 -> -0.75 | L52: =q!L52-q!L$12 -> 0.54 | M52: =q!M52-q!M$12 -> -0.06 | N52: =q!N52-q!N$12 -> 0.375 | O52: =q!O52-q!O$12 -> 0.04 | P52: =q!P52-q!P$12 -> -0.05
A53: 0.6 | D53: 60 | E53: =q!E53-q!E$13 -> 0.014 | F53: =q!F53-q!F$13 -> 0.072 | G53: =q!G53-q!G$13 -> 0.526 | H53: =q!H53-q!H$13 -> 0.01 | I53: =q!I53-q!I$13 -> -0.426 | J53: =q!J53-q!J$13 -> 1.59 | K53: =q!K53-q!K$13 -> -0.3 | L53: =q!L53-q!L$13 -> 0.458 | M53: =q!M53-q!M$13 -> 0.07 | N53: =q!N53-q!N$13 -> 0.482 | O53: =q!O53-q!O$13 -> 0.05 | P53: =q!P53-q!P$13 -> -0.036
A54: 0.7 | D54: 70 | E54: =q!E54-q!E$14 -> 0.043 | F54: =q!F54-q!F$14 -> 0.043 | G54: =q!G54-q!G$14 -> 0.311 | H54: =q!H54-q!H$14 -> -0.077 | I54: =q!I54-q!I$14 -> -0.094 | J54: =q!J54-q!J$14 -> 1.139 | K54: =q!K54-q!K$14 -> -0.385 | L54: =q!L54-q!L$14 -> 0.732 | M54: =q!M54-q!M$14 -> 0.007 | N54: =q!N54-q!N$14 -> 0.21 | O54: =q!O54-q!O$14 -> 0.02 | P54: =q!P54-q!P$14 -> -0.067
A55: 0.8 | D55: 80 | E55: =q!E55-q!E$15 -> 0.052 | F55: =q!F55-q!F$15 -> 0 | G55: =q!G55-q!G$15 -> 0.088 | H55: =q!H55-q!H$15 -> -0.128 | I55: =q!I55-q!I$15 -> 0.008 | J55: =q!J55-q!J$15 -> 0.792 | K55: =q!K55-q!K$15 -> -0.228 | L55: =q!L55-q!L$15 -> 0.248 | M55: =q!M55-q!M$15 -> 0.024 | N55: =q!N55-q!N$15 -> 0.192 | O55: =q!O55-q!O$15 -> 0.022 | P55: =q!P55-q!P$15 -> -0.028
A56: 0.85 | D56: 85 | E56: =q!E56-q!E$16 -> 0.0535 | F56: =q!F56-q!F$16 -> -0.0435 | G56: =q!G56-q!G$16 -> 0.1135 | H56: =q!H56-q!H$16 -> -0.175 | I56: =q!I56-q!I$16 -> -0.0475 | J56: =q!J56-q!J$16 -> 0.957 | K56: =q!K56-q!K$16 -> -0.0165 | L56: =q!L56-q!L$16 -> 0.097 | M56: =q!M56-q!M$16 -> 0.0065 | N56: =q!N56-q!N$16 -> 0.1195 | O56: =q!O56-q!O$16 -> 0.0235 | P56: =q!P56-q!P$16 -> -0.048
A57: 0.9 | D57: 90 | E57: =q!E57-q!E$17 -> 0.026 | F57: =q!F57-q!F$17 -> -0.029 | G57: =q!G57-q!G$17 -> 0.02 | H57: =q!H57-q!H$17 -> -0.118 | I57: =q!I57-q!I$17 -> -0.018 | J57: =q!J57-q!J$17 -> 0.11 | K57: =q!K57-q!K$17 -> -0.03 | L57: =q!L57-q!L$17 -> 0.139 | M57: =q!M57-q!M$17 -> -0.009 | N57: =q!N57-q!N$17 -> 0.031 | O57: =q!O57-q!O$17 -> -0.006 | P57: =q!P57-q!P$17 -> -0.01
A58: 0.95 | D58: 95 | E58: =q!E58-q!E$18 -> 0.001 | F58: =q!F58-q!F$18 -> -0.0345 | G58: =q!G58-q!G$18 -> -0.0335 | H58: =q!H58-q!H$18 -> -0.0145 | I58: =q!I58-q!I$18 -> 0.0955 | J58: =q!J58-q!J$18 -> 0.0595 | K58: =q!K58-q!K$18 -> 0.0135 | L58: =q!L58-q!L$18 -> 0.045 | M58: =q!M58-q!M$18 -> -0.069 | N58: =q!N58-q!N$18 -> 0.0245 | O58: =q!O58-q!O$18 -> -0.0225 | P58: =q!P58-q!P$18 -> -0.0045
A59: 0.99 | D59: 99 | E59: =q!E59-q!E$19 -> -0.0228 | F59: =q!F59-q!F$19 -> -0.0082 | G59: =q!G59-q!G$19 -> -0.0909 | H59: =q!H59-q!H$19 -> -0.0364 | I59: =q!I59-q!I$19 -> -0.0283 | J59: =q!J59-q!J$19 -> 0.4035 | K59: =q!K59-q!K$19 -> 0.0464 | L59: =q!L59-q!L$19 -> -0.0463 | M59: =q!M59-q!M$19 -> -0.0309 | N59: =q!N59-q!N$19 -> 0.05 | O59: =q!O59-q!O$19 -> -0.0164 | P59: =q!P59-q!P$19 -> 0.01
A60: 0.999 | D60: 99.5 | E60: =q!E60-q!E$20 -> 0.05 | F60: =q!F60-q!F$20 -> 0.01 | G60: =q!G60-q!G$20 -> -0.1 | H60: =q!H60-q!H$20 -> 0 | I60: =q!I60-q!I$20 -> 0.09 | J60: =q!J60-q!J$20 -> 0.54 | K60: =q!K60-q!K$20 -> 0.01 | L60: =q!L60-q!L$20 -> -0.11 | M60: =q!M60-q!M$20 -> -0.04 | N60: =q!N60-q!N$20 -> 0.05 | O60: =q!O60-q!O$20 -> 0.02 | P60: =q!P60-q!P$20 -> 0.01
A62: =q!A62 -> Sc 2B
A63: Array Parameter | E63: Jan | F63: Feb | G63: Mar | H63: Apr | I63: May | J63: Jun | K63: Jul | L63: Aug | M63: Sep | N63: Oct | O63: Nov | P63: Dec
A64: 0.001 | D64: 0.1 | E64: =q!E64-q!E$4 -> 15.51 | F64: =q!F64-q!F$4 -> 1.2 | G64: =q!G64-q!G$4 -> -9.74 | H64: =q!H64-q!H$4 -> 0 | I64: =q!I64-q!I$4 -> 0 | J64: =q!J64-q!J$4 -> 0 | K64: =q!K64-q!K$4 -> 0 | L64: =q!L64-q!L$4 -> 0 | M64: =q!M64-q!M$4 -> 0 | N64: =q!N64-q!N$4 -> -18.27 | O64: =q!O64-q!O$4 -> -2.53 | P64: =q!P64-q!P$4 -> 1.89
A65: 0.01 | D65: 1 | E65: =q!E65-q!E$5 -> 21.6 | F65: =q!F65-q!F$5 -> 1.53 | G65: =q!G65-q!G$5 -> -13.38 | H65: =q!H65-q!H$5 -> 0 | I65: =q!I65-q!I$5 -> 0 | J65: =q!J65-q!J$5 -> 0 | K65: =q!K65-q!K$5 -> 0 | L65: =q!L65-q!L$5 -> 0.34 | M65: =q!M65-q!M$5 -> 0 | N65: =q!N65-q!N$5 -> -1.7 | O65: =q!O65-q!O$5 -> -1.74 | P65: =q!P65-q!P$5 -> 0.95
A66: 0.05 | D66: 5 | E66: =q!E66-q!E$6 -> 0.7675 | F66: =q!F66-q!F$6 -> 1.0425 | G66: =q!G66-q!G$6 -> -1.3295 | H66: =q!H66-q!H$6 -> 2.826 | I66: =q!I66-q!I$6 -> -1.963 | J66: =q!J66-q!J$6 -> 1.132 | K66: =q!K66-q!K$6 -> 0 | L66: =q!L66-q!L$6 -> 0.6695 | M66: =q!M66-q!M$6 -> -0.1905 | N66: =q!N66-q!N$6 -> -0.0595 | O66: =q!O66-q!O$6 -> 0 | P66: =q!P66-q!P$6 -> -3.991
A67: 0.1 | D67: 10 | E67: =q!E67-q!E$7 -> 0.397 | F67: =q!F67-q!F$7 -> 0.247 | G67: =q!G67-q!G$7 -> -0.135 | H67: =q!H67-q!H$7 -> -0.337 | I67: =q!I67-q!I$7 -> -3.025 | J67: =q!J67-q!J$7 -> -0.758 | K67: =q!K67-q!K$7 -> 0 | L67: =q!L67-q!L$7 -> 0.451 | M67: =q!M67-q!M$7 -> -0.099 | N67: =q!N67-q!N$7 -> 0.045 | O67: =q!O67-q!O$7 -> -0.27 | P67: =q!P67-q!P$7 -> -2.072
A68: 0.15 | D68: 15 | E68: =q!E68-q!E$8 -> 0.3235 | F68: =q!F68-q!F$8 -> 0.084 | G68: =q!G68-q!G$8 -> 0.162 | H68: =q!H68-q!H$8 -> 0.817 | I68: =q!I68-q!I$8 -> -0.0035 | J68: =q!J68-q!J$8 -> -0.936 | K68: =q!K68-q!K$8 -> -0.0065 | L68: =q!L68-q!L$8 -> 0.985 | M68: =q!M68-q!M$8 -> -0.043 | N68: =q!N68-q!N$8 -> 0.325 | O68: =q!O68-q!O$8 -> 0.0065 | P68: =q!P68-q!P$8 -> -1.372
A69: 0.2 | D69: 20 | E69: =q!E69-q!E$9 -> 0.112 | F69: =q!F69-q!F$9 -> 0.074 | G69: =q!G69-q!G$9 -> 0.204 | H69: =q!H69-q!H$9 -> -2.216 | I69: =q!I69-q!I$9 -> 0.102 | J69: =q!J69-q!J$9 -> 0.092 | K69: =q!K69-q!K$9 -> -1.076 | L69: =q!L69-q!L$9 -> 0.938 | M69: =q!M69-q!M$9 -> -0.01 | N69: =q!N69-q!N$9 -> 0.388 | O69: =q!O69-q!O$9 -> 0.04 | P69: =q!P69-q!P$9 -> -0.902
A70: 0.3 | D70: 30 | E70: =q!E70-q!E$10 -> 0.14 | F70: =q!F70-q!F$10 -> 0.306 | G70: =q!G70-q!G$10 -> 0.007 | H70: =q!H70-q!H$10 -> -0.972 | I70: =q!I70-q!I$10 -> -0.999 | J70: =q!J70-q!J$10 -> 1.158 | K70: =q!K70-q!K$10 -> -0.597 | L70: =q!L70-q!L$10 -> 0.543 | M70: =q!M70-q!M$10 -> -0.402 | N70: =q!N70-q!N$10 -> 0.478 | O70: =q!O70-q!O$10 -> 0.203 | P70: =q!P70-q!P$10 -> -0.367
A71: 0.4 | D71: 40 | E71: =q!E71-q!E$11 -> 0.098 | F71: =q!F71-q!F$11 -> 0.06 | G71: =q!G71-q!G$11 -> 0.508 | H71: =q!H71-q!H$11 -> 0.244 | I71: =q!I71-q!I$11 -> -0.818 | J71: =q!J71-q!J$11 -> 1.082 | K71: =q!K71-q!K$11 -> -1.6 | L71: =q!L71-q!L$11 -> 0.432 | M71: =q!M71-q!M$11 -> -0.02 | N71: =q!N71-q!N$11 -> 0.238 | O71: =q!O71-q!O$11 -> 0.09 | P71: =q!P71-q!P$11 -> -0.096
A72: 0.5 | D72: 50 | E72: =q!E72-q!E$12 -> 0.12 | F72: =q!F72-q!F$12 -> 0.055 | G72: =q!G72-q!G$12 -> 0.555 | H72: =q!H72-q!H$12 -> 0.125 | I72: =q!I72-q!I$12 -> -0.15 | J72: =q!J72-q!J$12 -> 1.405 | K72: =q!K72-q!K$12 -> -0.505 | L72: =q!L72-q!L$12 -> 0.185 | M72: =q!M72-q!M$12 -> -0.085 | N72: =q!N72-q!N$12 -> 0.265 | O72: =q!O72-q!O$12 -> 0.025 | P72: =q!P72-q!P$12 -> -0.045
A73: 0.6 | D73: 60 | E73: =q!E73-q!E$13 -> 0.08 | F73: =q!F73-q!F$13 -> 0.11 | G73: =q!G73-q!G$13 -> 0.31 | H73: =q!H73-q!H$13 -> -0.112 | I73: =q!I73-q!I$13 -> -0.426 | J73: =q!J73-q!J$13 -> 1.922 | K73: =q!K73-q!K$13 -> -0.11 | L73: =q!L73-q!L$13 -> 0.422 | M73: =q!M73-q!M$13 -> 0.014 | N73: =q!N73-q!N$13 -> 0.466 | O73: =q!O73-q!O$13 -> 0.032 | P73: =q!P73-q!P$13 -> -0.036
A74: 0.7 | D74: 70 | E74: =q!E74-q!E$14 -> 0.092 | F74: =q!F74-q!F$14 -> 0.056 | G74: =q!G74-q!G$14 -> 0.311 | H74: =q!H74-q!H$14 -> -0.092 | I74: =q!I74-q!I$14 -> -0.104 | J74: =q!J74-q!J$14 -> 1.327 | K74: =q!K74-q!K$14 -> -0.301 | L74: =q!L74-q!L$14 -> 0.954 | M74: =q!M74-q!M$14 -> 0.007 | N74: =q!N74-q!N$14 -> 0.196 | O74: =q!O74-q!O$14 -> -0.007 | P74: =q!P74-q!P$14 -> -0.084
A75: 0.8 | D75: 80 | E75: =q!E75-q!E$15 -> 0.09 | F75: =q!F75-q!F$15 -> 0 | G75: =q!G75-q!G$15 -> 0.12 | H75: =q!H75-q!H$15 -> -0.11 | I75: =q!I75-q!I$15 -> 0.006 | J75: =q!J75-q!J$15 -> 0.896 | K75: =q!K75-q!K$15 -> -0.254 | L75: =q!L75-q!L$15 -> 0.51 | M75: =q!M75-q!M$15 -> 0.004 | N75: =q!N75-q!N$15 -> 0.174 | O75: =q!O75-q!O$15 -> 0 | P75: =q!P75-q!P$15 -> -0.086
A76: 0.85 | D76: 85 | E76: =q!E76-q!E$16 -> 0.057 | F76: =q!F76-q!F$16 -> -0.0435 | G76: =q!G76-q!G$16 -> 0.1265 | H76: =q!H76-q!H$16 -> -0.149 | I76: =q!I76-q!I$16 -> -0.0265 | J76: =q!J76-q!J$16 -> 0.7975 | K76: =q!K76-q!K$16 -> -0.0335 | L76: =q!L76-q!L$16 -> 0.2245 | M76: =q!M76-q!M$16 -> -0.0035 | N76: =q!N76-q!N$16 -> 0.0935 | O76: =q!O76-q!O$16 -> -0.0335 | P76: =q!P76-q!P$16 -> -0.1835
A77: 0.9 | D77: 90 | E77: =q!E77-q!E$17 -> 0.009 | F77: =q!F77-q!F$17 -> -0.03 | G77: =q!G77-q!G$17 -> 0.021 | H77: =q!H77-q!H$17 -> -0.144 | I77: =q!I77-q!I$17 -> 0.005 | J77: =q!J77-q!J$17 -> -0.073 | K77: =q!K77-q!K$17 -> -0.003 | L77: =q!L77-q!L$17 -> 0.161 | M77: =q!M77-q!M$17 -> -0.01 | N77: =q!N77-q!N$17 -> 0.031 | O77: =q!O77-q!O$17 -> -0.206 | P77: =q!P77-q!P$17 -> -0.06
A78: 0.95 | D78: 95 | E78: =q!E78-q!E$18 -> -0.0255 | F78: =q!F78-q!F$18 -> -0.04 | G78: =q!G78-q!G$18 -> -0.06 | H78: =q!H78-q!H$18 -> -0.0145 | I78: =q!I78-q!I$18 -> 0.0955 | J78: =q!J78-q!J$18 -> 0.0595 | K78: =q!K78-q!K$18 -> 0.009 | L78: =q!L78-q!L$18 -> 0.1505 | M78: =q!M78-q!M$18 -> -0.11 | N78: =q!N78-q!N$18 -> 0.0245 | O78: =q!O78-q!O$18 -> -0.102 | P78: =q!P78-q!P$18 -> -0.02
A79: 0.99 | D79: 99 | E79: =q!E79-q!E$19 -> -0.0246 | F79: =q!F79-q!F$19 -> -0.0082 | G79: =q!G79-q!G$19 -> -0.1099 | H79: =q!H79-q!H$19 -> -0.04 | I79: =q!I79-q!I$19 -> -0.0283 | J79: =q!J79-q!J$19 -> 0.3863 | K79: =q!K79-q!K$19 -> 0.0928 | L79: =q!L79-q!L$19 -> 0.0356 | M79: =q!M79-q!M$19 -> -0.0636 | N79: =q!N79-q!N$19 -> 0.0618 | O79: =q!O79-q!O$19 -> -0.02 | P79: =q!P79-q!P$19 -> 0.01
A80: 0.999 | D80: 99.5 | E80: =q!E80-q!E$20 -> 0.03 | F80: =q!F80-q!F$20 -> 0.01 | G80: =q!G80-q!G$20 -> -0.21 | H80: =q!H80-q!H$20 -> -0.04 | I80: =q!I80-q!I$20 -> 0.09 | J80: =q!J80-q!J$20 -> 0.45 | K80: =q!K80-q!K$20 -> 0.02 | L80: =q!L80-q!L$20 -> -0.11 | M80: =q!M80-q!M$20 -> -0.1 | N80: =q!N80-q!N$20 -> 0.08 | O80: =q!O80-q!O$20 -> -0.02 | P80: =q!P80-q!P$20 -> 0.01
A82: =q!A82 -> Sc 3
A83: Array Parameter | E83: Jan | F83: Feb | G83: Mar | H83: Apr | I83: May | J83: Jun | K83: Jul | L83: Aug | M83: Sep | N83: Oct | O83: Nov | P83: Dec
A84: 0.001 | D84: 0.1 | E84: =q!E84-q!E$4 -> 19.37 | F84: =q!F84-q!F$4 -> 1.2 | G84: =q!G84-q!G$4 -> -9.74 | H84: =q!H84-q!H$4 -> 0 | I84: =q!I84-q!I$4 -> 0 | J84: =q!J84-q!J$4 -> 0 | K84: =q!K84-q!K$4 -> 0 | L84: =q!L84-q!L$4 -> 0 | M84: =q!M84-q!M$4 -> 0 | N84: =q!N84-q!N$4 -> 0.47 | O84: =q!O84-q!O$4 -> -5.37 | P84: =q!P84-q!P$4 -> -3.34
A85: 0.01 | D85: 1 | E85: =q!E85-q!E$5 -> -2.78 | F85: =q!F85-q!F$5 -> 0.83 | G85: =q!G85-q!G$5 -> -2.69 | H85: =q!H85-q!H$5 -> 0 | I85: =q!I85-q!I$5 -> 0 | J85: =q!J85-q!J$5 -> 0 | K85: =q!K85-q!K$5 -> 0 | L85: =q!L85-q!L$5 -> -0.77 | M85: =q!M85-q!M$5 -> 0 | N85: =q!N85-q!N$5 -> 0.78 | O85: =q!O85-q!O$5 -> -4.21 | P85: =q!P85-q!P$5 -> -4.34
A86: 0.05 | D86: 5 | E86: =q!E86-q!E$6 -> -0.0705 | F86: =q!F86-q!F$6 -> 0 | G86: =q!G86-q!G$6 -> -0.995 | H86: =q!H86-q!H$6 -> 2.9655 | I86: =q!I86-q!I$6 -> 0 | J86: =q!J86-q!J$6 -> -2.354 | K86: =q!K86-q!K$6 -> 0 | L86: =q!L86-q!L$6 -> -0.2385 | M86: =q!M86-q!M$6 -> -0.1905 | N86: =q!N86-q!N$6 -> 0.8095 | O86: =q!O86-q!O$6 -> -0.5945 | P86: =q!P86-q!P$6 -> -3.6155
A87: 0.1 | D87: 10 | E87: =q!E87-q!E$7 -> 0.34 | F87: =q!F87-q!F$7 -> 0 | G87: =q!G87-q!G$7 -> -0.579 | H87: =q!H87-q!H$7 -> -0.403 | I87: =q!I87-q!I$7 -> 0.84 | J87: =q!J87-q!J$7 -> -1.096 | K87: =q!K87-q!K$7 -> 0 | L87: =q!L87-q!L$7 -> 0 | M87: =q!M87-q!M$7 -> 0 | N87: =q!N87-q!N$7 -> 0.065 | O87: =q!O87-q!O$7 -> -0.416 | P87: =q!P87-q!P$7 -> -1.929
A88: 0.15 | D88: 15 | E88: =q!E88-q!E$8 -> 0.031 | F88: =q!F88-q!F$8 -> 0 | G88: =q!G88-q!G$8 -> 0.7065 | H88: =q!H88-q!H$8 -> 0.4305 | I88: =q!I88-q!I$8 -> 0.839 | J88: =q!J88-q!J$8 -> -1.5885 | K88: =q!K88-q!K$8 -> 0 | L88: =q!L88-q!L$8 -> 0.179 | M88: =q!M88-q!M$8 -> 0 | N88: =q!N88-q!N$8 -> 0.0265 | O88: =q!O88-q!O$8 -> -0.101 | P88: =q!P88-q!P$8 -> -1.1815
A89: 0.2 | D89: 20 | E89: =q!E89-q!E$9 -> -0.09 | F89: =q!F89-q!F$9 -> 0.07 | G89: =q!G89-q!G$9 -> 0.694 | H89: =q!H89-q!H$9 -> -0.29 | I89: =q!I89-q!I$9 -> 0.102 | J89: =q!J89-q!J$9 -> -1.714 | K89: =q!K89-q!K$9 -> 0.934 | L89: =q!L89-q!L$9 -> 0.324 | M89: =q!M89-q!M$9 -> 0 | N89: =q!N89-q!N$9 -> 0.108 | O89: =q!O89-q!O$9 -> -0.14 | P89: =q!P89-q!P$9 -> -0.878
A90: 0.3 | D90: 30 | E90: =q!E90-q!E$10 -> -0.047 | F90: =q!F90-q!F$10 -> 0.271 | G90: =q!G90-q!G$10 -> 0.495 | H90: =q!H90-q!H$10 -> -0.108 | I90: =q!I90-q!I$10 -> 0 | J90: =q!J90-q!J$10 -> 0.596 | K90: =q!K90-q!K$10 -> 0.295 | L90: =q!L90-q!L$10 -> 0.041 | M90: =q!M90-q!M$10 -> 0.115 | N90: =q!N90-q!N$10 -> 0.014 | O90: =q!O90-q!O$10 -> -0.05 | P90: =q!P90-q!P$10 -> -0.331
A91: 0.4 | D91: 40 | E91: =q!E91-q!E$11 -> 0 | F91: =q!F91-q!F$11 -> 0.064 | G91: =q!G91-q!G$11 -> 0.642 | H91: =q!H91-q!H$11 -> 0.626 | I91: =q!I91-q!I$11 -> 0.658 | J91: =q!J91-q!J$11 -> 0.072 | K91: =q!K91-q!K$11 -> -0.12 | L91: =q!L91-q!L$11 -> 0.09 | M91: =q!M91-q!M$11 -> 0.072 | N91: =q!N91-q!N$11 -> 0 | O91: =q!O91-q!O$11 -> -0.004 | P91: =q!P91-q!P$11 -> -0.02
A92: 0.5 | D92: 50 | E92: =q!E92-q!E$12 -> 0.02 | F92: =q!F92-q!F$12 -> 0.055 | G92: =q!G92-q!G$12 -> 0.32 | H92: =q!H92-q!H$12 -> 0.25 | I92: =q!I92-q!I$12 -> 0.66 | J92: =q!J92-q!J$12 -> 0.01 | K92: =q!K92-q!K$12 -> 0 | L92: =q!L92-q!L$12 -> 0.075 | M92: =q!M92-q!M$12 -> -0.045 | N92: =q!N92-q!N$12 -> 0.05 | O92: =q!O92-q!O$12 -> 0.005 | P92: =q!P92-q!P$12 -> 0.02
A93: 0.6 | D93: 60 | E93: =q!E93-q!E$13 -> 0 | F93: =q!F93-q!F$13 -> 0.052 | G93: =q!G93-q!G$13 -> -0.026 | H93: =q!H93-q!H$13 -> -0.192 | I93: =q!I93-q!I$13 -> 0.492 | J93: =q!J93-q!J$13 -> 0.364 | K93: =q!K93-q!K$13 -> 0.018 | L93: =q!L93-q!L$13 -> 0.214 | M93: =q!M93-q!M$13 -> -0.124 | N93: =q!N93-q!N$13 -> 0.106 | O93: =q!O93-q!O$13 -> 0.014 | P93: =q!P93-q!P$13 -> 0.016
A94: 0.7 | D94: 70 | E94: =q!E94-q!E$14 -> -0.007 | F94: =q!F94-q!F$14 -> 0.013 | G94: =q!G94-q!G$14 -> 0 | H94: =q!H94-q!H$14 -> -0.369 | I94: =q!I94-q!I$14 -> 0.251 | J94: =q!J94-q!J$14 -> 0 | K94: =q!K94-q!K$14 -> -0.013 | L94: =q!L94-q!L$14 -> 0.372 | M94: =q!M94-q!M$14 -> -0.083 | N94: =q!N94-q!N$14 -> 0.066 | O94: =q!O94-q!O$14 -> 0.003 | P94: =q!P94-q!P$14 -> 0.033
A95: 0.8 | D95: 80 | E95: =q!E95-q!E$15 -> 0.02 | F95: =q!F95-q!F$15 -> 0.03 | G95: =q!G95-q!G$15 -> -0.082 | H95: =q!H95-q!H$15 -> -0.068 | I95: =q!I95-q!I$15 -> -0.048 | J95: =q!J95-q!J$15 -> -0.096 | K95: =q!K95-q!K$15 -> -0.21 | L95: =q!L95-q!L$15 -> 0.264 | M95: =q!M95-q!M$15 -> -0.024 | N95: =q!N95-q!N$15 -> 0.014 | O95: =q!O95-q!O$15 -> 0.012 | P95: =q!P95-q!P$15 -> 0.086
A96: 0.85 | D96: 85 | E96: =q!E96-q!E$16 -> 0.0235 | F96: =q!F96-q!F$16 -> 0.07 | G96: =q!G96-q!G$16 -> -0.0265 | H96: =q!H96-q!H$16 -> -0.0855 | I96: =q!I96-q!I$16 -> -0.0395 | J96: =q!J96-q!J$16 -> 0.1585 | K96: =q!K96-q!K$16 -> -0.02 | L96: =q!L96-q!L$16 -> 0.097 | M96: =q!M96-q!M$16 -> 0 | N96: =q!N96-q!N$16 -> 0.0295 | O96: =q!O96-q!O$16 -> 0.0235 | P96: =q!P96-q!P$16 -> 0.0465
A97: 0.9 | D97: 90 | E97: =q!E97-q!E$17 -> 0.009 | F97: =q!F97-q!F$17 -> 0.018 | G97: =q!G97-q!G$17 -> -0.068 | H97: =q!H97-q!H$17 -> -0.041 | I97: =q!I97-q!I$17 -> 0.004 | J97: =q!J97-q!J$17 -> -0.297 | K97: =q!K97-q!K$17 -> -0.021 | L97: =q!L97-q!L$17 -> 0.015 | M97: =q!M97-q!M$17 -> -0.009 | N97: =q!N97-q!N$17 -> 0.003 | O97: =q!O97-q!O$17 -> 0.021 | P97: =q!P97-q!P$17 -> 0.153
A98: 0.95 | D98: 95 | E98: =q!E98-q!E$18 -> -0.039 | F98: =q!F98-q!F$18 -> 0.0155 | G98: =q!G98-q!G$18 -> -0.0755 | H98: =q!H98-q!H$18 -> 0.018 | I98: =q!I98-q!I$18 -> -0.0155 | J98: =q!J98-q!J$18 -> -0.107 | K98: =q!K98-q!K$18 -> 0 | L98: =q!L98-q!L$18 -> 0.0165 | M98: =q!M98-q!M$18 -> -0.0445 | N98: =q!N98-q!N$18 -> 0.019 | O98: =q!O98-q!O$18 -> 0.081 | P98: =q!P98-q!P$18 -> 0.0155
A99: 0.99 | D99: 99 | E99: =q!E99-q!E$19 -> -0.0337 | F99: =q!F99-q!F$19 -> 0.0436 | G99: =q!G99-q!G$19 -> -0.0754 | H99: =q!H99-q!H$19 -> 0 | I99: =q!I99-q!I$19 -> 0 | J99: =q!J99-q!J$19 -> -0.1638 | K99: =q!K99-q!K$19 -> 0 | L99: =q!L99-q!L$19 -> 0.0018 | M99: =q!M99-q!M$19 -> 0 | N99: =q!N99-q!N$19 -> 0.0455 | O99: =q!O99-q!O$19 -> 0.0455 | P99: =q!P99-q!P$19 -> 0
A100: 0.999 | D100: 99.5 | E100: =q!E100-q!E$20 -> 0.03 | F100: =q!F100-q!F$20 -> 0.08 | G100: =q!G100-q!G$20 -> -0.13 | H100: =q!H100-q!H$20 -> 0 | I100: =q!I100-q!I$20 -> 0 | J100: =q!J100-q!J$20 -> 0 | K100: =q!K100-q!K$20 -> 0 | L100: =q!L100-q!L$20 -> 0.02 | M100: =q!M100-q!M$20 -> 0 | N100: =q!N100-q!N$20 -> 0 | O100: =q!O100-q!O$20 -> 0 | P100: =q!P100-q!P$20 -> 0
A102: =q!A102 -> Sc 4A
A103: Array Parameter | E103: Jan | F103: Feb | G103: Mar | H103: Apr | I103: May | J103: Jun | K103: Jul | L103: Aug | M103: Sep | N103: Oct | O103: Nov | P103: Dec
A104: 0.001 | D104: 0.1 | E104: =q!E104-q!E$4 -> -17.42 | F104: =q!F104-q!F$4 -> -1.36 | G104: =q!G104-q!G$4 -> -11.62 | H104: =q!H104-q!H$4 -> -0.92 | I104: =q!I104-q!I$4 -> -0.84 | J104: =q!J104-q!J$4 -> -0.92 | K104: =q!K104-q!K$4 -> -0.89 | L104: =q!L104-q!L$4 -> -0.92 | M104: =q!M104-q!M$4 -> -0.89 | N104: =q!N104-q!N$4 -> -18.94 | O104: =q!O104-q!O$4 -> -6.03 | P104: =q!P104-q!P$4 -> -7.64
A105: 0.01 | D105: 1 | E105: =q!E105-q!E$5 -> -10.55 | F105: =q!F105-q!F$5 -> -2.83 | G105: =q!G105-q!G$5 -> -25.23 | H105: =q!H105-q!H$5 -> -0.93 | I105: =q!I105-q!I$5 -> -0.84 | J105: =q!J105-q!J$5 -> -0.92 | K105: =q!K105-q!K$5 -> -0.9 | L105: =q!L105-q!L$5 -> 0.46 | M105: =q!M105-q!M$5 -> -0.89 | N105: =q!N105-q!N$5 -> -2.3 | O105: =q!O105-q!O$5 -> -4.84 | P105: =q!P105-q!P$5 -> -7.57
A106: 0.05 | D106: 5 | E106: =q!E106-q!E$6 -> -2.6605 | F106: =q!F106-q!F$6 -> -2.3535 | G106: =q!G106-q!G$6 -> -4.4455 | H106: =q!H106-q!H$6 -> -0.318 | I106: =q!I106-q!I$6 -> -0.84 | J106: =q!J106-q!J$6 -> -2.6525 | K106: =q!K106-q!K$6 -> -0.9 | L106: =q!L106-q!L$6 -> -0.586 | M106: =q!M106-q!M$6 -> -1.0035 | N106: =q!N106-q!N$6 -> -0.7995 | O106: =q!O106-q!O$6 -> -1.033 | P106: =q!P106-q!P$6 -> -5.729
A107: 0.1 | D107: 10 | E107: =q!E107-q!E$7 -> -0.47 | F107: =q!F107-q!F$7 -> -1.33 | G107: =q!G107-q!G$7 -> -4.112 | H107: =q!H107-q!H$7 -> -2.084 | I107: =q!I107-q!I$7 -> -0.148 | J107: =q!J107-q!J$7 -> -2.016 | K107: =q!K107-q!K$7 -> -0.89 | L107: =q!L107-q!L$7 -> -0.836 | M107: =q!M107-q!M$7 -> -0.89 | N107: =q!N107-q!N$7 -> -0.87 | O107: =q!O107-q!O$7 -> -1.025 | P107: =q!P107-q!P$7 -> -2.622
A108: 0.15 | D108: 15 | E108: =q!E108-q!E$8 -> -0.463 | F108: =q!F108-q!F$8 -> -1.1865 | G108: =q!G108-q!G$8 -> -2.8475 | H108: =q!H108-q!H$8 -> -2.6985 | I108: =q!I108-q!I$8 -> -0.001 | J108: =q!J108-q!J$8 -> -2.8755 | K108: =q!K108-q!K$8 -> -0.8965 | L108: =q!L108-q!L$8 -> -1.111 | M108: =q!M108-q!M$8 -> -0.89 | N108: =q!N108-q!N$8 -> -0.9855 | O108: =q!O108-q!O$8 -> -0.624 | P108: =q!P108-q!P$8 -> -1.5585
A109: 0.2 | D109: 20 | E109: =q!E109-q!E$9 -> -0.388 | F109: =q!F109-q!F$9 -> -0.82 | G109: =q!G109-q!G$9 -> -1.778 | H109: =q!H109-q!H$9 -> -3.44 | I109: =q!I109-q!I$9 -> -0.174 | J109: =q!J109-q!J$9 -> -4.588 | K109: =q!K109-q!K$9 -> -1.224 | L109: =q!L109-q!L$9 -> -0.66 | M109: =q!M109-q!M$9 -> -0.898 | N109: =q!N109-q!N$9 -> -0.846 | O109: =q!O109-q!O$9 -> -0.508 | P109: =q!P109-q!P$9 -> -1.028
A110: 0.3 | D110: 30 | E110: =q!E110-q!E$10 -> -0.297 | F110: =q!F110-q!F$10 -> -0.15 | G110: =q!G110-q!G$10 -> -1.168 | H110: =q!H110-q!H$10 -> -2.314 | I110: =q!I110-q!I$10 -> -2.347 | J110: =q!J110-q!J$10 -> -1.867 | K110: =q!K110-q!K$10 -> -1.397 | L110: =q!L110-q!L$10 -> -0.907 | M110: =q!M110-q!M$10 -> -1.115 | N110: =q!N110-q!N$10 -> -0.909 | O110: =q!O110-q!O$10 -> -0.174 | P110: =q!P110-q!P$10 -> -0.424
A111: 0.4 | D111: 40 | E111: =q!E111-q!E$11 -> -0.246 | F111: =q!F111-q!F$11 -> -0.17 | G111: =q!G111-q!G$11 -> -0.698 | H111: =q!H111-q!H$11 -> -1.448 | I111: =q!I111-q!I$11 -> -0.78 | J111: =q!J111-q!J$11 -> -2.36 | K111: =q!K111-q!K$11 -> -1.33 | L111: =q!L111-q!L$11 -> -0.97 | M111: =q!M111-q!M$11 -> -0.89 | N111: =q!N111-q!N$11 -> -0.978 | O111: =q!O111-q!O$11 -> -0.094 | P111: =q!P111-q!P$11 -> -0.13
A112: 0.5 | D112: 50 | E112: =q!E112-q!E$12 -> -0.265 | F112: =q!F112-q!F$12 -> -0.07 | G112: =q!G112-q!G$12 -> -0.635 | H112: =q!H112-q!H$12 -> -1.14 | I112: =q!I112-q!I$12 -> -0.505 | J112: =q!J112-q!J$12 -> -2.36 | K112: =q!K112-q!K$12 -> -0.935 | L112: =q!L112-q!L$12 -> -1.05 | M112: =q!M112-q!M$12 -> -0.755 | N112: =q!N112-q!N$12 -> -0.815 | O112: =q!O112-q!O$12 -> -0.1 | P112: =q!P112-q!P$12 -> -0.09
A113: 0.6 | D113: 60 | E113: =q!E113-q!E$13 -> -0.17 | F113: =q!F113-q!F$13 -> -0.044 | G113: =q!G113-q!G$13 -> -0.522 | H113: =q!H113-q!H$13 -> -1.036 | I113: =q!I113-q!I$13 -> -1.162 | J113: =q!J113-q!J$13 -> -1.918 | K113: =q!K113-q!K$13 -> -0.55 | L113: =q!L113-q!L$13 -> -0.998 | M113: =q!M113-q!M$13 -> -0.218 | N113: =q!N113-q!N$13 -> -0.448 | O113: =q!O113-q!O$13 -> -0.05 | P113: =q!P113-q!P$13 -> -0.09
A114: 0.7 | D114: 70 | E114: =q!E114-q!E$14 -> -0.117 | F114: =q!F114-q!F$14 -> -0.027 | G114: =q!G114-q!G$14 -> -0.286 | H114: =q!H114-q!H$14 -> -0.776 | I114: =q!I114-q!I$14 -> -0.678 | J114: =q!J114-q!J$14 -> -1.464 | K114: =q!K114-q!K$14 -> -0.85 | L114: =q!L114-q!L$14 -> -0.687 | M114: =q!M114-q!M$14 -> -0.12 | N114: =q!N114-q!N$14 -> -0.317 | O114: =q!O114-q!O$14 -> -0.02 | P114: =q!P114-q!P$14 -> -0.137
A115: 0.8 | D115: 80 | E115: =q!E115-q!E$15 -> -0.084 | F115: =q!F115-q!F$15 -> -0.008 | G115: =q!G115-q!G$15 -> -0.172 | H115: =q!H115-q!H$15 -> -0.378 | I115: =q!I115-q!I$15 -> -0.56 | J115: =q!J115-q!J$15 -> -1.348 | K115: =q!K115-q!K$15 -> -0.446 | L115: =q!L115-q!L$15 -> -0.406 | M115: =q!M115-q!M$15 -> -0.04 | N115: =q!N115-q!N$15 -> -0.18 | O115: =q!O115-q!O$15 -> 0 | P115: =q!P115-q!P$15 -> -0.07
A116: 0.85 | D116: 85 | E116: =q!E116-q!E$16 -> -0.0695 | F116: =q!F116-q!F$16 -> 0.009 | G116: =q!G116-q!G$16 -> -0.073 | H116: =q!H116-q!H$16 -> -0.309 | I116: =q!I116-q!I$16 -> -0.399 | J116: =q!J116-q!J$16 -> -1.0285 | K116: =q!K116-q!K$16 -> -0.163 | L116: =q!L116-q!L$16 -> -0.399 | M116: =q!M116-q!M$16 -> -0.0135 | N116: =q!N116-q!N$16 -> -0.117 | O116: =q!O116-q!O$16 -> -0.0165 | P116: =q!P116-q!P$16 -> -0.1195
A117: 0.9 | D117: 90 | E117: =q!E117-q!E$17 -> -0.058 | F117: =q!F117-q!F$17 -> -0.039 | G117: =q!G117-q!G$17 -> -0.126 | H117: =q!H117-q!H$17 -> -0.234 | I117: =q!I117-q!I$17 -> -0.21 | J117: =q!J117-q!J$17 -> -1.09 | K117: =q!K117-q!K$17 -> -0.13 | L117: =q!L117-q!L$17 -> -0.32 | M117: =q!M117-q!M$17 -> -0.056 | N117: =q!N117-q!N$17 -> -0.09 | O117: =q!O117-q!O$17 -> -0.049 | P117: =q!P117-q!P$17 -> 0.029
A118: 0.95 | D118: 95 | E118: =q!E118-q!E$18 -> -0.079 | F118: =q!F118-q!F$18 -> -0.01 | G118: =q!G118-q!G$18 -> -0.119 | H118: =q!H118-q!H$18 -> -0.0655 | I118: =q!I118-q!I$18 -> -0.0345 | J118: =q!J118-q!J$18 -> -0.6655 | K118: =q!K118-q!K$18 -> -0.112 | L118: =q!L118-q!L$18 -> -0.1745 | M118: =q!M118-q!M$18 -> -0.0745 | N118: =q!N118-q!N$18 -> -0.0965 | O118: =q!O118-q!O$18 -> -0.0355 | P118: =q!P118-q!P$18 -> 0.0055
A119: 0.99 | D119: 99 | E119: =q!E119-q!E$19 -> -0.0637 | F119: =q!F119-q!F$19 -> -0.0273 | G119: =q!G119-q!G$19 -> -0.1909 | H119: =q!H119-q!H$19 -> -0.0564 | I119: =q!I119-q!I$19 -> 0 | J119: =q!J119-q!J$19 -> -0.1238 | K119: =q!K119-q!K$19 -> 0 | L119: =q!L119-q!L$19 -> -0.1964 | M119: =q!M119-q!M$19 -> -0.0591 | N119: =q!N119-q!N$19 -> 0 | O119: =q!O119-q!O$19 -> -0.0364 | P119: =q!P119-q!P$19 -> 0
A120: 0.999 | D120: 99.5 | E120: =q!E120-q!E$20 -> 0 | F120: =q!F120-q!F$20 -> 0 | G120: =q!G120-q!G$20 -> -0.2 | H120: =q!H120-q!H$20 -> -0.02 | I120: =q!I120-q!I$20 -> 0 | J120: =q!J120-q!J$20 -> 0.04 | K120: =q!K120-q!K$20 -> 0 | L120: =q!L120-q!L$20 -> -0.16 | M120: =q!M120-q!M$20 -> -0.05 | N120: =q!N120-q!N$20 -> 0 | O120: =q!O120-q!O$20 -> 0 | P120: =q!P120-q!P$20 -> 0
A122: =q!A122 -> Sc 4B
A123: Array Parameter | E123: Jan | F123: Feb | G123: Mar | H123: Apr | I123: May | J123: Jun | K123: Jul | L123: Aug | M123: Sep | N123: Oct | O123: Nov | P123: Dec
A124: 0.001 | D124: 0.1 | E124: =q!E124-q!E$4 -> -11.98 | F124: =q!F124-q!F$4 -> -1.44 | G124: =q!G124-q!G$4 -> -11.79 | H124: =q!H124-q!H$4 -> -1.44 | I124: =q!I124-q!I$4 -> -1.35 | J124: =q!J124-q!J$4 -> -1.01 | K124: =q!K124-q!K$4 -> -0.99 | L124: =q!L124-q!L$4 -> -1.04 | M124: =q!M124-q!M$4 -> -0.99 | N124: =q!N124-q!N$4 -> -19.98 | O124: =q!O124-q!O$4 -> -5.9 | P124: =q!P124-q!P$4 -> -5.72
A125: 0.01 | D125: 1 | E125: =q!E125-q!E$5 -> -9.3 | F125: =q!F125-q!F$5 -> -2.92 | G125: =q!G125-q!G$5 -> -25.27 | H125: =q!H125-q!H$5 -> -1.5 | I125: =q!I125-q!I$5 -> -1.34 | J125: =q!J125-q!J$5 -> -1 | K125: =q!K125-q!K$5 -> -1 | L125: =q!L125-q!L$5 -> 0.31 | M125: =q!M125-q!M$5 -> -0.96 | N125: =q!N125-q!N$5 -> -2.86 | O125: =q!O125-q!O$5 -> -4.81 | P125: =q!P125-q!P$5 -> -7.56
A126: 0.05 | D126: 5 | E126: =q!E126-q!E$6 -> -2.5635 | F126: =q!F126-q!F$6 -> -2.512 | G126: =q!G126-q!G$6 -> -4.6565 | H126: =q!H126-q!H$6 -> -1.005 | I126: =q!I126-q!I$6 -> -1.0965 | J126: =q!J126-q!J$6 -> -3.374 | K126: =q!K126-q!K$6 -> -1.0045 | L126: =q!L126-q!L$6 -> -0.8345 | M126: =q!M126-q!M$6 -> -1.019 | N126: =q!N126-q!N$6 -> -1.1255 | O126: =q!O126-q!O$6 -> -1.0205 | P126: =q!P126-q!P$6 -> -5.718
A127: 0.1 | D127: 10 | E127: =q!E127-q!E$7 -> -0.431 | F127: =q!F127-q!F$7 -> -1.154 | G127: =q!G127-q!G$7 -> -4.659 | H127: =q!H127-q!H$7 -> -2.094 | I127: =q!I127-q!I$7 -> -0.509 | J127: =q!J127-q!J$7 -> -2.116 | K127: =q!K127-q!K$7 -> -1.02 | L127: =q!L127-q!L$7 -> -1.058 | M127: =q!M127-q!M$7 -> -0.891 | N127: =q!N127-q!N$7 -> -1.355 | O127: =q!O127-q!O$7 -> -0.993 | P127: =q!P127-q!P$7 -> -2.619
A128: 0.15 | D128: 15 | E128: =q!E128-q!E$8 -> -0.43 | F128: =q!F128-q!F$8 -> -1.271 | G128: =q!G128-q!G$8 -> -2.93 | H128: =q!H128-q!H$8 -> -3.1515 | I128: =q!I128-q!I$8 -> -0.5175 | J128: =q!J128-q!J$8 -> -4.118 | K128: =q!K128-q!K$8 -> -1.02 | L128: =q!L128-q!L$8 -> -0.905 | M128: =q!M128-q!M$8 -> -0.9 | N128: =q!N128-q!N$8 -> -1.1175 | O128: =q!O128-q!O$8 -> -0.5845 | P128: =q!P128-q!P$8 -> -1.535
A129: 0.2 | D129: 20 | E129: =q!E129-q!E$9 -> -0.364 | F129: =q!F129-q!F$9 -> -0.832 | G129: =q!G129-q!G$9 -> -1.946 | H129: =q!H129-q!H$9 -> -3.628 | I129: =q!I129-q!I$9 -> -0.43 | J129: =q!J129-q!J$9 -> -4.594 | K129: =q!K129-q!K$9 -> -2.172 | L129: =q!L129-q!L$9 -> -0.688 | M129: =q!M129-q!M$9 -> -0.898 | N129: =q!N129-q!N$9 -> -1.06 | O129: =q!O129-q!O$9 -> -0.496 | P129: =q!P129-q!P$9 -> -1.01
A130: 0.3 | D130: 30 | E130: =q!E130-q!E$10 -> -0.267 | F130: =q!F130-q!F$10 -> -0.153 | G130: =q!G130-q!G$10 -> -1.264 | H130: =q!H130-q!H$10 -> -2.75 | I130: =q!I130-q!I$10 -> -2.37 | J130: =q!J130-q!J$10 -> -2.583 | K130: =q!K130-q!K$10 -> -1.407 | L130: =q!L130-q!L$10 -> -0.936 | M130: =q!M130-q!M$10 -> -1.115 | N130: =q!N130-q!N$10 -> -1.021 | O130: =q!O130-q!O$10 -> -0.174 | P130: =q!P130-q!P$10 -> -0.424
A131: 0.4 | D131: 40 | E131: =q!E131-q!E$11 -> -0.222 | F131: =q!F131-q!F$11 -> -0.176 | G131: =q!G131-q!G$11 -> -0.666 | H131: =q!H131-q!H$11 -> -1.52 | I131: =q!I131-q!I$11 -> -1.392 | J131: =q!J131-q!J$11 -> -3.136 | K131: =q!K131-q!K$11 -> -1.708 | L131: =q!L131-q!L$11 -> -1.074 | M131: =q!M131-q!M$11 -> -0.836 | N131: =q!N131-q!N$11 -> -1.036 | O131: =q!O131-q!O$11 -> -0.114 | P131: =q!P131-q!P$11 -> -0.126
A132: 0.5 | D132: 50 | E132: =q!E132-q!E$12 -> -0.225 | F132: =q!F132-q!F$12 -> -0.1 | G132: =q!G132-q!G$12 -> -0.635 | H132: =q!H132-q!H$12 -> -1.265 | I132: =q!I132-q!I$12 -> -0.73 | J132: =q!J132-q!J$12 -> -2.535 | K132: =q!K132-q!K$12 -> -1.09 | L132: =q!L132-q!L$12 -> -1.13 | M132: =q!M132-q!M$12 -> -0.7 | N132: =q!N132-q!N$12 -> -0.84 | O132: =q!O132-q!O$12 -> -0.12 | P132: =q!P132-q!P$12 -> -0.085
A133: 0.6 | D133: 60 | E133: =q!E133-q!E$13 -> -0.176 | F133: =q!F133-q!F$13 -> -0.044 | G133: =q!G133-q!G$13 -> -0.516 | H133: =q!H133-q!H$13 -> -1.084 | I133: =q!I133-q!I$13 -> -1.162 | J133: =q!J133-q!J$13 -> -1.822 | K133: =q!K133-q!K$13 -> -0.602 | L133: =q!L133-q!L$13 -> -0.998 | M133: =q!M133-q!M$13 -> -0.21 | N133: =q!N133-q!N$13 -> -0.494 | O133: =q!O133-q!O$13 -> -0.06 | P133: =q!P133-q!P$13 -> -0.102
A134: 0.7 | D134: 70 | E134: =q!E134-q!E$14 -> -0.154 | F134: =q!F134-q!F$14 -> -0.037 | G134: =q!G134-q!G$14 -> -0.286 | H134: =q!H134-q!H$14 -> -0.779 | I134: =q!I134-q!I$14 -> -0.731 | J134: =q!J134-q!J$14 -> -1.464 | K134: =q!K134-q!K$14 -> -0.833 | L134: =q!L134-q!L$14 -> -0.61 | M134: =q!M134-q!M$14 -> -0.11 | N134: =q!N134-q!N$14 -> -0.347 | O134: =q!O134-q!O$14 -> -0.05 | P134: =q!P134-q!P$14 -> -0.167
A135: 0.8 | D135: 80 | E135: =q!E135-q!E$15 -> -0.124 | F135: =q!F135-q!F$15 -> -0.014 | G135: =q!G135-q!G$15 -> -0.18 | H135: =q!H135-q!H$15 -> -0.354 | I135: =q!I135-q!I$15 -> -0.592 | J135: =q!J135-q!J$15 -> -1.39 | K135: =q!K135-q!K$15 -> -0.444 | L135: =q!L135-q!L$15 -> -0.39 | M135: =q!M135-q!M$15 -> -0.038 | N135: =q!N135-q!N$15 -> -0.18 | O135: =q!O135-q!O$15 -> -0.068 | P135: =q!P135-q!P$15 -> -0.166
A136: 0.85 | D136: 85 | E136: =q!E136-q!E$16 -> -0.133 | F136: =q!F136-q!F$16 -> 0.0025 | G136: =q!G136-q!G$16 -> -0.093 | H136: =q!H136-q!H$16 -> -0.2515 | I136: =q!I136-q!I$16 -> -0.346 | J136: =q!J136-q!J$16 -> -0.9185 | K136: =q!K136-q!K$16 -> -0.153 | L136: =q!L136-q!L$16 -> -0.389 | M136: =q!M136-q!M$16 -> -0.007 | N136: =q!N136-q!N$16 -> -0.117 | O136: =q!O136-q!O$16 -> -0.08 | P136: =q!P136-q!P$16 -> -0.133
A137: 0.9 | D137: 90 | E137: =q!E137-q!E$17 -> -0.091 | F137: =q!F137-q!F$17 -> -0.018 | G137: =q!G137-q!G$17 -> -0.138 | H137: =q!H137-q!H$17 -> -0.185 | I137: =q!I137-q!I$17 -> -0.138 | J137: =q!J137-q!J$17 -> -0.923 | K137: =q!K137-q!K$17 -> -0.089 | L137: =q!L137-q!L$17 -> -0.301 | M137: =q!M137-q!M$17 -> -0.057 | N137: =q!N137-q!N$17 -> -0.099 | O137: =q!O137-q!O$17 -> -0.16 | P137: =q!P137-q!P$17 -> -0.007
A138: 0.95 | D138: 95 | E138: =q!E138-q!E$18 -> -0.0745 | F138: =q!F138-q!F$18 -> -0.0045 | G138: =q!G138-q!G$18 -> -0.16 | H138: =q!H138-q!H$18 -> -0.022 | I138: =q!I138-q!I$18 -> -0.011 | J138: =q!J138-q!J$18 -> -0.589 | K138: =q!K138-q!K$18 -> -0.092 | L138: =q!L138-q!L$18 -> -0.1545 | M138: =q!M138-q!M$18 -> -0.0745 | N138: =q!N138-q!N$18 -> -0.0965 | O138: =q!O138-q!O$18 -> -0.0765 | P138: =q!P138-q!P$18 -> 0.0055
A139: 0.99 | D139: 99 | E139: =q!E139-q!E$19 -> -0.0473 | F139: =q!F139-q!F$19 -> 0.0036 | G139: =q!G139-q!G$19 -> -0.1909 | H139: =q!H139-q!H$19 -> -0.0564 | I139: =q!I139-q!I$19 -> 0.0373 | J139: =q!J139-q!J$19 -> -0.1147 | K139: =q!K139-q!K$19 -> 0 | L139: =q!L139-q!L$19 -> -0.1955 | M139: =q!M139-q!M$19 -> -0.0591 | N139: =q!N139-q!N$19 -> 0 | O139: =q!O139-q!O$19 -> -0.0364 | P139: =q!P139-q!P$19 -> 0
A140: 0.999 | D140: 99.5 | E140: =q!E140-q!E$20 -> -0.02 | F140: =q!F140-q!F$20 -> 0.04 | G140: =q!G140-q!G$20 -> -0.2 | H140: =q!H140-q!H$20 -> -0.02 | I140: =q!I140-q!I$20 -> 0.01 | J140: =q!J140-q!J$20 -> 0.04 | K140: =q!K140-q!K$20 -> 0 | L140: =q!L140-q!L$20 -> -0.15 | M140: =q!M140-q!M$20 -> -0.05 | N140: =q!N140-q!N$20 -> 0 | O140: =q!O140-q!O$20 -> 0 | P140: =q!P140-q!P$20 -> 0
A142: =q!A142 -> Sc 7
A143: Array Parameter | E143: Jan | F143: Feb | G143: Mar | H143: Apr | I143: May | J143: Jun | K143: Jul | L143: Aug | M143: Sep | N143: Oct | O143: Nov | P143: Dec
A144: 0.001 | D144: 0.1 | E144: =q!E144-q!E$4 -> -18.35 | F144: =q!F144-q!F$4 -> -1.6 | G144: =q!G144-q!G$4 -> -11.79 | H144: =q!H144-q!H$4 -> -1.44 | I144: =q!I144-q!I$4 -> -1.35 | J144: =q!J144-q!J$4 -> -1.01 | K144: =q!K144-q!K$4 -> -0.99 | L144: =q!L144-q!L$4 -> -1.04 | M144: =q!M144-q!M$4 -> -0.99 | N144: =q!N144-q!N$4 -> -18.55 | O144: =q!O144-q!O$4 -> -6.03 | P144: =q!P144-q!P$4 -> -5.55
A145: 0.01 | D145: 1 | E145: =q!E145-q!E$5 -> -10.18 | F145: =q!F145-q!F$5 -> -2.92 | G145: =q!G145-q!G$5 -> -25.27 | H145: =q!H145-q!H$5 -> -1.5 | I145: =q!I145-q!I$5 -> -1.34 | J145: =q!J145-q!J$5 -> -1 | K145: =q!K145-q!K$5 -> -1 | L145: =q!L145-q!L$5 -> 0.75 | M145: =q!M145-q!M$5 -> -0.96 | N145: =q!N145-q!N$5 -> -2.57 | O145: =q!O145-q!O$5 -> -4.85 | P145: =q!P145-q!P$5 -> -6.16
A146: 0.05 | D146: 5 | E146: =q!E146-q!E$6 -> -2.58 | F146: =q!F146-q!F$6 -> -3.375 | G146: =q!G146-q!G$6 -> -4.6565 | H146: =q!H146-q!H$6 -> -1.005 | I146: =q!I146-q!I$6 -> -1.0965 | J146: =q!J146-q!J$6 -> -3 | K146: =q!K146-q!K$6 -> -1.0045 | L146: =q!L146-q!L$6 -> -0.521 | M146: =q!M146-q!M$6 -> -1.085 | N146: =q!N146-q!N$6 -> -0.725 | O146: =q!O146-q!O$6 -> -1.4285 | P146: =q!P146-q!P$6 -> -5.718
A147: 0.1 | D147: 10 | E147: =q!E147-q!E$7 -> -0.524 | F147: =q!F147-q!F$7 -> -1.423 | G147: =q!G147-q!G$7 -> -4.659 | H147: =q!H147-q!H$7 -> -2.094 | I147: =q!I147-q!I$7 -> -3.83 | J147: =q!J147-q!J$7 -> -1.452 | K147: =q!K147-q!K$7 -> -1.02 | L147: =q!L147-q!L$7 -> -1.02 | M147: =q!M147-q!M$7 -> -0.891 | N147: =q!N147-q!N$7 -> -0.915 | O147: =q!O147-q!O$7 -> -1.1 | P147: =q!P147-q!P$7 -> -2.619
A148: 0.15 | D148: 15 | E148: =q!E148-q!E$8 -> -0.4435 | F148: =q!F148-q!F$8 -> -1.3045 | G148: =q!G148-q!G$8 -> -3.023 | H148: =q!H148-q!H$8 -> -2.2315 | I148: =q!I148-q!I$8 -> -1.29 | J148: =q!J148-q!J$8 -> -2.3345 | K148: =q!K148-q!K$8 -> -1.02 | L148: =q!L148-q!L$8 -> -1.291 | M148: =q!M148-q!M$8 -> -0.9 | N148: =q!N148-q!N$8 -> -1.049 | O148: =q!O148-q!O$8 -> -0.624 | P148: =q!P148-q!P$8 -> -1.5285
A149: 0.2 | D149: 20 | E149: =q!E149-q!E$9 -> -0.384 | F149: =q!F149-q!F$9 -> -0.86 | G149: =q!G149-q!G$9 -> -2.148 | H149: =q!H149-q!H$9 -> -3.626 | I149: =q!I149-q!I$9 -> -0.624 | J149: =q!J149-q!J$9 -> -3.17 | K149: =q!K149-q!K$9 -> -1.164 | L149: =q!L149-q!L$9 -> -1.088 | M149: =q!M149-q!M$9 -> -0.904 | N149: =q!N149-q!N$9 -> -1.092 | O149: =q!O149-q!O$9 -> -0.516 | P149: =q!P149-q!P$9 -> -1
A150: 0.3 | D150: 30 | E150: =q!E150-q!E$10 -> -0.27 | F150: =q!F150-q!F$10 -> -0.25 | G150: =q!G150-q!G$10 -> -1.56 | H150: =q!H150-q!H$10 -> -2.412 | I150: =q!I150-q!I$10 -> -1.129 | J150: =q!J150-q!J$10 -> -2.781 | K150: =q!K150-q!K$10 -> -1.414 | L150: =q!L150-q!L$10 -> -0.967 | M150: =q!M150-q!M$10 -> -0.933 | N150: =q!N150-q!N$10 -> -1.07 | O150: =q!O150-q!O$10 -> -0.174 | P150: =q!P150-q!P$10 -> -0.407
A151: 0.4 | D151: 40 | E151: =q!E151-q!E$11 -> -0.268 | F151: =q!F151-q!F$11 -> -0.226 | G151: =q!G151-q!G$11 -> -0.996 | H151: =q!H151-q!H$11 -> -1.556 | I151: =q!I151-q!I$11 -> -1.342 | J151: =q!J151-q!J$11 -> -3.364 | K151: =q!K151-q!K$11 -> -1.69 | L151: =q!L151-q!L$11 -> -0.922 | M151: =q!M151-q!M$11 -> -0.832 | N151: =q!N151-q!N$11 -> -1.022 | O151: =q!O151-q!O$11 -> -0.144 | P151: =q!P151-q!P$11 -> -0.12
A152: 0.5 | D152: 50 | E152: =q!E152-q!E$12 -> -0.27 | F152: =q!F152-q!F$12 -> -0.12 | G152: =q!G152-q!G$12 -> -0.765 | H152: =q!H152-q!H$12 -> -1.67 | I152: =q!I152-q!I$12 -> -0.965 | J152: =q!J152-q!J$12 -> -3.69 | K152: =q!K152-q!K$12 -> -1.155 | L152: =q!L152-q!L$12 -> -1.13 | M152: =q!M152-q!M$12 -> -0.665 | N152: =q!N152-q!N$12 -> -0.825 | O152: =q!O152-q!O$12 -> -0.13 | P152: =q!P152-q!P$12 -> -0.075
A153: 0.6 | D153: 60 | E153: =q!E153-q!E$13 -> -0.23 | F153: =q!F153-q!F$13 -> -0.07 | G153: =q!G153-q!G$13 -> -0.52 | H153: =q!H153-q!H$13 -> -1.15 | I153: =q!I153-q!I$13 -> -1.21 | J153: =q!J153-q!J$13 -> -2.006 | K153: =q!K153-q!K$13 -> -0.662 | L153: =q!L153-q!L$13 -> -1.054 | M153: =q!M153-q!M$13 -> -0.194 | N153: =q!N153-q!N$13 -> -0.488 | O153: =q!O153-q!O$13 -> -0.066 | P153: =q!P153-q!P$13 -> -0.102
A154: 0.7 | D154: 70 | E154: =q!E154-q!E$14 -> -0.16 | F154: =q!F154-q!F$14 -> -0.04 | G154: =q!G154-q!G$14 -> -0.292 | H154: =q!H154-q!H$14 -> -0.812 | I154: =q!I154-q!I$14 -> -0.802 | J154: =q!J154-q!J$14 -> -1.955 | K154: =q!K154-q!K$14 -> -0.833 | L154: =q!L154-q!L$14 -> -0.68 | M154: =q!M154-q!M$14 -> -0.09 | N154: =q!N154-q!N$14 -> -0.337 | O154: =q!O154-q!O$14 -> -0.05 | P154: =q!P154-q!P$14 -> -0.181
A155: 0.8 | D155: 80 | E155: =q!E155-q!E$15 -> -0.12 | F155: =q!F155-q!F$15 -> -0.028 | G155: =q!G155-q!G$15 -> -0.182 | H155: =q!H155-q!H$15 -> -0.388 | I155: =q!I155-q!I$15 -> -0.626 | J155: =q!J155-q!J$15 -> -1.582 | K155: =q!K155-q!K$15 -> -0.444 | L155: =q!L155-q!L$15 -> -0.406 | M155: =q!M155-q!M$15 -> 0 | N155: =q!N155-q!N$15 -> -0.178 | O155: =q!O155-q!O$15 -> -0.068 | P155: =q!P155-q!P$15 -> -0.17
A156: 0.85 | D156: 85 | E156: =q!E156-q!E$16 -> -0.133 | F156: =q!F156-q!F$16 -> -0.04 | G156: =q!G156-q!G$16 -> -0.0965 | H156: =q!H156-q!H$16 -> -0.2785 | I156: =q!I156-q!I$16 -> -0.359 | J156: =q!J156-q!J$16 -> -1.078 | K156: =q!K156-q!K$16 -> -0.1565 | L156: =q!L156-q!L$16 -> -0.3855 | M156: =q!M156-q!M$16 -> 0 | N156: =q!N156-q!N$16 -> -0.09 | O156: =q!O156-q!O$16 -> -0.0935 | P156: =q!P156-q!P$16 -> -0.16
A157: 0.9 | D157: 90 | E157: =q!E157-q!E$17 -> -0.101 | F157: =q!F157-q!F$17 -> -0.05 | G157: =q!G157-q!G$17 -> -0.139 | H157: =q!H157-q!H$17 -> -0.205 | I157: =q!I157-q!I$17 -> -0.21 | J157: =q!J157-q!J$17 -> -1.072 | K157: =q!K157-q!K$17 -> -0.129 | L157: =q!L157-q!L$17 -> -0.319 | M157: =q!M157-q!M$17 -> -0.009 | N157: =q!N157-q!N$17 -> -0.08 | O157: =q!O157-q!O$17 -> -0.169 | P157: =q!P157-q!P$17 -> -0.03
A158: 0.95 | D158: 95 | E158: =q!E158-q!E$18 -> -0.06 | F158: =q!F158-q!F$18 -> -0.04 | G158: =q!G158-q!G$18 -> -0.16 | H158: =q!H158-q!H$18 -> -0.0755 | I158: =q!I158-q!I$18 -> -0.011 | J158: =q!J158-q!J$18 -> -0.6325 | K158: =q!K158-q!K$18 -> -0.102 | L158: =q!L158-q!L$18 -> -0.1745 | M158: =q!M158-q!M$18 -> -0.049 | N158: =q!N158-q!N$18 -> -0.0965 | O158: =q!O158-q!O$18 -> -0.0765 | P158: =q!P158-q!P$18 -> 0
A159: 0.99 | D159: 99 | E159: =q!E159-q!E$19 -> -0.0428 | F159: =q!F159-q!F$19 -> -0.0064 | G159: =q!G159-q!G$19 -> -0.1909 | H159: =q!H159-q!H$19 -> -0.0582 | I159: =q!I159-q!I$19 -> 0.0373 | J159: =q!J159-q!J$19 -> -0.1147 | K159: =q!K159-q!K$19 -> 0 | L159: =q!L159-q!L$19 -> -0.1955 | M159: =q!M159-q!M$19 -> -0.0591 | N159: =q!N159-q!N$19 -> 0 | O159: =q!O159-q!O$19 -> -0.0364 | P159: =q!P159-q!P$19 -> 0
A160: 0.999 | D160: 99.5 | E160: =q!E160-q!E$20 -> 0.03 | F160: =q!F160-q!F$20 -> 0.03 | G160: =q!G160-q!G$20 -> -0.2 | H160: =q!H160-q!H$20 -> -0.04 | I160: =q!I160-q!I$20 -> 0.01 | J160: =q!J160-q!J$20 -> 0.04 | K160: =q!K160-q!K$20 -> 0 | L160: =q!L160-q!L$20 -> -0.15 | M160: =q!M160-q!M$20 -> -0.05 | N160: =q!N160-q!N$20 -> 0 | O160: =q!O160-q!O$20 -> 0 | P160: =q!P160-q!P$20 -> 0

Sheet GRAPHS
C16: =change!A2 -> PRESENT DAY | J16: =q!A22 -> NATURAL
B33: =q!A42 -> Sc 2A | J33: =q!A62 -> Sc 2B
B50: =change!A82 -> Sc 3 | J50: =change!A102 -> Sc 4A
B67: =change!A122 -> Sc 4B | I67: =q!A142 -> Sc 7

Sheet Month or Percentile
H1: =q!A22 -> NATURAL
A2: Array | B2: Oct | C2: Nov | D2: Dec | E2: Jan | F2: Feb | G2: Mar | H2: Apr | I2: May | J2: Jun | K2: Jul | L2: Aug | M2: Sep
A3: 0.001 | B3: =q!E24 -> 5.13 | C3: =q!F24 -> 10.76 | D3: =q!G24 -> 40.43 | E3: =q!H24 -> 50.94 | F3: =q!I24 -> 94.11 | G3: =q!J24 -> 114.47 | H3: =q!K24 -> 78.16 | I3: =q!L24 -> 18.8 | J3: =q!M24 -> 9.61 | K3: =q!N24 -> 7.21 | L3: =q!O24 -> 6.42 | M3: =q!P24 -> 5.92
A4: 0.01 | B4: =q!E25 -> 4.94 | C4: =q!F25 -> 10.3 | D4: =q!G25 -> 20.21 | E4: =q!H25 -> 45.29 | F4: =q!I25 -> 86 | G4: =q!J25 -> 80.41 | H4: =q!K25 -> 46.55 | I4: =q!L25 -> 14.04 | J4: =q!M25 -> 8.55 | K4: =q!N25 -> 6.72 | L4: =q!O25 -> 6.34 | M4: =q!P25 -> 5.2
A5: 0.05 | B5: =q!E26 -> 4.707 | C5: =q!F26 -> 7.7975 | D5: =q!G26 -> 15.4195 | E5: =q!H26 -> 39.836 | F5: =q!I26 -> 72.7115 | G5: =q!J26 -> 60.253 | H5: =q!K26 -> 29.1845 | I5: =q!L26 -> 13.4725 | J5: =q!M26 -> 7.895 | K5: =q!N26 -> 6.199 | L5: =q!O26 -> 5.5325 | M5: =q!P26 -> 4.7335
A6: 0.1 | B6: =q!E27 -> 4.458 | C6: =q!F27 -> 5.734 | D6: =q!G27 -> 12.796 | E6: =q!H27 -> 26.995 | F6: =q!I27 -> 47.665 | G6: =q!J27 -> 47.039 | H6: =q!K27 -> 23.806 | I6: =q!L27 -> 12.684 | J6: =q!M27 -> 7.073 | K6: =q!N27 -> 5.824 | L6: =q!O27 -> 4.963 | M6: =q!P27 -> 4.357
A7: 0.15 | B7: =q!E28 -> 3.8835 | C7: =q!F28 -> 5.476 | D7: =q!G28 -> 12.024 | E7: =q!H28 -> 23.093 | F7: =q!I28 -> 32.664 | G7: =q!J28 -> 37.5485 | H7: =q!K28 -> 19.446 | I7: =q!L28 -> 11.0925 | J7: =q!M28 -> 6.64 | K7: =q!N28 -> 5.569 | L7: =q!O28 -> 4.7535 | M7: =q!P28 -> 4.084
A8: 0.2 | B8: =q!E29 -> 3.752 | C8: =q!F29 -> 5.06 | D8: =q!G29 -> 9.436 | E8: =q!H29 -> 21.004 | F8: =q!I29 -> 28.564 | G8: =q!J29 -> 29.53 | H8: =q!K29 -> 18.462 | I8: =q!L29 -> 10.096 | J8: =q!M29 -> 6.158 | K8: =q!N29 -> 5.128 | L8: =q!O29 -> 4.492 | M8: =q!P29 -> 3.94
A9: 0.3 | B9: =q!E30 -> 3.485 | C9: =q!F30 -> 4.551 | D9: =q!G30 -> 7.74 | E9: =q!H30 -> 14.67 | F9: =q!I30 -> 16.725 | G9: =q!J30 -> 19.439 | H9: =q!K30 -> 14.266 | I9: =q!L30 -> 8.885 | J9: =q!M30 -> 5.716 | K9: =q!N30 -> 4.98 | L9: =q!O30 -> 4.28 | M9: =q!P30 -> 3.721
A10: 0.4 | B10: =q!E31 -> 3.142 | C10: =q!F31 -> 3.866 | D10: =q!G31 -> 6.402 | E10: =q!H31 -> 10.598 | F10: =q!I31 -> 13.462 | G10: =q!J31 -> 14.682 | H10: =q!K31 -> 11.896 | I10: =q!L31 -> 7.852 | J10: =q!M31 -> 5.478 | K10: =q!N31 -> 4.78 | L10: =q!O31 -> 4.092 | M10: =q!P31 -> 3.496
A11: 0.5 | B11: =q!E32 -> 2.895 | C11: =q!F32 -> 3.575 | D11: =q!G32 -> 5.65 | E11: =q!H32 -> 9.195 | F11: =q!I32 -> 11.92 | G11: =q!J32 -> 12.035 | H11: =q!K32 -> 9.325 | I11: =q!L32 -> 6.66 | J11: =q!M32 -> 5.16 | K11: =q!N32 -> 4.385 | L11: =q!O32 -> 3.79 | M11: =q!P32 -> 3.285
A12: 0.6 | B12: =q!E33 -> 2.718 | C12: =q!F33 -> 3.13 | D12: =q!G33 -> 4.804 | E12: =q!H33 -> 7.352 | F12: =q!I33 -> 9.14 | G12: =q!J33 -> 8.698 | H12: =q!K33 -> 7.21 | I12: =q!L33 -> 5.696 | J12: =q!M33 -> 4.764 | K12: =q!N33 -> 4.138 | L12: =q!O33 -> 3.588 | M12: =q!P33 -> 3.014
A13: 0.7 | B13: =q!E34 -> 2.516 | C13: =q!F34 -> 2.821 | D13: =q!G34 -> 4.118 | E13: =q!H34 -> 5.76 | F13: =q!I34 -> 7.341 | G13: =q!J34 -> 7.42 | H13: =q!K34 -> 6.22 | I13: =q!L34 -> 5.123 | J13: =q!M34 -> 4.352 | K13: =q!N34 -> 3.793 | L13: =q!O34 -> 3.35 | M13: =q!P34 -> 2.723
A14: 0.8 | B14: =q!E35 -> 2.166 | C14: =q!F35 -> 2.484 | D14: =q!G35 -> 3.346 | E14: =q!H35 -> 5.082 | F14: =q!I35 -> 6.264 | G14: =q!J35 -> 5.936 | H14: =q!K35 -> 5.498 | I14: =q!L35 -> 4.616 | J14: =q!M35 -> 3.892 | K14: =q!N35 -> 3.442 | L14: =q!O35 -> 2.956 | M14: =q!P35 -> 2.422
A15: 0.85 | B15: =q!E36 -> 2.04 | C15: =q!F36 -> 2.252 | D15: =q!G36 -> 2.942 | E15: =q!H36 -> 4.3315 | F15: =q!I36 -> 5.5425 | G15: =q!J36 -> 5.276 | H15: =q!K36 -> 5.238 | I15: =q!L36 -> 4.526 | J15: =q!M36 -> 3.7465 | K15: =q!N36 -> 3.2565 | L15: =q!O36 -> 2.7765 | M15: =q!P36 -> 2.373
A16: 0.9 | B16: =q!E37 -> 2.021 | C16: =q!F37 -> 2.043 | D16: =q!G37 -> 2.824 | E16: =q!H37 -> 3.618 | F16: =q!I37 -> 4.556 | G16: =q!J37 -> 4.675 | H16: =q!K37 -> 4.625 | I16: =q!L37 -> 4.121 | J16: =q!M37 -> 3.576 | K16: =q!N37 -> 3.133 | L16: =q!O37 -> 2.637 | M16: =q!P37 -> 2.17
A17: 0.95 | B17: =q!E38 -> 1.6885 | C17: =q!F38 -> 1.8255 | D17: =q!G38 -> 2.285 | E17: =q!H38 -> 2.9685 | F17: =q!I38 -> 3.645 | G17: =q!J38 -> 4.1775 | H17: =q!K38 -> 3.836 | I17: =q!L38 -> 3.3795 | J17: =q!M38 -> 2.862 | K17: =q!N38 -> 2.492 | L17: =q!O38 -> 2.194 | M17: =q!P38 -> 1.8945
A18: 0.99 | B18: =q!E39 -> 1.5477 | C18: =q!F39 -> 1.4485 | D18: =q!G39 -> 1.6074 | E18: =q!H39 -> 2.2369 | F18: =q!I39 -> 2.7942 | G18: =q!J39 -> 3.0197 | H18: =q!K39 -> 2.6675 | I18: =q!L39 -> 2.1792 | J18: =q!M39 -> 1.861 | K18: =q!N39 -> 1.6738 | L18: =q!O39 -> 1.452 | M18: =q!P39 -> 1.2682
A19: 0.999 | B19: =q!E40 -> 1.12 | C19: =q!F40 -> 1.13 | D19: =q!G40 -> 1.48 | E19: =q!H40 -> 1.7 | F19: =q!I40 -> 2.23 | G19: =q!J40 -> 2.41 | H19: =q!K40 -> 2.44 | I19: =q!L40 -> 2.07 | J19: =q!M40 -> 1.77 | K19: =q!N40 -> 1.51 | L19: =q!O40 -> 1.27 | M19: =q!P40 -> 1.25
A21: CUMEC | F21: =q!A2 -> PRESENT DAY
A22: Array | B22: Oct | C22: Nov | D22: Dec | E22: Jan | F22: Feb | G22: Mar | H22: Apr | I22: May | J22: Jun | K22: Jul | L22: Aug | M22: Sep
A23: 0.001 | B23: =q!E4 -> 20.53 | C23: =q!F4 -> 7.47 | D23: =q!G4 -> 45.43 | E23: =q!H4 -> 43.36 | F23: =q!I4 -> 84.17 | G23: =q!J4 -> 100.74 | H23: =q!K4 -> 65.44 | I23: =q!L4 -> 14.17 | J23: =q!M4 -> 6.1 | K23: =q!N4 -> 23.33 | L23: =q!O4 -> 8.29 | M23: =q!P4 -> 9.27
A24: 0.01 | B24: =q!E5 -> 12.11 | C24: =q!F5 -> 6.64 | D24: =q!G5 -> 35.69 | E24: =q!H5 -> 36.32 | F24: =q!I5 -> 74.32 | G24: =q!J5 -> 68.51 | H24: =q!K5 -> 40.46 | I24: =q!L5 -> 11.1 | J24: =q!M5 -> 5.27 | K24: =q!N5 -> 6.19 | L24: =q!O5 -> 7.07 | M24: =q!P5 -> 9.19
A25: 0.05 | B25: =q!E6 -> 4.075 | C25: =q!F6 -> 5.183 | D25: =q!G6 -> 11.0805 | E25: =q!H6 -> 23.6055 | F25: =q!I6 -> 44.3915 | G25: =q!J6 -> 45.3065 | H25: =q!K6 -> 21.018 | I25: =q!L6 -> 8.408 | J25: =q!M6 -> 4.189 | K25: =q!N6 -> 3.8045 | L25: =q!O6 -> 2.887 | M25: =q!P6 -> 7.2225
A26: 0.1 | B26: =q!E7 -> 1.77 | C26: =q!F7 -> 2.676 | D26: =q!G7 -> 7.345 | E26: =q!H7 -> 17.844 | F26: =q!I7 -> 35.798 | G26: =q!J7 -> 35.481 | H26: =q!K7 -> 14.083 | I26: =q!L7 -> 7.117 | J26: =q!M7 -> 3.539 | K26: =q!N7 -> 3.522 | L26: =q!O7 -> 2.2 | M26: =q!P7 -> 3.889
A27: 0.15 | B27: =q!E8 -> 1.6335 | C27: =q!F8 -> 2.3145 | D27: =q!G8 -> 5.354 | E27: =q!H8 -> 15.286 | F27: =q!I8 -> 22.4515 | G27: =q!J8 -> 26.2615 | H27: =q!K8 -> 13.032 | I27: =q!L8 -> 5.975 | J27: =q!M8 -> 3.3105 | K27: =q!N8 -> 3.1225 | L27: =q!O8 -> 1.6845 | M27: =q!P8 -> 2.7285
A28: 0.2 | B28: =q!E9 -> 1.494 | C28: =q!F9 -> 1.828 | D28: =q!G9 -> 4.038 | E28: =q!H9 -> 12.608 | F28: =q!I9 -> 17.59 | G28: =q!J9 -> 21.54 | H28: =q!K9 -> 10.31 | I28: =q!L9 -> 4.982 | J28: =q!M9 -> 2.878 | K28: =q!N9 -> 2.686 | L28: =q!O9 -> 1.534 | M28: =q!P9 -> 2.158
A29: 0.3 | B29: =q!E10 -> 1.247 | C29: =q!F10 -> 1.067 | D29: =q!G10 -> 2.997 | E29: =q!H10 -> 6.448 | F29: =q!I10 -> 10.618 | G29: =q!J10 -> 13.11 | H29: =q!K10 -> 6.93 | I29: =q!L10 -> 4.104 | J29: =q!M10 -> 2.484 | K29: =q!N10 -> 2.17 | L29: =q!O10 -> 1.124 | M29: =q!P10 -> 1.501
A30: 0.4 | B30: =q!E11 -> 1.102 | C30: =q!F11 -> 0.946 | D30: =q!G11 -> 1.996 | E30: =q!H11 -> 4.022 | F30: =q!I11 -> 5.852 | G30: =q!J11 -> 9.686 | H30: =q!K11 -> 4.886 | I30: =q!L11 -> 3.67 | J30: =q!M11 -> 1.862 | K30: =q!N11 -> 1.922 | L30: =q!O11 -> 1.01 | M30: =q!P11 -> 1.146
A31: 0.5 | B31: =q!E12 -> 0.99 | C31: =q!F12 -> 0.775 | D31: =q!G12 -> 1.6 | E31: =q!H12 -> 3.085 | F31: =q!I12 -> 3.62 | G31: =q!J12 -> 7.125 | H31: =q!K12 -> 2.995 | I31: =q!L12 -> 3.1 | J31: =q!M12 -> 1.54 | K31: =q!N12 -> 1.635 | L31: =q!O12 -> 0.94 | M31: =q!P12 -> 1.04
A32: 0.6 | B32: =q!E13 -> 0.86 | C32: =q!F13 -> 0.674 | D32: =q!G13 -> 1.26 | E32: =q!H13 -> 2.096 | F32: =q!I13 -> 2.794 | G32: =q!J13 -> 4.536 | H32: =q!K13 -> 1.984 | I32: =q!L13 -> 2.492 | J32: =q!M13 -> 0.938 | K32: =q!N13 -> 1.208 | L32: =q!O13 -> 0.85 | M32: =q!P13 -> 0.964
A33: 0.7 | B33: =q!E14 -> 0.72 | C33: =q!F14 -> 0.6 | D33: =q!G14 -> 0.932 | E33: =q!H14 -> 1.608 | F33: =q!I14 -> 1.816 | G33: =q!J14 -> 3.497 | H33: =q!K14 -> 1.683 | I33: =q!L14 -> 1.563 | J33: =q!M14 -> 0.773 | K33: =q!N14 -> 0.99 | L33: =q!O14 -> 0.8 | M33: =q!P14 -> 0.9
A34: 0.8 | B34: =q!E15 -> 0.584 | C34: =q!F15 -> 0.52 | D34: =q!G15 -> 0.752 | E34: =q!H15 -> 1.06 | F34: =q!I15 -> 1.386 | G34: =q!J15 -> 2.724 | H34: =q!K15 -> 1.146 | I34: =q!L15 -> 1.138 | J34: =q!M15 -> 0.65 | K34: =q!N15 -> 0.79 | L34: =q!O15 -> 0.75 | M34: =q!P15 -> 0.73
A35: 0.85 | B35: =q!E16 -> 0.5295 | C35: =q!F16 -> 0.45 | D35: =q!G16 -> 0.633 | E35: =q!H16 -> 0.8915 | F35: =q!I16 -> 1.059 | G35: =q!J16 -> 1.9975 | H35: =q!K16 -> 0.793 | I35: =q!L16 -> 1.0555 | J35: =q!M16 -> 0.61 | K35: =q!N16 -> 0.6865 | L35: =q!O16 -> 0.7265 | M35: =q!P16 -> 0.646
A36: 0.9 | B36: =q!E17 -> 0.462 | C36: =q!F17 -> 0.41 | D36: =q!G17 -> 0.61 | E36: =q!H17 -> 0.735 | F36: =q!I17 -> 0.76 | G36: =q!J17 -> 1.751 | H36: =q!K17 -> 0.673 | I36: =q!L17 -> 0.941 | J36: =q!M17 -> 0.6 | K36: =q!N17 -> 0.61 | L36: =q!O17 -> 0.69 | M36: =q!P17 -> 0.431
A37: 0.95 | B37: =q!E18 -> 0.3855 | C37: =q!F18 -> 0.35 | D37: =q!G18 -> 0.5455 | E37: =q!H18 -> 0.5075 | F37: =q!I18 -> 0.531 | G37: =q!J18 -> 1.1555 | H37: =q!K18 -> 0.5975 | I37: =q!L18 -> 0.74 | J37: =q!M18 -> 0.5455 | K37: =q!N18 -> 0.5665 | L37: =q!O18 -> 0.502 | M37: =q!P18 -> 0.36
A38: 0.99 | B38: =q!E19 -> 0.3228 | C38: =q!F19 -> 0.2955 | D38: =q!G19 -> 0.47 | E38: =q!H19 -> 0.4064 | F38: =q!I19 -> 0.3974 | G38: =q!J19 -> 0.5529 | H38: =q!K19 -> 0.4291 | I38: =q!L19 -> 0.6146 | J38: =q!M19 -> 0.4582 | K38: =q!N19 -> 0.3773 | L38: =q!O19 -> 0.3764 | M38: =q!P19 -> 0.2991
A39: 0.999 | B39: =q!E20 -> 0.25 | C39: =q!F20 -> 0.25 | D39: =q!G20 -> 0.47 | E39: =q!H20 -> 0.37 | F39: =q!I20 -> 0.27 | G39: =q!J20 -> 0.38 | H39: =q!K20 -> 0.42 | I39: =q!L20 -> 0.56 | J39: =q!M20 -> 0.44 | K39: =q!N20 -> 0.35 | L39: =q!O20 -> 0.34 | M39: =q!P20 -> 0.29
A41: Scenario: | B41: =q!A42 -> Sc 2A | P41: Scenario: | Q41: =q!A62 -> Sc 2B | AE41: Scenario: | AF41: =q!A82 -> Sc 3 | AS41: Scenario: | AT41: =q!A102 -> Sc 4A | BG41: Scenario: | BH41: =q!A122 -> Sc 4B | BU41: Scenario: | BV41: =q!A142 -> Sc 7
B42: Oct | C42: Nov | D42: Dec | E42: Jan | F42: Feb | G42: Mar | H42: Apr | I42: May | J42: Jun | K42: Jul | L42: Aug | M42: Sep | Q42: Jan | R42: Feb | S42: Mar | T42: Apr | U42: May | V42: Jun | W42: Jul | X42: Aug | Y42: Sep | Z42: Oct | AA42: Nov | AB42: Dec | AF42: Jan | AG42: Feb | AH42: Mar | AI42: Apr | AJ42: May | AK42: Jun | AL42: Jul | AM42: Aug | AN42: Sep | AO42: Oct | AP42: Nov | AQ42: Dec | AT42: Jan | AU42: Feb | AV42: Mar | AW42: Apr | AX42: May | AY42: Jun | AZ42: Jul | BA42: Aug | BB42: Sep | BC42: Oct | BD42: Nov | BE42: Dec | BH42: Jan | BI42: Feb | BJ42: Mar | BK42: Apr | BL42: May | BM42: Jun | BN42: Jul | BO42: Aug | BP42: Sep | BQ42: Oct | BR42: Nov | BS42: Dec | BV42: Jan | BW42: Feb | BX42: Mar | BY42: Apr | BZ42: May | CA42: Jun | CB42: Jul | CC42: Aug | CD42: Sep | CE42: Oct | CF42: Nov | CG42: Dec
A43: 0.001 | B43: =q!E44 -> 27.78 | C43: =q!F44 -> 9.35 | D43: =q!G44 -> 35.7 | E43: =q!H44 -> 43.36 | F43: =q!I44 -> 84.17 | G43: =q!J44 -> 100.74 | H43: =q!K44 -> 65.44 | I43: =q!L44 -> 14.17 | J43: =q!M44 -> 6.1 | K43: =q!N44 -> 14.21 | L43: =q!O44 -> 9.09 | M43: =q!P44 -> 10.81 | P43: 0.001 | Q43: =q!E64 -> 36.04 | R43: =q!F64 -> 8.67 | S43: =q!G64 -> 35.69 | T43: =q!H64 -> 43.36 | U43: =q!I64 -> 84.17 | V43: =q!J64 -> 100.74 | W43: =q!K64 -> 65.44 | X43: =q!L64 -> 14.17 | Y43: =q!M64 -> 6.1 | Z43: =q!N64 -> 5.06 | AA43: =q!O64 -> 5.76 | AB43: =q!P64 -> 11.16 | AE43: 0.001 | AF43: =q!E84 -> 39.9 | AG43: =q!F84 -> 8.67 | AH43: =q!G84 -> 35.69 | AI43: =q!H84 -> 43.36 | AJ43: =q!I84 -> 84.17 | AK43: =q!J84 -> 100.74 | AL43: =q!K84 -> 65.44 | AM43: =q!L84 -> 14.17 | AN43: =q!M84 -> 6.1 | AO43: =q!N84 -> 23.8 | AP43: =q!O84 -> 2.92 | AQ43: =q!P84 -> 5.93 | AS43: 0.001 | AT43: =q!E104 -> 3.11 | AU43: =q!F104 -> 6.11 | AV43: =q!G104 -> 33.81 | AW43: =q!H104 -> 42.44 | AX43: =q!I104 -> 83.33 | AY43: =q!J104 -> 99.82 | AZ43: =q!K104 -> 64.55 | BA43: =q!L104 -> 13.25 | BB43: =q!M104 -> 5.21 | BC43: =q!N104 -> 4.39 | BD43: =q!O104 -> 2.26 | BE43: =q!P104 -> 1.63 | BG43: 0.001 | BH43: =q!E124 -> 8.55 | BI43: =q!F124 -> 6.03 | BJ43: =q!G124 -> 33.64 | BK43: =q!H124 -> 41.92 | BL43: =q!I124 -> 82.82 | BM43: =q!J124 -> 99.73 | BN43: =q!K124 -> 64.45 | BO43: =q!L124 -> 13.13 | BP43: =q!M124 -> 5.11 | BQ43: =q!N124 -> 3.35 | BR43: =q!O124 -> 2.39 | BS43: =q!P124 -> 3.55 | BU43: 0.001 | BV43: =q!E144 -> 2.18 | BW43: =q!F144 -> 5.87 | BX43: =q!G144 -> 33.64 | BY43: =q!H144 -> 41.92 | BZ43: =q!I144 -> 82.82 | CA43: =q!J144 -> 99.73 | CB43: =q!K144 -> 64.45 | CC43: =q!L144 -> 13.13 | CD43: =q!M144 -> 5.11 | CE43: =q!N144 -> 4.78 | CF43: =q!O144 -> 2.26 | CG43: =q!P144 -> 3.72
A44: 0.01 | B44: =q!E45 -> 9.02 | C44: =q!F45 -> 7.88 | D44: =q!G45 -> 33.06 | E44: =q!H45 -> 36.32 | F44: =q!I45 -> 74.32 | G44: =q!J45 -> 68.51 | H44: =q!K45 -> 40.46 | I44: =q!L45 -> 11.01 | J44: =q!M45 -> 5.53 | K44: =q!N45 -> 7.07 | L44: =q!O45 -> 2.92 | M44: =q!P45 -> 8.9 | P44: 0.01 | Q44: =q!E65 -> 33.71 | R44: =q!F65 -> 8.17 | S44: =q!G65 -> 22.31 | T44: =q!H65 -> 36.32 | U44: =q!I65 -> 74.32 | V44: =q!J65 -> 68.51 | W44: =q!K65 -> 40.46 | X44: =q!L65 -> 11.44 | Y44: =q!M65 -> 5.27 | Z44: =q!N65 -> 4.49 | AA44: =q!O65 -> 5.33 | AB44: =q!P65 -> 10.14 | AE44: 0.01 | AF44: =q!E85 -> 9.33 | AG44: =q!F85 -> 7.47 | AH44: =q!G85 -> 33 | AI44: =q!H85 -> 36.32 | AJ44: =q!I85 -> 74.32 | AK44: =q!J85 -> 68.51 | AL44: =q!K85 -> 40.46 | AM44: =q!L85 -> 10.33 | AN44: =q!M85 -> 5.27 | AO44: =q!N85 -> 6.97 | AP44: =q!O85 -> 2.86 | AQ44: =q!P85 -> 4.85 | AS44: 0.01 | AT44: =q!E105 -> 1.56 | AU44: =q!F105 -> 3.81 | AV44: =q!G105 -> 10.46 | AW44: =q!H105 -> 35.39 | AX44: =q!I105 -> 73.48 | AY44: =q!J105 -> 67.59 | AZ44: =q!K105 -> 39.56 | BA44: =q!L105 -> 11.56 | BB44: =q!M105 -> 4.38 | BC44: =q!N105 -> 3.89 | BD44: =q!O105 -> 2.23 | BE44: =q!P105 -> 1.62 | BG44: 0.01 | BH44: =q!E125 -> 2.81 | BI44: =q!F125 -> 3.72 | BJ44: =q!G125 -> 10.42 | BK44: =q!H125 -> 34.82 | BL44: =q!I125 -> 72.98 | BM44: =q!J125 -> 67.51 | BN44: =q!K125 -> 39.46 | BO44: =q!L125 -> 11.41 | BP44: =q!M125 -> 4.31 | BQ44: =q!N125 -> 3.33 | BR44: =q!O125 -> 2.26 | BS44: =q!P125 -> 1.63 | BU44: 0.01 | BV44: =q!E145 -> 1.93 | BW44: =q!F145 -> 3.72 | BX44: =q!G145 -> 10.42 | BY44: =q!H145 -> 34.82 | BZ44: =q!I145 -> 72.98 | CA44: =q!J145 -> 67.51 | CB44: =q!K145 -> 39.46 | CC44: =q!L145 -> 11.85 | CD44: =q!M145 -> 4.31 | CE44: =q!N145 -> 3.62 | CF44: =q!O145 -> 2.22 | CG44: =q!P145 -> 3.03
A45: 0.05 | B45: =q!E46 -> 3.3695 | C45: =q!F46 -> 6.5885 | D45: =q!G46 -> 13.729 | E45: =q!H46 -> 26.4315 | F45: =q!I46 -> 42.4285 | G45: =q!J46 -> 44.7225 | H45: =q!K46 -> 21.018 | I45: =q!L46 -> 9.0445 | J45: =q!M46 -> 4.1935 | K45: =q!N46 -> 3.7985 | L45: =q!O46 -> 2.543 | M45: =q!P46 -> 2.223 | P45: 0.05 | Q45: =q!E66 -> 4.8425 | R45: =q!F66 -> 6.2255 | S45: =q!G66 -> 9.751 | T45: =q!H66 -> 26.4315 | U45: =q!I66 -> 42.4285 | V45: =q!J66 -> 46.4385 | W45: =q!K66 -> 21.018 | X45: =q!L66 -> 9.0775 | Y45: =q!M66 -> 3.9985 | Z45: =q!N66 -> 3.745 | AA45: =q!O66 -> 2.887 | AB45: =q!P66 -> 3.2315 | AE45: 0.05 | AF45: =q!E86 -> 4.0045 | AG45: =q!F86 -> 5.183 | AH45: =q!G86 -> 10.0855 | AI45: =q!H86 -> 26.571 | AJ45: =q!I86 -> 44.3915 | AK45: =q!J86 -> 42.9525 | AL45: =q!K86 -> 21.018 | AM45: =q!L86 -> 8.1695 | AN45: =q!M86 -> 3.9985 | AO45: =q!N86 -> 4.614 | AP45: =q!O86 -> 2.2925 | AQ45: =q!P86 -> 3.607 | AS45: 0.05 | AT45: =q!E106 -> 1.4145 | AU45: =q!F106 -> 2.8295 | AV45: =q!G106 -> 6.635 | AW45: =q!H106 -> 23.2875 | AX45: =q!I106 -> 43.5515 | AY45: =q!J106 -> 42.654 | AZ45: =q!K106 -> 20.118 | BA45: =q!L106 -> 7.822 | BB45: =q!M106 -> 3.1855 | BC45: =q!N106 -> 3.005 | BD45: =q!O106 -> 1.854 | BE45: =q!P106 -> 1.4935 | BG45: 0.05 | BH45: =q!E126 -> 1.5115 | BI45: =q!F126 -> 2.671 | BJ45: =q!G126 -> 6.424 | BK45: =q!H126 -> 22.6005 | BL45: =q!I126 -> 43.295 | BM45: =q!J126 -> 41.9325 | BN45: =q!K126 -> 20.0135 | BO45: =q!L126 -> 7.5735 | BP45: =q!M126 -> 3.17 | BQ45: =q!N126 -> 2.679 | BR45: =q!O126 -> 1.8665 | BS45: =q!P126 -> 1.5045 | BU45: 0.05 | BV45: =q!E146 -> 1.495 | BW45: =q!F146 -> 1.808 | BX45: =q!G146 -> 6.424 | BY45: =q!H146 -> 22.6005 | BZ45: =q!I146 -> 43.295 | CA45: =q!J146 -> 42.3065 | CB45: =q!K146 -> 20.0135 | CC45: =q!L146 -> 7.887 | CD45: =q!M146 -> 3.104 | CE45: =q!N146 -> 3.0795 | CF45: =q!O146 -> 1.4585 | CG45: =q!P146 -> 1.5045
A46: 0.1 | B46: =q!E47 -> 2.137 | C46: =q!F47 -> 2.923 | D46: =q!G47 -> 7.759 | E46: =q!H47 -> 17.508 | F46: =q!I47 -> 29.015 | G46: =q!J47 -> 34.929 | H46: =q!K47 -> 14.083 | I46: =q!L47 -> 7.273 | J46: =q!M47 -> 3.667 | K46: =q!N47 -> 3.645 | L46: =q!O47 -> 1.826 | M46: =q!P47 -> 1.865 | P46: 0.1 | Q46: =q!E67 -> 2.167 | R46: =q!F67 -> 2.923 | S46: =q!G67 -> 7.21 | T46: =q!H67 -> 17.507 | U46: =q!I67 -> 32.773 | V46: =q!J67 -> 34.723 | W46: =q!K67 -> 14.083 | X46: =q!L67 -> 7.568 | Y46: =q!M67 -> 3.44 | Z46: =q!N67 -> 3.567 | AA46: =q!O67 -> 1.93 | AB46: =q!P67 -> 1.817 | AE46: 0.1 | AF46: =q!E87 -> 2.11 | AG46: =q!F87 -> 2.676 | AH46: =q!G87 -> 6.766 | AI46: =q!H87 -> 17.441 | AJ46: =q!I87 -> 36.638 | AK46: =q!J87 -> 34.385 | AL46: =q!K87 -> 14.083 | AM46: =q!L87 -> 7.117 | AN46: =q!M87 -> 3.539 | AO46: =q!N87 -> 3.587 | AP46: =q!O87 -> 1.784 | AQ46: =q!P87 -> 1.96 | AS46: 0.1 | AT46: =q!E107 -> 1.3 | AU46: =q!F107 -> 1.346 | AV46: =q!G107 -> 3.233 | AW46: =q!H107 -> 15.76 | AX46: =q!I107 -> 35.65 | AY46: =q!J107 -> 33.465 | AZ46: =q!K107 -> 13.193 | BA46: =q!L107 -> 6.281 | BB46: =q!M107 -> 2.649 | BC46: =q!N107 -> 2.652 | BD46: =q!O107 -> 1.175 | BE46: =q!P107 -> 1.267 | BG46: 0.1 | BH46: =q!E127 -> 1.339 | BI46: =q!F127 -> 1.522 | BJ46: =q!G127 -> 2.686 | BK46: =q!H127 -> 15.75 | BL46: =q!I127 -> 35.289 | BM46: =q!J127 -> 33.365 | BN46: =q!K127 -> 13.063 | BO46: =q!L127 -> 6.059 | BP46: =q!M127 -> 2.648 | BQ46: =q!N127 -> 2.167 | BR46: =q!O127 -> 1.207 | BS46: =q!P127 -> 1.27 | BU46: 0.1 | BV46: =q!E147 -> 1.246 | BW46: =q!F147 -> 1.253 | BX46: =q!G147 -> 2.686 | BY46: =q!H147 -> 15.75 | BZ46: =q!I147 -> 31.968 | CA46: =q!J147 -> 34.029 | CB46: =q!K147 -> 13.063 | CC46: =q!L147 -> 6.097 | CD46: =q!M147 -> 2.648 | CE46: =q!N147 -> 2.607 | CF46: =q!O147 -> 1.1 | CG46: =q!P147 -> 1.27
A47: 0.15 | B47: =q!E48 -> 1.7415 | C47: =q!F48 -> 2.457 | D47: =q!G48 -> 6.9175 | E47: =q!H48 -> 16.155 | F47: =q!I48 -> 22.3355 | G47: =q!J48 -> 25.4295 | H47: =q!K48 -> 13.0255 | I47: =q!L48 -> 6.96 | J47: =q!M48 -> 3.427 | K47: =q!N48 -> 3.3035 | L47: =q!O48 -> 1.65 | M47: =q!P48 -> 1.4905 | P47: 0.15 | Q47: =q!E68 -> 1.957 | R47: =q!F68 -> 2.3985 | S47: =q!G68 -> 5.516 | T47: =q!H68 -> 16.103 | U47: =q!I68 -> 22.448 | V47: =q!J68 -> 25.3255 | W47: =q!K68 -> 13.0255 | X47: =q!L68 -> 6.96 | Y47: =q!M68 -> 3.2675 | Z47: =q!N68 -> 3.4475 | AA47: =q!O68 -> 1.691 | AB47: =q!P68 -> 1.3565 | AE47: 0.15 | AF47: =q!E88 -> 1.6645 | AG47: =q!F88 -> 2.3145 | AH47: =q!G88 -> 6.0605 | AI47: =q!H88 -> 15.7165 | AJ47: =q!I88 -> 23.2905 | AK47: =q!J88 -> 24.673 | AL47: =q!K88 -> 13.032 | AM47: =q!L88 -> 6.154 | AN47: =q!M88 -> 3.3105 | AO47: =q!N88 -> 3.149 | AP47: =q!O88 -> 1.5835 | AQ47: =q!P88 -> 1.547 | AS47: 0.15 | AT47: =q!E108 -> 1.1705 | AU47: =q!F108 -> 1.128 | AV47: =q!G108 -> 2.5065 | AW47: =q!H108 -> 12.5875 | AX47: =q!I108 -> 22.4505 | AY47: =q!J108 -> 23.386 | AZ47: =q!K108 -> 12.1355 | BA47: =q!L108 -> 4.864 | BB47: =q!M108 -> 2.4205 | BC47: =q!N108 -> 2.137 | BD47: =q!O108 -> 1.0605 | BE47: =q!P108 -> 1.17 | BG47: 0.15 | BH47: =q!E128 -> 1.2035 | BI47: =q!F128 -> 1.0435 | BJ47: =q!G128 -> 2.424 | BK47: =q!H128 -> 12.1345 | BL47: =q!I128 -> 21.934 | BM47: =q!J128 -> 22.1435 | BN47: =q!K128 -> 12.012 | BO47: =q!L128 -> 5.07 | BP47: =q!M128 -> 2.4105 | BQ47: =q!N128 -> 2.005 | BR47: =q!O128 -> 1.1 | BS47: =q!P128 -> 1.1935 | BU47: 0.15 | BV47: =q!E148 -> 1.19 | BW47: =q!F148 -> 1.01 | BX47: =q!G148 -> 2.331 | BY47: =q!H148 -> 13.0545 | BZ47: =q!I148 -> 21.1615 | CA47: =q!J148 -> 23.927 | CB47: =q!K148 -> 12.012 | CC47: =q!L148 -> 4.684 | CD47: =q!M148 -> 2.4105 | CE47: =q!N148 -> 2.0735 | CF47: =q!O148 -> 1.0605 | CG47: =q!P148 -> 1.2
A48: 0.2 | B48: =q!E49 -> 1.492 | C48: =q!F49 -> 1.99 | D48: =q!G49 -> 5.172 | E48: =q!H49 -> 10.392 | F48: =q!I49 -> 17.7 | G48: =q!J49 -> 20.268 | H48: =q!K49 -> 9.234 | I48: =q!L49 -> 6.426 | J48: =q!M49 -> 3.072 | K48: =q!N49 -> 3.074 | L48: =q!O49 -> 1.54 | M48: =q!P49 -> 1.276 | P48: 0.2 | Q48: =q!E69 -> 1.606 | R48: =q!F69 -> 1.902 | S48: =q!G69 -> 4.242 | T48: =q!H69 -> 10.392 | U48: =q!I69 -> 17.692 | V48: =q!J69 -> 21.632 | W48: =q!K69 -> 9.234 | X48: =q!L69 -> 5.92 | Y48: =q!M69 -> 2.868 | Z48: =q!N69 -> 3.074 | AA48: =q!O69 -> 1.574 | AB48: =q!P69 -> 1.256 | AE48: 0.2 | AF48: =q!E89 -> 1.404 | AG48: =q!F89 -> 1.898 | AH48: =q!G89 -> 4.732 | AI48: =q!H89 -> 12.318 | AJ48: =q!I89 -> 17.692 | AK48: =q!J89 -> 19.826 | AL48: =q!K89 -> 11.244 | AM48: =q!L89 -> 5.306 | AN48: =q!M89 -> 2.878 | AO48: =q!N89 -> 2.794 | AP48: =q!O89 -> 1.394 | AQ48: =q!P89 -> 1.28 | AS48: 0.2 | AT48: =q!E109 -> 1.106 | AU48: =q!F109 -> 1.008 | AV48: =q!G109 -> 2.26 | AW48: =q!H109 -> 9.168 | AX48: =q!I109 -> 17.416 | AY48: =q!J109 -> 16.952 | AZ48: =q!K109 -> 9.086 | BA48: =q!L109 -> 4.322 | BB48: =q!M109 -> 1.98 | BC48: =q!N109 -> 1.84 | BD48: =q!O109 -> 1.026 | BE48: =q!P109 -> 1.13 | BG48: 0.2 | BH48: =q!E129 -> 1.13 | BI48: =q!F129 -> 0.996 | BJ48: =q!G129 -> 2.092 | BK48: =q!H129 -> 8.98 | BL48: =q!I129 -> 17.16 | BM48: =q!J129 -> 16.946 | BN48: =q!K129 -> 8.138 | BO48: =q!L129 -> 4.294 | BP48: =q!M129 -> 1.98 | BQ48: =q!N129 -> 1.626 | BR48: =q!O129 -> 1.038 | BS48: =q!P129 -> 1.148 | BU48: 0.2 | BV48: =q!E149 -> 1.11 | BW48: =q!F149 -> 0.968 | BX48: =q!G149 -> 1.89 | BY48: =q!H149 -> 8.982 | BZ48: =q!I149 -> 16.966 | CA48: =q!J149 -> 18.37 | CB48: =q!K149 -> 9.146 | CC48: =q!L149 -> 3.894 | CD48: =q!M149 -> 1.974 | CE48: =q!N149 -> 1.594 | CF48: =q!O149 -> 1.018 | CG48: =q!P149 -> 1.158
A49: 0.3 | B49: =q!E50 -> 1.295 | C49: =q!F50 -> 1.249 | D49: =q!G50 -> 3.572 | E49: =q!H50 -> 5.835 | F49: =q!I50 -> 9.983 | G49: =q!J50 -> 14.169 | H49: =q!K50 -> 6.288 | I49: =q!L50 -> 4.968 | J49: =q!M50 -> 2.374 | K49: =q!N50 -> 2.702 | L49: =q!O50 -> 1.201 | M49: =q!P50 -> 1.14 | P49: 0.3 | Q49: =q!E70 -> 1.387 | R49: =q!F70 -> 1.373 | S49: =q!G70 -> 3.004 | T49: =q!H70 -> 5.476 | U49: =q!I70 -> 9.619 | V49: =q!J70 -> 14.268 | W49: =q!K70 -> 6.333 | X49: =q!L70 -> 4.647 | Y49: =q!M70 -> 2.082 | Z49: =q!N70 -> 2.648 | AA49: =q!O70 -> 1.327 | AB49: =q!P70 -> 1.134 | AE49: 0.3 | AF49: =q!E90 -> 1.2 | AG49: =q!F90 -> 1.338 | AH49: =q!G90 -> 3.492 | AI49: =q!H90 -> 6.34 | AJ49: =q!I90 -> 10.618 | AK49: =q!J90 -> 13.706 | AL49: =q!K90 -> 7.225 | AM49: =q!L90 -> 4.145 | AN49: =q!M90 -> 2.599 | AO49: =q!N90 -> 2.184 | AP49: =q!O90 -> 1.074 | AQ49: =q!P90 -> 1.17 | AS49: 0.3 | AT49: =q!E110 -> 0.95 | AU49: =q!F110 -> 0.917 | AV49: =q!G110 -> 1.829 | AW49: =q!H110 -> 4.134 | AX49: =q!I110 -> 8.271 | AY49: =q!J110 -> 11.243 | AZ49: =q!K110 -> 5.533 | BA49: =q!L110 -> 3.197 | BB49: =q!M110 -> 1.369 | BC49: =q!N110 -> 1.261 | BD49: =q!O110 -> 0.95 | BE49: =q!P110 -> 1.077 | BG49: 0.3 | BH49: =q!E130 -> 0.98 | BI49: =q!F130 -> 0.914 | BJ49: =q!G130 -> 1.733 | BK49: =q!H130 -> 3.698 | BL49: =q!I130 -> 8.248 | BM49: =q!J130 -> 10.527 | BN49: =q!K130 -> 5.523 | BO49: =q!L130 -> 3.168 | BP49: =q!M130 -> 1.369 | BQ49: =q!N130 -> 1.149 | BR49: =q!O130 -> 0.95 | BS49: =q!P130 -> 1.077 | BU49: 0.3 | BV49: =q!E150 -> 0.977 | BW49: =q!F150 -> 0.817 | BX49: =q!G150 -> 1.437 | BY49: =q!H150 -> 4.036 | BZ49: =q!I150 -> 9.489 | CA49: =q!J150 -> 10.329 | CB49: =q!K150 -> 5.516 | CC49: =q!L150 -> 3.137 | CD49: =q!M150 -> 1.551 | CE49: =q!N150 -> 1.1 | CF49: =q!O150 -> 0.95 | CG49: =q!P150 -> 1.094
A50: 0.4 | B50: =q!E51 -> 1.126 | C50: =q!F51 -> 0.988 | D50: =q!G51 -> 2.682 | E50: =q!H51 -> 4.762 | F50: =q!I51 -> 5.316 | G50: =q!J51 -> 10.184 | H50: =q!K51 -> 3.068 | I50: =q!L51 -> 4.242 | J50: =q!M51 -> 1.912 | K50: =q!N51 -> 2.232 | L50: =q!O51 -> 1.092 | M50: =q!P51 -> 1.066 | P50: 0.4 | Q50: =q!E71 -> 1.2 | R50: =q!F71 -> 1.006 | S50: =q!G71 -> 2.504 | T50: =q!H71 -> 4.266 | U50: =q!I71 -> 5.034 | V50: =q!J71 -> 10.768 | W50: =q!K71 -> 3.286 | X50: =q!L71 -> 4.102 | Y50: =q!M71 -> 1.842 | Z50: =q!N71 -> 2.16 | AA50: =q!O71 -> 1.1 | AB50: =q!P71 -> 1.05 | AE50: 0.4 | AF50: =q!E91 -> 1.102 | AG50: =q!F91 -> 1.01 | AH50: =q!G91 -> 2.638 | AI50: =q!H91 -> 4.648 | AJ50: =q!I91 -> 6.51 | AK50: =q!J91 -> 9.758 | AL50: =q!K91 -> 4.766 | AM50: =q!L91 -> 3.76 | AN50: =q!M91 -> 1.934 | AO50: =q!N91 -> 1.922 | AP50: =q!O91 -> 1.006 | AQ50: =q!P91 -> 1.126 | AS50: 0.4 | AT50: =q!E111 -> 0.856 | AU50: =q!F111 -> 0.776 | AV50: =q!G111 -> 1.298 | AW50: =q!H111 -> 2.574 | AX50: =q!I111 -> 5.072 | AY50: =q!J111 -> 7.326 | AZ50: =q!K111 -> 3.556 | BA50: =q!L111 -> 2.7 | BB50: =q!M111 -> 0.972 | BC50: =q!N111 -> 0.944 | BD50: =q!O111 -> 0.916 | BE50: =q!P111 -> 1.016 | BG50: 0.4 | BH50: =q!E131 -> 0.88 | BI50: =q!F131 -> 0.77 | BJ50: =q!G131 -> 1.33 | BK50: =q!H131 -> 2.502 | BL50: =q!I131 -> 4.46 | BM50: =q!J131 -> 6.55 | BN50: =q!K131 -> 3.178 | BO50: =q!L131 -> 2.596 | BP50: =q!M131 -> 1.026 | BQ50: =q!N131 -> 0.886 | BR50: =q!O131 -> 0.896 | BS50: =q!P131 -> 1.02 | BU50: 0.4 | BV50: =q!E151 -> 0.834 | BW50: =q!F151 -> 0.72 | BX50: =q!G151 -> 1 | BY50: =q!H151 -> 2.466 | BZ50: =q!I151 -> 4.51 | CA50: =q!J151 -> 6.322 | CB50: =q!K151 -> 3.196 | CC50: =q!L151 -> 2.748 | CD50: =q!M151 -> 1.03 | CE50: =q!N151 -> 0.9 | CF50: =q!O151 -> 0.866 | CG50: =q!P151 -> 1.026
A51: 0.5 | B51: =q!E52 -> 1.055 | C51: =q!F52 -> 0.845 | D51: =q!G52 -> 2.16 | E51: =q!H52 -> 3.21 | F51: =q!I52 -> 3.45 | G51: =q!J52 -> 7.19 | H51: =q!K52 -> 2.245 | I51: =q!L52 -> 3.64 | J51: =q!M52 -> 1.48 | K51: =q!N52 -> 2.01 | L51: =q!O52 -> 0.98 | M51: =q!P52 -> 0.99 | P51: 0.5 | Q51: =q!E72 -> 1.11 | R51: =q!F72 -> 0.83 | S51: =q!G72 -> 2.155 | T51: =q!H72 -> 3.21 | U51: =q!I72 -> 3.47 | V51: =q!J72 -> 8.53 | W51: =q!K72 -> 2.49 | X51: =q!L72 -> 3.285 | Y51: =q!M72 -> 1.455 | Z51: =q!N72 -> 1.9 | AA51: =q!O72 -> 0.965 | AB51: =q!P72 -> 0.995 | AE51: 0.5 | AF51: =q!E92 -> 1.01 | AG51: =q!F92 -> 0.83 | AH51: =q!G92 -> 1.92 | AI51: =q!H92 -> 3.335 | AJ51: =q!I92 -> 4.28 | AK51: =q!J92 -> 7.135 | AL51: =q!K92 -> 2.995 | AM51: =q!L92 -> 3.175 | AN51: =q!M92 -> 1.495 | AO51: =q!N92 -> 1.685 | AP51: =q!O92 -> 0.945 | AQ51: =q!P92 -> 1.06 | AS51: 0.5 | AT51: =q!E112 -> 0.725 | AU51: =q!F112 -> 0.705 | AV51: =q!G112 -> 0.965 | AW51: =q!H112 -> 1.945 | AX51: =q!I112 -> 3.115 | AY51: =q!J112 -> 4.765 | AZ51: =q!K112 -> 2.06 | BA51: =q!L112 -> 2.05 | BB51: =q!M112 -> 0.785 | BC51: =q!N112 -> 0.82 | BD51: =q!O112 -> 0.84 | BE51: =q!P112 -> 0.95 | BG51: 0.5 | BH51: =q!E132 -> 0.765 | BI51: =q!F132 -> 0.675 | BJ51: =q!G132 -> 0.965 | BK51: =q!H132 -> 1.82 | BL51: =q!I132 -> 2.89 | BM51: =q!J132 -> 4.59 | BN51: =q!K132 -> 1.905 | BO51: =q!L132 -> 1.97 | BP51: =q!M132 -> 0.84 | BQ51: =q!N132 -> 0.795 | BR51: =q!O132 -> 0.82 | BS51: =q!P132 -> 0.955 | BU51: 0.5 | BV51: =q!E152 -> 0.72 | BW51: =q!F152 -> 0.655 | BX51: =q!G152 -> 0.835 | BY51: =q!H152 -> 1.415 | BZ51: =q!I152 -> 2.655 | CA51: =q!J152 -> 3.435 | CB51: =q!K152 -> 1.84 | CC51: =q!L152 -> 1.97 | CD51: =q!M152 -> 0.875 | CE51: =q!N152 -> 0.81 | CF51: =q!O152 -> 0.81 | CG51: =q!P152 -> 0.965
A52: 0.6 | B52: =q!E53 -> 0.874 | C52: =q!F53 -> 0.746 | D52: =q!G53 -> 1.786 | E52: =q!H53 -> 2.106 | F52: =q!I53 -> 2.368 | G52: =q!J53 -> 6.126 | H52: =q!K53 -> 1.684 | I52: =q!L53 -> 2.95 | J52: =q!M53 -> 1.008 | K52: =q!N53 -> 1.69 | L52: =q!O53 -> 0.9 | M52: =q!P53 -> 0.928 | P52: 0.6 | Q52: =q!E73 -> 0.94 | R52: =q!F73 -> 0.784 | S52: =q!G73 -> 1.57 | T52: =q!H73 -> 1.984 | U52: =q!I73 -> 2.368 | V52: =q!J73 -> 6.458 | W52: =q!K73 -> 1.874 | X52: =q!L73 -> 2.914 | Y52: =q!M73 -> 0.952 | Z52: =q!N73 -> 1.674 | AA52: =q!O73 -> 0.882 | AB52: =q!P73 -> 0.928 | AE52: 0.6 | AF52: =q!E93 -> 0.86 | AG52: =q!F93 -> 0.726 | AH52: =q!G93 -> 1.234 | AI52: =q!H93 -> 1.904 | AJ52: =q!I93 -> 3.286 | AK52: =q!J93 -> 4.9 | AL52: =q!K93 -> 2.002 | AM52: =q!L93 -> 2.706 | AN52: =q!M93 -> 0.814 | AO52: =q!N93 -> 1.314 | AP52: =q!O93 -> 0.864 | AQ52: =q!P93 -> 0.98 | AS52: 0.6 | AT52: =q!E113 -> 0.69 | AU52: =q!F113 -> 0.63 | AV52: =q!G113 -> 0.738 | AW52: =q!H113 -> 1.06 | AX52: =q!I113 -> 1.632 | AY52: =q!J113 -> 2.618 | AZ52: =q!K113 -> 1.434 | BA52: =q!L113 -> 1.494 | BB52: =q!M113 -> 0.72 | BC52: =q!N113 -> 0.76 | BD52: =q!O113 -> 0.8 | BE52: =q!P113 -> 0.874 | BG52: 0.6 | BH52: =q!E133 -> 0.684 | BI52: =q!F133 -> 0.63 | BJ52: =q!G133 -> 0.744 | BK52: =q!H133 -> 1.012 | BL52: =q!I133 -> 1.632 | BM52: =q!J133 -> 2.714 | BN52: =q!K133 -> 1.382 | BO52: =q!L133 -> 1.494 | BP52: =q!M133 -> 0.728 | BQ52: =q!N133 -> 0.714 | BR52: =q!O133 -> 0.79 | BS52: =q!P133 -> 0.862 | BU52: 0.6 | BV52: =q!E153 -> 0.63 | BW52: =q!F153 -> 0.604 | BX52: =q!G153 -> 0.74 | BY52: =q!H153 -> 0.946 | BZ52: =q!I153 -> 1.584 | CA52: =q!J153 -> 2.53 | CB52: =q!K153 -> 1.322 | CC52: =q!L153 -> 1.438 | CD52: =q!M153 -> 0.744 | CE52: =q!N153 -> 0.72 | CF52: =q!O153 -> 0.784 | CG52: =q!P153 -> 0.862
A53: 0.7 | B53: =q!E54 -> 0.763 | C53: =q!F54 -> 0.643 | D53: =q!G54 -> 1.243 | E53: =q!H54 -> 1.531 | F53: =q!I54 -> 1.722 | G53: =q!J54 -> 4.636 | H53: =q!K54 -> 1.298 | I53: =q!L54 -> 2.295 | J53: =q!M54 -> 0.78 | K53: =q!N54 -> 1.2 | L53: =q!O54 -> 0.82 | M53: =q!P54 -> 0.833 | P53: 0.7 | Q53: =q!E74 -> 0.812 | R53: =q!F74 -> 0.656 | S53: =q!G74 -> 1.243 | T53: =q!H74 -> 1.516 | U53: =q!I74 -> 1.712 | V53: =q!J74 -> 4.824 | W53: =q!K74 -> 1.382 | X53: =q!L74 -> 2.517 | Y53: =q!M74 -> 0.78 | Z53: =q!N74 -> 1.186 | AA53: =q!O74 -> 0.793 | AB53: =q!P74 -> 0.816 | AE53: 0.7 | AF53: =q!E94 -> 0.713 | AG53: =q!F94 -> 0.613 | AH53: =q!G94 -> 0.932 | AI53: =q!H94 -> 1.239 | AJ53: =q!I94 -> 2.067 | AK53: =q!J94 -> 3.497 | AL53: =q!K94 -> 1.67 | AM53: =q!L94 -> 1.935 | AN53: =q!M94 -> 0.69 | AO53: =q!N94 -> 1.056 | AP53: =q!O94 -> 0.803 | AQ53: =q!P94 -> 0.933 | AS53: 0.7 | AT53: =q!E114 -> 0.603 | AU53: =q!F114 -> 0.573 | AV53: =q!G114 -> 0.646 | AW53: =q!H114 -> 0.832 | AX53: =q!I114 -> 1.138 | AY53: =q!J114 -> 2.033 | AZ53: =q!K114 -> 0.833 | BA53: =q!L114 -> 0.876 | BB53: =q!M114 -> 0.653 | BC53: =q!N114 -> 0.673 | BD53: =q!O114 -> 0.78 | BE53: =q!P114 -> 0.763 | BG53: 0.7 | BH53: =q!E134 -> 0.566 | BI53: =q!F134 -> 0.563 | BJ53: =q!G134 -> 0.646 | BK53: =q!H134 -> 0.829 | BL53: =q!I134 -> 1.085 | BM53: =q!J134 -> 2.033 | BN53: =q!K134 -> 0.85 | BO53: =q!L134 -> 0.953 | BP53: =q!M134 -> 0.663 | BQ53: =q!N134 -> 0.643 | BR53: =q!O134 -> 0.75 | BS53: =q!P134 -> 0.733 | BU53: 0.7 | BV53: =q!E154 -> 0.56 | BW53: =q!F154 -> 0.56 | BX53: =q!G154 -> 0.64 | BY53: =q!H154 -> 0.796 | BZ53: =q!I154 -> 1.014 | CA53: =q!J154 -> 1.542 | CB53: =q!K154 -> 0.85 | CC53: =q!L154 -> 0.883 | CD53: =q!M154 -> 0.683 | CE53: =q!N154 -> 0.653 | CF53: =q!O154 -> 0.75 | CG53: =q!P154 -> 0.719
A54: 0.8 | B54: =q!E55 -> 0.636 | C54: =q!F55 -> 0.52 | D54: =q!G55 -> 0.84 | E54: =q!H55 -> 0.932 | F54: =q!I55 -> 1.394 | G54: =q!J55 -> 3.516 | H54: =q!K55 -> 0.918 | I54: =q!L55 -> 1.386 | J54: =q!M55 -> 0.674 | K54: =q!N55 -> 0.982 | L54: =q!O55 -> 0.772 | M54: =q!P55 -> 0.702 | P54: 0.8 | Q54: =q!E75 -> 0.674 | R54: =q!F75 -> 0.52 | S54: =q!G75 -> 0.872 | T54: =q!H75 -> 0.95 | U54: =q!I75 -> 1.392 | V54: =q!J75 -> 3.62 | W54: =q!K75 -> 0.892 | X54: =q!L75 -> 1.648 | Y54: =q!M75 -> 0.654 | Z54: =q!N75 -> 0.964 | AA54: =q!O75 -> 0.75 | AB54: =q!P75 -> 0.644 | AE54: 0.8 | AF54: =q!E95 -> 0.604 | AG54: =q!F95 -> 0.55 | AH54: =q!G95 -> 0.67 | AI54: =q!H95 -> 0.992 | AJ54: =q!I95 -> 1.338 | AK54: =q!J95 -> 2.628 | AL54: =q!K95 -> 0.936 | AM54: =q!L95 -> 1.402 | AN54: =q!M95 -> 0.626 | AO54: =q!N95 -> 0.804 | AP54: =q!O95 -> 0.762 | AQ54: =q!P95 -> 0.816 | AS54: 0.8 | AT54: =q!E115 -> 0.5 | AU54: =q!F115 -> 0.512 | AV54: =q!G115 -> 0.58 | AW54: =q!H115 -> 0.682 | AX54: =q!I115 -> 0.826 | AY54: =q!J115 -> 1.376 | AZ54: =q!K115 -> 0.7 | BA54: =q!L115 -> 0.732 | BB54: =q!M115 -> 0.61 | BC54: =q!N115 -> 0.61 | BD54: =q!O115 -> 0.75 | BE54: =q!P115 -> 0.66 | BG54: 0.8 | BH54: =q!E135 -> 0.46 | BI54: =q!F135 -> 0.506 | BJ54: =q!G135 -> 0.572 | BK54: =q!H135 -> 0.706 | BL54: =q!I135 -> 0.794 | BM54: =q!J135 -> 1.334 | BN54: =q!K135 -> 0.702 | BO54: =q!L135 -> 0.748 | BP54: =q!M135 -> 0.612 | BQ54: =q!N135 -> 0.61 | BR54: =q!O135 -> 0.682 | BS54: =q!P135 -> 0.564 | BU54: 0.8 | BV54: =q!E155 -> 0.464 | BW54: =q!F155 -> 0.492 | BX54: =q!G155 -> 0.57 | BY54: =q!H155 -> 0.672 | BZ54: =q!I155 -> 0.76 | CA54: =q!J155 -> 1.142 | CB54: =q!K155 -> 0.702 | CC54: =q!L155 -> 0.732 | CD54: =q!M155 -> 0.65 | CE54: =q!N155 -> 0.612 | CF54: =q!O155 -> 0.682 | CG54: =q!P155 -> 0.56
A55: 0.85 | B55: =q!E56 -> 0.583 | C55: =q!F56 -> 0.4065 | D55: =q!G56 -> 0.7465 | E55: =q!H56 -> 0.7165 | F55: =q!I56 -> 1.0115 | G55: =q!J56 -> 2.9545 | H55: =q!K56 -> 0.7765 | I55: =q!L56 -> 1.1525 | J55: =q!M56 -> 0.6165 | K55: =q!N56 -> 0.806 | L55: =q!O56 -> 0.75 | M55: =q!P56 -> 0.598 | P55: 0.85 | Q55: =q!E76 -> 0.5865 | R55: =q!F76 -> 0.4065 | S55: =q!G76 -> 0.7595 | T55: =q!H76 -> 0.7425 | U55: =q!I76 -> 1.0325 | V55: =q!J76 -> 2.795 | W55: =q!K76 -> 0.7595 | X55: =q!L76 -> 1.28 | Y55: =q!M76 -> 0.6065 | Z55: =q!N76 -> 0.78 | AA55: =q!O76 -> 0.693 | AB55: =q!P76 -> 0.4625 | AE55: 0.85 | AF55: =q!E96 -> 0.553 | AG55: =q!F96 -> 0.52 | AH55: =q!G96 -> 0.6065 | AI55: =q!H96 -> 0.806 | AJ55: =q!I96 -> 1.0195 | AK55: =q!J96 -> 2.156 | AL55: =q!K96 -> 0.773 | AM55: =q!L96 -> 1.1525 | AN55: =q!M96 -> 0.61 | AO55: =q!N96 -> 0.716 | AP55: =q!O96 -> 0.75 | AQ55: =q!P96 -> 0.6925 | AS55: 0.85 | AT55: =q!E116 -> 0.46 | AU55: =q!F116 -> 0.459 | AV55: =q!G116 -> 0.56 | AW55: =q!H116 -> 0.5825 | AX55: =q!I116 -> 0.66 | AY55: =q!J116 -> 0.969 | AZ55: =q!K116 -> 0.63 | BA55: =q!L116 -> 0.6565 | BB55: =q!M116 -> 0.5965 | BC55: =q!N116 -> 0.5695 | BD55: =q!O116 -> 0.71 | BE55: =q!P116 -> 0.5265 | BG55: 0.85 | BH55: =q!E136 -> 0.3965 | BI55: =q!F136 -> 0.4525 | BJ55: =q!G136 -> 0.54 | BK55: =q!H136 -> 0.64 | BL55: =q!I136 -> 0.713 | BM55: =q!J136 -> 1.079 | BN55: =q!K136 -> 0.64 | BO55: =q!L136 -> 0.6665 | BP55: =q!M136 -> 0.603 | BQ55: =q!N136 -> 0.5695 | BR55: =q!O136 -> 0.6465 | BS55: =q!P136 -> 0.513 | BU55: 0.85 | BV55: =q!E156 -> 0.3965 | BW55: =q!F156 -> 0.41 | BX55: =q!G156 -> 0.5365 | BY55: =q!H156 -> 0.613 | BZ55: =q!I156 -> 0.7 | CA55: =q!J156 -> 0.9195 | CB55: =q!K156 -> 0.6365 | CC55: =q!L156 -> 0.67 | CD55: =q!M156 -> 0.61 | CE55: =q!N156 -> 0.5965 | CF55: =q!O156 -> 0.633 | CG55: =q!P156 -> 0.486
A56: 0.9 | B56: =q!E57 -> 0.488 | C56: =q!F57 -> 0.381 | D56: =q!G57 -> 0.63 | E56: =q!H57 -> 0.617 | F56: =q!I57 -> 0.742 | G56: =q!J57 -> 1.861 | H56: =q!K57 -> 0.643 | I56: =q!L57 -> 1.08 | J56: =q!M57 -> 0.591 | K56: =q!N57 -> 0.641 | L56: =q!O57 -> 0.684 | M56: =q!P57 -> 0.421 | P56: 0.9 | Q56: =q!E77 -> 0.471 | R56: =q!F77 -> 0.38 | S56: =q!G77 -> 0.631 | T56: =q!H77 -> 0.591 | U56: =q!I77 -> 0.765 | V56: =q!J77 -> 1.678 | W56: =q!K77 -> 0.67 | X56: =q!L77 -> 1.102 | Y56: =q!M77 -> 0.59 | Z56: =q!N77 -> 0.641 | AA56: =q!O77 -> 0.484 | AB56: =q!P77 -> 0.371 | AE56: 0.9 | AF56: =q!E97 -> 0.471 | AG56: =q!F97 -> 0.428 | AH56: =q!G97 -> 0.542 | AI56: =q!H97 -> 0.694 | AJ56: =q!I97 -> 0.764 | AK56: =q!J97 -> 1.454 | AL56: =q!K97 -> 0.652 | AM56: =q!L97 -> 0.956 | AN56: =q!M97 -> 0.591 | AO56: =q!N97 -> 0.613 | AP56: =q!O97 -> 0.711 | AQ56: =q!P97 -> 0.584 | AS56: 0.9 | AT56: =q!E117 -> 0.404 | AU56: =q!F117 -> 0.371 | AV56: =q!G117 -> 0.484 | AW56: =q!H117 -> 0.501 | AX56: =q!I117 -> 0.55 | AY56: =q!J117 -> 0.661 | AZ56: =q!K117 -> 0.543 | BA56: =q!L117 -> 0.621 | BB56: =q!M117 -> 0.544 | BC56: =q!N117 -> 0.52 | BD56: =q!O117 -> 0.641 | BE56: =q!P117 -> 0.46 | BG56: 0.9 | BH56: =q!E137 -> 0.371 | BI56: =q!F137 -> 0.392 | BJ56: =q!G137 -> 0.472 | BK56: =q!H137 -> 0.55 | BL56: =q!I137 -> 0.622 | BM56: =q!J137 -> 0.828 | BN56: =q!K137 -> 0.584 | BO56: =q!L137 -> 0.64 | BP56: =q!M137 -> 0.543 | BQ56: =q!N137 -> 0.511 | BR56: =q!O137 -> 0.53 | BS56: =q!P137 -> 0.424 | BU56: 0.9 | BV56: =q!E157 -> 0.361 | BW56: =q!F157 -> 0.36 | BX56: =q!G157 -> 0.471 | BY56: =q!H157 -> 0.53 | BZ56: =q!I157 -> 0.55 | CA56: =q!J157 -> 0.679 | CB56: =q!K157 -> 0.544 | CC56: =q!L157 -> 0.622 | CD56: =q!M157 -> 0.591 | CE56: =q!N157 -> 0.53 | CF56: =q!O157 -> 0.521 | CG56: =q!P157 -> 0.401
A57: 0.95 | B57: =q!E58 -> 0.3865 | C57: =q!F58 -> 0.3155 | D57: =q!G58 -> 0.512 | E57: =q!H58 -> 0.493 | F57: =q!I58 -> 0.6265 | G57: =q!J58 -> 1.215 | H57: =q!K58 -> 0.611 | I57: =q!L58 -> 0.785 | J57: =q!M58 -> 0.4765 | K57: =q!N58 -> 0.591 | L57: =q!O58 -> 0.4795 | M57: =q!P58 -> 0.3555 | P57: 0.95 | Q57: =q!E78 -> 0.36 | R57: =q!F78 -> 0.31 | S57: =q!G78 -> 0.4855 | T57: =q!H78 -> 0.493 | U57: =q!I78 -> 0.6265 | V57: =q!J78 -> 1.215 | W57: =q!K78 -> 0.6065 | X57: =q!L78 -> 0.8905 | Y57: =q!M78 -> 0.4355 | Z57: =q!N78 -> 0.591 | AA57: =q!O78 -> 0.4 | AB57: =q!P78 -> 0.34 | AE57: 0.95 | AF57: =q!E98 -> 0.3465 | AG57: =q!F98 -> 0.3655 | AH57: =q!G98 -> 0.47 | AI57: =q!H98 -> 0.5255 | AJ57: =q!I98 -> 0.5155 | AK57: =q!J98 -> 1.0485 | AL57: =q!K98 -> 0.5975 | AM57: =q!L98 -> 0.7565 | AN57: =q!M98 -> 0.501 | AO57: =q!N98 -> 0.5855 | AP57: =q!O98 -> 0.583 | AQ57: =q!P98 -> 0.3755 | AS57: 0.95 | AT57: =q!E118 -> 0.3065 | AU57: =q!F118 -> 0.34 | AV57: =q!G118 -> 0.4265 | AW57: =q!H118 -> 0.442 | AX57: =q!I118 -> 0.4965 | AY57: =q!J118 -> 0.49 | AZ57: =q!K118 -> 0.4855 | BA57: =q!L118 -> 0.5655 | BB57: =q!M118 -> 0.471 | BC57: =q!N118 -> 0.47 | BD57: =q!O118 -> 0.4665 | BE57: =q!P118 -> 0.3655 | BG57: 0.95 | BH57: =q!E138 -> 0.311 | BI57: =q!F138 -> 0.3455 | BJ57: =q!G138 -> 0.3855 | BK57: =q!H138 -> 0.4855 | BL57: =q!I138 -> 0.52 | BM57: =q!J138 -> 0.5665 | BN57: =q!K138 -> 0.5055 | BO57: =q!L138 -> 0.5855 | BP57: =q!M138 -> 0.471 | BQ57: =q!N138 -> 0.47 | BR57: =q!O138 -> 0.4255 | BS57: =q!P138 -> 0.3655 | BU57: 0.95 | BV57: =q!E158 -> 0.3255 | BW57: =q!F158 -> 0.31 | BX57: =q!G158 -> 0.3855 | BY57: =q!H158 -> 0.432 | BZ57: =q!I158 -> 0.52 | CA57: =q!J158 -> 0.523 | CB57: =q!K158 -> 0.4955 | CC57: =q!L158 -> 0.5655 | CD57: =q!M158 -> 0.4965 | CE57: =q!N158 -> 0.47 | CF57: =q!O158 -> 0.4255 | CG57: =q!P158 -> 0.36
A58: 0.99 | B58: =q!E59 -> 0.3 | C58: =q!F59 -> 0.2873 | D58: =q!G59 -> 0.3791 | E58: =q!H59 -> 0.37 | F58: =q!I59 -> 0.3691 | G58: =q!J59 -> 0.9564 | H58: =q!K59 -> 0.4755 | I58: =q!L59 -> 0.5683 | J58: =q!M59 -> 0.4273 | K58: =q!N59 -> 0.4273 | L58: =q!O59 -> 0.36 | M58: =q!P59 -> 0.3091 | P58: 0.99 | Q58: =q!E79 -> 0.2982 | R58: =q!F79 -> 0.2873 | S58: =q!G79 -> 0.3601 | T58: =q!H79 -> 0.3664 | U58: =q!I79 -> 0.3691 | V58: =q!J79 -> 0.9392 | W58: =q!K79 -> 0.5219 | X58: =q!L79 -> 0.6502 | Y58: =q!M79 -> 0.3946 | Z58: =q!N79 -> 0.4391 | AA58: =q!O79 -> 0.3564 | AB58: =q!P79 -> 0.3091 | AE58: 0.99 | AF58: =q!E99 -> 0.2891 | AG58: =q!F99 -> 0.3391 | AH58: =q!G99 -> 0.3946 | AI58: =q!H99 -> 0.4064 | AJ58: =q!I99 -> 0.3974 | AK58: =q!J99 -> 0.3891 | AL58: =q!K99 -> 0.4291 | AM58: =q!L99 -> 0.6164 | AN58: =q!M99 -> 0.4582 | AO58: =q!N99 -> 0.4228 | AP58: =q!O99 -> 0.4219 | AQ58: =q!P99 -> 0.2991 | AS58: 0.99 | AT58: =q!E119 -> 0.2591 | AU58: =q!F119 -> 0.2682 | AV58: =q!G119 -> 0.2791 | AW58: =q!H119 -> 0.35 | AX58: =q!I119 -> 0.3974 | AY58: =q!J119 -> 0.4291 | AZ58: =q!K119 -> 0.4291 | BA58: =q!L119 -> 0.4182 | BB58: =q!M119 -> 0.3991 | BC58: =q!N119 -> 0.3773 | BD58: =q!O119 -> 0.34 | BE58: =q!P119 -> 0.2991 | BG58: 0.99 | BH58: =q!E139 -> 0.2755 | BI58: =q!F139 -> 0.2991 | BJ58: =q!G139 -> 0.2791 | BK58: =q!H139 -> 0.35 | BL58: =q!I139 -> 0.4347 | BM58: =q!J139 -> 0.4382 | BN58: =q!K139 -> 0.4291 | BO58: =q!L139 -> 0.4191 | BP58: =q!M139 -> 0.3991 | BQ58: =q!N139 -> 0.3773 | BR58: =q!O139 -> 0.34 | BS58: =q!P139 -> 0.2991 | BU58: 0.99 | BV58: =q!E159 -> 0.28 | BW58: =q!F159 -> 0.2891 | BX58: =q!G159 -> 0.2791 | BY58: =q!H159 -> 0.3482 | BZ58: =q!I159 -> 0.4347 | CA58: =q!J159 -> 0.4382 | CB58: =q!K159 -> 0.4291 | CC58: =q!L159 -> 0.4191 | CD58: =q!M159 -> 0.3991 | CE58: =q!N159 -> 0.3773 | CF58: =q!O159 -> 0.34 | CG58: =q!P159 -> 0.2991
A59: 0.999 | B59: =q!E60 -> 0.3 | C59: =q!F60 -> 0.26 | D59: =q!G60 -> 0.37 | E59: =q!H60 -> 0.37 | F59: =q!I60 -> 0.36 | G59: =q!J60 -> 0.92 | H59: =q!K60 -> 0.43 | I59: =q!L60 -> 0.45 | J59: =q!M60 -> 0.4 | K59: =q!N60 -> 0.4 | L59: =q!O60 -> 0.36 | M59: =q!P60 -> 0.3 | P59: 0.999 | Q59: =q!E80 -> 0.28 | R59: =q!F80 -> 0.26 | S59: =q!G80 -> 0.26 | T59: =q!H80 -> 0.33 | U59: =q!I80 -> 0.36 | V59: =q!J80 -> 0.83 | W59: =q!K80 -> 0.44 | X59: =q!L80 -> 0.45 | Y59: =q!M80 -> 0.34 | Z59: =q!N80 -> 0.43 | AA59: =q!O80 -> 0.32 | AB59: =q!P80 -> 0.3 | AE59: 0.999 | AF59: =q!E100 -> 0.28 | AG59: =q!F100 -> 0.33 | AH59: =q!G100 -> 0.34 | AI59: =q!H100 -> 0.37 | AJ59: =q!I100 -> 0.27 | AK59: =q!J100 -> 0.38 | AL59: =q!K100 -> 0.42 | AM59: =q!L100 -> 0.58 | AN59: =q!M100 -> 0.44 | AO59: =q!N100 -> 0.35 | AP59: =q!O100 -> 0.34 | AQ59: =q!P100 -> 0.29 | AS59: 0.999 | AT59: =q!E120 -> 0.25 | AU59: =q!F120 -> 0.25 | AV59: =q!G120 -> 0.27 | AW59: =q!H120 -> 0.35 | AX59: =q!I120 -> 0.27 | AY59: =q!J120 -> 0.42 | AZ59: =q!K120 -> 0.42 | BA59: =q!L120 -> 0.4 | BB59: =q!M120 -> 0.39 | BC59: =q!N120 -> 0.35 | BD59: =q!O120 -> 0.34 | BE59: =q!P120 -> 0.29 | BG59: 0.999 | BH59: =q!E140 -> 0.23 | BI59: =q!F140 -> 0.29 | BJ59: =q!G140 -> 0.27 | BK59: =q!H140 -> 0.35 | BL59: =q!I140 -> 0.28 | BM59: =q!J140 -> 0.42 | BN59: =q!K140 -> 0.42 | BO59: =q!L140 -> 0.41 | BP59: =q!M140 -> 0.39 | BQ59: =q!N140 -> 0.35 | BR59: =q!O140 -> 0.34 | BS59: =q!P140 -> 0.29 | BU59: 0.999 | BV59: =q!E160 -> 0.28 | BW59: =q!F160 -> 0.28 | BX59: =q!G160 -> 0.27 | BY59: =q!H160 -> 0.33 | BZ59: =q!I160 -> 0.28 | CA59: =q!J160 -> 0.42 | CB59: =q!K160 -> 0.42 | CC59: =q!L160 -> 0.41 | CD59: =q!M160 -> 0.39 | CE59: =q!N160 -> 0.35 | CF59: =q!O160 -> 0.34 | CG59: =q!P160 -> 0.29
A63: Scenario | B63: =B41 -> Sc 2A | C63: vs Natural | P63: Scenario | Q63: =Q41 -> Sc 2B | R63: vs Natural | AE63: Scenario | AF63: =AF41 -> Sc 3 | AG63: vs Natural | AS63: Scenario | AT63: =AT41 -> Sc 4A | AU63: vs Natural | BG63: Scenario | BH63: =BH41 -> Sc 4B | BI63: vs Natural | BU63: Scenario | BV63: =BV41 -> Sc 7 | BW63: vs Natural
A64: 0.001 | B64: =B43-B3 -> 22.65 | C64: -1.41 | D64: -4.73 | E64: -7.58 | F64: -9.94 | G64: -13.73 | H64: -12.72 | I64: -4.63 | J64: -3.51 | K64: 7 | L64: 2.67 | M64: 4.89 | P64: 0.001 | Q64: =Q43-B3 -> 30.91 | R64: =R43-C3 -> -2.09 | S64: -4.74 | T64: -7.58 | U64: -9.94 | V64: -13.73 | W64: -12.72 | X64: -4.63 | Y64: -3.51 | Z64: -2.15 | AA64: -0.66 | AB64: 5.24 | AE64: 0.001 | AF64: =AF43-B3 -> 34.77 | AG64: =AG43-C3 -> -2.09 | AH64: -4.74 | AI64: -7.58 | AJ64: -9.94 | AK64: -13.73 | AL64: -12.72 | AM64: -4.63 | AN64: -3.51 | AO64: 16.59 | AP64: -3.5 | AQ64: 0.01 | AS64: 0.001 | AT64: =AT43-B3 -> -2.02 | AU64: =AU43-C3 -> -4.65 | AV64: -6.62 | AW64: -8.5 | AX64: -10.78 | AY64: -14.65 | AZ64: -13.61 | BA64: -5.55 | BB64: -4.4 | BC64: -2.82 | BD64: -4.16 | BE64: -4.29 | BG64: 0.001 | BH64: =BH43-B3 -> 3.42 | BI64: =BI43-C3 -> -4.73 | BJ64: -6.79 | BK64: -9.02 | BL64: -11.29 | BM64: -14.74 | BN64: -13.71 | BO64: -5.67 | BP64: -4.5 | BQ64: -3.86 | BR64: -4.03 | BS64: -2.37 | BU64: 0.001 | BV64: =BV43-B3 -> -2.95 | BW64: =BW43-C3 -> -4.89 | BX64: -6.79 | BY64: -9.02 | BZ64: -11.29 | CA64: -14.74 | CB64: -13.71 | CC64: -5.67 | CD64: -4.5 | CE64: -2.43 | CF64: -4.16 | CG64: -2.2
A65: 0.01 | B65: 4.08 | C65: -2.42 | D65: 12.85 | E65: -8.97 | F65: -11.68 | G65: -11.9 | H65: -6.09 | I65: -3.03 | J65: -3.02 | K65: 0.35 | L65: -3.42 | M65: 3.7 | P65: 0.01 | Q65: 28.77 | R65: -2.13 | S65: 2.1 | T65: -8.97 | U65: -11.68 | V65: -11.9 | W65: -6.09 | X65: -2.6 | Y65: -3.28 | Z65: -2.23 | AA65: -1.01 | AB65: 4.94 | AE65: 0.01 | AF65: 4.39 | AG65: -2.83 | AH65: 12.79 | AI65: -8.97 | AJ65: -11.68 | AK65: -11.9 | AL65: -6.09 | AM65: -3.71 | AN65: -3.28 | AO65: 0.25 | AP65: -3.48 | AQ65: -0.35 | AS65: 0.01 | AT65: -3.38 | AU65: -6.49 | AV65: -9.75 | AW65: -9.9 | AX65: -12.52 | AY65: -12.82 | AZ65: -6.99 | BA65: -2.48 | BB65: -4.17 | BC65: -2.83 | BD65: -4.11 | BE65: -3.58 | BG65: 0.01 | BH65: -2.13 | BI65: -6.58 | BJ65: -9.79 | BK65: -10.47 | BL65: -13.02 | BM65: -12.9 | BN65: -7.09 | BO65: -2.63 | BP65: -4.24 | BQ65: -3.39 | BR65: -4.08 | BS65: -3.57 | BU65: 0.01 | BV65: -3.01 | BW65: -6.58 | BX65: -9.79 | BY65: -10.47 | BZ65: -13.02 | CA65: -12.9 | CB65: -7.09 | CC65: -2.19 | CD65: -4.24 | CE65: -3.1 | CF65: -4.12 | CG65: -2.17
A66: 0.05 | B66: -1.3375 | C66: -1.209 | D66: -1.6905 | E66: -13.4045 | F66: -30.283 | G66: -15.5305 | H66: -8.1665 | I66: -4.428 | J66: -3.7015 | K66: -2.4005 | L66: -2.9895 | M66: -2.5105 | P66: 0.05 | Q66: 0.1355 | R66: -1.572 | S66: -5.6685 | T66: -13.4045 | U66: -30.283 | V66: -13.8145 | W66: -8.1665 | X66: -4.395 | Y66: -3.8965 | Z66: -2.454 | AA66: -2.6455 | AB66: -1.502 | AE66: 0.05 | AF66: -0.7025 | AG66: -2.6145 | AH66: -5.334 | AI66: -13.265 | AJ66: -28.32 | AK66: -17.3005 | AL66: -8.1665 | AM66: -5.303 | AN66: -3.8965 | AO66: -1.585 | AP66: -3.24 | AQ66: -1.1265 | AS66: 0.05 | AT66: -3.2925 | AU66: -4.968 | AV66: -8.7845 | AW66: -16.5485 | AX66: -29.16 | AY66: -17.599 | AZ66: -9.0665 | BA66: -5.6505 | BB66: -4.7095 | BC66: -3.194 | BD66: -3.6785 | BE66: -3.24 | BG66: 0.05 | BH66: -3.1955 | BI66: -5.1265 | BJ66: -8.9955 | BK66: -17.2355 | BL66: -29.4165 | BM66: -18.3205 | BN66: -9.171 | BO66: -5.899 | BP66: -4.725 | BQ66: -3.52 | BR66: -3.666 | BS66: -3.229 | BU66: 0.05 | BV66: -3.212 | BW66: -5.9895 | BX66: -8.9955 | BY66: -17.2355 | BZ66: -29.4165 | CA66: -17.9465 | CB66: -9.171 | CC66: -5.5855 | CD66: -4.791 | CE66: -3.1195 | CF66: -4.074 | CG66: -3.229
A67: 0.1 | B67: -2.321 | C67: -2.811 | D67: -5.037 | E67: -9.487 | F67: -18.65 | G67: -12.11 | H67: -9.723 | I67: -5.411 | J67: -3.406 | K67: -2.179 | L67: -3.137 | M67: -2.492 | P67: 0.1 | Q67: -2.291 | R67: -2.811 | S67: -5.586 | T67: -9.488 | U67: -14.892 | V67: -12.316 | W67: -9.723 | X67: -5.116 | Y67: -3.633 | Z67: -2.257 | AA67: -3.033 | AB67: -2.54 | AE67: 0.1 | AF67: -2.348 | AG67: -3.058 | AH67: -6.03 | AI67: -9.554 | AJ67: -11.027 | AK67: -12.654 | AL67: -9.723 | AM67: -5.567 | AN67: -3.534 | AO67: -2.237 | AP67: -3.179 | AQ67: -2.397 | AS67: 0.1 | AT67: -3.158 | AU67: -4.388 | AV67: -9.563 | AW67: -11.235 | AX67: -12.015 | AY67: -13.574 | AZ67: -10.613 | BA67: -6.403 | BB67: -4.424 | BC67: -3.172 | BD67: -3.788 | BE67: -3.09 | BG67: 0.1 | BH67: -3.119 | BI67: -4.212 | BJ67: -10.11 | BK67: -11.245 | BL67: -12.376 | BM67: -13.674 | BN67: -10.743 | BO67: -6.625 | BP67: -4.425 | BQ67: -3.657 | BR67: -3.756 | BS67: -3.087 | BU67: 0.1 | BV67: -3.212 | BW67: -4.481 | BX67: -10.11 | BY67: -11.245 | BZ67: -15.697 | CA67: -13.01 | CB67: -10.743 | CC67: -6.587 | CD67: -4.425 | CE67: -3.217 | CF67: -3.863 | CG67: -3.087
A68: 0.15 | B68: -2.142 | C68: -3.019 | D68: -5.1065 | E68: -6.938 | F68: -10.3285 | G68: -12.119 | H68: -6.4205 | I68: -4.1325 | J68: -3.213 | K68: -2.2655 | L68: -3.1035 | M68: -2.5935 | P68: 0.15 | Q68: -1.9265 | R68: -3.0775 | S68: -6.508 | T68: -6.99 | U68: -10.216 | V68: -12.223 | W68: -6.4205 | X68: -4.1325 | Y68: -3.3725 | Z68: -2.1215 | AA68: -3.0625 | AB68: -2.7275 | AE68: 0.15 | AF68: -2.219 | AG68: -3.1615 | AH68: -5.9635 | AI68: -7.3765 | AJ68: -9.3735 | AK68: -12.8755 | AL68: -6.414 | AM68: -4.9385 | AN68: -3.3295 | AO68: -2.42 | AP68: -3.17 | AQ68: -2.537 | AS68: 0.15 | AT68: -2.713 | AU68: -4.348 | AV68: -9.5175 | AW68: -10.5055 | AX68: -10.2135 | AY68: -14.1625 | AZ68: -7.3105 | BA68: -6.2285 | BB68: -4.2195 | BC68: -3.432 | BD68: -3.693 | BE68: -2.914 | BG68: 0.15 | BH68: -2.68 | BI68: -4.4325 | BJ68: -9.6 | BK68: -10.9585 | BL68: -10.73 | BM68: -15.405 | BN68: -7.434 | BO68: -6.0225 | BP68: -4.2295 | BQ68: -3.564 | BR68: -3.6535 | BS68: -2.8905 | BU68: 0.15 | BV68: -2.6935 | BW68: -4.466 | BX68: -9.693 | BY68: -10.0385 | BZ68: -11.5025 | CA68: -13.6215 | CB68: -7.434 | CC68: -6.4085 | CD68: -4.2295 | CE68: -3.4955 | CF68: -3.693 | CG68: -2.884
A69: 0.2 | B69: -2.26 | C69: -3.07 | D69: -4.264 | E69: -10.612 | F69: -10.864 | G69: -9.262 | H69: -9.228 | I69: -3.67 | J69: -3.086 | K69: -2.054 | L69: -2.952 | M69: -2.664 | P69: 0.2 | Q69: -2.146 | R69: -3.158 | S69: -5.194 | T69: -10.612 | U69: -10.872 | V69: -7.898 | W69: -9.228 | X69: -4.176 | Y69: -3.29 | Z69: -2.054 | AA69: -2.918 | AB69: -2.684 | AE69: 0.2 | AF69: -2.348 | AG69: -3.162 | AH69: -4.704 | AI69: -8.686 | AJ69: -10.872 | AK69: -9.704 | AL69: -7.218 | AM69: -4.79 | AN69: -3.28 | AO69: -2.334 | AP69: -3.098 | AQ69: -2.66 | AS69: 0.2 | AT69: -2.646 | AU69: -4.052 | AV69: -7.176 | AW69: -11.836 | AX69: -11.148 | AY69: -12.578 | AZ69: -9.376 | BA69: -5.774 | BB69: -4.178 | BC69: -3.288 | BD69: -3.466 | BE69: -2.81 | BG69: 0.2 | BH69: -2.622 | BI69: -4.064 | BJ69: -7.344 | BK69: -12.024 | BL69: -11.404 | BM69: -12.584 | BN69: -10.324 | BO69: -5.802 | BP69: -4.178 | BQ69: -3.502 | BR69: -3.454 | BS69: -2.792 | BU69: 0.2 | BV69: -2.642 | BW69: -4.092 | BX69: -7.546 | BY69: -12.022 | BZ69: -11.598 | CA69: -11.16 | CB69: -9.316 | CC69: -6.202 | CD69: -4.184 | CE69: -3.534 | CF69: -3.474 | CG69: -2.782
A70: 0.3 | B70: -2.19 | C70: -3.302 | D70: -4.168 | E70: -8.835 | F70: -6.742 | G70: -5.27 | H70: -7.978 | I70: -3.917 | J70: -3.342 | K70: -2.278 | L70: -3.079 | M70: -2.581 | P70: 0.3 | Q70: -2.098 | R70: -3.178 | S70: -4.736 | T70: -9.194 | U70: -7.106 | V70: -5.171 | W70: -7.933 | X70: -4.238 | Y70: -3.634 | Z70: -2.332 | AA70: -2.953 | AB70: -2.587 | AE70: 0.3 | AF70: -2.285 | AG70: -3.213 | AH70: -4.248 | AI70: -8.33 | AJ70: -6.107 | AK70: -5.733 | AL70: -7.041 | AM70: -4.74 | AN70: -3.117 | AO70: -2.796 | AP70: -3.206 | AQ70: -2.551 | AS70: 0.3 | AT70: -2.535 | AU70: -3.634 | AV70: -5.911 | AW70: -10.536 | AX70: -8.454 | AY70: -8.196 | AZ70: -8.733 | BA70: -5.688 | BB70: -4.347 | BC70: -3.719 | BD70: -3.33 | BE70: -2.644 | BG70: 0.3 | BH70: -2.505 | BI70: -3.637 | BJ70: -6.007 | BK70: -10.972 | BL70: -8.477 | BM70: -8.912 | BN70: -8.743 | BO70: -5.717 | BP70: -4.347 | BQ70: -3.831 | BR70: -3.33 | BS70: -2.644 | BU70: 0.3 | BV70: -2.508 | BW70: -3.734 | BX70: -6.303 | BY70: -10.634 | BZ70: -7.236 | CA70: -9.11 | CB70: -8.75 | CC70: -5.748 | CD70: -4.165 | CE70: -3.88 | CF70: -3.33 | CG70: -2.627
A71: 0.4 | B71: -2.016 | C71: -2.878 | D71: -3.72 | E71: -5.836 | F71: -8.146 | G71: -4.498 | H71: -8.828 | I71: -3.61 | J71: -3.566 | K71: -2.548 | L71: -3 | M71: -2.43 | P71: 0.4 | Q71: -1.942 | R71: -2.86 | S71: -3.898 | T71: -6.332 | U71: -8.428 | V71: -3.914 | W71: -8.61 | X71: -3.75 | Y71: -3.636 | Z71: -2.62 | AA71: -2.992 | AB71: -2.446 | AE71: 0.4 | AF71: -2.04 | AG71: -2.856 | AH71: -3.764 | AI71: -5.95 | AJ71: -6.952 | AK71: -4.924 | AL71: -7.13 | AM71: -4.092 | AN71: -3.544 | AO71: -2.858 | AP71: -3.086 | AQ71: -2.37 | AS71: 0.4 | AT71: -2.286 | AU71: -3.09 | AV71: -5.104 | AW71: -8.024 | AX71: -8.39 | AY71: -7.356 | AZ71: -8.34 | BA71: -5.152 | BB71: -4.506 | BC71: -3.836 | BD71: -3.176 | BE71: -2.48 | BG71: 0.4 | BH71: -2.262 | BI71: -3.096 | BJ71: -5.072 | BK71: -8.096 | BL71: -9.002 | BM71: -8.132 | BN71: -8.718 | BO71: -5.256 | BP71: -4.452 | BQ71: -3.894 | BR71: -3.196 | BS71: -2.476 | BU71: 0.4 | BV71: -2.308 | BW71: -3.146 | BX71: -5.402 | BY71: -8.132 | BZ71: -8.952 | CA71: -8.36 | CB71: -8.7 | CC71: -5.104 | CD71: -4.448 | CE71: -3.88 | CF71: -3.226 | CG71: -2.47
A72: 0.5 | B72: -1.84 | C72: -2.73 | D72: -3.49 | E72: -5.985 | F72: -8.47 | G72: -4.845 | H72: -7.08 | I72: -3.02 | J72: -3.68 | K72: -2.375 | L72: -2.81 | M72: -2.295 | P72: 0.5 | Q72: -1.785 | R72: -2.745 | S72: -3.495 | T72: -5.985 | U72: -8.45 | V72: -3.505 | W72: -6.835 | X72: -3.375 | Y72: -3.705 | Z72: -2.485 | AA72: -2.825 | AB72: -2.29 | AE72: 0.5 | AF72: -1.885 | AG72: -2.745 | AH72: -3.73 | AI72: -5.86 | AJ72: -7.64 | AK72: -4.9 | AL72: -6.33 | AM72: -3.485 | AN72: -3.665 | AO72: -2.7 | AP72: -2.845 | AQ72: -2.225 | AS72: 0.5 | AT72: -2.17 | AU72: -2.87 | AV72: -4.685 | AW72: -7.25 | AX72: -8.805 | AY72: -7.27 | AZ72: -7.265 | BA72: -4.61 | BB72: -4.375 | BC72: -3.565 | BD72: -2.95 | BE72: -2.335 | BG72: 0.5 | BH72: -2.13 | BI72: -2.9 | BJ72: -4.685 | BK72: -7.375 | BL72: -9.03 | BM72: -7.445 | BN72: -7.42 | BO72: -4.69 | BP72: -4.32 | BQ72: -3.59 | BR72: -2.97 | BS72: -2.33 | BU72: 0.5 | BV72: -2.175 | BW72: -2.92 | BX72: -4.815 | BY72: -7.78 | BZ72: -9.265 | CA72: -8.6 | CB72: -7.485 | CC72: -4.69 | CD72: -4.285 | CE72: -3.575 | CF72: -2.98 | CG72: -2.32
A73: 0.6 | B73: -1.844 | C73: -2.384 | D73: -3.018 | E73: -5.246 | F73: -6.772 | G73: -2.572 | H73: -5.526 | I73: -2.746 | J73: -3.756 | K73: -2.448 | L73: -2.688 | M73: -2.086 | P73: 0.6 | Q73: -1.778 | R73: -2.346 | S73: -3.234 | T73: -5.368 | U73: -6.772 | V73: -2.24 | W73: -5.336 | X73: -2.782 | Y73: -3.812 | Z73: -2.464 | AA73: -2.706 | AB73: -2.086 | AE73: 0.6 | AF73: -1.858 | AG73: -2.404 | AH73: -3.57 | AI73: -5.448 | AJ73: -5.854 | AK73: -3.798 | AL73: -5.208 | AM73: -2.99 | AN73: -3.95 | AO73: -2.824 | AP73: -2.724 | AQ73: -2.034 | AS73: 0.6 | AT73: -2.028 | AU73: -2.5 | AV73: -4.066 | AW73: -6.292 | AX73: -7.508 | AY73: -6.08 | AZ73: -5.776 | BA73: -4.202 | BB73: -4.044 | BC73: -3.378 | BD73: -2.788 | BE73: -2.14 | BG73: 0.6 | BH73: -2.034 | BI73: -2.5 | BJ73: -4.06 | BK73: -6.34 | BL73: -7.508 | BM73: -5.984 | BN73: -5.828 | BO73: -4.202 | BP73: -4.036 | BQ73: -3.424 | BR73: -2.798 | BS73: -2.152 | BU73: 0.6 | BV73: -2.088 | BW73: -2.526 | BX73: -4.064 | BY73: -6.406 | BZ73: -7.556 | CA73: -6.168 | CB73: -5.888 | CC73: -4.258 | CD73: -4.02 | CE73: -3.418 | CF73: -2.804 | CG73: -2.152
A74: 0.7 | B74: -1.753 | C74: -2.178 | D74: -2.875 | E74: -4.229 | F74: -5.619 | G74: -2.784 | H74: -4.922 | I74: -2.828 | J74: -3.572 | K74: -2.593 | L74: -2.53 | M74: -1.89 | P74: 0.7 | Q74: -1.704 | R74: -2.165 | S74: -2.875 | T74: -4.244 | U74: -5.629 | V74: -2.596 | W74: -4.838 | X74: -2.606 | Y74: -3.572 | Z74: -2.607 | AA74: -2.557 | AB74: -1.907 | AE74: 0.7 | AF74: -1.803 | AG74: -2.208 | AH74: -3.186 | AI74: -4.521 | AJ74: -5.274 | AK74: -3.923 | AL74: -4.55 | AM74: -3.188 | AN74: -3.662 | AO74: -2.737 | AP74: -2.547 | AQ74: -1.79 | AS74: 0.7 | AT74: -1.913 | AU74: -2.248 | AV74: -3.472 | AW74: -4.928 | AX74: -6.203 | AY74: -5.387 | AZ74: -5.387 | BA74: -4.247 | BB74: -3.699 | BC74: -3.12 | BD74: -2.57 | BE74: -1.96 | BG74: 0.7 | BH74: -1.95 | BI74: -2.258 | BJ74: -3.472 | BK74: -4.931 | BL74: -6.256 | BM74: -5.387 | BN74: -5.37 | BO74: -4.17 | BP74: -3.689 | BQ74: -3.15 | BR74: -2.6 | BS74: -1.99 | BU74: 0.7 | BV74: -1.956 | BW74: -2.261 | BX74: -3.478 | BY74: -4.964 | BZ74: -6.327 | CA74: -5.878 | CB74: -5.37 | CC74: -4.24 | CD74: -3.669 | CE74: -3.14 | CF74: -2.6 | CG74: -2.004
A75: 0.8 | B75: -1.53 | C75: -1.964 | D75: -2.506 | E75: -4.15 | F75: -4.87 | G75: -2.42 | H75: -4.58 | I75: -3.23 | J75: -3.218 | K75: -2.46 | L75: -2.184 | M75: -1.72 | P75: 0.8 | Q75: -1.492 | R75: -1.964 | S75: -2.474 | T75: -4.132 | U75: -4.872 | V75: -2.316 | W75: -4.606 | X75: -2.968 | Y75: -3.238 | Z75: -2.478 | AA75: -2.206 | AB75: -1.778 | AE75: 0.8 | AF75: -1.562 | AG75: -1.934 | AH75: -2.676 | AI75: -4.09 | AJ75: -4.926 | AK75: -3.308 | AL75: -4.562 | AM75: -3.214 | AN75: -3.266 | AO75: -2.638 | AP75: -2.194 | AQ75: -1.606 | AS75: 0.8 | AT75: -1.666 | AU75: -1.972 | AV75: -2.766 | AW75: -4.4 | AX75: -5.438 | AY75: -4.56 | AZ75: -4.798 | BA75: -3.884 | BB75: -3.282 | BC75: -2.832 | BD75: -2.206 | BE75: -1.762 | BG75: 0.8 | BH75: -1.706 | BI75: -1.978 | BJ75: -2.774 | BK75: -4.376 | BL75: -5.47 | BM75: -4.602 | BN75: -4.796 | BO75: -3.868 | BP75: -3.28 | BQ75: -2.832 | BR75: -2.274 | BS75: -1.858 | BU75: 0.8 | BV75: -1.702 | BW75: -1.992 | BX75: -2.776 | BY75: -4.41 | BZ75: -5.504 | CA75: -4.794 | CB75: -4.796 | CC75: -3.884 | CD75: -3.242 | CE75: -2.83 | CF75: -2.274 | CG75: -1.862
A76: 0.85 | B76: -1.457 | C76: -1.8455 | D76: -2.1955 | E76: -3.615 | F76: -4.531 | G76: -2.3215 | H76: -4.4615 | I76: -3.3735 | J76: -3.13 | K76: -2.4505 | L76: -2.0265 | M76: -1.775 | P76: 0.85 | Q76: -1.4535 | R76: -1.8455 | S76: -2.1825 | T76: -3.589 | U76: -4.51 | V76: -2.481 | W76: -4.4785 | X76: -3.246 | Y76: -3.14 | Z76: -2.4765 | AA76: -2.0835 | AB76: -1.9105 | AE76: 0.85 | AF76: -1.487 | AG76: -1.732 | AH76: -2.3355 | AI76: -3.5255 | AJ76: -4.523 | AK76: -3.12 | AL76: -4.465 | AM76: -3.3735 | AN76: -3.1365 | AO76: -2.5405 | AP76: -2.0265 | AQ76: -1.6805 | AS76: 0.85 | AT76: -1.58 | AU76: -1.793 | AV76: -2.382 | AW76: -3.749 | AX76: -4.8825 | AY76: -4.307 | AZ76: -4.608 | BA76: -3.8695 | BB76: -3.15 | BC76: -2.687 | BD76: -2.0665 | BE76: -1.8465 | BG76: 0.85 | BH76: -1.6435 | BI76: -1.7995 | BJ76: -2.402 | BK76: -3.6915 | BL76: -4.8295 | BM76: -4.197 | BN76: -4.598 | BO76: -3.8595 | BP76: -3.1435 | BQ76: -2.687 | BR76: -2.13 | BS76: -1.86 | BU76: 0.85 | BV76: -1.6435 | BW76: -1.842 | BX76: -2.4055 | BY76: -3.7185 | BZ76: -4.8425 | CA76: -4.3565 | CB76: -4.6015 | CC76: -3.856 | CD76: -3.1365 | CE76: -2.66 | CF76: -2.1435 | CG76: -1.887
A77: 0.9 | B77: -1.533 | C77: -1.662 | D77: -2.194 | E77: -3.001 | F77: -3.814 | G77: -2.814 | H77: -3.982 | I77: -3.041 | J77: -2.985 | K77: -2.492 | L77: -1.953 | M77: -1.749 | P77: 0.9 | Q77: -1.55 | R77: -1.663 | S77: -2.193 | T77: -3.027 | U77: -3.791 | V77: -2.997 | W77: -3.955 | X77: -3.019 | Y77: -2.986 | Z77: -2.492 | AA77: -2.153 | AB77: -1.799 | AE77: 0.9 | AF77: -1.55 | AG77: -1.615 | AH77: -2.282 | AI77: -2.924 | AJ77: -3.792 | AK77: -3.221 | AL77: -3.973 | AM77: -3.165 | AN77: -2.985 | AO77: -2.52 | AP77: -1.926 | AQ77: -1.586 | AS77: 0.9 | AT77: -1.617 | AU77: -1.672 | AV77: -2.34 | AW77: -3.117 | AX77: -4.006 | AY77: -4.014 | AZ77: -4.082 | BA77: -3.5 | BB77: -3.032 | BC77: -2.613 | BD77: -1.996 | BE77: -1.71 | BG77: 0.9 | BH77: -1.65 | BI77: -1.651 | BJ77: -2.352 | BK77: -3.068 | BL77: -3.934 | BM77: -3.847 | BN77: -4.041 | BO77: -3.481 | BP77: -3.033 | BQ77: -2.622 | BR77: -2.107 | BS77: -1.746 | BU77: 0.9 | BV77: -1.66 | BW77: -1.683 | BX77: -2.353 | BY77: -3.088 | BZ77: -4.006 | CA77: -3.996 | CB77: -4.081 | CC77: -3.499 | CD77: -2.985 | CE77: -2.603 | CF77: -2.116 | CG77: -1.769
A78: 0.95 | B78: -1.302 | C78: -1.51 | D78: -1.773 | E78: -2.4755 | F78: -3.0185 | G78: -2.9625 | H78: -3.225 | I78: -2.5945 | J78: -2.3855 | K78: -1.901 | L78: -1.7145 | M78: -1.539 | P78: 0.95 | Q78: -1.3285 | R78: -1.5155 | S78: -1.7995 | T78: -2.4755 | U78: -3.0185 | V78: -2.9625 | W78: -3.2295 | X78: -2.489 | Y78: -2.4265 | Z78: -1.901 | AA78: -1.794 | AB78: -1.5545 | AE78: 0.95 | AF78: -1.342 | AG78: -1.46 | AH78: -1.815 | AI78: -2.443 | AJ78: -3.1295 | AK78: -3.129 | AL78: -3.2385 | AM78: -2.623 | AN78: -2.361 | AO78: -1.9065 | AP78: -1.611 | AQ78: -1.519 | AS78: 0.95 | AT78: -1.382 | AU78: -1.4855 | AV78: -1.8585 | AW78: -2.5265 | AX78: -3.1485 | AY78: -3.6875 | AZ78: -3.3505 | BA78: -2.814 | BB78: -2.391 | BC78: -2.022 | BD78: -1.7275 | BE78: -1.529 | BG78: 0.95 | BH78: -1.3775 | BI78: -1.48 | BJ78: -1.8995 | BK78: -2.483 | BL78: -3.125 | BM78: -3.611 | BN78: -3.3305 | BO78: -2.794 | BP78: -2.391 | BQ78: -2.022 | BR78: -1.7685 | BS78: -1.529 | BU78: 0.95 | BV78: -1.363 | BW78: -1.5155 | BX78: -1.8995 | BY78: -2.5365 | BZ78: -3.125 | CA78: -3.6545 | CB78: -3.3405 | CC78: -2.814 | CD78: -2.3655 | CE78: -2.022 | CF78: -1.7685 | CG78: -1.5345
A79: 0.99 | B79: -1.2477 | C79: -1.1612 | D79: -1.2283 | E79: -1.8669 | F79: -2.4251 | G79: -2.0633 | H79: -2.192 | I79: -1.6109 | J79: -1.4337 | K79: -1.2465 | L79: -1.092 | M79: -0.9591 | P79: 0.99 | Q79: -1.2495 | R79: -1.1612 | S79: -1.2473 | T79: -1.8705 | U79: -2.4251 | V79: -2.0805 | W79: -2.1456 | X79: -1.529 | Y79: -1.4664 | Z79: -1.2347 | AA79: -1.0956 | AB79: -0.9591 | AE79: 0.99 | AF79: -1.2586 | AG79: -1.1094 | AH79: -1.2128 | AI79: -1.8305 | AJ79: -2.3968 | AK79: -2.6306 | AL79: -2.2384 | AM79: -1.5628 | AN79: -1.4028 | AO79: -1.251 | AP79: -1.0301 | AQ79: -0.9691 | AS79: 0.99 | AT79: -1.2886 | AU79: -1.1803 | AV79: -1.3283 | AW79: -1.8869 | AX79: -2.3968 | AY79: -2.5906 | AZ79: -2.2384 | BA79: -1.761 | BB79: -1.4619 | BC79: -1.2965 | BD79: -1.112 | BE79: -0.9691 | BG79: 0.99 | BH79: -1.2722 | BI79: -1.1494 | BJ79: -1.3283 | BK79: -1.8869 | BL79: -2.3595 | BM79: -2.5815 | BN79: -2.2384 | BO79: -1.7601 | BP79: -1.4619 | BQ79: -1.2965 | BR79: -1.112 | BS79: -0.9691 | BU79: 0.99 | BV79: -1.2677 | BW79: -1.1594 | BX79: -1.3283 | BY79: -1.8887 | BZ79: -2.3595 | CA79: -2.5815 | CB79: -2.2384 | CC79: -1.7601 | CD79: -1.4619 | CE79: -1.2965 | CF79: -1.112 | CG79: -0.9691
A80: 0.999 | B80: =B59-B19 -> -0.82 | C80: -0.87 | D80: -1.11 | E80: -1.33 | F80: -1.87 | G80: -1.49 | H80: -2.01 | I80: -1.62 | J80: -1.37 | K80: -1.11 | L80: -0.91 | M80: -0.95 | P80: 0.999 | Q80: -0.84 | R80: =R59-C19 -> -0.87 | S80: -1.22 | T80: -1.37 | U80: -1.87 | V80: -1.58 | W80: -2 | X80: -1.62 | Y80: -1.43 | Z80: -1.08 | AA80: -0.95 | AB80: -0.95 | AE80: 0.999 | AF80: -0.84 | AG80: =AG59-C19 -> -0.8 | AH80: -1.14 | AI80: -1.33 | AJ80: -1.96 | AK80: -2.03 | AL80: -2.02 | AM80: -1.49 | AN80: -1.33 | AO80: -1.16 | AP80: -0.93 | AQ80: -0.96 | AS80: 0.999 | AT80: -0.87 | AU80: =AU59-C19 -> -0.88 | AV80: -1.21 | AW80: -1.35 | AX80: -1.96 | AY80: -1.99 | AZ80: -2.02 | BA80: -1.67 | BB80: -1.38 | BC80: -1.16 | BD80: -0.93 | BE80: -0.96 | BG80: 0.999 | BH80: -0.89 | BI80: =BI59-C19 -> -0.84 | BJ80: -1.21 | BK80: -1.35 | BL80: -1.95 | BM80: -1.99 | BN80: -2.02 | BO80: -1.66 | BP80: -1.38 | BQ80: -1.16 | BR80: -0.93 | BS80: -0.96 | BU80: 0.999 | BV80: -0.84 | BW80: =BW59-C19 -> -0.85 | BX80: -1.21 | BY80: -1.37 | BZ80: -1.95 | CA80: -1.99 | CB80: -2.02 | CC80: -1.66 | CD80: -1.38 | CE80: -1.16 | CF80: -0.93 | CG80: -0.96
A81: sum | B81: =SUM(B64:B80) -> 1.1368 | C81: =SUM(C64:C80) -> -36.4237 | D81: -36.2558 | E81: -103.5609 | F81: -148.0231 | G81: -108.6918 | H81: -107.1325 | I81: -56.8924 | J81: -52.3747 | K81: -25.451 | L81: -36.919 | M81: -21.6441 | P81: sum | Q81: =SUM(Q64:Q80) -> 36.2315 | R81: =SUM(R64:R80) -> -37.1517 | S81: -54.9508 | T81: -104.6315 | U81: -144.7546 | V81: -103.7245 | W81: -106.3146 | X81: -56.6715 | Y81: -54.0279 | Z81: -37.4367 | AA81: -37.6441 | AB81: -19.5406 | AE81: sum | AF81: =SUM(AF64:AF80) -> 13.6319 | AG81: =SUM(AG64:AG80) -> -38.9924 | AH81: -43.9408 | AI81: -101.6835 | AJ81: -133.7668 | AK81: -118.8806 | AL81: -101.0874 | AM81: -62.8618 | AN81: -53.2493 | AO81: -17.667 | AP81: -43.7926 | AQ81: -28.3511 | AS81: sum | AT81: =SUM(AT64:AT80) -> -36.5451 | AU81: =SUM(AU64:AU80) -> -52.2208 | AV81: -86.5338 | AW81: -122.5844 | AX81: -147.0283 | AY81: -140.8216 | AZ81: -113.5639 | BA81: -73.4835 | BB81: -61.7689 | BC81: -48.9645 | BD81: -47.7475 | BE81: -40.2596 | BG81: sum | BH81: =SUM(BH64:BH80) -> -29.7467 | BI81: =SUM(BI64:BI80) -> -52.4339 | BJ81: -87.8913 | BK81: -125.5224 | BL81: -150.1775 | BM81: -144.312 | BN81: -115.5749 | BO81: -74.1061 | BP81: -61.8309 | BQ81: -52.0015 | BR81: -47.855 | BS81: -38.4526 | BU81: sum | BV81: =SUM(BV64:BV80) -> -37.2307 | BW81: =SUM(BW64:BW80) -> -54.1274 | BX81: -88.9588 | BY81: -124.9587 | BZ81: -153.647 | CA81: -142.8665 | CB81: -114.7344 | CC81: -74.1561 | CD81: -61.5274 | CE81: -49.3605 | CF81: -48.668 | CG81: -36.9066
A84: Scenario | B84: =B41 -> Sc 2A | C84: vs Present Hydrology | P84: Scenario | Q84: =Q41 -> Sc 2B | R84: vs Present Hydrology | AE84: Scenario | AF84: =AF41 -> Sc 3 | AG84: vs Present Hydrology | AS84: Scenario | AT84: =AT41 -> Sc 4A | AU84: vs Present Hydrology | BG84: Scenario | BH84: =BH41 -> Sc 4B | BI84: vs Present Hydrology | BU84: Scenario | BV84: =BV41 -> Sc 7 | BW84: vs Present Hydrology
A85: 0.001 | B85: =B43-B23 -> 7.25 | C85: 1.88 | D85: -9.73 | E85: 0 | F85: 0 | G85: 0 | H85: 0 | I85: 0 | J85: 0 | K85: -9.12 | L85: 0.8 | M85: 1.54 | P85: 0.001 | Q85: =Q43-B23 -> 15.51 | R85: =R43-C23 -> 1.2 | S85: -9.74 | T85: 0 | U85: 0 | V85: 0 | W85: 0 | X85: 0 | Y85: 0 | Z85: -18.27 | AA85: -2.53 | AB85: 1.89 | AE85: 0.001 | AF85: =AF43-B23 -> 19.37 | AG85: =AG43-C23 -> 1.2 | AH85: -9.74 | AI85: 0 | AJ85: 0 | AK85: 0 | AL85: 0 | AM85: 0 | AN85: 0 | AO85: 0.47 | AP85: -5.37 | AQ85: -3.34 | AS85: 0.001 | AT85: =AT43-B23 -> -17.42 | AU85: =AU43-C23 -> -1.36 | AV85: -11.62 | AW85: -0.92 | AX85: -0.84 | AY85: -0.92 | AZ85: -0.89 | BA85: -0.92 | BB85: -0.89 | BC85: -18.94 | BD85: -6.03 | BE85: -7.64 | BG85: 0.001 | BH85: =BH43-B3 -> 3.42 | BI85: =BI43-C3 -> -4.73 | BJ85: -6.79 | BK85: -9.02 | BL85: -11.29 | BM85: -14.74 | BN85: -13.71 | BO85: -5.67 | BP85: -4.5 | BQ85: -3.86 | BR85: -4.03 | BS85: -2.37 | BU85: 0.001 | BV85: =BV43-B23 -> -18.35 | BW85: =BW43-C23 -> -1.6 | BX85: -11.79 | BY85: -1.44 | BZ85: -1.35 | CA85: -1.01 | CB85: -0.99 | CC85: -1.04 | CD85: -0.99 | CE85: -18.55 | CF85: -6.03 | CG85: -5.55
A86: 0.01 | B86: -3.09 | C86: 1.24 | D86: -2.63 | E86: 0 | F86: 0 | G86: 0 | H86: 0 | I86: -0.09 | J86: 0.26 | K86: 0.88 | L86: -4.15 | M86: -0.29 | P86: 0.01 | Q86: 21.6 | R86: 1.53 | S86: -13.38 | T86: 0 | U86: 0 | V86: 0 | W86: 0 | X86: 0.34 | Y86: 0 | Z86: -1.7 | AA86: -1.74 | AB86: 0.95 | AE86: 0.01 | AF86: -2.78 | AG86: 0.83 | AH86: -2.69 | AI86: 0 | AJ86: 0 | AK86: 0 | AL86: 0 | AM86: -0.77 | AN86: 0 | AO86: 0.78 | AP86: -4.21 | AQ86: -4.34 | AS86: 0.01 | AT86: -10.55 | AU86: -2.83 | AV86: -25.23 | AW86: -0.93 | AX86: -0.84 | AY86: -0.92 | AZ86: -0.9 | BA86: 0.46 | BB86: -0.89 | BC86: -2.3 | BD86: -4.84 | BE86: -7.57 | BG86: 0.01 | BH86: -2.13 | BI86: -6.58 | BJ86: -9.79 | BK86: -10.47 | BL86: -13.02 | BM86: -12.9 | BN86: -7.09 | BO86: -2.63 | BP86: -4.24 | BQ86: -3.39 | BR86: -4.08 | BS86: -3.57 | BU86: 0.01 | BV86: -10.18 | BW86: -2.92 | BX86: -25.27 | BY86: -1.5 | BZ86: -1.34 | CA86: -1 | CB86: -1 | CC86: 0.75 | CD86: -0.96 | CE86: -2.57 | CF86: -4.85 | CG86: -6.16
A87: 0.05 | B87: -0.7055 | C87: 1.4055 | D87: 2.6485 | E87: 2.826 | F87: -1.963 | G87: -0.584 | H87: 0 | I87: 0.6365 | J87: 0.0045 | K87: -0.006 | L87: -0.344 | M87: -4.9995 | P87: 0.05 | Q87: 0.7675 | R87: 1.0425 | S87: -1.3295 | T87: 2.826 | U87: -1.963 | V87: 1.132 | W87: 0 | X87: 0.6695 | Y87: -0.1905 | Z87: -0.0595 | AA87: 0 | AB87: -3.991 | AE87: 0.05 | AF87: -0.0705 | AG87: 0 | AH87: -0.995 | AI87: 2.9655 | AJ87: 0 | AK87: -2.354 | AL87: 0 | AM87: -0.2385 | AN87: -0.1905 | AO87: 0.8095 | AP87: -0.5945 | AQ87: -3.6155 | AS87: 0.05 | AT87: -2.6605 | AU87: -2.3535 | AV87: -4.4455 | AW87: -0.318 | AX87: -0.84 | AY87: -2.6525 | AZ87: -0.9 | BA87: -0.586 | BB87: -1.0035 | BC87: -0.7995 | BD87: -1.033 | BE87: -5.729 | BG87: 0.05 | BH87: -3.1955 | BI87: -5.1265 | BJ87: -8.9955 | BK87: -17.2355 | BL87: -29.4165 | BM87: -18.3205 | BN87: -9.171 | BO87: -5.899 | BP87: -4.725 | BQ87: -3.52 | BR87: -3.666 | BS87: -3.229 | BU87: 0.05 | BV87: -2.58 | BW87: -3.375 | BX87: -4.6565 | BY87: -1.005 | BZ87: -1.0965 | CA87: -3 | CB87: -1.0045 | CC87: -0.521 | CD87: -1.085 | CE87: -0.725 | CF87: -1.4285 | CG87: -5.718
A88: 0.1 | B88: 0.367 | C88: 0.247 | D88: 0.414 | E88: -0.336 | F88: -6.783 | G88: -0.552 | H88: 0 | I88: 0.156 | J88: 0.128 | K88: 0.123 | L88: -0.374 | M88: -2.024 | P88: 0.1 | Q88: 0.397 | R88: 0.247 | S88: -0.135 | T88: -0.337 | U88: -3.025 | V88: -0.758 | W88: 0 | X88: 0.451 | Y88: -0.099 | Z88: 0.045 | AA88: -0.27 | AB88: -2.072 | AE88: 0.1 | AF88: 0.34 | AG88: 0 | AH88: -0.579 | AI88: -0.403 | AJ88: 0.84 | AK88: -1.096 | AL88: 0 | AM88: 0 | AN88: 0 | AO88: 0.065 | AP88: -0.416 | AQ88: -1.929 | AS88: 0.1 | AT88: -0.47 | AU88: -1.33 | AV88: -4.112 | AW88: -2.084 | AX88: -0.148 | AY88: -2.016 | AZ88: -0.89 | BA88: -0.836 | BB88: -0.89 | BC88: -0.87 | BD88: -1.025 | BE88: -2.622 | BG88: 0.1 | BH88: -3.119 | BI88: -4.212 | BJ88: -10.11 | BK88: -11.245 | BL88: -12.376 | BM88: -13.674 | BN88: -10.743 | BO88: -6.625 | BP88: -4.425 | BQ88: -3.657 | BR88: -3.756 | BS88: -3.087 | BU88: 0.1 | BV88: -0.524 | BW88: -1.423 | BX88: -4.659 | BY88: -2.094 | BZ88: -3.83 | CA88: -1.452 | CB88: -1.02 | CC88: -1.02 | CD88: -0.891 | CE88: -0.915 | CF88: -1.1 | CG88: -2.619
A89: 0.15 | B89: 0.108 | C89: 0.1425 | D89: 1.5635 | E89: 0.869 | F89: -0.116 | G89: -0.832 | H89: -0.0065 | I89: 0.985 | J89: 0.1165 | K89: 0.181 | L89: -0.0345 | M89: -1.238 | P89: 0.15 | Q89: 0.3235 | R89: 0.084 | S89: 0.162 | T89: 0.817 | U89: -0.0035 | V89: -0.936 | W89: -0.0065 | X89: 0.985 | Y89: -0.043 | Z89: 0.325 | AA89: 0.0065 | AB89: -1.372 | AE89: 0.15 | AF89: 0.031 | AG89: 0 | AH89: 0.7065 | AI89: 0.4305 | AJ89: 0.839 | AK89: -1.5885 | AL89: 0 | AM89: 0.179 | AN89: 0 | AO89: 0.0265 | AP89: -0.101 | AQ89: -1.1815 | AS89: 0.15 | AT89: -0.463 | AU89: -1.1865 | AV89: -2.8475 | AW89: -2.6985 | AX89: -0.001 | AY89: -2.8755 | AZ89: -0.8965 | BA89: -1.111 | BB89: -0.89 | BC89: -0.9855 | BD89: -0.624 | BE89: -1.5585 | BG89: 0.15 | BH89: -2.68 | BI89: -4.4325 | BJ89: -9.6 | BK89: -10.9585 | BL89: -10.73 | BM89: -15.405 | BN89: -7.434 | BO89: -6.0225 | BP89: -4.2295 | BQ89: -3.564 | BR89: -3.6535 | BS89: -2.8905 | BU89: 0.15 | BV89: -0.4435 | BW89: -1.3045 | BX89: -3.023 | BY89: -2.2315 | BZ89: -1.29 | CA89: -2.3345 | CB89: -1.02 | CC89: -1.291 | CD89: -0.9 | CE89: -1.049 | CF89: -0.624 | CG89: -1.5285
A90: 0.2 | B90: -0.002 | C90: 0.162 | D90: 1.134 | E90: -2.216 | F90: 0.11 | G90: -1.272 | H90: -1.076 | I90: 1.444 | J90: 0.194 | K90: 0.388 | L90: 0.006 | M90: -0.882 | P90: 0.2 | Q90: 0.112 | R90: 0.074 | S90: 0.204 | T90: -2.216 | U90: 0.102 | V90: 0.092 | W90: -1.076 | X90: 0.938 | Y90: -0.01 | Z90: 0.388 | AA90: 0.04 | AB90: -0.902 | AE90: 0.2 | AF90: -0.09 | AG90: 0.07 | AH90: 0.694 | AI90: -0.29 | AJ90: 0.102 | AK90: -1.714 | AL90: 0.934 | AM90: 0.324 | AN90: 0 | AO90: 0.108 | AP90: -0.14 | AQ90: -0.878 | AS90: 0.2 | AT90: -0.388 | AU90: -0.82 | AV90: -1.778 | AW90: -3.44 | AX90: -0.174 | AY90: -4.588 | AZ90: -1.224 | BA90: -0.66 | BB90: -0.898 | BC90: -0.846 | BD90: -0.508 | BE90: -1.028 | BG90: 0.2 | BH90: -2.622 | BI90: -4.064 | BJ90: -7.344 | BK90: -12.024 | BL90: -11.404 | BM90: -12.584 | BN90: -10.324 | BO90: -5.802 | BP90: -4.178 | BQ90: -3.502 | BR90: -3.454 | BS90: -2.792 | BU90: 0.2 | BV90: -0.384 | BW90: -0.86 | BX90: -2.148 | BY90: -3.626 | BZ90: -0.624 | CA90: -3.17 | CB90: -1.164 | CC90: -1.088 | CD90: -0.904 | CE90: -1.092 | CF90: -0.516 | CG90: -1
A91: 0.3 | B91: 0.048 | C91: 0.182 | D91: 0.575 | E91: -0.613 | F91: -0.635 | G91: 1.059 | H91: -0.642 | I91: 0.864 | J91: -0.11 | K91: 0.532 | L91: 0.077 | M91: -0.361 | P91: 0.3 | Q91: 0.14 | R91: 0.306 | S91: 0.007 | T91: -0.972 | U91: -0.999 | V91: 1.158 | W91: -0.597 | X91: 0.543 | Y91: -0.402 | Z91: 0.478 | AA91: 0.203 | AB91: -0.367 | AE91: 0.3 | AF91: -0.047 | AG91: 0.271 | AH91: 0.495 | AI91: -0.108 | AJ91: 0 | AK91: 0.596 | AL91: 0.295 | AM91: 0.041 | AN91: 0.115 | AO91: 0.014 | AP91: -0.05 | AQ91: -0.331 | AS91: 0.3 | AT91: -0.297 | AU91: -0.15 | AV91: -1.168 | AW91: -2.314 | AX91: -2.347 | AY91: -1.867 | AZ91: -1.397 | BA91: -0.907 | BB91: -1.115 | BC91: -0.909 | BD91: -0.174 | BE91: -0.424 | BG91: 0.3 | BH91: -2.505 | BI91: -3.637 | BJ91: -6.007 | BK91: -10.972 | BL91: -8.477 | BM91: -8.912 | BN91: -8.743 | BO91: -5.717 | BP91: -4.347 | BQ91: -3.831 | BR91: -3.33 | BS91: -2.644 | BU91: 0.3 | BV91: -0.27 | BW91: -0.25 | BX91: -1.56 | BY91: -2.412 | BZ91: -1.129 | CA91: -2.781 | CB91: -1.414 | CC91: -0.967 | CD91: -0.933 | CE91: -1.07 | CF91: -0.174 | CG91: -0.407
A92: 0.4 | B92: 0.024 | C92: 0.042 | D92: 0.686 | E92: 0.74 | F92: -0.536 | G92: 0.498 | H92: -1.818 | I92: 0.572 | J92: 0.05 | K92: 0.31 | L92: 0.082 | M92: -0.08 | P92: 0.4 | Q92: 0.098 | R92: 0.06 | S92: 0.508 | T92: 0.244 | U92: -0.818 | V92: 1.082 | W92: -1.6 | X92: 0.432 | Y92: -0.02 | Z92: 0.238 | AA92: 0.09 | AB92: -0.096 | AE92: 0.4 | AF92: 0 | AG92: 0.064 | AH92: 0.642 | AI92: 0.626 | AJ92: 0.658 | AK92: 0.072 | AL92: -0.12 | AM92: 0.09 | AN92: 0.072 | AO92: 0 | AP92: -0.004 | AQ92: -0.02 | AS92: 0.4 | AT92: -0.246 | AU92: -0.17 | AV92: -0.698 | AW92: -1.448 | AX92: -0.78 | AY92: -2.36 | AZ92: -1.33 | BA92: -0.97 | BB92: -0.89 | BC92: -0.978 | BD92: -0.094 | BE92: -0.13 | BG92: 0.4 | BH92: -2.262 | BI92: -3.096 | BJ92: -5.072 | BK92: -8.096 | BL92: -9.002 | BM92: -8.132 | BN92: -8.718 | BO92: -5.256 | BP92: -4.452 | BQ92: -3.894 | BR92: -3.196 | BS92: -2.476 | BU92: 0.4 | BV92: -0.268 | BW92: -0.226 | BX92: -0.996 | BY92: -1.556 | BZ92: -1.342 | CA92: -3.364 | CB92: -1.69 | CC92: -0.922 | CD92: -0.832 | CE92: -1.022 | CF92: -0.144 | CG92: -0.12
A93: 0.5 | B93: 0.065 | C93: 0.07 | D93: 0.56 | E93: 0.125 | F93: -0.17 | G93: 0.065 | H93: -0.75 | I93: 0.54 | J93: -0.06 | K93: 0.375 | L93: 0.04 | M93: -0.05 | P93: 0.5 | Q93: 0.12 | R93: 0.055 | S93: 0.555 | T93: 0.125 | U93: -0.15 | V93: 1.405 | W93: -0.505 | X93: 0.185 | Y93: -0.085 | Z93: 0.265 | AA93: 0.025 | AB93: -0.045 | AE93: 0.5 | AF93: 0.02 | AG93: 0.055 | AH93: 0.32 | AI93: 0.25 | AJ93: 0.66 | AK93: 0.01 | AL93: 0 | AM93: 0.075 | AN93: -0.045 | AO93: 0.05 | AP93: 0.005 | AQ93: 0.02 | AS93: 0.5 | AT93: -0.265 | AU93: -0.07 | AV93: -0.635 | AW93: -1.14 | AX93: -0.505 | AY93: -2.36 | AZ93: -0.935 | BA93: -1.05 | BB93: -0.755 | BC93: -0.815 | BD93: -0.1 | BE93: -0.09 | BG93: 0.5 | BH93: -2.13 | BI93: -2.9 | BJ93: -4.685 | BK93: -7.375 | BL93: -9.03 | BM93: -7.445 | BN93: -7.42 | BO93: -4.69 | BP93: -4.32 | BQ93: -3.59 | BR93: -2.97 | BS93: -2.33 | BU93: 0.5 | BV93: -0.27 | BW93: -0.12 | BX93: -0.765 | BY93: -1.67 | BZ93: -0.965 | CA93: -3.69 | CB93: -1.155 | CC93: -1.13 | CD93: -0.665 | CE93: -0.825 | CF93: -0.13 | CG93: -0.075
A94: 0.6 | B94: 0.014 | C94: 0.072 | D94: 0.526 | E94: 0.01 | F94: -0.426 | G94: 1.59 | H94: -0.3 | I94: 0.458 | J94: 0.07 | K94: 0.482 | L94: 0.05 | M94: -0.036 | P94: 0.6 | Q94: 0.08 | R94: 0.11 | S94: 0.31 | T94: -0.112 | U94: -0.426 | V94: 1.922 | W94: -0.11 | X94: 0.422 | Y94: 0.014 | Z94: 0.466 | AA94: 0.032 | AB94: -0.036 | AE94: 0.6 | AF94: 0 | AG94: 0.052 | AH94: -0.026 | AI94: -0.192 | AJ94: 0.492 | AK94: 0.364 | AL94: 0.018 | AM94: 0.214 | AN94: -0.124 | AO94: 0.106 | AP94: 0.014 | AQ94: 0.016 | AS94: 0.6 | AT94: -0.17 | AU94: -0.044 | AV94: -0.522 | AW94: -1.036 | AX94: -1.162 | AY94: -1.918 | AZ94: -0.55 | BA94: -0.998 | BB94: -0.218 | BC94: -0.448 | BD94: -0.05 | BE94: -0.09 | BG94: 0.6 | BH94: -2.034 | BI94: -2.5 | BJ94: -4.06 | BK94: -6.34 | BL94: -7.508 | BM94: -5.984 | BN94: -5.828 | BO94: -4.202 | BP94: -4.036 | BQ94: -3.424 | BR94: -2.798 | BS94: -2.152 | BU94: 0.6 | BV94: -0.23 | BW94: -0.07 | BX94: -0.52 | BY94: -1.15 | BZ94: -1.21 | CA94: -2.006 | CB94: -0.662 | CC94: -1.054 | CD94: -0.194 | CE94: -0.488 | CF94: -0.066 | CG94: -0.102
A95: 0.7 | B95: 0.043 | C95: 0.043 | D95: 0.311 | E95: -0.077 | F95: -0.094 | G95: 1.139 | H95: -0.385 | I95: 0.732 | J95: 0.007 | K95: 0.21 | L95: 0.02 | M95: -0.067 | P95: 0.7 | Q95: 0.092 | R95: 0.056 | S95: 0.311 | T95: -0.092 | U95: -0.104 | V95: 1.327 | W95: -0.301 | X95: 0.954 | Y95: 0.007 | Z95: 0.196 | AA95: -0.007 | AB95: -0.084 | AE95: 0.7 | AF95: -0.007 | AG95: 0.013 | AH95: 0 | AI95: -0.369 | AJ95: 0.251 | AK95: 0 | AL95: -0.013 | AM95: 0.372 | AN95: -0.083 | AO95: 0.066 | AP95: 0.003 | AQ95: 0.033 | AS95: 0.7 | AT95: -0.117 | AU95: -0.027 | AV95: -0.286 | AW95: -0.776 | AX95: -0.678 | AY95: -1.464 | AZ95: -0.85 | BA95: -0.687 | BB95: -0.12 | BC95: -0.317 | BD95: -0.02 | BE95: -0.137 | BG95: 0.7 | BH95: -1.95 | BI95: -2.258 | BJ95: -3.472 | BK95: -4.931 | BL95: -6.256 | BM95: -5.387 | BN95: -5.37 | BO95: -4.17 | BP95: -3.689 | BQ95: -3.15 | BR95: -2.6 | BS95: -1.99 | BU95: 0.7 | BV95: -0.16 | BW95: -0.04 | BX95: -0.292 | BY95: -0.812 | BZ95: -0.802 | CA95: -1.955 | CB95: -0.833 | CC95: -0.68 | CD95: -0.09 | CE95: -0.337 | CF95: -0.05 | CG95: -0.181
A96: 0.8 | B96: 0.052 | C96: 0 | D96: 0.088 | E96: -0.128 | F96: 0.008 | G96: 0.792 | H96: -0.228 | I96: 0.248 | J96: 0.024 | K96: 0.192 | L96: 0.022 | M96: -0.028 | P96: 0.8 | Q96: 0.09 | R96: 0 | S96: 0.12 | T96: -0.11 | U96: 0.006 | V96: 0.896 | W96: -0.254 | X96: 0.51 | Y96: 0.004 | Z96: 0.174 | AA96: 0 | AB96: -0.086 | AE96: 0.8 | AF96: 0.02 | AG96: 0.03 | AH96: -0.082 | AI96: -0.068 | AJ96: -0.048 | AK96: -0.096 | AL96: -0.21 | AM96: 0.264 | AN96: -0.024 | AO96: 0.014 | AP96: 0.012 | AQ96: 0.086 | AS96: 0.8 | AT96: -0.084 | AU96: -0.008 | AV96: -0.172 | AW96: -0.378 | AX96: -0.56 | AY96: -1.348 | AZ96: -0.446 | BA96: -0.406 | BB96: -0.04 | BC96: -0.18 | BD96: 0 | BE96: -0.07 | BG96: 0.8 | BH96: -1.706 | BI96: -1.978 | BJ96: -2.774 | BK96: -4.376 | BL96: -5.47 | BM96: -4.602 | BN96: -4.796 | BO96: -3.868 | BP96: -3.28 | BQ96: -2.832 | BR96: -2.274 | BS96: -1.858 | BU96: 0.8 | BV96: -0.12 | BW96: -0.028 | BX96: -0.182 | BY96: -0.388 | BZ96: -0.626 | CA96: -1.582 | CB96: -0.444 | CC96: -0.406 | CD96: 0 | CE96: -0.178 | CF96: -0.068 | CG96: -0.17
A97: 0.85 | B97: 0.0535 | C97: -0.0435 | D97: 0.1135 | E97: -0.175 | F97: -0.0475 | G97: 0.957 | H97: -0.0165 | I97: 0.097 | J97: 0.0065 | K97: 0.1195 | L97: 0.0235 | M97: -0.048 | P97: 0.85 | Q97: 0.057 | R97: -0.0435 | S97: 0.1265 | T97: -0.149 | U97: -0.0265 | V97: 0.7975 | W97: -0.0335 | X97: 0.2245 | Y97: -0.0035 | Z97: 0.0935 | AA97: -0.0335 | AB97: -0.1835 | AE97: 0.85 | AF97: 0.0235 | AG97: 0.07 | AH97: -0.0265 | AI97: -0.0855 | AJ97: -0.0395 | AK97: 0.1585 | AL97: -0.02 | AM97: 0.097 | AN97: 0 | AO97: 0.0295 | AP97: 0.0235 | AQ97: 0.0465 | AS97: 0.85 | AT97: -0.0695 | AU97: 0.009 | AV97: -0.073 | AW97: -0.309 | AX97: -0.399 | AY97: -1.0285 | AZ97: -0.163 | BA97: -0.399 | BB97: -0.0135 | BC97: -0.117 | BD97: -0.0165 | BE97: -0.1195 | BG97: 0.85 | BH97: -1.6435 | BI97: -1.7995 | BJ97: -2.402 | BK97: -3.6915 | BL97: -4.8295 | BM97: -4.197 | BN97: -4.598 | BO97: -3.8595 | BP97: -3.1435 | BQ97: -2.687 | BR97: -2.13 | BS97: -1.86 | BU97: 0.85 | BV97: -0.133 | BW97: -0.04 | BX97: -0.0965 | BY97: -0.2785 | BZ97: -0.359 | CA97: -1.078 | CB97: -0.1565 | CC97: -0.3855 | CD97: 0 | CE97: -0.09 | CF97: -0.0935 | CG97: -0.16
A98: 0.9 | B98: 0.026 | C98: -0.029 | D98: 0.02 | E98: -0.118 | F98: -0.018 | G98: 0.11 | H98: -0.03 | I98: 0.139 | J98: -0.009 | K98: 0.031 | L98: -0.006 | M98: -0.01 | P98: 0.9 | Q98: 0.009 | R98: -0.03 | S98: 0.021 | T98: -0.144 | U98: 0.005 | V98: -0.073 | W98: -0.003 | X98: 0.161 | Y98: -0.01 | Z98: 0.031 | AA98: -0.206 | AB98: -0.06 | AE98: 0.9 | AF98: 0.009 | AG98: 0.018 | AH98: -0.068 | AI98: -0.041 | AJ98: 0.004 | AK98: -0.297 | AL98: -0.021 | AM98: 0.015 | AN98: -0.009 | AO98: 0.003 | AP98: 0.021 | AQ98: 0.153 | AS98: 0.9 | AT98: -0.058 | AU98: -0.039 | AV98: -0.126 | AW98: -0.234 | AX98: -0.21 | AY98: -1.09 | AZ98: -0.13 | BA98: -0.32 | BB98: -0.056 | BC98: -0.09 | BD98: -0.049 | BE98: 0.029 | BG98: 0.9 | BH98: -1.65 | BI98: -1.651 | BJ98: -2.352 | BK98: -3.068 | BL98: -3.934 | BM98: -3.847 | BN98: -4.041 | BO98: -3.481 | BP98: -3.033 | BQ98: -2.622 | BR98: -2.107 | BS98: -1.746 | BU98: 0.9 | BV98: -0.101 | BW98: -0.05 | BX98: -0.139 | BY98: -0.205 | BZ98: -0.21 | CA98: -1.072 | CB98: -0.129 | CC98: -0.319 | CD98: -0.009 | CE98: -0.08 | CF98: -0.169 | CG98: -0.03
A99: 0.95 | B99: 0.001 | C99: -0.0345 | D99: -0.0335 | E99: -0.0145 | F99: 0.0955 | G99: 0.0595 | H99: 0.0135 | I99: 0.045 | J99: -0.069 | K99: 0.0245 | L99: -0.0225 | M99: -0.0045 | P99: 0.95 | Q99: -0.0255 | R99: -0.04 | S99: -0.06 | T99: -0.0145 | U99: 0.0955 | V99: 0.0595 | W99: 0.009 | X99: 0.1505 | Y99: -0.11 | Z99: 0.0245 | AA99: -0.102 | AB99: -0.02 | AE99: 0.95 | AF99: -0.039 | AG99: 0.0155 | AH99: -0.0755 | AI99: 0.018 | AJ99: -0.0155 | AK99: -0.107 | AL99: 0 | AM99: 0.0165 | AN99: -0.0445 | AO99: 0.019 | AP99: 0.081 | AQ99: 0.0155 | AS99: 0.95 | AT99: -0.079 | AU99: -0.01 | AV99: -0.119 | AW99: -0.0655 | AX99: -0.0345 | AY99: -0.6655 | AZ99: -0.112 | BA99: -0.1745 | BB99: -0.0745 | BC99: -0.0965 | BD99: -0.0355 | BE99: 0.0055 | BG99: 0.95 | BH99: -1.3775 | BI99: -1.48 | BJ99: -1.8995 | BK99: -2.483 | BL99: -3.125 | BM99: -3.611 | BN99: -3.3305 | BO99: -2.794 | BP99: -2.391 | BQ99: -2.022 | BR99: -1.7685 | BS99: -1.529 | BU99: 0.95 | BV99: -0.06 | BW99: -0.04 | BX99: -0.16 | BY99: -0.0755 | BZ99: -0.011 | CA99: -0.6325 | CB99: -0.102 | CC99: -0.1745 | CD99: -0.049 | CE99: -0.0965 | CF99: -0.0765 | CG99: 0
A100: 0.99 | B100: -0.0228 | C100: -0.0082 | D100: -0.0909 | E100: -0.0364 | F100: -0.0283 | G100: 0.4035 | H100: 0.0464 | I100: -0.0463 | J100: -0.0309 | K100: 0.05 | L100: -0.0164 | M100: 0.01 | P100: 0.99 | Q100: -0.0246 | R100: -0.0082 | S100: -0.1099 | T100: -0.04 | U100: -0.0283 | V100: 0.3863 | W100: 0.0928 | X100: 0.0356 | Y100: -0.0636 | Z100: 0.0618 | AA100: -0.02 | AB100: 0.01 | AE100: 0.99 | AF100: -0.0337 | AG100: 0.0436 | AH100: -0.0754 | AI100: 0 | AJ100: 0 | AK100: -0.1638 | AL100: 0 | AM100: 0.0018 | AN100: 0 | AO100: 0.0455 | AP100: 0.0455 | AQ100: 0 | AS100: 0.99 | AT100: -0.0637 | AU100: -0.0273 | AV100: -0.1909 | AW100: -0.0564 | AX100: 0 | AY100: -0.1238 | AZ100: 0 | BA100: -0.1964 | BB100: -0.0591 | BC100: 0 | BD100: -0.0364 | BE100: 0 | BG100: 0.99 | BH100: -1.2722 | BI100: -1.1494 | BJ100: -1.3283 | BK100: -1.8869 | BL100: -2.3595 | BM100: -2.5815 | BN100: -2.2384 | BO100: -1.7601 | BP100: -1.4619 | BQ100: -1.2965 | BR100: -1.112 | BS100: -0.9691 | BU100: 0.99 | BV100: -0.0428 | BW100: -0.0064 | BX100: -0.1909 | BY100: -0.0582 | BZ100: 0.0373 | CA100: -0.1147 | CB100: 0 | CC100: -0.1955 | CD100: -0.0591 | CE100: 0 | CF100: -0.0364 | CG100: 0
A101: 0.999 | B101: =B59-B39 -> 0.05 | C101: 0.01 | D101: -0.1 | E101: 0 | F101: 0.09 | G101: 0.54 | H101: 0.01 | I101: -0.11 | J101: -0.04 | K101: 0.05 | L101: 0.02 | M101: 0.01 | P101: 0.999 | Q101: 0.03 | R101: =R59-C39 -> 0.01 | S101: -0.21 | T101: -0.04 | U101: 0.09 | V101: 0.45 | W101: 0.02 | X101: -0.11 | Y101: -0.1 | Z101: 0.08 | AA101: -0.02 | AB101: 0.01 | AE101: 0.999 | AF101: 0.03 | AG101: =AG59-C39 -> 0.08 | AH101: -0.13 | AI101: 0 | AJ101: 0 | AK101: 0 | AL101: 0 | AM101: 0.02 | AN101: 0 | AO101: 0 | AP101: 0 | AQ101: 0 | AS101: 0.999 | AT101: 0 | AU101: =AU59-C39 -> 0 | AV101: -0.2 | AW101: -0.02 | AX101: 0 | AY101: 0.04 | AZ101: 0 | BA101: -0.16 | BB101: -0.05 | BC101: 0 | BD101: 0 | BE101: 0 | BG101: 0.999 | BH101: -0.89 | BI101: =BI59-C19 -> -0.84 | BJ101: -1.21 | BK101: -1.35 | BL101: -1.95 | BM101: -1.99 | BN101: -2.02 | BO101: -1.66 | BP101: -1.38 | BQ101: -1.16 | BR101: -0.93 | BS101: -0.96 | BU101: 0.999 | BV101: 0.03 | BW101: =BW59-C39 -> 0.03 | BX101: -0.2 | BY101: -0.04 | BZ101: 0.01 | CA101: 0.04 | CB101: 0 | CC101: -0.15 | CD101: -0.05 | CE101: 0 | CF101: 0 | CG101: 0
A102: SUM | B102: =SUM(B85:B101) -> 4.2812 | C102: =SUM(C85:C101) -> 5.3808 | D102: -3.9449 | E102: 0.8561 | F102: -10.5133 | G102: 3.973 | H102: -5.1821 | I102: 6.6702 | J102: 0.5416 | K102: -5.178 | L102: -3.8069 | M102: -8.558 | P102: SUM | Q102: =SUM(Q85:Q101) -> 39.3759 | R102: =SUM(R85:R101) -> 4.6528 | S102: -22.6399 | T102: -0.2145 | U102: -7.2448 | V102: 8.9403 | W102: -4.3642 | X102: 6.8911 | Y102: -1.1116 | Z102: -17.1637 | AA102: -4.532 | AB102: -6.4545 | AE102: SUM | AF102: =SUM(AF85:AF101) -> 16.7763 | AG102: =SUM(AG85:AG101) -> 2.8121 | AH102: -11.6299 | AI102: 2.7335 | AJ102: 3.743 | AK102: -6.2158 | AL102: 0.863 | AM102: 0.7008 | AN102: -0.333 | AO102: 2.606 | AP102: -10.6805 | AQ102: -15.265 | AS102: SUM | AT102: =SUM(AT85:AT101) -> -33.4007 | AU102: =SUM(AU85:AU101) -> -10.4163 | AV102: -54.2229 | AW102: -18.1674 | AX102: -9.5185 | AY102: -28.1568 | AZ102: -11.6135 | BA102: -9.9209 | BB102: -8.8526 | BC102: -28.6915 | BD102: -14.6354 | BE102: -27.1735 | BG102: SUM | BH102: =SUM(BH85:BH101) -> -29.7467 | BI102: =SUM(BI85:BI101) -> -52.4339 | BJ102: -87.8913 | BK102: -125.5224 | BL102: -150.1775 | BM102: -144.312 | BN102: -115.5749 | BO102: -74.1061 | BP102: -61.8309 | BQ102: -52.0015 | BR102: -47.855 | BS102: -38.4526 | BU102: SUM | BV102: =SUM(BV85:BV101) -> -34.0863 | BW102: =SUM(BW85:BW101) -> -12.3229 | BX102: -56.6479 | BY102: -20.5417 | BZ102: -16.1372 | CA102: -30.2017 | CB102: -12.784 | CC102: -10.5935 | CD102: -8.6111 | CE102: -29.0875 | CF102: -15.5559 | CG102: -23.8205
A104: Flow Duration options: | B104: 0.001 | C104: 0.01 | D104: 0.05 | E104: 0.1 | F104: 0.15 | G104: 0.2 | H104: 0.3 | I104: 0.4 | J104: 0.5 | K104: 0.6 | L104: 0.7 | M104: 0.8 | N104: 0.85 | O104: 0.9 | P104: 0.95 | Q104: 0.99 | R104: 0.999
A105: Flow duration to compare: | B105: 0.3
B106: Oct | C106: Nov | D106: Dec | E106: Jan | F106: Feb | G106: Mar | H106: Apr | I106: May | J106: Jun | K106: Jul | L106: Aug | M106: Sep
A107: Natural | B107: =VLOOKUP($B$105,$A$3:$M$19,2,FALSE) -> 3.485 | C107: =VLOOKUP($B$105,$A$3:$M$19,3,FALSE) -> 4.551 | D107: =VLOOKUP($B$105,$A$3:$M$19,4,FALSE) -> 7.74 | E107: =VLOOKUP($B$105,$A$3:$M$19,5,FALSE) -> 14.67 | F107: =VLOOKUP($B$105,$A$3:$M$19,6,FALSE) -> 16.725 | G107: =VLOOKUP($B$105,$A$3:$M$19,7,FALSE) -> 19.439 | H107: =VLOOKUP($B$105,$A$3:$M$19,8,FALSE) -> 14.266 | I107: =VLOOKUP($B$105,$A$3:$M$19,9,FALSE) -> 8.885 | J107: =VLOOKUP($B$105,$A$3:$M$19,10,FALSE) -> 5.716 | K107: =VLOOKUP($B$105,$A$3:$M$19,11,FALSE) -> 4.98 | L107: =VLOOKUP($B$105,$A$3:$M$19,12,FALSE) -> 4.28 | M107: =VLOOKUP($B$105,$A$3:$M$19,13,FALSE) -> 3.721
A108: Present | B108: =VLOOKUP($B$105,$A$23:$M$39,2,FALSE) -> 1.247 | C108: =VLOOKUP($B$105,$A$23:$M$39,3,FALSE) -> 1.067 | D108: =VLOOKUP($B$105,$A$23:$M$39,4,FALSE) -> 2.997 | E108: =VLOOKUP($B$105,$A$23:$M$39,5,FALSE) -> 6.448 | F108: =VLOOKUP($B$105,$A$23:$M$39,6,FALSE) -> 10.618 | G108: =VLOOKUP($B$105,$A$23:$M$39,7,FALSE) -> 13.11 | H108: =VLOOKUP($B$105,$A$23:$M$39,8,FALSE) -> 6.93 | I108: =VLOOKUP($B$105,$A$23:$M$39,9,FALSE) -> 4.104 | J108: =VLOOKUP($B$105,$A$23:$M$39,10,FALSE) -> 2.484 | K108: =VLOOKUP($B$105,$A$23:$M$39,11,FALSE) -> 2.17 | L108: =VLOOKUP($B$105,$A$23:$M$39,12,FALSE) -> 1.124 | M108: =VLOOKUP($B$105,$A$23:$M$39,13,FALSE) -> 1.501
A109: =B41 -> Sc 2A | B109: =VLOOKUP($B$105,$A$43:$M$59,2,FALSE) -> 1.295 | C109: =VLOOKUP($B$105,$A$43:$M$59,3,FALSE) -> 1.249 | D109: =VLOOKUP($B$105,$A$43:$M$59,4,FALSE) -> 3.572 | E109: =VLOOKUP($B$105,$A$43:$M$59,5,FALSE) -> 5.835 | F109: =VLOOKUP($B$105,$A$43:$M$59,6,FALSE) -> 9.983 | G109: =VLOOKUP($B$105,$A$43:$M$59,7,FALSE) -> 14.169 | H109: =VLOOKUP($B$105,$A$43:$M$59,8,FALSE) -> 6.288 | I109: =VLOOKUP($B$105,$A$43:$M$59,9,FALSE) -> 4.968 | J109: =VLOOKUP($B$105,$A$43:$M$59,10,FALSE) -> 2.374 | K109: =VLOOKUP($B$105,$A$43:$M$59,11,FALSE) -> 2.702 | L109: =VLOOKUP($B$105,$A$43:$M$59,12,FALSE) -> 1.201 | M109: =VLOOKUP($B$105,$A$43:$M$59,13,FALSE) -> 1.14
A110: =Q63 -> Sc 2B | B110: =VLOOKUP($B$105,$P$43:$AB$59,2,FALSE) -> 1.387 | C110: =VLOOKUP($B$105,$P$43:$AB59,3,FALSE) -> 1.373 | D110: =VLOOKUP($B$105,$P$43:$AB$59,4,FALSE) -> 3.004 | E110: =VLOOKUP($B$105,$P$43:$AB$59,5,FALSE) -> 5.476 | F110: =VLOOKUP($B$105,$P$43:$AB$59,6,FALSE) -> 9.619 | G110: =VLOOKUP($B$105,$P$43:$AB$59,7,FALSE) -> 14.268 | H110: =VLOOKUP($B$105,$P$43:$AB$59,8,FALSE) -> 6.333 | I110: =VLOOKUP($B$105,$P$43:$AB$59,9,FALSE) -> 4.647 | J110: =VLOOKUP($B$105,$P$43:$AB$59,10,FALSE) -> 2.082 | K110: =VLOOKUP($B$105,$P$43:$AB$59,11,FALSE) -> 2.648 | L110: =VLOOKUP($B$105,$P$43:$AB$59,12,FALSE) -> 1.327 | M110: =VLOOKUP($B$105,$P$43:$AB$59,13,FALSE) -> 1.134
A111: =AF63 -> Sc 3 | B111: =VLOOKUP($B$105,$AE$43:$AQ$59,2,FALSE) -> 1.2 | C111: =VLOOKUP($B$105,$AE$43:$AQ$59,3,FALSE) -> 1.338 | D111: =VLOOKUP($B$105,$AE$43:$AQ$59,4,FALSE) -> 3.492 | E111: =VLOOKUP($B$105,$AE$43:$AQ$59,5,FALSE) -> 6.34 | F111: =VLOOKUP($B$105,$AE$43:$AQ$59,6,FALSE) -> 10.618 | G111: =VLOOKUP($B$105,$AE$43:$AQ$59,7,FALSE) -> 13.706 | H111: =VLOOKUP($B$105,$AE$43:$AQ$59,8,FALSE) -> 7.225 | I111: =VLOOKUP($B$105,$AE$43:$AQ$59,9,FALSE) -> 4.145 | J111: =VLOOKUP($B$105,$AE$43:$AQ$59,10,FALSE) -> 2.599 | K111: =VLOOKUP($B$105,$AE$43:$AQ$59,11,FALSE) -> 2.184 | L111: =VLOOKUP($B$105,$AE$43:$AQ$59,12,FALSE) -> 1.074 | M111: =VLOOKUP($B$105,$AE$43:$AQ$59,13,FALSE) -> 1.17
A112: =AT41 -> Sc 4A | B112: =VLOOKUP($B$105,$AS$43:$BE$59,2,FALSE) -> 0.95 | C112: =VLOOKUP($B$105,$AS$43:$BE$59,3,FALSE) -> 0.917 | D112: =VLOOKUP($B$105,$AS$43:$BE$59,4,FALSE) -> 1.829 | E112: =VLOOKUP($B$105,$AS$43:$BE$59,5,FALSE) -> 4.134 | F112: =VLOOKUP($B$105,$AS$43:$BE$59,6,FALSE) -> 8.271 | G112: =VLOOKUP($B$105,$AS$43:$BE$59,7,FALSE) -> 11.243 | H112: =VLOOKUP($B$105,$AS$43:$BE$59,8,FALSE) -> 5.533 | I112: =VLOOKUP($B$105,$AS$43:$BE$59,9,FALSE) -> 3.197 | J112: =VLOOKUP($B$105,$AS$43:$BE$59,10,FALSE) -> 1.369 | K112: =VLOOKUP($B$105,$AS$43:$BE$59,11,FALSE) -> 1.261 | L112: =VLOOKUP($B$105,$AS$43:$BE$59,12,FALSE) -> 0.95 | M112: =VLOOKUP($B$105,$AS$43:$BE$59,13,FALSE) -> 1.077
A113: =BH41 -> Sc 4B | B113: =VLOOKUP($B$105,$BG$43:$BS$59,2,FALSE) -> 0.98 | C113: =VLOOKUP($B$105,$BG$43:$BS$59,3,FALSE) -> 0.914 | D113: =VLOOKUP($B$105,$BG$43:$BS$59,4,FALSE) -> 1.733 | E113: =VLOOKUP($B$105,$BG$43:$BS$59,5,FALSE) -> 3.698 | F113: =VLOOKUP($B$105,$BG$43:$BS$59,6,FALSE) -> 8.248 | G113: =VLOOKUP($B$105,$BG$43:$BS$59,7,FALSE) -> 10.527 | H113: =VLOOKUP($B$105,$BG$43:$BS$59,8,FALSE) -> 5.523 | I113: =VLOOKUP($B$105,$BG$43:$BS$59,9,FALSE) -> 3.168 | J113: =VLOOKUP($B$105,$BG$43:$BS$59,10,FALSE) -> 1.369 | K113: =VLOOKUP($B$105,$BG$43:$BS$59,11,FALSE) -> 1.149 | L113: =VLOOKUP($B$105,$BG$43:$BS$59,12,FALSE) -> 0.95 | M113: =VLOOKUP($B$105,$BG$43:$BS$59,13,FALSE) -> 1.077
A114: =BV41 -> Sc 7 | B114: =VLOOKUP($B$105,$BU$43:$CG$59,2,FALSE) -> 0.977 | C114: =VLOOKUP($B$105,$BU$43:$CG$59,3,FALSE) -> 0.817 | D114: =VLOOKUP($B$105,$BU$43:$CG$59,4,FALSE) -> 1.437 | E114: =VLOOKUP($B$105,$BU$43:$CG$59,5,FALSE) -> 4.036 | F114: =VLOOKUP($B$105,$BU$43:$CG$59,6,FALSE) -> 9.489 | G114: =VLOOKUP($B$105,$BU$43:$CG$59,7,FALSE) -> 10.329 | H114: =VLOOKUP($B$105,$BU$43:$CG$59,8,FALSE) -> 5.516 | I114: =VLOOKUP($B$105,$BU$43:$CG$59,9,FALSE) -> 3.137 | J114: =VLOOKUP($B$105,$BU$43:$CG$59,10,FALSE) -> 1.551 | K114: =VLOOKUP($B$105,$BU$43:$CG$59,11,FALSE) -> 1.1 | L114: =VLOOKUP($B$105,$BU$43:$CG$59,12,FALSE) -> 0.95 | M114: =VLOOKUP($B$105,$BU$43:$CG$59,13,FALSE) -> 1.094
A130: Month to compare between scenarios | B130: Oct | D130: Scenario
B131: Natural | C131: Present | D131: =B41 -> Sc 2A | E131: =Q41 -> Sc 2B | F131: =AF41 -> Sc 3 | G131: =A112 -> Sc 4A | H131: =A113 -> Sc 4B | I131: =A114 -> Sc 7
A132: 0.001 | B132: =HLOOKUP($B$130,$A$2:$M$19,2,FALSE) -> 5.13 | C132: =HLOOKUP($B$130,$A$22:$M$39,2,FALSE) -> 20.53 | D132: =HLOOKUP($B$130,$A$42:$M$59,2,FALSE) -> 27.78 | E132: =HLOOKUP($B$130,$P$42:$AB$59,2,FALSE) -> 5.06 | F132: =HLOOKUP($B$130,$AE$42:$AQ$59,2,FALSE) -> 23.8 | G132: =HLOOKUP($B$130,$AS$42:$BE$59,2,FALSE) -> 4.39 | H132: =HLOOKUP($B$130,$BG$42:$BS$59,2,FALSE) -> 3.35 | I132: =HLOOKUP($B$130,$BU$42:$CG$59,2,FALSE) -> 4.78
A133: 0.01 | B133: =HLOOKUP($B$130,$A$2:$M$19,3,FALSE) -> 4.94 | C133: =HLOOKUP($B$130,$A$22:$M$39,3,FALSE) -> 12.11 | D133: =HLOOKUP($B$130,$A$42:$M$59,3,FALSE) -> 9.02 | E133: =HLOOKUP($B$130,$P$42:$AB$59,3,FALSE) -> 4.49 | F133: =HLOOKUP($B$130,$AE$42:$AQ$59,3,FALSE) -> 6.97 | G133: =HLOOKUP($B$130,$AS$42:$BE$59,3,FALSE) -> 3.89 | H133: =HLOOKUP($B$130,$BG$42:$BS$59,3,FALSE) -> 3.33 | I133: =HLOOKUP($B$130,$BU$42:$CG$59,3,FALSE) -> 3.62
A134: 0.05 | B134: =HLOOKUP($B$130,$A$2:$M$19,4,FALSE) -> 4.707 | C134: =HLOOKUP($B$130,$A$22:$M$39,4,FALSE) -> 4.075 | D134: =HLOOKUP($B$130,$A$42:$M$59,4,FALSE) -> 3.3695 | E134: =HLOOKUP($B$130,$P$42:$AB$59,4,FALSE) -> 3.745 | F134: =HLOOKUP($B$130,$AE$42:$AQ$59,4,FALSE) -> 4.614 | G134: =HLOOKUP($B$130,$AS$42:$BE$59,4,FALSE) -> 3.005 | H134: =HLOOKUP($B$130,$BG$42:$BS$59,4,FALSE) -> 2.679 | I134: =HLOOKUP($B$130,$BU$42:$CG$59,4,FALSE) -> 3.0795
A135: 0.1 | B135: =HLOOKUP($B$130,$A$2:$M$19,5,FALSE) -> 4.458 | C135: =HLOOKUP($B$130,$A$22:$M$39,5,FALSE) -> 1.77 | D135: =HLOOKUP($B$130,$A$42:$M$59,5,FALSE) -> 2.137 | E135: =HLOOKUP($B$130,$P$42:$AB$59,5,FALSE) -> 3.567 | F135: =HLOOKUP($B$130,$AE$42:$AQ$59,5,FALSE) -> 3.587 | G135: =HLOOKUP($B$130,$AS$42:$BE$59,5,FALSE) -> 2.652 | H135: =HLOOKUP($B$130,$BG$42:$BS$59,5,FALSE) -> 2.167 | I135: =HLOOKUP($B$130,$BU$42:$CG$59,5,FALSE) -> 2.607
A136: 0.15 | B136: =HLOOKUP($B$130,$A$2:$M$19,6,FALSE) -> 3.8835 | C136: =HLOOKUP($B$130,$A$22:$M$39,6,FALSE) -> 1.6335 | D136: =HLOOKUP($B$130,$A$42:$M$59,6,FALSE) -> 1.7415 | E136: =HLOOKUP($B$130,$P$42:$AB$59,6,FALSE) -> 3.4475 | F136: =HLOOKUP($B$130,$AE$42:$AQ$59,6,FALSE) -> 3.149 | G136: =HLOOKUP($B$130,$AS$42:$BE$59,6,FALSE) -> 2.137 | H136: =HLOOKUP($B$130,$BG$42:$BS$59,6,FALSE) -> 2.005 | I136: =HLOOKUP($B$130,$BU$42:$CG$59,6,FALSE) -> 2.0735
A137: 0.2 | B137: =HLOOKUP($B$130,$A$2:$M$19,7,FALSE) -> 3.752 | C137: =HLOOKUP($B$130,$A$22:$M$39,7,FALSE) -> 1.494 | D137: =HLOOKUP($B$130,$A$42:$M$59,7,FALSE) -> 1.492 | E137: =HLOOKUP($B$130,$P$42:$AB$59,7,FALSE) -> 3.074 | F137: =HLOOKUP($B$130,$AE$42:$AQ$59,7,FALSE) -> 2.794 | G137: =HLOOKUP($B$130,$AS$42:$BE$59,7,FALSE) -> 1.84 | H137: =HLOOKUP($B$130,$BG$42:$BS$59,7,FALSE) -> 1.626 | I137: =HLOOKUP($B$130,$BU$42:$CG$59,7,FALSE) -> 1.594
A138: 0.3 | B138: =HLOOKUP($B$130,$A$2:$M$19,8,FALSE) -> 3.485 | C138: =HLOOKUP($B$130,$A$22:$M$39,8,FALSE) -> 1.247 | D138: =HLOOKUP($B$130,$A$42:$M$59,8,FALSE) -> 1.295 | E138: =HLOOKUP($B$130,$P$42:$AB$59,8,FALSE) -> 2.648 | F138: =HLOOKUP($B$130,$AE$42:$AQ$59,8,FALSE) -> 2.184 | G138: =HLOOKUP($B$130,$AS$42:$BE$59,8,FALSE) -> 1.261 | H138: =HLOOKUP($B$130,$BG$42:$BS$59,8,FALSE) -> 1.149 | I138: =HLOOKUP($B$130,$BU$42:$CG$59,8,FALSE) -> 1.1
A139: 0.4 | B139: =HLOOKUP($B$130,$A$2:$M$19,9,FALSE) -> 3.142 | C139: =HLOOKUP($B$130,$A$22:$M$39,9,FALSE) -> 1.102 | D139: =HLOOKUP($B$130,$A$42:$M$59,9,FALSE) -> 1.126 | E139: =HLOOKUP($B$130,$P$42:$AB$59,9,FALSE) -> 2.16 | F139: =HLOOKUP($B$130,$AE$42:$AQ$59,9,FALSE) -> 1.922 | G139: =HLOOKUP($B$130,$AS$42:$BE$59,9,FALSE) -> 0.944 | H139: =HLOOKUP($B$130,$BG$42:$BS$59,9,FALSE) -> 0.886 | I139: =HLOOKUP($B$130,$BU$42:$CG$59,9,FALSE) -> 0.9
A140: 0.5 | B140: =HLOOKUP($B$130,$A$2:$M$19,10,FALSE) -> 2.895 | C140: =HLOOKUP($B$130,$A$22:$M$39,10,FALSE) -> 0.99 | D140: =HLOOKUP($B$130,$A$42:$M$59,10,FALSE) -> 1.055 | E140: =HLOOKUP($B$130,$P$42:$AB$59,10,FALSE) -> 1.9 | F140: =HLOOKUP($B$130,$AE$42:$AQ$59,10,FALSE) -> 1.685 | G140: =HLOOKUP($B$130,$AS$42:$BE$59,10,FALSE) -> 0.82 | H140: =HLOOKUP($B$130,$BG$42:$BS$59,10,FALSE) -> 0.795 | I140: =HLOOKUP($B$130,$BU$42:$CG$59,10,FALSE) -> 0.81
A141: 0.6 | B141: =HLOOKUP($B$130,$A$2:$M$19,11,FALSE) -> 2.718 | C141: =HLOOKUP($B$130,$A$22:$M$39,11,FALSE) -> 0.86 | D141: =HLOOKUP($B$130,$A$42:$M$59,11,FALSE) -> 0.874 | E141: =HLOOKUP($B$130,$P$42:$AB$59,11,FALSE) -> 1.674 | F141: =HLOOKUP($B$130,$AE$42:$AQ$59,11,FALSE) -> 1.314 | G141: =HLOOKUP($B$130,$AS$42:$BE$59,11,FALSE) -> 0.76 | H141: =HLOOKUP($B$130,$BG$42:$BS$59,11,FALSE) -> 0.714 | I141: =HLOOKUP($B$130,$BU$42:$CG$59,11,FALSE) -> 0.72
A142: 0.7 | B142: =HLOOKUP($B$130,$A$2:$M$19,12,FALSE) -> 2.516 | C142: =HLOOKUP($B$130,$A$22:$M$39,12,FALSE) -> 0.72 | D142: =HLOOKUP($B$130,$A$42:$M$59,12,FALSE) -> 0.763 | E142: =HLOOKUP($B$130,$P$42:$AB$59,12,FALSE) -> 1.186 | F142: =HLOOKUP($B$130,$AE$42:$AQ$59,12,FALSE) -> 1.056 | G142: =HLOOKUP($B$130,$AS$42:$BE$59,12,FALSE) -> 0.673 | H142: =HLOOKUP($B$130,$BG$42:$BS$59,12,FALSE) -> 0.643 | I142: =HLOOKUP($B$130,$BU$42:$CG$59,12,FALSE) -> 0.653
A143: 0.8 | B143: =HLOOKUP($B$130,$A$2:$M$19,13,FALSE) -> 2.166 | C143: =HLOOKUP($B$130,$A$22:$M$39,13,FALSE) -> 0.584 | D143: =HLOOKUP($B$130,$A$42:$M$59,13,FALSE) -> 0.636 | E143: =HLOOKUP($B$130,$P$42:$AB$59,13,FALSE) -> 0.964 | F143: =HLOOKUP($B$130,$AE$42:$AQ$59,13,FALSE) -> 0.804 | G143: =HLOOKUP($B$130,$AS$42:$BE$59,13,FALSE) -> 0.61 | H143: =HLOOKUP($B$130,$BG$42:$BS$59,13,FALSE) -> 0.61 | I143: =HLOOKUP($B$130,$BU$42:$CG$59,13,FALSE) -> 0.612
A144: 0.85 | B144: =HLOOKUP($B$130,$A$2:$M$19,14,FALSE) -> 2.04 | C144: =HLOOKUP($B$130,$A$22:$M$39,14,FALSE) -> 0.5295 | D144: =HLOOKUP($B$130,$A$42:$M$59,14,FALSE) -> 0.583 | E144: =HLOOKUP($B$130,$P$42:$AB$59,14,FALSE) -> 0.78 | F144: =HLOOKUP($B$130,$AE$42:$AQ$59,14,FALSE) -> 0.716 | G144: =HLOOKUP($B$130,$AS$42:$BE$59,14,FALSE) -> 0.5695 | H144: =HLOOKUP($B$130,$BG$42:$BS$59,14,FALSE) -> 0.5695 | I144: =HLOOKUP($B$130,$BU$42:$CG$59,14,FALSE) -> 0.5965
A145: 0.9 | B145: =HLOOKUP($B$130,$A$2:$M$19,15,FALSE) -> 2.021 | C145: =HLOOKUP($B$130,$A$22:$M$39,15,FALSE) -> 0.462 | D145: =HLOOKUP($B$130,$A$42:$M$59,15,FALSE) -> 0.488 | E145: =HLOOKUP($B$130,$P$42:$AB$59,15,FALSE) -> 0.641 | F145: =HLOOKUP($B$130,$AE$42:$AQ$59,15,FALSE) -> 0.613 | G145: =HLOOKUP($B$130,$AS$42:$BE$59,15,FALSE) -> 0.52 | H145: =HLOOKUP($B$130,$BG$42:$BS$59,15,FALSE) -> 0.511 | I145: =HLOOKUP($B$130,$BU$42:$CG$59,15,FALSE) -> 0.53
A146: 0.95 | B146: =HLOOKUP($B$130,$A$2:$M$19,16,FALSE) -> 1.6885 | C146: =HLOOKUP($B$130,$A$22:$M$39,16,FALSE) -> 0.3855 | D146: =HLOOKUP($B$130,$A$42:$M$59,16,FALSE) -> 0.3865 | E146: =HLOOKUP($B$130,$P$42:$AB$59,16,FALSE) -> 0.591 | F146: =HLOOKUP($B$130,$AE$42:$AQ$59,16,FALSE) -> 0.5855 | G146: =HLOOKUP($B$130,$AS$42:$BE$59,16,FALSE) -> 0.47 | H146: =HLOOKUP($B$130,$BG$42:$BS$59,16,FALSE) -> 0.47 | I146: =HLOOKUP($B$130,$BU$42:$CG$59,16,FALSE) -> 0.47
A147: 0.99 | B147: =HLOOKUP($B$130,$A$2:$M$19,17,FALSE) -> 1.5477 | C147: =HLOOKUP($B$130,$A$22:$M$39,17,FALSE) -> 0.3228 | D147: =HLOOKUP($B$130,$A$42:$M$59,17,FALSE) -> 0.3 | E147: =HLOOKUP($B$130,$P$42:$AB$59,17,FALSE) -> 0.4391 | F147: =HLOOKUP($B$130,$AE$42:$AQ$59,17,FALSE) -> 0.4228 | G147: =HLOOKUP($B$130,$AS$42:$BE$59,17,FALSE) -> 0.3773 | H147: =HLOOKUP($B$130,$BG$42:$BS$59,17,FALSE) -> 0.3773 | I147: =HLOOKUP($B$130,$BU$42:$CG$59,17,FALSE) -> 0.3773
A148: 0.999 | B148: =HLOOKUP($B$130,$A$2:$M$19,18,FALSE) -> 1.12 | C148: =HLOOKUP($B$130,$A$22:$M$39,18,FALSE) -> 0.25 | D148: =HLOOKUP($B$130,$A$42:$M$59,18,FALSE) -> 0.3 | E148: =HLOOKUP($B$130,$P$42:$AB$59,18,FALSE) -> 0.43 | F148: =HLOOKUP($B$130,$AE$42:$AQ$59,18,FALSE) -> 0.35 | G148: =HLOOKUP($B$130,$AS$42:$BE$59,18,FALSE) -> 0.35 | H148: =HLOOKUP($B$130,$BG$42:$BS$59,18,FALSE) -> 0.35 | I148: =HLOOKUP($B$130,$BU$42:$CG$59,18,FALSE) -> 0.35

Sheet Sheet1
J7: Oct | K7: Nov | L7: Dec | M7: Jan | N7: Feb | O7: Mar | P7: Apr | Q7: May | R7: Jun | S7: Jul | T7: Aug | U7: Sep
I8: 0.1 | J8: 4.458 | K8: 5.734 | L8: 12.796 | M8: 26.995 | N8: 47.665 | O8: 47.039 | P8: 23.806 | Q8: 12.684 | R8: 7.073 | S8: 5.824 | T8: 4.963 | U8: 4.357
I9: 1 | J9: 4.458 | K9: 5.734 | L9: 12.796 | M9: 26.995 | N9: 47.665 | O9: 47.039 | P9: 23.806 | Q9: 12.684 | R9: 7.073 | S9: 5.824 | T9: 4.963 | U9: 4.357
I10: 5 | J10: 4.458 | K10: 5.734 | L10: 12.796 | M10: 26.995 | N10: 47.665 | O10: 47.039 | P10: 23.806 | Q10: 12.684 | R10: 7.073 | S10: 5.824 | T10: 4.963 | U10: 4.357
I11: 10 | J11: 4.458 | K11: 5.734 | L11: 12.796 | M11: 26.995 | N11: 47.665 | O11: 47.039 | P11: 23.806 | Q11: 12.684 | R11: 7.073 | S11: 5.824 | T11: 4.963 | U11: 4.357
I12: 15 | J12: 4.105 | K12: 5.397 | L12: 11.116 | M12: 23.9995 | N12: 38.1145 | O12: 38.2845 | P12: 21.134 | Q12: 11.39 | R12: 6.6155 | S12: 5.476 | T12: 4.7275 | U12: 4.1485
I13: 20 | J13: 3.752 | K13: 5.06 | L13: 9.436 | M13: 21.004 | N13: 28.564 | O13: 29.53 | P13: 18.462 | Q13: 10.096 | R13: 6.158 | S13: 5.128 | T13: 4.492 | U13: 3.94
I14: 30 | J14: 3.485 | K14: 4.551 | L14: 7.74 | M14: 14.67 | N14: 16.725 | O14: 19.439 | P14: 14.266 | Q14: 8.885 | R14: 5.716 | S14: 4.98 | T14: 4.28 | U14: 3.721
I15: 40 | J15: 3.142 | K15: 3.866 | L15: 6.402 | M15: 10.598 | N15: 13.462 | O15: 14.682 | P15: 11.896 | Q15: 7.852 | R15: 5.478 | S15: 4.78 | T15: 4.092 | U15: 3.496
I16: 50 | J16: 2.895 | K16: 3.575 | L16: 5.65 | M16: 9.195 | N16: 11.92 | O16: 12.035 | P16: 9.325 | Q16: 6.66 | R16: 5.16 | S16: 4.385 | T16: 3.79 | U16: 3.285
I17: 60 | J17: 2.718 | K17: 3.13 | L17: 4.804 | M17: 7.352 | N17: 9.14 | O17: 8.698 | P17: 7.21 | Q17: 5.696 | R17: 4.764 | S17: 4.138 | T17: 3.588 | U17: 3.014
I18: 70 | J18: 2.516 | K18: 2.821 | L18: 4.118 | M18: 5.76 | N18: 7.341 | O18: 7.42 | P18: 6.22 | Q18: 5.123 | R18: 4.352 | S18: 3.793 | T18: 3.35 | U18: 2.723
I19: 80 | J19: 2.166 | K19: 2.484 | L19: 3.346 | M19: 5.082 | N19: 6.264 | O19: 5.936 | P19: 5.498 | Q19: 4.616 | R19: 3.892 | S19: 3.442 | T19: 2.956 | U19: 2.422
I20: 85 | J20: 2.0935 | K20: 2.2635 | L20: 3.085 | M20: 4.35 | N20: 5.41 | O20: 5.3055 | P20: 5.0615 | Q20: 4.3685 | R20: 3.734 | S20: 3.2875 | T20: 2.7965 | U20: 2.296
I21: 90 | J21: 2.021 | K21: 2.043 | L21: 2.824 | M21: 3.618 | N21: 4.556 | O21: 4.675 | P21: 4.625 | Q21: 4.121 | R21: 3.576 | S21: 3.133 | T21: 2.637 | U21: 2.17
I22: 95 | J22: 2.149888889 | K22: 2.435 | L22: 3.288 | M22: 4.919333333 | N22: 6.074222222 | O22: 5.795888889 | P22: 5.401 | Q22: 4.561 | R22: 3.856888889 | S22: 3.407666667 | T22: 2.920555556 | U22: 2.394
I23: 99 | J23: 1.5477 | K23: 1.4485 | L23: 1.6074 | M23: 2.2369 | N23: 2.7942 | O23: 3.0197 | P23: 2.6675 | Q23: 2.1792 | R23: 1.861 | S23: 1.6738 | T23: 1.452 | U23: 1.2682
I24: 99.9 | J24: 1.5477 | K24: 1.4485 | L24: 1.6074 | M24: 2.2369 | N24: 2.7942 | O24: 3.0197 | P24: 2.6675 | Q24: 2.1792 | R24: 1.861 | S24: 1.6738 | T24: 1.452 | U24: 1.2682
J26: Oct | K26: Nov | L26: Dec | M26: Jan | N26: Feb | O26: Mar | P26: Apr | Q26: May | R26: Jun | S26: Jul | T26: Aug | U26: Sep
I27: 0.1 | J27: 4.458 | K27: 5.734 | L27: 12.796 | M27: 26.995 | N27: 47.665 | O27: 47.039 | P27: 23.806 | Q27: 12.684 | R27: 7.073 | S27: 5.824 | T27: 4.963 | U27: 4.357
I28: 1 | J28: 4.458 | K28: 5.734 | L28: 12.796 | M28: 26.995 | N28: 47.665 | O28: 47.039 | P28: 23.806 | Q28: 12.684 | R28: 7.073 | S28: 5.824 | T28: 4.963 | U28: 4.357
I29: 5 | J29: 4.458 | K29: 5.734 | L29: 12.796 | M29: 26.995 | N29: 47.665 | O29: 47.039 | P29: 23.806 | Q29: 12.684 | R29: 7.073 | S29: 5.824 | T29: 4.963 | U29: 4.357
I30: 10 | J30: 4.458 | K30: 5.734 | L30: 12.796 | M30: 26.995 | N30: 47.665 | O30: 47.039 | P30: 23.806 | Q30: 12.684 | R30: 7.073 | S30: 5.824 | T30: 4.963 | U30: 4.357
I31: 15 | J31: 4.105 | K31: 5.397 | L31: 11.116 | M31: 23.9995 | N31: 38.1145 | O31: 38.2845 | P31: 21.134 | Q31: 11.39 | R31: 6.6155 | S31: 5.476 | T31: 4.7275 | U31: 4.1485
I32: 20 | J32: 3.752 | K32: 5.06 | L32: 9.436 | M32: 21.004 | N32: 28.564 | O32: 29.53 | P32: 18.462 | Q32: 10.096 | R32: 6.158 | S32: 5.128 | T32: 4.492 | U32: 3.94
I33: 30 | J33: 3.485 | K33: 4.551 | L33: 7.74 | M33: 14.67 | N33: 16.725 | O33: 19.439 | P33: 14.266 | Q33: 8.885 | R33: 5.716 | S33: 4.98 | T33: 4.28 | U33: 3.721
I34: 40 | J34: 3.142 | K34: 3.866 | L34: 6.402 | M34: 10.598 | N34: 13.462 | O34: 14.682 | P34: 11.896 | Q34: 7.852 | R34: 5.478 | S34: 4.78 | T34: 4.092 | U34: 3.496
I35: 50 | J35: 2.895 | K35: 3.575 | L35: 5.65 | M35: 9.195 | N35: 11.92 | O35: 12.035 | P35: 9.325 | Q35: 6.66 | R35: 5.16 | S35: 4.385 | T35: 3.79 | U35: 3.285
I36: 60 | J36: 2.718 | K36: 3.13 | L36: 4.804 | M36: 7.352 | N36: 9.14 | O36: 8.698 | P36: 7.21 | Q36: 5.696 | R36: 4.764 | S36: 4.138 | T36: 3.588 | U36: 3.014
I37: 70 | J37: 2.516 | K37: 2.821 | L37: 4.118 | M37: 5.76 | N37: 7.341 | O37: 7.42 | P37: 6.22 | Q37: 5.123 | R37: 4.352 | S37: 3.793 | T37: 3.35 | U37: 2.723
I38: 80 | J38: 2.166 | K38: 2.484 | L38: 3.346 | M38: 5.082 | N38: 6.264 | O38: 5.936 | P38: 5.498 | Q38: 4.616 | R38: 3.892 | S38: 3.442 | T38: 2.956 | U38: 2.422
I39: 85 | J39: 2.0935 | K39: 2.2635 | L39: 3.085 | M39: 4.35 | N39: 5.41 | O39: 5.3055 | P39: 5.0615 | Q39: 4.3685 | R39: 3.734 | S39: 3.2875 | T39: 2.7965 | U39: 2.296
I40: 90 | J40: 2.021 | K40: 2.043 | L40: 2.824 | M40: 3.618 | N40: 4.556 | O40: 4.675 | P40: 4.625 | Q40: 4.121 | R40: 3.576 | S40: 3.133 | T40: 2.637 | U40: 2.17
I41: 95 | J41: 2.149888889 | K41: 2.435 | L41: 3.288 | M41: 4.919333333 | N41: 6.074222222 | O41: 5.795888889 | P41: 5.401 | Q41: 4.561 | R41: 3.856888889 | S41: 3.407666667 | T41: 2.920555556 | U41: 2.394
I42: 99 | J42: 1.5477 | K42: 1.4485 | L42: 1.6074 | M42: 2.2369 | N42: 2.7942 | O42: 3.0197 | P42: 2.6675 | Q42: 2.1792 | R42: 1.861 | S42: 1.6738 | T42: 1.452 | U42: 1.2682
I43: 99.9 | J43: 1.5477 | K43: 1.4485 | L43: 1.6074 | M43: 2.2369 | N43: 2.7942 | O43: 3.0197 | P43: 2.6675 | Q43: 2.1792 | R43: 1.861 | S43: 1.6738 | T43: 1.452 | U43: 1.2682

Sheet InputData
B2: Folder: | C2: c:\WRYM\HYDRO\USUTHUB\
B3: Original file name: | C3: Paramk5.dat
B4: New file name: | C4: Paramk5_new.dat
B5: Number of records: | C5: 24 | H5: 1 | I5: Get list and areas
H6: 2 | I6: Set Areas
C7: AREA
B8: List: | C8: From file | D8: To file
B9: C:\WRYM\HYDRO\USUTHU\W51A | C9: 1 | D9: 624
B10: C:\WRYM\HYDRO\USUTHU\W51B | C10: 1 | D10: 496
B11: C:\WRYM\HYDRO\USUTHU\W51C | C11: 1 | D11: 678
B12: C:\WRYM\HYDRO\USUTHU\W51D | C12: 1 | D12: 527
B13: C:\WRYM\HYDRO\USUTHU\W51F | C13: 1 | D13: 312.5
B14: C:\WRYM\HYDRO\USUTHU\W52A | C14: 1 | D14: 289
B15: C:\WRYM\HYDRO\USUTHU\W52B | C15: 1 | D15: 336
B16: C:\WRYM\HYDRO\USUTHU\W52C | C16: 1 | D16: 178
B17: C:\WRYM\HYDRO\USUTHU\W52D | C17: 1 | D17: 119
B18: C:\WRYM\HYDRO\USUTHU\W53A | C18: 1 | D18: 548
B19: C:\WRYM\HYDRO\USUTHU\W53B | C19: 1 | D19: 219
B20: C:\WRYM\HYDRO\USUTHU\W53C | C20: 1 | D20: 316
B21: C:\WRYM\HYDRO\USUTHU\W53D | C21: 1 | D21: 315
B22: C:\WRYM\HYDRO\USUTHU\W53E | C22: 1 | D22: 177.9
B23: C:\WRYM\HYDRO\USUTHU\W54A | C23: 1 | D23: 251
B24: C:\WRYM\HYDRO\USUTHU\W54B | C24: 1 | D24: 282
B25: C:\WRYM\HYDRO\USUTHU\W54C | C25: 1 | D25: 107
B26: C:\WRYM\HYDRO\USUTHU\W54D | C26: 1 | D26: 139
B27: C:\WRYM\HYDRO\USUTHU\W55A | C27: 1 | D27: 380
B28: C:\WRYM\HYDRO\USUTHU\W55B | C28: 1 | D28: 218
B29: C:\WRYM\HYDRO\USUTHU\W55C | C29: 1 | D29: 532
B30: C:\WRYM\HYDRO\USUTHU\W55D | C30: 1 | D30: 226.2
B31: C:\WRYM\HYDRO\USUTHU\W56A | C31: 1 | D31: 234.8
B32: C:\WRYM\HYDRO\USUTHU\W56B | C32: 1 | D32: 42.9

Sheet Sheet2
N1: BENNIESAREAS FROM SPREADSHEET
G2: =J2 -> C:\WRYM\HYDRO\LETLUVGW\A91Agw | H2: 232 | J2: C:\WRYM\HYDRO\LETLUVGW\A91Agw | K2: B90A | L2: 611 | N2: A91A | O2: 232 | P2: =O2-H2 -> 0
G3: =J3 -> C:\WRYM\HYDRO\LETLUVGW\A91Bgw | H3: 275 | J3: C:\WRYM\HYDRO\LETLUVGW\A91Bgw | K3: B90B | L3: 754 | N3: A91B | O3: 275 | P3: =O3-H3 -> 0
G4: C:\WRYM\HYDRO\LETLUVGW\A91C1gw | H4: 107 | J4: C:\WRYM\HYDRO\LETLUVGW\A91C1gw | K4: B90C | L4: 535 | N4: A91C1 | O4: 107 | P4: 0
G5: C:\WRYM\HYDRO\LETLUVGW\A91C2gw | H5: 175 | J5: C:\WRYM\HYDRO\LETLUVGW\A91C2gw | K5: B90D | L5: 447 | N5: A91C2&F3 | O5: 175 | P5: 0
G6: C:\WRYM\HYDRO\LETLUVGW\A91D1gw | H6: 84.7 | J6: C:\WRYM\HYDRO\LETLUVGW\A91D1gw | K6: B90E | L6: 474 | N6: A91D1 | O6: 84.7 | P6: 0
G7: C:\WRYM\HYDRO\LETLUVGW\A91D2gw | H7: 47.3 | J7: C:\WRYM\HYDRO\LETLUVGW\A91D2gw | K7: B90F | L7: 819 | N7: A91D2 | O7: 47.3 | P7: 0
G8: C:\WRYM\HYDRO\LETLUVGW\A91Egw | H8: 223 | J8: C:\WRYM\HYDRO\LETLUVGW\A91Egw | K8: B90G | L8: 698 | N8: A91E | O8: 223 | P8: 0
G9: C:\WRYM\HYDRO\LETLUVGW\A91F1gw | H9: 276 | J9: C:\WRYM\HYDRO\LETLUVGW\A91F1gw | K9: B90H1 | L9: 229 | N9: A91F1 | O9: 276 | P9: 0
G10: =J10 -> C:\WRYM\HYDRO\LETLUVGW\A91F2gw | H10: 272 | J10: C:\WRYM\HYDRO\LETLUVGW\A91F2gw | K10: B90H2 | L10: 546 | N10: A91F2 | O10: 272 | P10: 0
G11: C:\WRYM\HYDRO\LETLUVGW\A91G1gw | H11: 48 | J11: C:\WRYM\HYDRO\LETLUVGW\A91G1gw | K11: A92A1 | L11: 282 | N11: A91G1 | O11: 48 | P11: 0
G12: C:\WRYM\HYDRO\LETLUVGW\B82agw | H12: 467 | J12: C:\WRYM\HYDRO\LETLUVGW\B82agw | K12: A92A2 | L12: 329 | N12: B82A | O12: 467 | P12: 0
G13: C:\WRYM\HYDRO\LETLUVGW\B82B | H13: 365.4 | J13: C:\WRYM\HYDRO\LETLUVGW\B82B | K13: A92B | L13: 565 | N13: B82B | O13: 406 | P13: =O13-H13 -> 40.6
G14: C:\WRYM\HYDRO\LETLUVGW\B82C | H14: 240 | J14: C:\WRYM\HYDRO\LETLUVGW\B82C | K14: A92C | L14: 455 | N14: B82C | O14: 300 | P14: 60
G15: C:\WRYM\HYDRO\LETLUVGW\B82D | H15: 600 | J15: C:\WRYM\HYDRO\LETLUVGW\B82D | K15: A92D | L15: 560 | N15: B82D | O15: 632 | P15: 32
G16: C:\WRYM\HYDRO\LETLUVGW\B82egw | H16: 432 | J16: C:\WRYM\HYDRO\LETLUVGW\B82egw | K16: A91A | L16: 232 | N16: B82E | O16: 432 | P16: 0
G17: C:\WRYM\HYDRO\LETLUVGW\B82fgw | H17: 760 | J17: C:\WRYM\HYDRO\LETLUVGW\B82fgw | K17: A91B | L17: 275 | N17: B82F | O17: 760 | P17: 0
G18: C:\WRYM\HYDRO\LETLUVGW\B82ggw | H18: 921 | J18: C:\WRYM\HYDRO\LETLUVGW\B82ggw | K18: A91C1 | L18: 107 | N18: B82G | O18: 921 | P18: 0
G19: C:\WRYM\HYDRO\LETLUVGW\B82hgw | H19: 749 | J19: C:\WRYM\HYDRO\LETLUVGW\B82hgw | K19: A91C2 | L19: 175 | N19: B82H | O19: 749 | P19: 0
G20: C:\WRYM\HYDRO\LETLUVGW\B82Jgw | H20: 795 | J20: C:\WRYM\HYDRO\LETLUVGW\B82Jgw | K20: A91D1 | L20: 84.7 | N20: B82J | O20: 795 | P20: 0
G21: C:\WRYM\HYDRO\LETLUVGW\B83agw | H21: 1252 | J21: C:\WRYM\HYDRO\LETLUVGW\B83agw | K21: A91D2 | L21: 47.3 | N21: B83A | O21: 1252 | P21: 0
G22: C:\WRYM\HYDRO\LETLUVGW\B83BCgw | H22: 1031 | J22: C:\WRYM\HYDRO\LETLUVGW\B83BCgw | K22: A91E | L22: 223 | N22: B83BC | O22: 1031 | P22: 0
G23: C:\WRYM\HYDRO\LETLUVGW\B83dgw | H23: 714 | J23: C:\WRYM\HYDRO\LETLUVGW\B83dgw | K23: A91F1 | L23: 276 | N23: B83D | O23: 714 | P23: 0
G24: C:\WRYM\HYDRO\LETLUVGW\B83egw | H24: 267 | J24: C:\WRYM\HYDRO\LETLUVGW\B83egw | K24: A91F2 | L24: 272 | N24: B83E | O24: 267 | P24: 0
G25: C:\WRYM\HYDRO\LETLUVGW\B81adngw | H25: 14 | J25: C:\WRYM\HYDRO\LETLUVGW\B81adngw | K25: A91G1 | L25: 48 | N25: B81ADN | O25: 14.1 | P25: 0.1
G26: C:\WRYM\HYDRO\LETLUVGW\B81agw | H26: 156 | J26: C:\WRYM\HYDRO\LETLUVGW\B81agw | K26: A91G2 | L26: 358 | N26: B81A | O26: 155.7 | P26: -0.3
G27: C:\WRYM\HYDRO\LETLUVGW\B81B10_16gw | H27: 124 | J27: C:\WRYM\HYDRO\LETLUVGW\B81B10_16gw | K27: A91H1 | L27: 450 | N27: B81B10-16 | O27: 124 | P27: 0
G28: C:\WRYM\HYDRO\LETLUVGW\B81b30gw | H28: 89 | J28: C:\WRYM\HYDRO\LETLUVGW\B81b30gw | K28: A91K | L28: 625 | N28: B81B30 | O28: 89 | P28: 0
G29: C:\WRYM\HYDRO\LETLUVGW\B81b20gw | H29: 62 | J29: C:\WRYM\HYDRO\LETLUVGW\B81b20gw | K29: A91J | L29: 570 | N29: B81B20 | O29: 62 | P29: 0
G30: C:\WRYM\HYDRO\LETLUVGW\B81b01_agw | H30: 23 | J30: C:\WRYM\HYDRO\LETLUVGW\B81b01_agw | N30: B81B01_A | O30: 23 | P30: 0
G31: C:\WRYM\HYDRO\LETLUVGW\B81b01gw | H31: 183 | J31: C:\WRYM\HYDRO\LETLUVGW\B81b01gw | N31: B81B01 | O31: =206-O30 -> 183 | P31: 0
G32: C:\WRYM\HYDRO\LETLUVGW\B81C | H32: 208 | J32: C:\WRYM\HYDRO\LETLUVGW\B81C | N32: B81C | O32: 208 | P32: 0
G33: C:\WRYM\HYDRO\LETLUVGW\B81d1gw | H33: 208 | J33: C:\WRYM\HYDRO\LETLUVGW\B81d1gw | N33: B81D1 | O33: 208 | P33: 0
G34: C:\WRYM\HYDRO\LETLUVGW\B81d2gw | H34: 269 | J34: C:\WRYM\HYDRO\LETLUVGW\B81d2gw | N34: B81D2 | O34: 269 | P34: 0
G35: C:\WRYM\HYDRO\LETLUVGW\B81e10gw | H35: 254 | J35: C:\WRYM\HYDRO\LETLUVGW\B81e10gw | N35: B81E10 | O35: 254 | P35: 0
G36: C:\WRYM\HYDRO\LETLUVGW\B81E2gw | H36: 172 | J36: C:\WRYM\HYDRO\LETLUVGW\B81E2gw | N36: B81E2 | O36: 172 | P36: 0
G37: C:\WRYM\HYDRO\LETLUVGW\B81E1gw | H37: 239 | J37: C:\WRYM\HYDRO\LETLUVGW\B81E1gw | N37: B81E1 | O37: 239 | P37: 0
G38: C:\WRYM\HYDRO\LETLUVGW\B81f1gw | H38: 186 | J38: C:\WRYM\HYDRO\LETLUVGW\B81f1gw | N38: B81F1 | O38: 186 | P38: 0
G39: C:\WRYM\HYDRO\LETLUVGW\B81f2gw | H39: 584 | J39: C:\WRYM\HYDRO\LETLUVGW\B81f2gw | N39: B81F2 | O39: 584 | P39: 0
G40: C:\WRYM\HYDRO\LETLUVGW\B81ggw | H40: 517 | J40: C:\WRYM\HYDRO\LETLUVGW\B81ggw | N40: B81G | O40: 517 | P40: 0
G41: C:\WRYM\HYDRO\LETLUVGW\B81hgw | H41: 664 | J41: C:\WRYM\HYDRO\LETLUVGW\B81hgw | N41: B81H | O41: 664 | P41: 0
G42: C:\WRYM\HYDRO\LETLUVGW\B81j10gw | H42: 568 | J42: C:\WRYM\HYDRO\LETLUVGW\B81j10gw | N42: B81J10 | O42: 568 | P42: 0
G43: C:\WRYM\HYDRO\LETLUVGW\B81F1020gw | H43: 430 | J43: C:\WRYM\HYDRO\LETLUVGW\B81F1020gw | N43: B81F1020 | O43: 430 | P43: 0
G44: =J44 -> C:\WRYM\HYDRO\LETLUVGW\b82bsfr | H44: 40.6 | J44: C:\WRYM\HYDRO\LETLUVGW\b82bsfr
G45: =J45 -> C:\WRYM\HYDRO\LETLUVGW\b82csfr | H45: 60 | J45: C:\WRYM\HYDRO\LETLUVGW\b82csfr
G46: C:\WRYM\HYDRO\LETLUVGW\b82dsfr | H46: 32 | J46: C:\WRYM\HYDRO\LETLUVGW\b82dsfr
G47: C:\WRYM\HYDRO\LETLUVGW\B81cdum | H47: 1 | J47: C:\WRYM\HYDRO\LETLUVGW\B81cdum
G48: C:\WRYM\HYDRO\LETLUVGW\B82bdum | H48: 1 | J48: C:\WRYM\HYDRO\LETLUVGW\B82bdum
G49: C:\WRYM\HYDRO\LETLUVGW\B82cdum | H49: 1 | J49: C:\WRYM\HYDRO\LETLUVGW\B82cdum
G50: C:\WRYM\HYDRO\LETLUVGW\B82ddum | H50: 1 | J50: C:\WRYM\HYDRO\LETLUVGW\B82ddum
G51: C:\WRYM\HYDRO\LETLUVGW\B81Cewr | H51: 1 | J51: C:\WRYM\HYDRO\LETLUVGW\B81Cewr
G52: C:\WRYM\HYDRO\LETLUVGW\B82Bewr | H52: 1 | J52: C:\WRYM\HYDRO\LETLUVGW\B82Bewr
G53: C:\WRYM\HYDRO\LETLUVGW\B82Cewr | H53: 1 | J53: C:\WRYM\HYDRO\LETLUVGW\B82Cewr
G54: C:\WRYM\HYDRO\LETLUVGW\B82Dewr | H54: 1 | J54: C:\WRYM\HYDRO\LETLUVGW\B82Dewr
G55: C:\WRYM\HYDRO\LETLUVGW\A91G2gw | H55: 358 | J55: C:\WRYM\HYDRO\LETLUVGW\A91G2gw | N55: A91G2 | O55: 358 | P55: 0
G56: C:\WRYM\HYDRO\LETLUVGW\A91H1gw | H56: 450 | J56: C:\WRYM\HYDRO\LETLUVGW\A91H1gw | N56: A91H | O56: 450 | P56: 0
G57: C:\WRYM\HYDRO\LETLUVGW\A91Jgw | H57: 625 | J57: C:\WRYM\HYDRO\LETLUVGW\A91Jgw | N57: A91K | O57: 625 | P57: 0
G58: C:\WRYM\HYDRO\LETLUVGW\A91Kgw | H58: 570 | J58: C:\WRYM\HYDRO\LETLUVGW\A91Kgw | N58: A91J | O58: 570 | P58: 0
G59: C:\WRYM\HYDRO\LETLUVGW\B90A | H59: 611 | J59: C:\WRYM\HYDRO\LETLUVGW\B90A | N59: B90A | O59: 611 | P59: 0
G60: C:\WRYM\HYDRO\LETLUVGW\B90B | H60: 754 | J60: C:\WRYM\HYDRO\LETLUVGW\B90B | N60: B90B | O60: 754 | P60: 0
G61: C:\WRYM\HYDRO\LETLUVGW\B90C | H61: 535 | J61: C:\WRYM\HYDRO\LETLUVGW\B90C | N61: B90C | O61: 535 | P61: 0
G62: C:\WRYM\HYDRO\LETLUVGW\B90D | H62: 447 | J62: C:\WRYM\HYDRO\LETLUVGW\B90D | N62: B90D | O62: 447 | P62: 0
G63: C:\WRYM\HYDRO\LETLUVGW\B90E | H63: 474 | J63: C:\WRYM\HYDRO\LETLUVGW\B90E | N63: B90E | O63: 474 | P63: 0
G64: C:\WRYM\HYDRO\LETLUVGW\B90F | H64: 819 | J64: C:\WRYM\HYDRO\LETLUVGW\B90F | N64: B90F | O64: 819 | P64: 0
G65: C:\WRYM\HYDRO\LETLUVGW\B90G | H65: 698 | J65: C:\WRYM\HYDRO\LETLUVGW\B90G | N65: B90G | O65: 698 | P65: 0
G66: C:\WRYM\HYDRO\LETLUVGW\B90H1 | H66: 229 | J66: C:\WRYM\HYDRO\LETLUVGW\B90H1 | N66: B90H1 | O66: 229 | P66: 0
G67: C:\WRYM\HYDRO\LETLUVGW\B90H2 | H67: 546 | J67: C:\WRYM\HYDRO\LETLUVGW\B90H2 | N67: B90H2 | O67: 546 | P67: =O67-H67 -> 0
G68: C:\WRYM\HYDRO\LETLUVGW\A92A1 | H68: 282 | J68: C:\WRYM\HYDRO\LETLUVGW\A92A1 | N68: A92A1 | O68: 282 | P68: 0
G69: C:\WRYM\HYDRO\LETLUVGW\A92A2 | H69: 47 | J69: C:\WRYM\HYDRO\LETLUVGW\A92A2 | N69: A92A2 | O69: 47 | P69: 0
G70: C:\WRYM\HYDRO\LETLUVGW\A92B | H70: 565 | J70: C:\WRYM\HYDRO\LETLUVGW\A92B | N70: A92B | O70: 565 | P70: 0
G71: C:\WRYM\HYDRO\LETLUVGW\A92Cgw | H71: 455 | J71: C:\WRYM\HYDRO\LETLUVGW\A92Cgw | N71: A92C | O71: 455 | P71: 0
G72: C:\WRYM\HYDRO\LETLUVGW\A92D | H72: 560 | J72: C:\WRYM\HYDRO\LETLUVGW\A92D | N72: A92D | O72: 560 | P72: 0

Sheet Sheet3
C1: WRYM | F1: WRPM
B2: 1 | C2: allem4 | D2: 3628 | F2: 1 | G2: allem4 | H2: =VLOOKUP(G2,$C$2:$D$247,2,FALSE) -> 3628
B3: 2 | C3: Barr4 | D3: 2828 | F3: 2 | G3: Barr4 | H3: =VLOOKUP(G3,$C$2:$D$247,2,FALSE) -> 2828
B4: 3 | C4: bloemn3d4 | D4: 11818 | F4: 3 | G4: bloemn3d4 | H4: 11818
B5: 4 | C5: bosk4 | D5: 1756 | F5: 4 | G5: bosk4 | H5: 1756
B6: 5 | C6: DELA4 | D6: 4158 | F6: 5 | G6: DELA4 | H6: 4158
B7: 6 | C7: erf4 | D7: 4724 | F7: 6 | G7: erf4 | H7: 4724
B8: 7 | C8: FRAN4 | D8: 15498 | F8: 7 | G8: FRAN4 | H8: 15498
B9: 8 | C9: GROOTD4 | D9: 7995 | F9: 8 | G9: GROOTD4 | H9: 7995
B10: 9 | C10: klerk4 | D10: 1001 | F10: 9 | G10: klerk4 | H10: 1001
B11: 10 | C11: klipbn4 | D11: 6765 | F11: 10 | G11: klipbn4 | H11: 6765
B12: 11 | C12: klipdn4 | D12: 890 | F12: 11 | G12: klipdn4 | H12: 890
B13: 12 | C13: Klipr4 | D13: 2282 | F13: 12 | G13: Klipr4 | H13: 2282
B14: 13 | C14: C70ABC4 | D14: 2160 | F14: 13 | G14: C70ABC4 | H14: 2160
B15: 14 | C15: kromn4 | D15: 2028 | F15: 14 | G15: kromn4 | H15: 2028
B16: 15 | C16: Augn4 | D16: 1 | F16: 15 | G16: D33 | H16: 1
B17: 16 | C17: MthN4 | D17: 1 | F17: 16 | G17: Mu12 | H17: 1
B18: 17 | C18: D41Ared | D18: 2778 | F18: 17 | G18: D41ARED | H18: 2778
B19: 18 | C19: sandn4 | D19: 8463 | F19: 18 | G19: sandn4 | H19: 8463
B20: 19 | C20: STERK4 | D20: 195 | F20: 19 | G20: STERK4 | H20: 195
B21: 20 | C21: SUIK4 | D21: 3541 | F21: 20 | G21: SUIK4 | H21: 3541
B22: 21 | C22: VAAL4 | D22: 9893 | F22: 21 | G22: VAAL4 | H22: 9893
B23: 22 | C23: X11D2 | D23: 1 | F23: 22 | G23: X11D2 | H23: 1
B24: 23 | C24: X11J1 | D24: 1 | F24: 23 | G24: X11J1 | H24: 1
B25: 24 | C25: UAub | D25: 1 | F25: 24 | G25: UAub | H25: 1
B26: 25 | C26: X11a1 | D26: 1 | F26: 25 | G26: X11a1 | H26: 1
B27: 26 | C27: X11D1 | D27: 1 | F27: 26 | G27: X11D1 | H27: 1
B28: 27 | C28: kat10 | D28: 1 | F28: 27 | G28: kat10 | H28: 1
B29: 28 | C29: mal10 | D29: 1 | F29: 28 | G29: mal10 | H29: 1
B30: 29 | C30: mas10 | D30: 1 | F30: 29 | G30: mas10 | H30: 1
B31: 30 | C31: mat10 | D31: 1 | F31: 30 | G31: mat10 | H31: 1
B32: 31 | C32: moh10 | D32: 1 | F32: 31 | G32: moh10 | H32: 1
B33: 32 | C33: nto10 | D33: 1 | F33: 32 | G33: nto10 | H33: 1
B34: 33 | C34: oran10 | D34: 1 | F34: 33 | G34: ORAN10 | H34: 1
B35: 34 | C35: tso10 | D35: 1 | F35: 34 | G35: Tso10 | H35: 1
B36: 35 | C36: Dehoop4 | D36: 3201 | F36: 35 | G36: Dehoop4 | H36: 3201
B37: 36 | C37: Lolif | D37: 1 | F37: 36 | G37: Lolif | H37: 1
B38: 37 | C38: Spits4 | D38: 9205 | F38: 37 | G38: Spits4 | H38: 9205
B39: 38 | C39: D41N | D39: 1372 | F39: 38 | G39: D41N | H39: 1372
B40: 39 | C40: Vharts4 | D40: 2509 | F40: 39 | G40: Vharts4 | H40: 2509
B41: 40 | C41: Auch4 | D41: 1847 | F41: 40 | G41: Auch4 | H41: 1847
B42: 41 | C42: Kalkf4 | D42: 8781 | F42: 41 | G42: Kalkf4 | H42: 8781
B43: 42 | C43: Krug4 | D43: 5391 | F43: 42 | G43: Krug4 | H43: 5391
B44: 43 | C44: Rustf4 | D44: 937 | F44: 43 | G44: Rustf4 | H44: 937
B45: 44 | C45: Tier4 | D45: 922 | F45: 44 | G45: Tier4 | H45: 922
B46: 45 | C46: Twee4 | D46: 2236 | F46: 45 | G46: Twee4 | H46: 2236
B47: 46 | C47: D41M | D47: 1 | F47: 46 | G47: D41M | H47: 1
B48: 47 | C48: D41K | D48: 1 | F48: 47 | G48: D41K | H48: 1
B49: 48 | C49: D41B | D49: 5193 | F49: 48 | G49: D41B | H49: 5193
B50: 49 | C50: D41C | D50: 2995 | F50: 49 | G50: D41C | H50: 2995
B51: 50 | C51: D41D | D51: 2744 | F51: 50 | G51: D41D | H51: 2744
B52: 51 | C52: D41E | D52: 1 | F52: 51 | G52: D41E | H52: 1
B53: 52 | C53: D41F | D53: 1 | F53: 52 | G53: D41F | H53: 1
B54: 53 | C54: D42B | D54: 1 | F54: 53 | G54: D42B | H54: 1
B55: 54 | C55: mntdam4 | D55: 1 | F55: 54 | G55: X11G1 | H55: 1
B56: 55 | C56: UOlif | D56: 218 | F56: 55 | G56: UOlif | H56: 218
B57: 56 | C57: SEEIS | D57: 146 | F57: 56 | G57: SEEIS | H57: 146
B58: 57 | C58: ti194 | D58: 1 | F58: 57 | G58: X11H1 | H58: 1
B59: 58 | C59: ti294 | D59: 1 | F59: 58 | G59: X11K1 | H59: 1
B60: 59 | C60: ti394 | D60: 1 | F60: 59 | G60: C24ceye4 | H60: 1
B61: 60 | C61: D41G | D61: 1 | F61: 60 | G61: D41G | H61: 1
B62: 61 | C62: D42A | D62: 1388 | F62: 61 | G62: D42A | H62: 1388
B63: 62 | C63: D42F | D63: 1360 | F63: 62 | G63: D42F | H63: 1360
B64: 63 | C64: D42E | D64: 1552 | F64: 63 | G64: D42E | H64: 1552
B65: 64 | C65: D42D | D65: 2946 | F65: 64 | G65: D42D | H65: 2946
B66: 65 | C66: D42C | D66: 1 | F66: 65 | G66: D42C | H66: 1
B67: 66 | C67: vu94 | D67: 1 | F67: 66 | G67: com2124 | H67: =VLOOKUP(G67,$C$2:$D$247,2,FALSE) -> 1
B68: 67 | C68: aliw4 | D68: 1 | F68: 67 | G68: d12 | H68: 3645
B69: 68 | C69: LOGR1 | D69: 12426 | F69: 68 | G69: LOGR1 | H69: 12426
B70: 69 | C70: HFDU4 | D70: 1 | F70: 69 | G70: d35 | H70: 5638
B71: 70 | C71: Hlodam | D71: 1 | F71: 70 | G71: hlodam | H71: 1
B72: 71 | C72: Katjrest | D72: 1 | F72: 71 | G72: katjrest | H72: 1
B73: 72 | C73: Knell | D73: 1 | F73: 72 | G73: knell | H73: 1
B74: 73 | C74: pkdu4 | D74: 1 | F74: 73 | G74: vdk | H74: 18497
B75: 74 | C75: rood4 | D75: 1 | F75: 74 | G75: d13 | H75: 8676
B76: 75 | C76: verw4 | D76: 1 | F76: 75 | G76: d14 | H76: 6145
B77: 76 | C77: LOGR2 | D77: 1 | F77: 76 | G77: LOGR2 | H77: 1
B78: 77 | C78: Water | D78: 1 | F78: 77 | G78: water | H78: 1
B79: 78 | C79: Welinc | D79: 1 | F79: 78 | G79: WELINC | H79: 1
B80: 79 | C80: tm0194 | D80: 1 | F80: 79 | G80: tm0194 | H80: 1
B81: 80 | C81: tm0294 | D81: 1 | F81: 80 | G81: tm0294 | H81: 1
B82: 81 | C82: tm0394 | D82: 1 | F82: 81 | G82: tm0394 | H82: 1
B83: 82 | C83: tm0494 | D83: 1 | F83: 82 | G83: tm0494 | H83: 1
B84: 83 | C84: Tm05a4 | D84: 1 | F84: 83 | G84: Tm05a4 | H84: 1
B85: 84 | C85: Tm05b4 | D85: 1 | F85: 84 | G85: Tm05b4 | H85: 1
B86: 85 | C86: Tm07b4 | D86: 1 | F86: 85 | G86: Tm07b4 | H86: 1
B87: 86 | C87: Tm08a4 | D87: 1 | F87: 86 | G87: Tm08a4 | H87: 1
B88: 87 | C88: tm0994 | D88: 1 | F88: 87 | G88: tm0994 | H88: 1
B89: 88 | C89: tm1094 | D89: 1 | F89: 88 | G89: tm1094 | H89: 1
B90: 89 | C90: tm1194 | D90: 1 | F90: 89 | G90: tm1194 | H90: 1
B91: 90 | C91: tm1294 | D91: 1 | F91: 90 | G91: tm1294 | H91: 1
B92: 91 | C92: tm1394 | D92: 1 | F92: 91 | G92: tm1394 | H92: 1
B93: 92 | C93: tm1494 | D93: 1 | F93: 92 | G93: tm1494 | H93: 1
B94: 93 | C94: Tm15b4 | D94: 1 | F94: 93 | G94: Tm15b4 | H94: 1
B95: 94 | C95: Tm16c4 | D95: 1 | F95: 94 | G95: Tm16c4 | H95: 1
B96: 95 | C96: tm1794 | D96: 1 | F96: 95 | G96: tm1794 | H96: 1
B97: 96 | C97: tm1894 | D97: 1 | F97: 96 | G97: tm1894 | H97: 1
B98: 97 | C98: tm1994 | D98: 1 | F98: 97 | G98: tm1994 | H98: 1
B99: 98 | C99: Tm29a4 | D99: 1 | F99: 98 | G99: Tm29a4 | H99: 1
B100: 99 | C100: Tm15a4 | D100: 1 | F100: 99 | G100: Tm15a4 | H100: 1
B101: 100 | C101: Tm16b4 | D101: 1 | F101: 100 | G101: Tm16b4 | H101: 1
B102: 101 | C102: Tm16a4 | D102: 1 | F102: 101 | G102: Tm16a4 | H102: 1
B103: 102 | C103: tm2494 | D103: 1 | F103: 102 | G103: tm2494 | H103: 1
B104: 103 | C104: tm2594 | D104: 1 | F104: 103 | G104: tm2594 | H104: 1
B105: 104 | C105: tm2694 | D105: 1 | F105: 104 | G105: tm2694 | H105: 1
B106: 105 | C106: tm2794 | D106: 1 | F106: 105 | G106: tm2794 | H106: 1
B107: 106 | C107: Tm289_a4 | D107: 1 | F107: 106 | G107: Tm289_a4 | H107: 1
B108: 107 | C108: Tm29b4 | D108: 1 | F108: 107 | G108: Tm29b4 | H108: 1
B109: 108 | C109: Tm30a4 | D109: 1 | F109: 108 | G109: Tm30a4 | H109: 1
B110: 109 | C110: tm3194 | D110: 1 | F110: 109 | G110: tm3194 | H110: 1
B111: 110 | C111: Tm329_a4 | D111: 1 | F111: 110 | G111: Tm329_a4 | H111: 1
B112: 111 | C112: bak4 | D112: 1 | F112: 111 | G112: X11B2 | H112: 1
B113: 112 | C113: broad4 | D113: 1 | F113: 112 | G113: X11C1 | H113: 1
B114: 113 | C114: bus4 | D114: 1 | F114: 113 | G114: X11D3 | H114: 1
B115: 114 | C115: W5h84 | D115: 1 | F115: 114 | G115: church9 | H115: 1
B116: 115 | C116: W5r44 | D116: 1 | F116: 115 | G116: heys9 | H116: 1
B117: 116 | C117: ish4 | D117: 1 | F117: 116 | G117: X11E1 | H117: 1
B118: 117 | C118: W5r14 | D118: 1 | F118: 117 | G118: jeri9 | H118: 1
B119: 118 | C119: mer4 | D119: 1 | F119: 118 | G119: X11E2 | H119: 1
B120: 119 | C120: W5r34 | D120: 1 | F120: 119 | G120: morg9 | H120: 1
B121: 120 | C121: W5r24 | D121: 1 | F121: 120 | G121: West9 | H121: 1
B122: 121 | C122: mu1_4 | D122: 1 | F122: 121 | G122: mu1 | H122: 1
B123: 122 | C123: mu2_4 | D123: 1 | F123: 122 | G123: mu2 | H123: 1
B124: 123 | C124: mu3_4 | D124: 1 | F124: 123 | G124: mu3 | H124: 1
B125: 124 | C125: mu4_4 | D125: 1 | F125: 124 | G125: mu4 | H125: 1
B126: 125 | C126: mu5_4 | D126: 1 | F126: 125 | G126: mu5 | H126: 1
B127: 126 | C127: mu6_4 | D127: 1 | F127: 126 | G127: mu6 | H127: 1
B128: 127 | C128: c70k4 | D128: 392 | F128: 127 | G128: c70k4 | H128: 392
B129: 128 | C129: c24d4 | D129: 364 | F129: 128 | G129: c24d4 | H129: 364
B130: 129 | C130: c24e4 | D130: 664 | F130: 129 | G130: c24e4 | H130: 664
B131: 130 | C131: c24f4 | D131: 1180 | F131: 130 | G131: c24f4 | H131: =VLOOKUP(G131,$C$2:$D$247,2,FALSE) -> 1180
B132: 131 | C132: c24g4 | D132: 985 | F132: 131 | G132: c24g4 | H132: 985
B133: 132 | C133: c24h4 | D133: 1 | F133: 132 | G133: c24h4 | H133: 1
B134: 133 | C134: Mu13_4 | D134: 1 | F134: 133 | G134: Mu13 | H134: 1
B135: 134 | C135: Mu14_4 | D135: 1 | F135: 134 | G135: Mu14 | H135: 1
B136: 135 | C136: Mu15_4 | D136: 1 | F136: 135 | G136: Mu15 | H136: 1
B137: 136 | C137: D43C | D137: 1 | F137: 136 | G137: D43C | H137: 1
B138: 137 | C138: D44C | D138: 1 | F138: 137 | G138: D44C | H138: 1
B139: 138 | C139: D44D | D139: 1 | F139: 138 | G139: D44D | H139: 1
B140: 139 | C140: D41J | D140: 1 | F140: 139 | G140: D41J | H140: 1
B141: 140 | C141: D42G | D141: 1 | F141: 140 | G141: D42G | H141: 1
B142: 141 | C142: D45C | D142: 1 | F142: 141 | G142: D45C | H142: 1
B143: 142 | C143: D45D | D143: 1 | F143: 142 | G143: D45D | H143: 1
B144: 143 | C144: Otjv | D144: 965.5 | F144: 143 | G144: Otjv | H144: 965.5
B145: 144 | C145: DVilj | D145: 965.5 | F145: 144 | G145: DVilj | H145: 965.5
B146: 145 | C146: mu25_4 | D146: 1 | F146: 145 | G146: mu7 | H146: 1
B147: 146 | C147: mu26_4 | D147: 1 | F147: 146 | G147: mu8 | H147: 1
B148: 147 | C148: mu27_4 | D148: 1 | F148: 147 | G148: mu9 | H148: 1
B149: 148 | C149: mu28_4 | D149: 1 | F149: 148 | G149: Mu10 | H149: 1
B150: 149 | C150: mu29_4 | D150: 1 | F150: 149 | G150: Mu11 | H150: 1
B151: 150 | C151: D43B | D151: 1 | F151: 150 | G151: D43B | H151: 1
B152: 151 | C152: alb4 | D152: 1 | F152: 151 | G152: com1113 | H152: 1
B153: 152 | C153: duz4 | D153: 1 | F153: 152 | G153: gro | H153: 1
B154: 153 | C154: haz4 | D154: 1 | F154: 153 | G154: com2327 | H154: 1
B155: 154 | C155: hen4 | D155: 1 | F155: 154 | G155: com22 | H155: 1
B156: 155 | C156: hla4 | D156: 1 | F156: 155 | G156: LOGR3 | H156: 1
B157: 156 | C157: imp4 | D157: 1 | F157: 156 | G157: LOGR4 | H157: 1
B158: 157 | C158: ina4 | D158: 1 | F158: 157 | G158: LOGR5 | H158: 1
B159: 158 | C159: lov4 | D159: 1 | F159: 158 | G159: LOGR6 | H159: 15153
B160: 159 | C160: mbo4 | D160: 1 | F160: 159 | G160: LOGR7 | H160: 1
B161: 160 | C161: mdlm4 | D161: 1 | F161: 160 | G161: LOGR8 | H161: 1
B162: 161 | C162: mgem4 | D162: 1 | F162: 161 | G162: LOGR9 | H162: 1
B163: 162 | C163: mhi4 | D163: 1 | F163: 162 | G163: LOGR10 | H163: 1342
B164: 163 | C164: mhl4 | D164: 1 | F164: 163 | G164: LOGR11 | H164: 1
B165: 164 | C165: mid4 | D165: 1 | F165: 164 | G165: LOGR12 | H165: 1
B166: 165 | C166: mkom4 | D166: 1 | F166: 165 | G166: LOGR13 | H166: 1
B167: 166 | C167: mlam4 | D167: 1 | F167: 166 | G167: LOGR14 | H167: 1
B168: 167 | C168: mea4 | D168: 1 | F168: 167 | G168: LOGR16 | H168: 1
B169: 168 | C169: nag4 | D169: 1 | F169: 168 | G169: LOGR17 | H169: 1
B170: 169 | C170: ngw4 | D170: 1 | F170: 169 | G170: LOGR18 | H170: 1
B171: 170 | C171: nun4 | D171: 1 | F171: 170 | G171: LOGR19 | H171: 1
B172: 171 | C172: sho4 | D172: 1 | F172: 171 | G172: LOGR15 | H172: 1
B173: 172 | C173: smi4 | D173: 1 | F173: 172 | G173: METO | H173: 757
B174: 173 | C174: sut4 | D174: 1 | F174: 173 | G174: hloabs | H174: 374
B175: 174 | C175: ton4 | D175: 1 | F175: 174 | G175: holdam | H175: 157.6
B176: 175 | C176: midd4 | D176: 1 | F176: 175 | G176: holabs | H176: 157.6
B177: 176 | C177: spr4 | D177: 1 | F177: 176 | G177: armen | H177: 861
B178: 177 | C178: dar4 | D178: 1 | F178: 177 | G178: muela | H178: 78.8
B179: 178 | C179: craig4 | D179: 1 | F179: 178 | G179: MAKABS | H179: 1
B180: 179 | C180: muden4 | D180: 1 | F180: 179 | G180: MAKDAM | H180: 1
B181: 180 | C181: Barbers4 | D181: 433.8 | F181: 180 | G181: Barbers4 | H181: 433.8
B182: 181 | C182: USWentzD4 | D182: 5824.8 | F182: 181 | G182: USWentzD4 | H182: 5824.8
B183: 182 | C183: DSWentzD4 | D183: 1787.6 | F183: 182 | G183: DSWentzD4 | H183: 1787.6
B184: 183 | C184: C3H0134 | D184: 1691 | F184: 183 | G184: C3H0134 | H184: 1691
B185: 184 | C185: C9H0074 | D185: 4168 | F185: 184 | G185: C9H0074 | H185: 4168
B186: 185 | C186: C5r54 | D186: 1 | F186: 185 | G186: X11F1 | H186: 1
B187: 186 | C187: Hardp4 | D187: 1 | F187: 186 | G187: F1 | H187: 1
B188: 187 | C188: Konkp4 | D188: 1 | F188: 187 | G188: F2 | H188: 1
B189: 188 | C189: LowF4 | D189: 1 | F189: 188 | G189: F3 | H189: 1
B190: 189 | C190: Naut4 | D190: 1 | F190: 189 | G190: F4 | H190: 1
B191: 190 | C191: Seeh4 | D191: 1 | F191: 190 | G191: F5 | H191: 1
B192: 191 | C192: c70d4 | D192: 675 | F192: 191 | G192: c70d4 | H192: 675
B193: 192 | C193: c70e4 | D193: 693 | F193: 192 | G193: c70e4 | H193: 693
B194: 193 | C194: c70f4 | D194: 564 | F194: 193 | G194: c70f4 | H194: 564
B195: 194 | C195: c70g4 | D195: 1 | F195: 194 | G195: c70g4 | H195: =VLOOKUP(G195,$C$2:$D$247,2,FALSE) -> 1
B196: 195 | C196: c70h4 | D196: 251 | F196: 195 | G196: c70h4 | H196: 251
B197: 196 | C197: c70j4 | D197: 521 | F197: 196 | G197: c70j4 | H197: 521
B198: 197 | C198: lakesn4 | D198: 345 | F198: 197 | G198: lakesn4 | H198: 345
B199: 198 | C199: Tm07a4 | D199: 1 | F199: 198 | G199: Tm07a4 | H199: 1
B200: 199 | C200: Tm289_b4 | D200: 1 | F200: 199 | G200: Tm289_b4 | H200: 1
... 47 more rows

Sheet Sheet4
B2: 1 | C2: C:\WRPM\HYDRO\ORASPH3\allem4
B3: 2 | C3: C:\WRPM\HYDRO\ORASPH3\Barr4
B4: 3 | C4: C:\WRPM\HYDRO\ORASPH3\bloemn3d4
B5: 4 | C5: C:\WRPM\HYDRO\ORASPH3\bosk4
B6: 5 | C6: C:\WRPM\HYDRO\ORASPH3\DELA4
B7: 6 | C7: C:\WRPM\HYDRO\ORASPH3\erf4
B8: 7 | C8: C:\WRPM\HYDRO\ORASPH3\FRAN4
B9: 8 | C9: C:\WRPM\HYDRO\ORASPH3\GROOTD4
B10: 9 | C10: C:\WRPM\HYDRO\ORASPH3\klerk4
B11: 10 | C11: C:\WRPM\HYDRO\ORASPH3\klipbn4
B12: 11 | C12: C:\WRPM\HYDRO\ORASPH3\klipdn4
B13: 12 | C13: C:\WRPM\HYDRO\ORASPH3\Klipr4
B14: 13 | C14: C:\WRPM\HYDRO\ORASPH3\C70ABC4
B15: 14 | C15: C:\WRPM\HYDRO\ORASPH3\kromn4
B16: 15 | C16: C:\WRPM\HYDRO\ORASPH3\D33
B17: 16 | C17: C:\WRPM\HYDRO\ORASPH3\Mu12
B18: 17 | C18: C:\WRPM\HYDRO\ORASPH3\D41ARED
B19: 18 | C19: C:\WRPM\HYDRO\ORASPH3\sandn4
B20: 19 | C20: C:\WRPM\HYDRO\ORASPH3\STERK4
B21: 20 | C21: C:\WRPM\HYDRO\ORASPH3\SUIK4
B22: 21 | C22: C:\WRPM\HYDRO\ORASPH3\VAAL4
B23: 22 | C23: C:\WRPM\HYDRO\ORASPH3\X11D2
B24: 23 | C24: C:\WRPM\HYDRO\ORASPH3\X11J1
B25: 24 | C25: C:\WRPM\HYDRO\ORASPH3\UAub
B26: 25 | C26: C:\WRPM\HYDRO\ORASPH3\X11a1
B27: 26 | C27: C:\WRPM\HYDRO\ORASPH3\X11D1
B28: 27 | C28: C:\WRPM\HYDRO\ORASPH3\kat10
B29: 28 | C29: C:\WRPM\HYDRO\ORASPH3\mal10
B30: 29 | C30: C:\WRPM\HYDRO\ORASPH3\mas10
B31: 30 | C31: C:\WRPM\HYDRO\ORASPH3\mat10
B32: 31 | C32: C:\WRPM\HYDRO\ORASPH3\moh10
B33: 32 | C33: C:\WRPM\HYDRO\ORASPH3\nto10
B34: 33 | C34: C:\WRPM\HYDRO\ORASPH3\ORAN10
B35: 34 | C35: C:\WRPM\HYDRO\ORASPH3\Tso10
B36: 35 | C36: C:\WRPM\HYDRO\ORASPH3\Dehoop4
B37: 36 | C37: C:\WRPM\HYDRO\ORASPH3\Lolif
B38: 37 | C38: C:\WRPM\HYDRO\ORASPH3\Spits4
B39: 38 | C39: C:\WRPM\HYDRO\ORASPH3\D41N
B40: 39 | C40: C:\WRPM\HYDRO\ORASPH3\Vharts4
B41: 40 | C41: C:\WRPM\HYDRO\ORASPH3\Auch4
B42: 41 | C42: C:\WRPM\HYDRO\ORASPH3\Kalkf4
B43: 42 | C43: C:\WRPM\HYDRO\ORASPH3\Krug4
B44: 43 | C44: C:\WRPM\HYDRO\ORASPH3\Rustf4
B45: 44 | C45: C:\WRPM\HYDRO\ORASPH3\Tier4
B46: 45 | C46: C:\WRPM\HYDRO\ORASPH3\Twee4
B47: 46 | C47: C:\WRPM\HYDRO\ORASPH3\D41M
B48: 47 | C48: C:\WRPM\HYDRO\ORASPH3\D41K
B49: 48 | C49: C:\WRPM\HYDRO\ORASPH3\D41B
B50: 49 | C50: C:\WRPM\HYDRO\ORASPH3\D41C
B51: 50 | C51: C:\WRPM\HYDRO\ORASPH3\D41D
B52: 51 | C52: C:\WRPM\HYDRO\ORASPH3\D41E
B53: 52 | C53: C:\WRPM\HYDRO\ORASPH3\D41F
B54: 53 | C54: C:\WRPM\HYDRO\ORASPH3\D42B
B55: 54 | C55: C:\WRPM\HYDRO\ORASPH3\X11G1
B56: 55 | C56: C:\WRPM\HYDRO\ORASPH3\UOlif
B57: 56 | C57: C:\WRPM\HYDRO\ORASPH3\SEEIS
B58: 57 | C58: C:\WRPM\HYDRO\ORASPH3\X11H1
B59: 58 | C59: C:\WRPM\HYDRO\ORASPH3\X11K1
B60: 59 | C60: C:\WRPM\HYDRO\ORASPH3\C24ceye4
B61: 60 | C61: C:\WRPM\HYDRO\ORASPH3\D41G
B62: 61 | C62: C:\WRPM\HYDRO\ORASPH3\D42A
B63: 62 | C63: C:\WRPM\HYDRO\ORASPH3\D42F
B64: 63 | C64: C:\WRPM\HYDRO\ORASPH3\D42E
B65: 64 | C65: C:\WRPM\HYDRO\ORASPH3\D42D
B66: 65 | C66: C:\WRPM\HYDRO\ORASPH3\D42C
B67: 66 | C67: C:\WRPM\HYDRO\ORASPH3\com2124
B68: 67 | C68: C:\WRPM\HYDRO\ORASPH3\d12
B69: 68 | C69: C:\WRPM\HYDRO\ORASPH3\LOGR1
B70: 69 | C70: C:\WRPM\HYDRO\ORASPH3\d35
B71: 70 | C71: C:\WRPM\HYDRO\ORASPH3\hlodam
B72: 71 | C72: C:\WRPM\HYDRO\ORASPH3\katjrest
B73: 72 | C73: C:\WRPM\HYDRO\ORASPH3\knell
B74: 73 | C74: C:\WRPM\HYDRO\ORASPH3\vdk
B75: 74 | C75: C:\WRPM\HYDRO\ORASPH3\d13
B76: 75 | C76: C:\WRPM\HYDRO\ORASPH3\d14
B77: 76 | C77: C:\WRPM\HYDRO\ORASPH3\LOGR2
B78: 77 | C78: C:\WRPM\HYDRO\ORASPH3\water
B79: 78 | C79: C:\WRPM\HYDRO\ORASPH3\WELINC
B80: 79 | C80: C:\WRPM\HYDRO\ORASPH3\tm0194
B81: 80 | C81: C:\WRPM\HYDRO\ORASPH3\tm0294
B82: 81 | C82: C:\WRPM\HYDRO\ORASPH3\tm0394
B83: 82 | C83: C:\WRPM\HYDRO\ORASPH3\tm0494
B84: 83 | C84: C:\WRPM\HYDRO\ORASPH3\Tm05a4
B85: 84 | C85: C:\WRPM\HYDRO\ORASPH3\Tm05b4
B86: 85 | C86: C:\WRPM\HYDRO\ORASPH3\Tm07b4
B87: 86 | C87: C:\WRPM\HYDRO\ORASPH3\Tm08a4
B88: 87 | C88: C:\WRPM\HYDRO\ORASPH3\tm0994
B89: 88 | C89: C:\WRPM\HYDRO\ORASPH3\tm1094
B90: 89 | C90: C:\WRPM\HYDRO\ORASPH3\tm1194
B91: 90 | C91: C:\WRPM\HYDRO\ORASPH3\tm1294
B92: 91 | C92: C:\WRPM\HYDRO\ORASPH3\tm1394
B93: 92 | C93: C:\WRPM\HYDRO\ORASPH3\tm1494
B94: 93 | C94: C:\WRPM\HYDRO\ORASPH3\Tm15b4
B95: 94 | C95: C:\WRPM\HYDRO\ORASPH3\Tm16c4
B96: 95 | C96: C:\WRPM\HYDRO\ORASPH3\tm1794
B97: 96 | C97: C:\WRPM\HYDRO\ORASPH3\tm1894
B98: 97 | C98: C:\WRPM\HYDRO\ORASPH3\tm1994
B99: 98 | C99: C:\WRPM\HYDRO\ORASPH3\Tm29a4
B100: 99 | C100: C:\WRPM\HYDRO\ORASPH3\Tm15a4
B101: 100 | C101: C:\WRPM\HYDRO\ORASPH3\Tm16b4
B102: 101 | C102: C:\WRPM\HYDRO\ORASPH3\Tm16a4
B103: 102 | C103: C:\WRPM\HYDRO\ORASPH3\tm2494
B104: 103 | C104: C:\WRPM\HYDRO\ORASPH3\tm2594
B105: 104 | C105: C:\WRPM\HYDRO\ORASPH3\tm2694
B106: 105 | C106: C:\WRPM\HYDRO\ORASPH3\tm2794
B107: 106 | C107: C:\WRPM\HYDRO\ORASPH3\Tm289_a4
B108: 107 | C108: C:\WRPM\HYDRO\ORASPH3\Tm29b4
B109: 108 | C109: C:\WRPM\HYDRO\ORASPH3\Tm30a4
B110: 109 | C110: C:\WRPM\HYDRO\ORASPH3\tm3194
B111: 110 | C111: C:\WRPM\HYDRO\ORASPH3\Tm329_a4
B112: 111 | C112: C:\WRPM\HYDRO\ORASPH3\X11B2
B113: 112 | C113: C:\WRPM\HYDRO\ORASPH3\X11C1
B114: 113 | C114: C:\WRPM\HYDRO\ORASPH3\X11D3
B115: 114 | C115: C:\WRPM\HYDRO\ORASPH3\church9
B116: 115 | C116: C:\WRPM\HYDRO\ORASPH3\heys9
B117: 116 | C117: C:\WRPM\HYDRO\ORASPH3\X11E1
B118: 117 | C118: C:\WRPM\HYDRO\ORASPH3\jeri9
B119: 118 | C119: C:\WRPM\HYDRO\ORASPH3\X11E2
B120: 119 | C120: C:\WRPM\HYDRO\ORASPH3\morg9
B121: 120 | C121: C:\WRPM\HYDRO\ORASPH3\West9
B122: 121 | C122: C:\WRPM\HYDRO\ORASPH3\mu1
B123: 122 | C123: C:\WRPM\HYDRO\ORASPH3\mu2
B124: 123 | C124: C:\WRPM\HYDRO\ORASPH3\mu3
B125: 124 | C125: C:\WRPM\HYDRO\ORASPH3\mu4
B126: 125 | C126: C:\WRPM\HYDRO\ORASPH3\mu5
B127: 126 | C127: C:\WRPM\HYDRO\ORASPH3\mu6
B128: 127 | C128: C:\WRPM\HYDRO\ORASPH3\c70k4
B129: 128 | C129: C:\WRPM\HYDRO\ORASPH3\c24d4
B130: 129 | C130: C:\WRPM\HYDRO\ORASPH3\c24e4
B131: 130 | C131: C:\WRPM\HYDRO\ORASPH3\c24f4
B132: 131 | C132: C:\WRPM\HYDRO\ORASPH3\c24g4
B133: 132 | C133: C:\WRPM\HYDRO\ORASPH3\c24h4
B134: 133 | C134: C:\WRPM\HYDRO\ORASPH3\Mu13
B135: 134 | C135: C:\WRPM\HYDRO\ORASPH3\Mu14
B136: 135 | C136: C:\WRPM\HYDRO\ORASPH3\Mu15
B137: 136 | C137: C:\WRPM\HYDRO\ORASPH3\D43C
B138: 137 | C138: C:\WRPM\HYDRO\ORASPH3\D44C
B139: 138 | C139: C:\WRPM\HYDRO\ORASPH3\D44D
B140: 139 | C140: C:\WRPM\HYDRO\ORASPH3\D41J
B141: 140 | C141: C:\WRPM\HYDRO\ORASPH3\D42G
B142: 141 | C142: C:\WRPM\HYDRO\ORASPH3\D45C
B143: 142 | C143: C:\WRPM\HYDRO\ORASPH3\D45D
B144: 143 | C144: C:\WRPM\HYDRO\ORASPH3\Otjv
B145: 144 | C145: C:\WRPM\HYDRO\ORASPH3\DVilj
B146: 145 | C146: C:\WRPM\HYDRO\ORASPH3\mu7
B147: 146 | C147: C:\WRPM\HYDRO\ORASPH3\mu8
B148: 147 | C148: C:\WRPM\HYDRO\ORASPH3\mu9
B149: 148 | C149: C:\WRPM\HYDRO\ORASPH3\Mu10
B150: 149 | C150: C:\WRPM\HYDRO\ORASPH3\Mu11
B151: 150 | C151: C:\WRPM\HYDRO\ORASPH3\D43B
